Workbook

Sheet INTRO
B2: PC Joint Reporting Form v.3.1
B4: The purpose of this template Joint Reporting Form (JRF) - available as an Excel file - is to provide national health authorities and data managers with a standardized tool to address these reporting challenges, facilitate integration and thereby further contribute to improving overall programme management. This template aims to standardize national reporting of programme implementation outcomes, improve availability and coordination of preventive chemotherapy data across the World Health Organization regions. National authorities are requested to complete this form for submission to the World Health Organization any time before 15 August of the current year for reporting data on PC interventions implemented during the previous year.
B6: Structure of the application (worksheets):
B8: INTRO | C8: This worksheet includes guides on how to complete the joint reporting form and information about status of PC for endemic diseases in the country
B9: COUNTRY_INFO | C9: This worksheet includes information about administrative structure of the country, population by age group, status of endemicity for each disease, population requiring PC, planned interventions and interventions implemented
B10: MDA1, MDA2, MDA3, T1, T2 and T3 | C10: These worksheets include information about endemic districts targeted for treatment with specified PC medicines, treatment plan, and number of people who received treatment by age group
B11: DISTRICT | C11: This worksheet includes summary of people treated by disease at the level of implementation. If data by gender is available, it requires to enter.
B12: SUMMARY | C12: This worksheet includes summary of people treated by disease and by PC intervention. Before generating the report (run macros) please select the disease for which you need the report. Follow the same rule to generate various reports. This worksheet should be printed and submitted as a Joint Report (see the instruction for submission in the SUMMARY worksheet).
B14: Instruction for data entry
B16: Most of the cells in the above-mentioned worksheets include formula that are calculated automatically according to the treatment policy recommended by WHO for each disease. See the link http://www.who.int/neglected_diseases/preventive_chemotherapy/pct_manual/en/index.html
B18: Please enter your data into the cells according to their colour code:
C20: White - cell is not protected. Please enter the value of the requested indicator.
C22: Yellow - cell is protected and includes name of indicator. No data entry required.
C24: Orange - cell is not protected and includes a drop-down menu. Please select the value from the drop-down list.
C27: Green - cell is not protected and includes formula. Please change the value only if your data are different from those that are calculated automatically.
C30: Blue - cell is protected and includes formula. No data entry required.
B32: Country data
B34: COUNTRY | E34: ESWATINI
B36: Year of reporting data | E36: 2019
B38: Is country endemic for lymphatic filariasis (LF)? | E38: Non-endemic
B40: Is country endemic for onchocerciasis (ONCHO)? | E40: Non-endemic
B42: Is country endemic for soil-transmitted helminthiases (STH)? | E42: Endemic
B44: Is country endemic for schistosomiasis (SCH)? | E44: Endemic
B46: How many administrative units in the country? | E46: 55
B47: If demographical data at the second administrative level are not available by age group, please enter the proportion (%) of population by age group in the country. If data are available, please leave these cells blank.
B48: 1-4 years age | C48: Preschool-age children (PreSAC) | E48: 0.096
B49: 5-14 years age | C49: School-age children (SAC) | E49: 0.237
B50: 15 years + | C50: Adults | E50: 0.644

Sheet COUNTRY_INFO
A1: COUNTRY INFORMATION
A2: Administrative structure, population by age group, endemicity status, planned interventions and interventions implemented
A4: TOTAL | D4: =SUM(D$9:D$1000) -> 1108596 | E4: =SUM(E$9:E$1000) -> 106426 | F4: =SUM(F$9:F$1000) -> 262737 | G4: =SUM(G$9:G$1000) -> 713936 | L4: =SUM(L$9:L$1000) -> 0 | M4: =SUM(M$9:M$1000) -> 0 | N4: =SUM(N$9:N$1000) -> 20097 | O4: =SUM(O$9:O$1000) -> 241389.61
A6: Country administrative structure | D6: Population | H6: Endemicity | L6: Population requiring PC | P6: Number of treatment rounds planned for the year | T6: PC implemented | V6: Click to see the recommended strategy | AD6: sth | AE6: sch
A7: Country | B7: Province/State | C7: District | D7: Total | E7: PreSAC | F7: SAC | G7: Adults | H7: LF | I7: Oncho | J7: STH | K7: SCH | L7: LF | M7: Oncho | N7: STH | O7: SCH | P7: LF | Q7: Oncho | R7: STH | S7: SCH | T7: ROUND 1 | U7: ROUND2 | X7: IU_ID | Y7: IU_NAME | Z7: x | AA7: x | AB7: x | AC7: x | AD7: x | AE7: x | AF7: x | AG7: x | AH7: x | AI7: x | AJ7: x | AK7: x | AL7: x | AM7: x | AN7: x | AO7: x | AP7: x | AQ7: x
A9: =IF(INTRO!$E$34<>0,INTRO!$E$34,"") -> ESWATINI | B9: HHOHHO | C9: Hhukwini | D9: 12209 | E9: =IF(INTRO!$E$48="","",ROUND($D9*INTRO!$E$48,0)) -> 1172 | F9: =IF(INTRO!$E$49="","",ROUND($D9*INTRO!$E$49,0)) -> 2894 | G9: =IF(INTRO!$E$50="","",ROUND($D9*INTRO!$E$50,0)) -> 7863 | H9: 0 | I9: 0 | J9: 2 | K9: 1 | L9: 0 | M9: 0 | N9: =IF(INTRO!$E$42="Endemic", IF(AND($J9>1,$J9<5), IF($J9=4, "Unknown", E9+F9), 0),"Not required") -> 4066 | O9: =IF(INTRO!$E$44="Endemic", IF(AND($K9>0,$K9<5), IF($K9=4,"Unknown", IF($K9=1, $F9*0.33, IF($K9=2, $F9*0.5+$G9*0.2, SUM(F9:G9)))), 0),"Not required") -> 955.02 | P9: 0 | Q9: 0 | R9: 1 | S9: 0 | T9: T3 (ALB/MBD) | X9: 45404 | Y9: Hhukwini | AC9: =AD9=J9 -> TRUE | AD9: =_xlfn.XLOOKUP($X9,[1]COUNTRY_INFO!$X$9:$X$63,[1]COUNTRY_INFO!J$9:J$63) -> 2 | AE9: =_xlfn.XLOOKUP($X9,[1]COUNTRY_INFO!$X$9:$X$63,[1]COUNTRY_INFO!K$9:K$63) -> 1 | AF9: =AE9=K9 -> TRUE | AH9: =_xlfn.XLOOKUP(X9,[1]COUNTRY_INFO!$X:$X,[1]COUNTRY_INFO!$AL:$AL) -> 1 | AI9: =AH9=K9 -> TRUE
A10: =IF(INTRO!$E$34<>0,INTRO!$E$34,"") -> ESWATINI | B10: HHOHHO | C10: Lobamba | D10: 32605 | E10: =IF(INTRO!$E$48="","",ROUND($D10*INTRO!$E$48,0)) -> 3130 | F10: =IF(INTRO!$E$49="","",ROUND($D10*INTRO!$E$49,0)) -> 7727 | G10: =IF(INTRO!$E$50="","",ROUND($D10*INTRO!$E$50,0)) -> 20998 | H10: 0 | I10: 0 | J10: 1 | K10: 1 | L10: 0 | M10: 0 | N10: =IF(INTRO!$E$42="Endemic", IF(AND($J10>1,$J10<5), IF($J10=4, "Unknown", E10+F10), 0),"Not required") -> 0 | O10: =IF(INTRO!$E$44="Endemic", IF(AND($K10>0,$K10<5), IF($K10=4,"Unknown", IF($K10=1, $F10*0.33, IF($K10=2, $F10*0.5+$G10*0.2, SUM(F10:G10)))), 0),"Not required") -> 2549.91 | P10: 0 | Q10: 0 | R10: 1 | S10: 0 | T10: T3 (ALB/MBD) | X10: 45405 | Y10: Lobamba | AC10: =AD10=J10 -> TRUE | AD10: =_xlfn.XLOOKUP($X10,[1]COUNTRY_INFO!$X$9:$X$63,[1]COUNTRY_INFO!J$9:J$63) -> 1 | AE10: =_xlfn.XLOOKUP($X10,[1]COUNTRY_INFO!$X$9:$X$63,[1]COUNTRY_INFO!K$9:K$63) -> 1 | AF10: =AE10=K10 -> TRUE | AH10: =_xlfn.XLOOKUP(X10,[1]COUNTRY_INFO!$X:$X,[1]COUNTRY_INFO!$AL:$AL) -> 1 | AI10: =AH10=K10 -> TRUE
A11: =IF(INTRO!$E$34<>0,INTRO!$E$34,"") -> ESWATINI | B11: HHOHHO | C11: Madlangempisi | D11: 23917 | E11: =IF(INTRO!$E$48="","",ROUND($D11*INTRO!$E$48,0)) -> 2296 | F11: =IF(INTRO!$E$49="","",ROUND($D11*INTRO!$E$49,0)) -> 5668 | G11: =IF(INTRO!$E$50="","",ROUND($D11*INTRO!$E$50,0)) -> 15403 | H11: 0 | I11: 0 | J11: 1 | K11: 2 | L11: 0 | M11: 0 | N11: =IF(INTRO!$E$42="Endemic", IF(AND($J11>1,$J11<5), IF($J11=4, "Unknown", E11+F11), 0),"Not required") -> 0 | O11: =IF(INTRO!$E$44="Endemic", IF(AND($K11>0,$K11<5), IF($K11=4,"Unknown", IF($K11=1, $F11*0.33, IF($K11=2, $F11*0.5+$G11*0.2, SUM(F11:G11)))), 0),"Not required") -> 5914.6 | P11: 0 | Q11: 0 | R11: 1 | S11: 0 | T11: T3 (ALB/MBD) | X11: 45406 | Y11: Mandlangempisi | AC11: TRUE | AD11: =_xlfn.XLOOKUP($X11,[1]COUNTRY_INFO!$X$9:$X$63,[1]COUNTRY_INFO!J$9:J$63) -> 1 | AE11: =_xlfn.XLOOKUP($X11,[1]COUNTRY_INFO!$X$9:$X$63,[1]COUNTRY_INFO!K$9:K$63) -> 2 | AF11: TRUE | AH11: =_xlfn.XLOOKUP(X11,[1]COUNTRY_INFO!$X:$X,[1]COUNTRY_INFO!$AL:$AL) -> 2 | AI11: TRUE
A12: =IF(INTRO!$E$34<>0,INTRO!$E$34,"") -> ESWATINI | B12: HHOHHO | C12: Maphalaleni | D12: 19727 | E12: =IF(INTRO!$E$48="","",ROUND($D12*INTRO!$E$48,0)) -> 1894 | F12: =IF(INTRO!$E$49="","",ROUND($D12*INTRO!$E$49,0)) -> 4675 | G12: =IF(INTRO!$E$50="","",ROUND($D12*INTRO!$E$50,0)) -> 12704 | H12: 0 | I12: 0 | J12: 1 | K12: 3 | L12: 0 | M12: 0 | N12: =IF(INTRO!$E$42="Endemic", IF(AND($J12>1,$J12<5), IF($J12=4, "Unknown", E12+F12), 0),"Not required") -> 0 | O12: =IF(INTRO!$E$44="Endemic", IF(AND($K12>0,$K12<5), IF($K12=4,"Unknown", IF($K12=1, $F12*0.33, IF($K12=2, $F12*0.5+$G12*0.2, SUM(F12:G12)))), 0),"Not required") -> 17379 | P12: 0 | Q12: 0 | R12: 1 | S12: 0 | T12: T3 (ALB/MBD) | X12: 45412 | Y12: Maphalaleni | AC12: TRUE | AD12: =_xlfn.XLOOKUP($X12,[1]COUNTRY_INFO!$X$9:$X$63,[1]COUNTRY_INFO!J$9:J$63) -> 1 | AE12: =_xlfn.XLOOKUP($X12,[1]COUNTRY_INFO!$X$9:$X$63,[1]COUNTRY_INFO!K$9:K$63) -> 3 | AF12: TRUE | AH12: =_xlfn.XLOOKUP(X12,[1]COUNTRY_INFO!$X:$X,[1]COUNTRY_INFO!$AL:$AL) -> 3 | AI12: TRUE
A13: =IF(INTRO!$E$34<>0,INTRO!$E$34,"") -> ESWATINI | B13: HHOHHO | C13: Mayiwane | D13: 17319 | E13: =IF(INTRO!$E$48="","",ROUND($D13*INTRO!$E$48,0)) -> 1663 | F13: =IF(INTRO!$E$49="","",ROUND($D13*INTRO!$E$49,0)) -> 4105 | G13: =IF(INTRO!$E$50="","",ROUND($D13*INTRO!$E$50,0)) -> 11153 | H13: 0 | I13: 0 | J13: 1 | K13: 2 | L13: 0 | M13: 0 | N13: =IF(INTRO!$E$42="Endemic", IF(AND($J13>1,$J13<5), IF($J13=4, "Unknown", E13+F13), 0),"Not required") -> 0 | O13: =IF(INTRO!$E$44="Endemic", IF(AND($K13>0,$K13<5), IF($K13=4,"Unknown", IF($K13=1, $F13*0.33, IF($K13=2, $F13*0.5+$G13*0.2, SUM(F13:G13)))), 0),"Not required") -> 4283.1 | P13: 0 | Q13: 0 | R13: 1 | S13: 0 | T13: T3 (ALB/MBD) | X13: 45407 | Y13: Mayiwane | AC13: TRUE | AD13: =_xlfn.XLOOKUP($X13,[1]COUNTRY_INFO!$X$9:$X$63,[1]COUNTRY_INFO!J$9:J$63) -> 1 | AE13: =_xlfn.XLOOKUP($X13,[1]COUNTRY_INFO!$X$9:$X$63,[1]COUNTRY_INFO!K$9:K$63) -> 2 | AF13: TRUE | AH13: =_xlfn.XLOOKUP(X13,[1]COUNTRY_INFO!$X:$X,[1]COUNTRY_INFO!$AL:$AL) -> 2 | AI13: TRUE
A14: =IF(INTRO!$E$34<>0,INTRO!$E$34,"") -> ESWATINI | B14: HHOHHO | C14: Mbabane East | D14: 36516 | E14: =IF(INTRO!$E$48="","",ROUND($D14*INTRO!$E$48,0)) -> 3506 | F14: =IF(INTRO!$E$49="","",ROUND($D14*INTRO!$E$49,0)) -> 8654 | G14: =IF(INTRO!$E$50="","",ROUND($D14*INTRO!$E$50,0)) -> 23516 | H14: 0 | I14: 0 | J14: 1 | K14: 2 | L14: 0 | M14: 0 | N14: =IF(INTRO!$E$42="Endemic", IF(AND($J14>1,$J14<5), IF($J14=4, "Unknown", E14+F14), 0),"Not required") -> 0 | O14: =IF(INTRO!$E$44="Endemic", IF(AND($K14>0,$K14<5), IF($K14=4,"Unknown", IF($K14=1, $F14*0.33, IF($K14=2, $F14*0.5+$G14*0.2, SUM(F14:G14)))), 0),"Not required") -> 9030.2 | P14: 0 | Q14: 0 | R14: 1 | S14: 0 | T14: T3 (ALB/MBD) | X14: 45408 | Y14: Mbabane East | AC14: TRUE | AD14: =_xlfn.XLOOKUP($X14,[1]COUNTRY_INFO!$X$9:$X$63,[1]COUNTRY_INFO!J$9:J$63) -> 1 | AE14: =_xlfn.XLOOKUP($X14,[1]COUNTRY_INFO!$X$9:$X$63,[1]COUNTRY_INFO!K$9:K$63) -> 2 | AF14: TRUE | AH14: =_xlfn.XLOOKUP(X14,[1]COUNTRY_INFO!$X:$X,[1]COUNTRY_INFO!$AL:$AL) -> 2 | AI14: TRUE
A15: =IF(INTRO!$E$34<>0,INTRO!$E$34,"") -> ESWATINI | B15: HHOHHO | C15: Mbabane West | D15: 26478 | E15: =IF(INTRO!$E$48="","",ROUND($D15*INTRO!$E$48,0)) -> 2542 | F15: =IF(INTRO!$E$49="","",ROUND($D15*INTRO!$E$49,0)) -> 6275 | G15: =IF(INTRO!$E$50="","",ROUND($D15*INTRO!$E$50,0)) -> 17052 | H15: 0 | I15: 0 | J15: 1 | K15: 1 | L15: 0 | M15: 0 | N15: =IF(INTRO!$E$42="Endemic", IF(AND($J15>1,$J15<5), IF($J15=4, "Unknown", E15+F15), 0),"Not required") -> 0 | O15: =IF(INTRO!$E$44="Endemic", IF(AND($K15>0,$K15<5), IF($K15=4,"Unknown", IF($K15=1, $F15*0.33, IF($K15=2, $F15*0.5+$G15*0.2, SUM(F15:G15)))), 0),"Not required") -> 2070.75 | P15: 0 | Q15: 0 | R15: 1 | S15: 0 | T15: T3 (ALB/MBD) | X15: 45409 | Y15: Mbabane West | AC15: TRUE | AD15: =_xlfn.XLOOKUP($X15,[1]COUNTRY_INFO!$X$9:$X$63,[1]COUNTRY_INFO!J$9:J$63) -> 1 | AE15: =_xlfn.XLOOKUP($X15,[1]COUNTRY_INFO!$X$9:$X$63,[1]COUNTRY_INFO!K$9:K$63) -> 1 | AF15: TRUE | AH15: =_xlfn.XLOOKUP(X15,[1]COUNTRY_INFO!$X:$X,[1]COUNTRY_INFO!$AL:$AL) -> 1 | AI15: TRUE
A16: =IF(INTRO!$E$34<>0,INTRO!$E$34,"") -> ESWATINI | B16: HHOHHO | C16: Mhlangatane | D16: 25788 | E16: =IF(INTRO!$E$48="","",ROUND($D16*INTRO!$E$48,0)) -> 2476 | F16: =IF(INTRO!$E$49="","",ROUND($D16*INTRO!$E$49,0)) -> 6112 | G16: =IF(INTRO!$E$50="","",ROUND($D16*INTRO!$E$50,0)) -> 16607 | H16: 0 | I16: 0 | J16: 1 | K16: 2 | L16: 0 | M16: 0 | N16: =IF(INTRO!$E$42="Endemic", IF(AND($J16>1,$J16<5), IF($J16=4, "Unknown", E16+F16), 0),"Not required") -> 0 | O16: =IF(INTRO!$E$44="Endemic", IF(AND($K16>0,$K16<5), IF($K16=4,"Unknown", IF($K16=1, $F16*0.33, IF($K16=2, $F16*0.5+$G16*0.2, SUM(F16:G16)))), 0),"Not required") -> 6377.4 | P16: 0 | Q16: 0 | R16: 1 | S16: 0 | T16: T3 (ALB/MBD) | X16: 45410 | Y16: Mhlangatane | AC16: TRUE | AD16: =_xlfn.XLOOKUP($X16,[1]COUNTRY_INFO!$X$9:$X$63,[1]COUNTRY_INFO!J$9:J$63) -> 1 | AE16: =_xlfn.XLOOKUP($X16,[1]COUNTRY_INFO!$X$9:$X$63,[1]COUNTRY_INFO!K$9:K$63) -> 2 | AF16: TRUE | AH16: =_xlfn.XLOOKUP(X16,[1]COUNTRY_INFO!$X:$X,[1]COUNTRY_INFO!$AL:$AL) -> 2 | AI16: TRUE
A17: =IF(INTRO!$E$34<>0,INTRO!$E$34,"") -> ESWATINI | B17: HHOHHO | C17: Motshane | D17: 35254 | E17: =IF(INTRO!$E$48="","",ROUND($D17*INTRO!$E$48,0)) -> 3384 | F17: =IF(INTRO!$E$49="","",ROUND($D17*INTRO!$E$49,0)) -> 8355 | G17: =IF(INTRO!$E$50="","",ROUND($D17*INTRO!$E$50,0)) -> 22704 | H17: 0 | I17: 0 | J17: 2 | K17: 2 | L17: 0 | M17: 0 | N17: =IF(INTRO!$E$42="Endemic", IF(AND($J17>1,$J17<5), IF($J17=4, "Unknown", E17+F17), 0),"Not required") -> 11739 | O17: =IF(INTRO!$E$44="Endemic", IF(AND($K17>0,$K17<5), IF($K17=4,"Unknown", IF($K17=1, $F17*0.33, IF($K17=2, $F17*0.5+$G17*0.2, SUM(F17:G17)))), 0),"Not required") -> 8718.3 | P17: 0 | Q17: 0 | R17: 1 | S17: 0 | T17: T3 (ALB/MBD) | X17: 45411 | Y17: Motjane | AC17: TRUE | AD17: =_xlfn.XLOOKUP($X17,[1]COUNTRY_INFO!$X$9:$X$63,[1]COUNTRY_INFO!J$9:J$63) -> 2 | AE17: =_xlfn.XLOOKUP($X17,[1]COUNTRY_INFO!$X$9:$X$63,[1]COUNTRY_INFO!K$9:K$63) -> 2 | AF17: TRUE | AH17: =_xlfn.XLOOKUP(X17,[1]COUNTRY_INFO!$X:$X,[1]COUNTRY_INFO!$AL:$AL) -> 2 | AI17: TRUE
A18: =IF(INTRO!$E$34<>0,INTRO!$E$34,"") -> ESWATINI | B18: HHOHHO | C18: Ndzingeni | D18: 19223 | E18: =IF(INTRO!$E$48="","",ROUND($D18*INTRO!$E$48,0)) -> 1845 | F18: =IF(INTRO!$E$49="","",ROUND($D18*INTRO!$E$49,0)) -> 4556 | G18: =IF(INTRO!$E$50="","",ROUND($D18*INTRO!$E$50,0)) -> 12380 | H18: 0 | I18: 0 | J18: 1 | K18: 1 | L18: 0 | M18: 0 | N18: =IF(INTRO!$E$42="Endemic", IF(AND($J18>1,$J18<5), IF($J18=4, "Unknown", E18+F18), 0),"Not required") -> 0 | O18: =IF(INTRO!$E$44="Endemic", IF(AND($K18>0,$K18<5), IF($K18=4,"Unknown", IF($K18=1, $F18*0.33, IF($K18=2, $F18*0.5+$G18*0.2, SUM(F18:G18)))), 0),"Not required") -> 1503.48 | P18: 0 | Q18: 0 | R18: 1 | S18: 0 | T18: T3 (ALB/MBD) | X18: 45413 | Y18: Ndzingeni | AC18: TRUE | AD18: =_xlfn.XLOOKUP($X18,[1]COUNTRY_INFO!$X$9:$X$63,[1]COUNTRY_INFO!J$9:J$63) -> 1 | AE18: =_xlfn.XLOOKUP($X18,[1]COUNTRY_INFO!$X$9:$X$63,[1]COUNTRY_INFO!K$9:K$63) -> 1 | AF18: TRUE | AH18: =_xlfn.XLOOKUP(X18,[1]COUNTRY_INFO!$X:$X,[1]COUNTRY_INFO!$AL:$AL) -> 1 | AI18: TRUE
A19: =IF(INTRO!$E$34<>0,INTRO!$E$34,"") -> ESWATINI | B19: HHOHHO | C19: Nkhaba | D19: 20745 | E19: =IF(INTRO!$E$48="","",ROUND($D19*INTRO!$E$48,0)) -> 1992 | F19: =IF(INTRO!$E$49="","",ROUND($D19*INTRO!$E$49,0)) -> 4917 | G19: =IF(INTRO!$E$50="","",ROUND($D19*INTRO!$E$50,0)) -> 13360 | H19: 0 | I19: 0 | J19: 1 | K19: 1 | L19: 0 | M19: 0 | N19: =IF(INTRO!$E$42="Endemic", IF(AND($J19>1,$J19<5), IF($J19=4, "Unknown", E19+F19), 0),"Not required") -> 0 | O19: =IF(INTRO!$E$44="Endemic", IF(AND($K19>0,$K19<5), IF($K19=4,"Unknown", IF($K19=1, $F19*0.33, IF($K19=2, $F19*0.5+$G19*0.2, SUM(F19:G19)))), 0),"Not required") -> 1622.61 | P19: 0 | Q19: 0 | R19: 1 | S19: 0 | T19: T3 (ALB/MBD) | X19: 45414 | Y19: Nkhaba | AC19: TRUE | AD19: =_xlfn.XLOOKUP($X19,[1]COUNTRY_INFO!$X$9:$X$63,[1]COUNTRY_INFO!J$9:J$63) -> 1 | AE19: =_xlfn.XLOOKUP($X19,[1]COUNTRY_INFO!$X$9:$X$63,[1]COUNTRY_INFO!K$9:K$63) -> 1 | AF19: TRUE | AH19: =_xlfn.XLOOKUP(X19,[1]COUNTRY_INFO!$X:$X,[1]COUNTRY_INFO!$AL:$AL) -> 1 | AI19: TRUE
A20: =IF(INTRO!$E$34<>0,INTRO!$E$34,"") -> ESWATINI | B20: HHOHHO | C20: Ntfonjeni | D20: 22517 | E20: =IF(INTRO!$E$48="","",ROUND($D20*INTRO!$E$48,0)) -> 2162 | F20: =IF(INTRO!$E$49="","",ROUND($D20*INTRO!$E$49,0)) -> 5337 | G20: =IF(INTRO!$E$50="","",ROUND($D20*INTRO!$E$50,0)) -> 14501 | H20: 0 | I20: 0 | J20: 1 | K20: 1 | L20: 0 | M20: 0 | N20: =IF(INTRO!$E$42="Endemic", IF(AND($J20>1,$J20<5), IF($J20=4, "Unknown", E20+F20), 0),"Not required") -> 0 | O20: =IF(INTRO!$E$44="Endemic", IF(AND($K20>0,$K20<5), IF($K20=4,"Unknown", IF($K20=1, $F20*0.33, IF($K20=2, $F20*0.5+$G20*0.2, SUM(F20:G20)))), 0),"Not required") -> 1761.21 | P20: 0 | Q20: 0 | R20: 0 | S20: 0 | X20: 45415 | Y20: Ntfonjeni | AC20: TRUE | AD20: =_xlfn.XLOOKUP($X20,[1]COUNTRY_INFO!$X$9:$X$63,[1]COUNTRY_INFO!J$9:J$63) -> 1 | AE20: =_xlfn.XLOOKUP($X20,[1]COUNTRY_INFO!$X$9:$X$63,[1]COUNTRY_INFO!K$9:K$63) -> 1 | AF20: TRUE | AH20: =_xlfn.XLOOKUP(X20,[1]COUNTRY_INFO!$X:$X,[1]COUNTRY_INFO!$AL:$AL) -> 1 | AI20: TRUE
A21: =IF(INTRO!$E$34<>0,INTRO!$E$34,"") -> ESWATINI | B21: HHOHHO | C21: Pigg's Peak | D21: 19968 | E21: =IF(INTRO!$E$48="","",ROUND($D21*INTRO!$E$48,0)) -> 1917 | F21: =IF(INTRO!$E$49="","",ROUND($D21*INTRO!$E$49,0)) -> 4732 | G21: =IF(INTRO!$E$50="","",ROUND($D21*INTRO!$E$50,0)) -> 12859 | H21: 0 | I21: 0 | J21: 1 | K21: 2 | L21: 0 | M21: 0 | N21: =IF(INTRO!$E$42="Endemic", IF(AND($J21>1,$J21<5), IF($J21=4, "Unknown", E21+F21), 0),"Not required") -> 0 | O21: =IF(INTRO!$E$44="Endemic", IF(AND($K21>0,$K21<5), IF($K21=4,"Unknown", IF($K21=1, $F21*0.33, IF($K21=2, $F21*0.5+$G21*0.2, SUM(F21:G21)))), 0),"Not required") -> 4937.8 | P21: 0 | Q21: 0 | R21: 1 | S21: 0 | T21: T3 (ALB/MBD) | X21: 45416 | Y21: Pigg's Peak | AC21: TRUE | AD21: =_xlfn.XLOOKUP($X21,[1]COUNTRY_INFO!$X$9:$X$63,[1]COUNTRY_INFO!J$9:J$63) -> 1 | AE21: =_xlfn.XLOOKUP($X21,[1]COUNTRY_INFO!$X$9:$X$63,[1]COUNTRY_INFO!K$9:K$63) -> 2 | AF21: TRUE | AH21: =_xlfn.XLOOKUP(X21,[1]COUNTRY_INFO!$X:$X,[1]COUNTRY_INFO!$AL:$AL) -> 2 | AI21: TRUE
A22: =IF(INTRO!$E$34<>0,INTRO!$E$34,"") -> ESWATINI | B22: HHOHHO | C22: Timphisini | D22: 12890 | E22: =IF(INTRO!$E$48="","",ROUND($D22*INTRO!$E$48,0)) -> 1237 | F22: =IF(INTRO!$E$49="","",ROUND($D22*INTRO!$E$49,0)) -> 3055 | G22: =IF(INTRO!$E$50="","",ROUND($D22*INTRO!$E$50,0)) -> 8301 | H22: 0 | I22: 0 | J22: 2 | K22: 2 | L22: 0 | M22: 0 | N22: =IF(INTRO!$E$42="Endemic", IF(AND($J22>1,$J22<5), IF($J22=4, "Unknown", E22+F22), 0),"Not required") -> 4292 | O22: =IF(INTRO!$E$44="Endemic", IF(AND($K22>0,$K22<5), IF($K22=4,"Unknown", IF($K22=1, $F22*0.33, IF($K22=2, $F22*0.5+$G22*0.2, SUM(F22:G22)))), 0),"Not required") -> 3187.7 | P22: 0 | Q22: 0 | R22: 1 | S22: 0 | T22: T3 (ALB/MBD) | X22: 45417 | Y22: Timphisini | AC22: TRUE | AD22: =_xlfn.XLOOKUP($X22,[1]COUNTRY_INFO!$X$9:$X$63,[1]COUNTRY_INFO!J$9:J$63) -> 2 | AE22: =_xlfn.XLOOKUP($X22,[1]COUNTRY_INFO!$X$9:$X$63,[1]COUNTRY_INFO!K$9:K$63) -> 2 | AF22: TRUE | AH22: =_xlfn.XLOOKUP(X22,[1]COUNTRY_INFO!$X:$X,[1]COUNTRY_INFO!$AL:$AL) -> 2 | AI22: TRUE
A23: =IF(INTRO!$E$34<>0,INTRO!$E$34,"") -> ESWATINI | B23: LUBOMBO | C23: Dvokodvweni | D23: 21139 | E23: =IF(INTRO!$E$48="","",ROUND($D23*INTRO!$E$48,0)) -> 2029 | F23: =IF(INTRO!$E$49="","",ROUND($D23*INTRO!$E$49,0)) -> 5010 | G23: =IF(INTRO!$E$50="","",ROUND($D23*INTRO!$E$50,0)) -> 13614 | H23: 0 | I23: 0 | J23: 1 | K23: 1 | L23: 0 | M23: 0 | N23: =IF(INTRO!$E$42="Endemic", IF(AND($J23>1,$J23<5), IF($J23=4, "Unknown", E23+F23), 0),"Not required") -> 0 | O23: =IF(INTRO!$E$44="Endemic", IF(AND($K23>0,$K23<5), IF($K23=4,"Unknown", IF($K23=1, $F23*0.33, IF($K23=2, $F23*0.5+$G23*0.2, SUM(F23:G23)))), 0),"Not required") -> 1653.3 | P23: 0 | Q23: 0 | R23: 1 | S23: 0 | T23: T3 (ALB/MBD) | X23: 45418 | Y23: Dvokodvweni | AC23: TRUE | AD23: =_xlfn.XLOOKUP($X23,[1]COUNTRY_INFO!$X$9:$X$63,[1]COUNTRY_INFO!J$9:J$63) -> 1 | AE23: =_xlfn.XLOOKUP($X23,[1]COUNTRY_INFO!$X$9:$X$63,[1]COUNTRY_INFO!K$9:K$63) -> 1 | AF23: TRUE | AH23: =_xlfn.XLOOKUP(X23,[1]COUNTRY_INFO!$X:$X,[1]COUNTRY_INFO!$AL:$AL) -> 1 | AI23: TRUE
A24: =IF(INTRO!$E$34<>0,INTRO!$E$34,"") -> ESWATINI | B24: LUBOMBO | C24: Hlane | D24: 6499 | E24: =IF(INTRO!$E$48="","",ROUND($D24*INTRO!$E$48,0)) -> 624 | F24: =IF(INTRO!$E$49="","",ROUND($D24*INTRO!$E$49,0)) -> 1540 | G24: =IF(INTRO!$E$50="","",ROUND($D24*INTRO!$E$50,0)) -> 4185 | H24: 0 | I24: 0 | J24: 1 | K24: 2 | L24: 0 | M24: 0 | N24: =IF(INTRO!$E$42="Endemic", IF(AND($J24>1,$J24<5), IF($J24=4, "Unknown", E24+F24), 0),"Not required") -> 0 | O24: =IF(INTRO!$E$44="Endemic", IF(AND($K24>0,$K24<5), IF($K24=4,"Unknown", IF($K24=1, $F24*0.33, IF($K24=2, $F24*0.5+$G24*0.2, SUM(F24:G24)))), 0),"Not required") -> 1607 | P24: 0 | Q24: 0 | R24: 1 | S24: 0 | T24: T3 (ALB/MBD) | X24: 45419 | Y24: Hlane | AC24: TRUE | AD24: =_xlfn.XLOOKUP($X24,[1]COUNTRY_INFO!$X$9:$X$63,[1]COUNTRY_INFO!J$9:J$63) -> 1 | AE24: =_xlfn.XLOOKUP($X24,[1]COUNTRY_INFO!$X$9:$X$63,[1]COUNTRY_INFO!K$9:K$63) -> 2 | AF24: TRUE | AH24: =_xlfn.XLOOKUP(X24,[1]COUNTRY_INFO!$X:$X,[1]COUNTRY_INFO!$AL:$AL) -> 2 | AI24: TRUE
A25: =IF(INTRO!$E$34<>0,INTRO!$E$34,"") -> ESWATINI | B25: LUBOMBO | C25: Lomahasha | D25: 22471 | E25: =IF(INTRO!$E$48="","",ROUND($D25*INTRO!$E$48,0)) -> 2157 | F25: =IF(INTRO!$E$49="","",ROUND($D25*INTRO!$E$49,0)) -> 5326 | G25: =IF(INTRO!$E$50="","",ROUND($D25*INTRO!$E$50,0)) -> 14471 | H25: 0 | I25: 0 | J25: 1 | K25: 2 | L25: 0 | M25: 0 | N25: =IF(INTRO!$E$42="Endemic", IF(AND($J25>1,$J25<5), IF($J25=4, "Unknown", E25+F25), 0),"Not required") -> 0 | O25: =IF(INTRO!$E$44="Endemic", IF(AND($K25>0,$K25<5), IF($K25=4,"Unknown", IF($K25=1, $F25*0.33, IF($K25=2, $F25*0.5+$G25*0.2, SUM(F25:G25)))), 0),"Not required") -> 5557.2 | P25: 0 | Q25: 0 | R25: 0 | S25: 0 | X25: 45420 | Y25: Lomahasha | AC25: TRUE | AD25: =_xlfn.XLOOKUP($X25,[1]COUNTRY_INFO!$X$9:$X$63,[1]COUNTRY_INFO!J$9:J$63) -> 1 | AE25: =_xlfn.XLOOKUP($X25,[1]COUNTRY_INFO!$X$9:$X$63,[1]COUNTRY_INFO!K$9:K$63) -> 2 | AF25: TRUE | AH25: =_xlfn.XLOOKUP(X25,[1]COUNTRY_INFO!$X:$X,[1]COUNTRY_INFO!$AL:$AL) -> 2 | AI25: TRUE
A26: =IF(INTRO!$E$34<>0,INTRO!$E$34,"") -> ESWATINI | B26: LUBOMBO | C26: Lubuli | D26: 14392 | E26: =IF(INTRO!$E$48="","",ROUND($D26*INTRO!$E$48,0)) -> 1382 | F26: =IF(INTRO!$E$49="","",ROUND($D26*INTRO!$E$49,0)) -> 3411 | G26: =IF(INTRO!$E$50="","",ROUND($D26*INTRO!$E$50,0)) -> 9268 | H26: 0 | I26: 0 | J26: 1 | K26: 1 | L26: 0 | M26: 0 | N26: =IF(INTRO!$E$42="Endemic", IF(AND($J26>1,$J26<5), IF($J26=4, "Unknown", E26+F26), 0),"Not required") -> 0 | O26: =IF(INTRO!$E$44="Endemic", IF(AND($K26>0,$K26<5), IF($K26=4,"Unknown", IF($K26=1, $F26*0.33, IF($K26=2, $F26*0.5+$G26*0.2, SUM(F26:G26)))), 0),"Not required") -> 1125.63 | P26: 0 | Q26: 0 | R26: 1 | S26: 0 | T26: T3 (ALB/MBD) | X26: 45421 | Y26: Lubuli | AC26: TRUE | AD26: =_xlfn.XLOOKUP($X26,[1]COUNTRY_INFO!$X$9:$X$63,[1]COUNTRY_INFO!J$9:J$63) -> 1 | AE26: =_xlfn.XLOOKUP($X26,[1]COUNTRY_INFO!$X$9:$X$63,[1]COUNTRY_INFO!K$9:K$63) -> 1 | AF26: TRUE | AH26: =_xlfn.XLOOKUP(X26,[1]COUNTRY_INFO!$X:$X,[1]COUNTRY_INFO!$AL:$AL) -> 1 | AI26: TRUE
A27: =IF(INTRO!$E$34<>0,INTRO!$E$34,"") -> ESWATINI | B27: LUBOMBO | C27: Lugongolweni | D27: 27782 | E27: =IF(INTRO!$E$48="","",ROUND($D27*INTRO!$E$48,0)) -> 2667 | F27: =IF(INTRO!$E$49="","",ROUND($D27*INTRO!$E$49,0)) -> 6584 | G27: =IF(INTRO!$E$50="","",ROUND($D27*INTRO!$E$50,0)) -> 17892 | H27: 0 | I27: 0 | J27: 1 | K27: 2 | L27: 0 | M27: 0 | N27: =IF(INTRO!$E$42="Endemic", IF(AND($J27>1,$J27<5), IF($J27=4, "Unknown", E27+F27), 0),"Not required") -> 0 | O27: =IF(INTRO!$E$44="Endemic", IF(AND($K27>0,$K27<5), IF($K27=4,"Unknown", IF($K27=1, $F27*0.33, IF($K27=2, $F27*0.5+$G27*0.2, SUM(F27:G27)))), 0),"Not required") -> 6870.4 | P27: 0 | Q27: 0 | R27: 1 | S27: 0 | T27: T3 (ALB/MBD) | X27: 45422 | Y27: Lugongolweni | AC27: TRUE | AD27: =_xlfn.XLOOKUP($X27,[1]COUNTRY_INFO!$X$9:$X$63,[1]COUNTRY_INFO!J$9:J$63) -> 1 | AE27: =_xlfn.XLOOKUP($X27,[1]COUNTRY_INFO!$X$9:$X$63,[1]COUNTRY_INFO!K$9:K$63) -> 2 | AF27: TRUE | AH27: =_xlfn.XLOOKUP(X27,[1]COUNTRY_INFO!$X:$X,[1]COUNTRY_INFO!$AL:$AL) -> 2 | AI27: TRUE
A28: =IF(INTRO!$E$34<>0,INTRO!$E$34,"") -> ESWATINI | B28: LUBOMBO | C28: Matsanjeni North | D28: 15765 | E28: =IF(INTRO!$E$48="","",ROUND($D28*INTRO!$E$48,0)) -> 1513 | F28: =IF(INTRO!$E$49="","",ROUND($D28*INTRO!$E$49,0)) -> 3736 | G28: =IF(INTRO!$E$50="","",ROUND($D28*INTRO!$E$50,0)) -> 10153 | H28: 0 | I28: 0 | J28: 1 | K28: 2 | L28: 0 | M28: 0 | N28: =IF(INTRO!$E$42="Endemic", IF(AND($J28>1,$J28<5), IF($J28=4, "Unknown", E28+F28), 0),"Not required") -> 0 | O28: =IF(INTRO!$E$44="Endemic", IF(AND($K28>0,$K28<5), IF($K28=4,"Unknown", IF($K28=1, $F28*0.33, IF($K28=2, $F28*0.5+$G28*0.2, SUM(F28:G28)))), 0),"Not required") -> 3898.6 | P28: 0 | Q28: 0 | R28: 1 | S28: 0 | T28: T3 (ALB/MBD) | X28: 45423 | Y28: Matsanjeni North | AC28: TRUE | AD28: =_xlfn.XLOOKUP($X28,[1]COUNTRY_INFO!$X$9:$X$63,[1]COUNTRY_INFO!J$9:J$63) -> 1 | AE28: =_xlfn.XLOOKUP($X28,[1]COUNTRY_INFO!$X$9:$X$63,[1]COUNTRY_INFO!K$9:K$63) -> 2 | AF28: TRUE | AH28: =_xlfn.XLOOKUP(X28,[1]COUNTRY_INFO!$X:$X,[1]COUNTRY_INFO!$AL:$AL) -> 2 | AI28: TRUE
A29: =IF(INTRO!$E$34<>0,INTRO!$E$34,"") -> ESWATINI | B29: LUBOMBO | C29: Mhlume | D29: 16742 | E29: =IF(INTRO!$E$48="","",ROUND($D29*INTRO!$E$48,0)) -> 1607 | F29: =IF(INTRO!$E$49="","",ROUND($D29*INTRO!$E$49,0)) -> 3968 | G29: =IF(INTRO!$E$50="","",ROUND($D29*INTRO!$E$50,0)) -> 10782 | H29: 0 | I29: 0 | J29: 1 | K29: 2 | L29: 0 | M29: 0 | N29: =IF(INTRO!$E$42="Endemic", IF(AND($J29>1,$J29<5), IF($J29=4, "Unknown", E29+F29), 0),"Not required") -> 0 | O29: =IF(INTRO!$E$44="Endemic", IF(AND($K29>0,$K29<5), IF($K29=4,"Unknown", IF($K29=1, $F29*0.33, IF($K29=2, $F29*0.5+$G29*0.2, SUM(F29:G29)))), 0),"Not required") -> 4140.4 | P29: 0 | Q29: 0 | R29: 0 | S29: 0 | X29: 45424 | Y29: Mhlume | AC29: TRUE | AD29: =_xlfn.XLOOKUP($X29,[1]COUNTRY_INFO!$X$9:$X$63,[1]COUNTRY_INFO!J$9:J$63) -> 1 | AE29: =_xlfn.XLOOKUP($X29,[1]COUNTRY_INFO!$X$9:$X$63,[1]COUNTRY_INFO!K$9:K$63) -> 2 | AF29: TRUE | AH29: =_xlfn.XLOOKUP(X29,[1]COUNTRY_INFO!$X:$X,[1]COUNTRY_INFO!$AL:$AL) -> 2 | AI29: TRUE
A30: =IF(INTRO!$E$34<>0,INTRO!$E$34,"") -> ESWATINI | B30: LUBOMBO | C30: Mpolonjeni | D30: 14282 | E30: =IF(INTRO!$E$48="","",ROUND($D30*INTRO!$E$48,0)) -> 1371 | F30: =IF(INTRO!$E$49="","",ROUND($D30*INTRO!$E$49,0)) -> 3385 | G30: =IF(INTRO!$E$50="","",ROUND($D30*INTRO!$E$50,0)) -> 9198 | H30: 0 | I30: 0 | J30: 1 | K30: 2 | L30: 0 | M30: 0 | N30: =IF(INTRO!$E$42="Endemic", IF(AND($J30>1,$J30<5), IF($J30=4, "Unknown", E30+F30), 0),"Not required") -> 0 | O30: =IF(INTRO!$E$44="Endemic", IF(AND($K30>0,$K30<5), IF($K30=4,"Unknown", IF($K30=1, $F30*0.33, IF($K30=2, $F30*0.5+$G30*0.2, SUM(F30:G30)))), 0),"Not required") -> 3532.1 | P30: 0 | Q30: 0 | R30: 1 | S30: 0 | T30: T3 (ALB/MBD) | X30: 45425 | Y30: Mpolonjeni | AC30: TRUE | AD30: =_xlfn.XLOOKUP($X30,[1]COUNTRY_INFO!$X$9:$X$63,[1]COUNTRY_INFO!J$9:J$63) -> 1 | AE30: =_xlfn.XLOOKUP($X30,[1]COUNTRY_INFO!$X$9:$X$63,[1]COUNTRY_INFO!K$9:K$63) -> 2 | AF30: TRUE | AH30: =_xlfn.XLOOKUP(X30,[1]COUNTRY_INFO!$X:$X,[1]COUNTRY_INFO!$AL:$AL) -> 2 | AI30: TRUE
A31: =IF(INTRO!$E$34<>0,INTRO!$E$34,"") -> ESWATINI | B31: LUBOMBO | C31: Nkilongo | D31: 14971 | E31: =IF(INTRO!$E$48="","",ROUND($D31*INTRO!$E$48,0)) -> 1437 | F31: =IF(INTRO!$E$49="","",ROUND($D31*INTRO!$E$49,0)) -> 3548 | G31: =IF(INTRO!$E$50="","",ROUND($D31*INTRO!$E$50,0)) -> 9641 | H31: 0 | I31: 0 | J31: 1 | K31: 2 | L31: 0 | M31: 0 | N31: =IF(INTRO!$E$42="Endemic", IF(AND($J31>1,$J31<5), IF($J31=4, "Unknown", E31+F31), 0),"Not required") -> 0 | O31: =IF(INTRO!$E$44="Endemic", IF(AND($K31>0,$K31<5), IF($K31=4,"Unknown", IF($K31=1, $F31*0.33, IF($K31=2, $F31*0.5+$G31*0.2, SUM(F31:G31)))), 0),"Not required") -> 3702.2 | P31: 0 | Q31: 0 | R31: 1 | S31: 0 | T31: T3 (ALB/MBD) | X31: 45426 | Y31: Nkilongo | AC31: TRUE | AD31: =_xlfn.XLOOKUP($X31,[1]COUNTRY_INFO!$X$9:$X$63,[1]COUNTRY_INFO!J$9:J$63) -> 1 | AE31: =_xlfn.XLOOKUP($X31,[1]COUNTRY_INFO!$X$9:$X$63,[1]COUNTRY_INFO!K$9:K$63) -> 2 | AF31: TRUE | AH31: =_xlfn.XLOOKUP(X31,[1]COUNTRY_INFO!$X:$X,[1]COUNTRY_INFO!$AL:$AL) -> 2 | AI31: TRUE
A32: =IF(INTRO!$E$34<>0,INTRO!$E$34,"") -> ESWATINI | B32: LUBOMBO | C32: Siphofaneni | D32: 32999 | E32: =IF(INTRO!$E$48="","",ROUND($D32*INTRO!$E$48,0)) -> 3168 | F32: =IF(INTRO!$E$49="","",ROUND($D32*INTRO!$E$49,0)) -> 7821 | G32: =IF(INTRO!$E$50="","",ROUND($D32*INTRO!$E$50,0)) -> 21251 | H32: 0 | I32: 0 | J32: 1 | K32: 2 | L32: 0 | M32: 0 | N32: =IF(INTRO!$E$42="Endemic", IF(AND($J32>1,$J32<5), IF($J32=4, "Unknown", E32+F32), 0),"Not required") -> 0 | O32: =IF(INTRO!$E$44="Endemic", IF(AND($K32>0,$K32<5), IF($K32=4,"Unknown", IF($K32=1, $F32*0.33, IF($K32=2, $F32*0.5+$G32*0.2, SUM(F32:G32)))), 0),"Not required") -> 8160.7 | P32: 0 | Q32: 0 | R32: 0 | S32: 0 | X32: 45427 | Y32: Siphofaneni | AC32: TRUE | AD32: =_xlfn.XLOOKUP($X32,[1]COUNTRY_INFO!$X$9:$X$63,[1]COUNTRY_INFO!J$9:J$63) -> 1 | AE32: =_xlfn.XLOOKUP($X32,[1]COUNTRY_INFO!$X$9:$X$63,[1]COUNTRY_INFO!K$9:K$63) -> 2 | AF32: TRUE | AH32: =_xlfn.XLOOKUP(X32,[1]COUNTRY_INFO!$X:$X,[1]COUNTRY_INFO!$AL:$AL) -> 2 | AI32: TRUE
A33: =IF(INTRO!$E$34<>0,INTRO!$E$34,"") -> ESWATINI | B33: LUBOMBO | C33: Sithobela | D33: 28475 | E33: =IF(INTRO!$E$48="","",ROUND($D33*INTRO!$E$48,0)) -> 2734 | F33: =IF(INTRO!$E$49="","",ROUND($D33*INTRO!$E$49,0)) -> 6749 | G33: =IF(INTRO!$E$50="","",ROUND($D33*INTRO!$E$50,0)) -> 18338 | H33: 0 | I33: 0 | J33: 1 | K33: 2 | L33: 0 | M33: 0 | N33: =IF(INTRO!$E$42="Endemic", IF(AND($J33>1,$J33<5), IF($J33=4, "Unknown", E33+F33), 0),"Not required") -> 0 | O33: =IF(INTRO!$E$44="Endemic", IF(AND($K33>0,$K33<5), IF($K33=4,"Unknown", IF($K33=1, $F33*0.33, IF($K33=2, $F33*0.5+$G33*0.2, SUM(F33:G33)))), 0),"Not required") -> 7042.1 | P33: 0 | Q33: 0 | R33: 1 | S33: 0 | T33: T3 (ALB/MBD) | X33: 45429 | Y33: Sithobela | AC33: TRUE | AD33: =_xlfn.XLOOKUP($X33,[1]COUNTRY_INFO!$X$9:$X$63,[1]COUNTRY_INFO!J$9:J$63) -> 1 | AE33: =_xlfn.XLOOKUP($X33,[1]COUNTRY_INFO!$X$9:$X$63,[1]COUNTRY_INFO!K$9:K$63) -> 2 | AF33: TRUE | AH33: =_xlfn.XLOOKUP(X33,[1]COUNTRY_INFO!$X:$X,[1]COUNTRY_INFO!$AL:$AL) -> 2 | AI33: TRUE
A34: =IF(INTRO!$E$34<>0,INTRO!$E$34,"") -> ESWATINI | B34: MANZINI | C34: Kukhanyeni | D34: 19399 | E34: =IF(INTRO!$E$48="","",ROUND($D34*INTRO!$E$48,0)) -> 1862 | F34: =IF(INTRO!$E$49="","",ROUND($D34*INTRO!$E$49,0)) -> 4598 | G34: =IF(INTRO!$E$50="","",ROUND($D34*INTRO!$E$50,0)) -> 12493 | H34: 0 | I34: 0 | J34: 1 | K34: 2 | L34: 0 | M34: 0 | N34: =IF(INTRO!$E$42="Endemic", IF(AND($J34>1,$J34<5), IF($J34=4, "Unknown", E34+F34), 0),"Not required") -> 0 | O34: =IF(INTRO!$E$44="Endemic", IF(AND($K34>0,$K34<5), IF($K34=4,"Unknown", IF($K34=1, $F34*0.33, IF($K34=2, $F34*0.5+$G34*0.2, SUM(F34:G34)))), 0),"Not required") -> 4797.6 | P34: 0 | Q34: 0 | R34: 0 | S34: 0 | X34: 45430 | Y34: Kukhanyeni | AC34: TRUE | AD34: =_xlfn.XLOOKUP($X34,[1]COUNTRY_INFO!$X$9:$X$63,[1]COUNTRY_INFO!J$9:J$63) -> 1 | AE34: =_xlfn.XLOOKUP($X34,[1]COUNTRY_INFO!$X$9:$X$63,[1]COUNTRY_INFO!K$9:K$63) -> 2 | AF34: TRUE | AH34: =_xlfn.XLOOKUP(X34,[1]COUNTRY_INFO!$X:$X,[1]COUNTRY_INFO!$AL:$AL) -> 2 | AI34: TRUE
A35: =IF(INTRO!$E$34<>0,INTRO!$E$34,"") -> ESWATINI | B35: MANZINI | C35: Kwaluseni | D35: 60907 | E35: =IF(INTRO!$E$48="","",ROUND($D35*INTRO!$E$48,0)) -> 5847 | F35: =IF(INTRO!$E$49="","",ROUND($D35*INTRO!$E$49,0)) -> 14435 | G35: =IF(INTRO!$E$50="","",ROUND($D35*INTRO!$E$50,0)) -> 39224 | H35: 0 | I35: 0 | J35: 0 | K35: 1 | L35: 0 | M35: 0 | N35: =IF(INTRO!$E$42="Endemic", IF(AND($J35>1,$J35<5), IF($J35=4, "Unknown", E35+F35), 0),"Not required") -> 0 | O35: =IF(INTRO!$E$44="Endemic", IF(AND($K35>0,$K35<5), IF($K35=4,"Unknown", IF($K35=1, $F35*0.33, IF($K35=2, $F35*0.5+$G35*0.2, SUM(F35:G35)))), 0),"Not required") -> 4763.55 | P35: 0 | Q35: 0 | R35: 0 | S35: 0 | X35: 45431 | Y35: Kwaluseni | AC35: TRUE | AD35: =_xlfn.XLOOKUP($X35,[1]COUNTRY_INFO!$X$9:$X$63,[1]COUNTRY_INFO!J$9:J$63) -> 0 | AE35: =_xlfn.XLOOKUP($X35,[1]COUNTRY_INFO!$X$9:$X$63,[1]COUNTRY_INFO!K$9:K$63) -> 1 | AF35: TRUE | AH35: =_xlfn.XLOOKUP(X35,[1]COUNTRY_INFO!$X:$X,[1]COUNTRY_INFO!$AL:$AL) -> 1 | AI35: TRUE
A36: =IF(INTRO!$E$34<>0,INTRO!$E$34,"") -> ESWATINI | B36: MANZINI | C36: LaMgabhi | D36: 11536 | E36: =IF(INTRO!$E$48="","",ROUND($D36*INTRO!$E$48,0)) -> 1107 | F36: =IF(INTRO!$E$49="","",ROUND($D36*INTRO!$E$49,0)) -> 2734 | G36: =IF(INTRO!$E$50="","",ROUND($D36*INTRO!$E$50,0)) -> 7429 | H36: 0 | I36: 0 | J36: 1 | K36: 2 | L36: 0 | M36: 0 | N36: =IF(INTRO!$E$42="Endemic", IF(AND($J36>1,$J36<5), IF($J36=4, "Unknown", E36+F36), 0),"Not required") -> 0 | O36: =IF(INTRO!$E$44="Endemic", IF(AND($K36>0,$K36<5), IF($K36=4,"Unknown", IF($K36=1, $F36*0.33, IF($K36=2, $F36*0.5+$G36*0.2, SUM(F36:G36)))), 0),"Not required") -> 2852.8 | P36: 0 | Q36: 0 | R36: 0 | S36: 0 | X36: 45432 | Y36: La-Mgabhi | AC36: TRUE | AD36: =_xlfn.XLOOKUP($X36,[1]COUNTRY_INFO!$X$9:$X$63,[1]COUNTRY_INFO!J$9:J$63) -> 1 | AE36: =_xlfn.XLOOKUP($X36,[1]COUNTRY_INFO!$X$9:$X$63,[1]COUNTRY_INFO!K$9:K$63) -> 2 | AF36: TRUE | AH36: =_xlfn.XLOOKUP(X36,[1]COUNTRY_INFO!$X:$X,[1]COUNTRY_INFO!$AL:$AL) -> 2 | AI36: TRUE
A37: =IF(INTRO!$E$34<>0,INTRO!$E$34,"") -> ESWATINI | B37: MANZINI | C37: Lobamba Lomdzala | D37: 22145 | E37: =IF(INTRO!$E$48="","",ROUND($D37*INTRO!$E$48,0)) -> 2126 | F37: =IF(INTRO!$E$49="","",ROUND($D37*INTRO!$E$49,0)) -> 5248 | G37: =IF(INTRO!$E$50="","",ROUND($D37*INTRO!$E$50,0)) -> 14261 | H37: 0 | I37: 0 | J37: 1 | K37: 2 | L37: 0 | M37: 0 | N37: =IF(INTRO!$E$42="Endemic", IF(AND($J37>1,$J37<5), IF($J37=4, "Unknown", E37+F37), 0),"Not required") -> 0 | O37: =IF(INTRO!$E$44="Endemic", IF(AND($K37>0,$K37<5), IF($K37=4,"Unknown", IF($K37=1, $F37*0.33, IF($K37=2, $F37*0.5+$G37*0.2, SUM(F37:G37)))), 0),"Not required") -> 5476.2 | P37: 0 | Q37: 0 | R37: 1 | S37: 0 | T37: T3 (ALB/MBD) | X37: 45459 | Y37: Lobamba Lomdzala | AC37: TRUE | AD37: =_xlfn.XLOOKUP($X37,[1]COUNTRY_INFO!$X$9:$X$63,[1]COUNTRY_INFO!J$9:J$63) -> 1 | AE37: =_xlfn.XLOOKUP($X37,[1]COUNTRY_INFO!$X$9:$X$63,[1]COUNTRY_INFO!K$9:K$63) -> 2 | AF37: TRUE | AH37: =_xlfn.XLOOKUP(X37,[1]COUNTRY_INFO!$X:$X,[1]COUNTRY_INFO!$AL:$AL) -> 2 | AI37: TRUE
A38: =IF(INTRO!$E$34<>0,INTRO!$E$34,"") -> ESWATINI | B38: MANZINI | C38: Ludzeludze | D38: 34259 | E38: =IF(INTRO!$E$48="","",ROUND($D38*INTRO!$E$48,0)) -> 3289 | F38: =IF(INTRO!$E$49="","",ROUND($D38*INTRO!$E$49,0)) -> 8119 | G38: =IF(INTRO!$E$50="","",ROUND($D38*INTRO!$E$50,0)) -> 22063 | H38: 0 | I38: 0 | J38: 1 | K38: 2 | L38: 0 | M38: 0 | N38: =IF(INTRO!$E$42="Endemic", IF(AND($J38>1,$J38<5), IF($J38=4, "Unknown", E38+F38), 0),"Not required") -> 0 | O38: =IF(INTRO!$E$44="Endemic", IF(AND($K38>0,$K38<5), IF($K38=4,"Unknown", IF($K38=1, $F38*0.33, IF($K38=2, $F38*0.5+$G38*0.2, SUM(F38:G38)))), 0),"Not required") -> 8472.1 | P38: 0 | Q38: 0 | R38: 0 | S38: 0 | X38: 45433 | Y38: Ludzeludze | AC38: TRUE | AD38: =_xlfn.XLOOKUP($X38,[1]COUNTRY_INFO!$X$9:$X$63,[1]COUNTRY_INFO!J$9:J$63) -> 1 | AE38: =_xlfn.XLOOKUP($X38,[1]COUNTRY_INFO!$X$9:$X$63,[1]COUNTRY_INFO!K$9:K$63) -> 2 | AF38: TRUE | AH38: =_xlfn.XLOOKUP(X38,[1]COUNTRY_INFO!$X:$X,[1]COUNTRY_INFO!$AL:$AL) -> 2 | AI38: TRUE
A39: =IF(INTRO!$E$34<>0,INTRO!$E$34,"") -> ESWATINI | B39: MANZINI | C39: Mafutseni | D39: 22407 | E39: =IF(INTRO!$E$48="","",ROUND($D39*INTRO!$E$48,0)) -> 2151 | F39: =IF(INTRO!$E$49="","",ROUND($D39*INTRO!$E$49,0)) -> 5310 | G39: =IF(INTRO!$E$50="","",ROUND($D39*INTRO!$E$50,0)) -> 14430 | H39: 0 | I39: 0 | J39: 1 | K39: 2 | L39: 0 | M39: 0 | N39: =IF(INTRO!$E$42="Endemic", IF(AND($J39>1,$J39<5), IF($J39=4, "Unknown", E39+F39), 0),"Not required") -> 0 | O39: =IF(INTRO!$E$44="Endemic", IF(AND($K39>0,$K39<5), IF($K39=4,"Unknown", IF($K39=1, $F39*0.33, IF($K39=2, $F39*0.5+$G39*0.2, SUM(F39:G39)))), 0),"Not required") -> 5541 | P39: 0 | Q39: 0 | R39: 0 | S39: 0 | X39: 45434 | Y39: Mafutseni | AC39: TRUE | AD39: =_xlfn.XLOOKUP($X39,[1]COUNTRY_INFO!$X$9:$X$63,[1]COUNTRY_INFO!J$9:J$63) -> 1 | AE39: =_xlfn.XLOOKUP($X39,[1]COUNTRY_INFO!$X$9:$X$63,[1]COUNTRY_INFO!K$9:K$63) -> 2 | AF39: TRUE | AH39: =_xlfn.XLOOKUP(X39,[1]COUNTRY_INFO!$X:$X,[1]COUNTRY_INFO!$AL:$AL) -> 2 | AI39: TRUE
A40: =IF(INTRO!$E$34<>0,INTRO!$E$34,"") -> ESWATINI | B40: MANZINI | C40: Mahlangatsha | D40: 18128 | E40: =IF(INTRO!$E$48="","",ROUND($D40*INTRO!$E$48,0)) -> 1740 | F40: =IF(INTRO!$E$49="","",ROUND($D40*INTRO!$E$49,0)) -> 4296 | G40: =IF(INTRO!$E$50="","",ROUND($D40*INTRO!$E$50,0)) -> 11674 | H40: 0 | I40: 0 | J40: 1 | K40: 2 | L40: 0 | M40: 0 | N40: =IF(INTRO!$E$42="Endemic", IF(AND($J40>1,$J40<5), IF($J40=4, "Unknown", E40+F40), 0),"Not required") -> 0 | O40: =IF(INTRO!$E$44="Endemic", IF(AND($K40>0,$K40<5), IF($K40=4,"Unknown", IF($K40=1, $F40*0.33, IF($K40=2, $F40*0.5+$G40*0.2, SUM(F40:G40)))), 0),"Not required") -> 4482.8 | P40: 0 | Q40: 0 | R40: 0 | S40: 0 | X40: 45435 | Y40: Mahlangatsha | AC40: TRUE | AD40: =_xlfn.XLOOKUP($X40,[1]COUNTRY_INFO!$X$9:$X$63,[1]COUNTRY_INFO!J$9:J$63) -> 1 | AE40: =_xlfn.XLOOKUP($X40,[1]COUNTRY_INFO!$X$9:$X$63,[1]COUNTRY_INFO!K$9:K$63) -> 2 | AF40: TRUE | AH40: =_xlfn.XLOOKUP(X40,[1]COUNTRY_INFO!$X:$X,[1]COUNTRY_INFO!$AL:$AL) -> 2 | AI40: TRUE
A41: =IF(INTRO!$E$34<>0,INTRO!$E$34,"") -> ESWATINI | B41: MANZINI | C41: Mangcongco | D41: 4330 | E41: =IF(INTRO!$E$48="","",ROUND($D41*INTRO!$E$48,0)) -> 416 | F41: =IF(INTRO!$E$49="","",ROUND($D41*INTRO!$E$49,0)) -> 1026 | G41: =IF(INTRO!$E$50="","",ROUND($D41*INTRO!$E$50,0)) -> 2789 | H41: 0 | I41: 0 | J41: 0 | K41: 1 | L41: 0 | M41: 0 | N41: =IF(INTRO!$E$42="Endemic", IF(AND($J41>1,$J41<5), IF($J41=4, "Unknown", E41+F41), 0),"Not required") -> 0 | O41: =IF(INTRO!$E$44="Endemic", IF(AND($K41>0,$K41<5), IF($K41=4,"Unknown", IF($K41=1, $F41*0.33, IF($K41=2, $F41*0.5+$G41*0.2, SUM(F41:G41)))), 0),"Not required") -> 338.58 | P41: 0 | Q41: 0 | R41: 0 | S41: 0 | X41: 45436 | Y41: Mangcongco | AC41: TRUE | AD41: =_xlfn.XLOOKUP($X41,[1]COUNTRY_INFO!$X$9:$X$63,[1]COUNTRY_INFO!J$9:J$63) -> 0 | AE41: =_xlfn.XLOOKUP($X41,[1]COUNTRY_INFO!$X$9:$X$63,[1]COUNTRY_INFO!K$9:K$63) -> 1 | AF41: TRUE | AH41: =_xlfn.XLOOKUP(X41,[1]COUNTRY_INFO!$X:$X,[1]COUNTRY_INFO!$AL:$AL) -> 1 | AI41: TRUE
A42: =IF(INTRO!$E$34<>0,INTRO!$E$34,"") -> ESWATINI | B42: MANZINI | C42: Manzini North | D42: 34866 | E42: =IF(INTRO!$E$48="","",ROUND($D42*INTRO!$E$48,0)) -> 3347 | F42: =IF(INTRO!$E$49="","",ROUND($D42*INTRO!$E$49,0)) -> 8263 | G42: =IF(INTRO!$E$50="","",ROUND($D42*INTRO!$E$50,0)) -> 22454 | H42: 0 | I42: 0 | J42: 1 | K42: 2 | L42: 0 | M42: 0 | N42: =IF(INTRO!$E$42="Endemic", IF(AND($J42>1,$J42<5), IF($J42=4, "Unknown", E42+F42), 0),"Not required") -> 0 | O42: =IF(INTRO!$E$44="Endemic", IF(AND($K42>0,$K42<5), IF($K42=4,"Unknown", IF($K42=1, $F42*0.33, IF($K42=2, $F42*0.5+$G42*0.2, SUM(F42:G42)))), 0),"Not required") -> 8622.3 | P42: 0 | Q42: 0 | R42: 0 | S42: 0 | X42: 45437 | Y42: Manzini North | AC42: TRUE | AD42: =_xlfn.XLOOKUP($X42,[1]COUNTRY_INFO!$X$9:$X$63,[1]COUNTRY_INFO!J$9:J$63) -> 1 | AE42: =_xlfn.XLOOKUP($X42,[1]COUNTRY_INFO!$X$9:$X$63,[1]COUNTRY_INFO!K$9:K$63) -> 2 | AF42: TRUE | AH42: =_xlfn.XLOOKUP(X42,[1]COUNTRY_INFO!$X:$X,[1]COUNTRY_INFO!$AL:$AL) -> 2 | AI42: TRUE
A43: =IF(INTRO!$E$34<>0,INTRO!$E$34,"") -> ESWATINI | B43: MANZINI | C43: Manzini South | D43: 26537 | E43: =IF(INTRO!$E$48="","",ROUND($D43*INTRO!$E$48,0)) -> 2548 | F43: =IF(INTRO!$E$49="","",ROUND($D43*INTRO!$E$49,0)) -> 6289 | G43: =IF(INTRO!$E$50="","",ROUND($D43*INTRO!$E$50,0)) -> 17090 | H43: 0 | I43: 0 | J43: 1 | K43: 2 | L43: 0 | M43: 0 | N43: =IF(INTRO!$E$42="Endemic", IF(AND($J43>1,$J43<5), IF($J43=4, "Unknown", E43+F43), 0),"Not required") -> 0 | O43: =IF(INTRO!$E$44="Endemic", IF(AND($K43>0,$K43<5), IF($K43=4,"Unknown", IF($K43=1, $F43*0.33, IF($K43=2, $F43*0.5+$G43*0.2, SUM(F43:G43)))), 0),"Not required") -> 6562.5 | P43: 0 | Q43: 0 | R43: 0 | S43: 0 | X43: 45438 | Y43: Manzini South | AC43: TRUE | AD43: =_xlfn.XLOOKUP($X43,[1]COUNTRY_INFO!$X$9:$X$63,[1]COUNTRY_INFO!J$9:J$63) -> 1 | AE43: =_xlfn.XLOOKUP($X43,[1]COUNTRY_INFO!$X$9:$X$63,[1]COUNTRY_INFO!K$9:K$63) -> 2 | AF43: TRUE | AH43: =_xlfn.XLOOKUP(X43,[1]COUNTRY_INFO!$X:$X,[1]COUNTRY_INFO!$AL:$AL) -> 2 | AI43: TRUE
A44: =IF(INTRO!$E$34<>0,INTRO!$E$34,"") -> ESWATINI | B44: MANZINI | C44: Mhlambanyatsi | D44: 10076 | E44: =IF(INTRO!$E$48="","",ROUND($D44*INTRO!$E$48,0)) -> 967 | F44: =IF(INTRO!$E$49="","",ROUND($D44*INTRO!$E$49,0)) -> 2388 | G44: =IF(INTRO!$E$50="","",ROUND($D44*INTRO!$E$50,0)) -> 6489 | H44: 0 | I44: 0 | J44: 0 | K44: 1 | L44: 0 | M44: 0 | N44: =IF(INTRO!$E$42="Endemic", IF(AND($J44>1,$J44<5), IF($J44=4, "Unknown", E44+F44), 0),"Not required") -> 0 | O44: =IF(INTRO!$E$44="Endemic", IF(AND($K44>0,$K44<5), IF($K44=4,"Unknown", IF($K44=1, $F44*0.33, IF($K44=2, $F44*0.5+$G44*0.2, SUM(F44:G44)))), 0),"Not required") -> 788.04 | P44: 0 | Q44: 0 | R44: 0 | S44: 0 | X44: 45439 | Y44: Mhlambanyatsi | AC44: TRUE | AD44: =_xlfn.XLOOKUP($X44,[1]COUNTRY_INFO!$X$9:$X$63,[1]COUNTRY_INFO!J$9:J$63) -> 0 | AE44: =_xlfn.XLOOKUP($X44,[1]COUNTRY_INFO!$X$9:$X$63,[1]COUNTRY_INFO!K$9:K$63) -> 1 | AF44: TRUE | AH44: =_xlfn.XLOOKUP(X44,[1]COUNTRY_INFO!$X:$X,[1]COUNTRY_INFO!$AL:$AL) -> 1 | AI44: TRUE
A45: =IF(INTRO!$E$34<>0,INTRO!$E$34,"") -> ESWATINI | B45: MANZINI | C45: Mkhiweni | D45: 24084 | E45: =IF(INTRO!$E$48="","",ROUND($D45*INTRO!$E$48,0)) -> 2312 | F45: =IF(INTRO!$E$49="","",ROUND($D45*INTRO!$E$49,0)) -> 5708 | G45: =IF(INTRO!$E$50="","",ROUND($D45*INTRO!$E$50,0)) -> 15510 | H45: 0 | I45: 0 | J45: 1 | K45: 2 | L45: 0 | M45: 0 | N45: =IF(INTRO!$E$42="Endemic", IF(AND($J45>1,$J45<5), IF($J45=4, "Unknown", E45+F45), 0),"Not required") -> 0 | O45: =IF(INTRO!$E$44="Endemic", IF(AND($K45>0,$K45<5), IF($K45=4,"Unknown", IF($K45=1, $F45*0.33, IF($K45=2, $F45*0.5+$G45*0.2, SUM(F45:G45)))), 0),"Not required") -> 5956 | P45: 0 | Q45: 0 | R45: 0 | S45: 0 | X45: 45440 | Y45: Mkhiweni | AC45: TRUE | AD45: =_xlfn.XLOOKUP($X45,[1]COUNTRY_INFO!$X$9:$X$63,[1]COUNTRY_INFO!J$9:J$63) -> 1 | AE45: =_xlfn.XLOOKUP($X45,[1]COUNTRY_INFO!$X$9:$X$63,[1]COUNTRY_INFO!K$9:K$63) -> 2 | AF45: TRUE | AH45: =_xlfn.XLOOKUP(X45,[1]COUNTRY_INFO!$X:$X,[1]COUNTRY_INFO!$AL:$AL) -> 2 | AI45: TRUE
A46: =IF(INTRO!$E$34<>0,INTRO!$E$34,"") -> ESWATINI | B46: MANZINI | C46: Mtfongwaneni | D46: 15768 | E46: =IF(INTRO!$E$48="","",ROUND($D46*INTRO!$E$48,0)) -> 1514 | F46: =IF(INTRO!$E$49="","",ROUND($D46*INTRO!$E$49,0)) -> 3737 | G46: =IF(INTRO!$E$50="","",ROUND($D46*INTRO!$E$50,0)) -> 10155 | H46: 0 | I46: 0 | J46: 1 | K46: 1 | L46: 0 | M46: 0 | N46: =IF(INTRO!$E$42="Endemic", IF(AND($J46>1,$J46<5), IF($J46=4, "Unknown", E46+F46), 0),"Not required") -> 0 | O46: =IF(INTRO!$E$44="Endemic", IF(AND($K46>0,$K46<5), IF($K46=4,"Unknown", IF($K46=1, $F46*0.33, IF($K46=2, $F46*0.5+$G46*0.2, SUM(F46:G46)))), 0),"Not required") -> 1233.21 | P46: 0 | Q46: 0 | R46: 0 | S46: 0 | X46: 45441 | Y46: Mtongwaneni | AC46: TRUE | AD46: =_xlfn.XLOOKUP($X46,[1]COUNTRY_INFO!$X$9:$X$63,[1]COUNTRY_INFO!J$9:J$63) -> 1 | AE46: =_xlfn.XLOOKUP($X46,[1]COUNTRY_INFO!$X$9:$X$63,[1]COUNTRY_INFO!K$9:K$63) -> 1 | AF46: TRUE | AH46: =_xlfn.XLOOKUP(X46,[1]COUNTRY_INFO!$X:$X,[1]COUNTRY_INFO!$AL:$AL) -> 1 | AI46: TRUE
A47: =IF(INTRO!$E$34<>0,INTRO!$E$34,"") -> ESWATINI | B47: MANZINI | C47: Ngwemphisi | D47: 28655 | E47: =IF(INTRO!$E$48="","",ROUND($D47*INTRO!$E$48,0)) -> 2751 | F47: =IF(INTRO!$E$49="","",ROUND($D47*INTRO!$E$49,0)) -> 6791 | G47: =IF(INTRO!$E$50="","",ROUND($D47*INTRO!$E$50,0)) -> 18454 | H47: 0 | I47: 0 | J47: 1 | K47: 2 | L47: 0 | M47: 0 | N47: =IF(INTRO!$E$42="Endemic", IF(AND($J47>1,$J47<5), IF($J47=4, "Unknown", E47+F47), 0),"Not required") -> 0 | O47: =IF(INTRO!$E$44="Endemic", IF(AND($K47>0,$K47<5), IF($K47=4,"Unknown", IF($K47=1, $F47*0.33, IF($K47=2, $F47*0.5+$G47*0.2, SUM(F47:G47)))), 0),"Not required") -> 7086.3 | P47: 0 | Q47: 0 | R47: 0 | S47: 0 | X47: 45442 | Y47: Ngwempisi | AC47: TRUE | AD47: =_xlfn.XLOOKUP($X47,[1]COUNTRY_INFO!$X$9:$X$63,[1]COUNTRY_INFO!J$9:J$63) -> 1 | AE47: =_xlfn.XLOOKUP($X47,[1]COUNTRY_INFO!$X$9:$X$63,[1]COUNTRY_INFO!K$9:K$63) -> 2 | AF47: TRUE | AH47: =_xlfn.XLOOKUP(X47,[1]COUNTRY_INFO!$X:$X,[1]COUNTRY_INFO!$AL:$AL) -> 2 | AI47: TRUE
A48: =IF(INTRO!$E$34<>0,INTRO!$E$34,"") -> ESWATINI | B48: MANZINI | C48: Nhlambeni | D48: 12830 | E48: =IF(INTRO!$E$48="","",ROUND($D48*INTRO!$E$48,0)) -> 1232 | F48: =IF(INTRO!$E$49="","",ROUND($D48*INTRO!$E$49,0)) -> 3041 | G48: =IF(INTRO!$E$50="","",ROUND($D48*INTRO!$E$50,0)) -> 8263 | H48: 0 | I48: 0 | J48: 0 | K48: 2 | L48: 0 | M48: 0 | N48: =IF(INTRO!$E$42="Endemic", IF(AND($J48>1,$J48<5), IF($J48=4, "Unknown", E48+F48), 0),"Not required") -> 0 | O48: =IF(INTRO!$E$44="Endemic", IF(AND($K48>0,$K48<5), IF($K48=4,"Unknown", IF($K48=1, $F48*0.33, IF($K48=2, $F48*0.5+$G48*0.2, SUM(F48:G48)))), 0),"Not required") -> 3173.1 | P48: 0 | Q48: 0 | R48: 0 | S48: 0 | X48: 45443 | Y48: Nhlambeni | AC48: TRUE | AD48: =_xlfn.XLOOKUP($X48,[1]COUNTRY_INFO!$X$9:$X$63,[1]COUNTRY_INFO!J$9:J$63) -> 0 | AE48: =_xlfn.XLOOKUP($X48,[1]COUNTRY_INFO!$X$9:$X$63,[1]COUNTRY_INFO!K$9:K$63) -> 2 | AF48: TRUE | AH48: =_xlfn.XLOOKUP(X48,[1]COUNTRY_INFO!$X:$X,[1]COUNTRY_INFO!$AL:$AL) -> 2 | AI48: TRUE
A49: =IF(INTRO!$E$34<>0,INTRO!$E$34,"") -> ESWATINI | B49: MANZINI | C49: Ntondozi | D49: 15018 | E49: =IF(INTRO!$E$48="","",ROUND($D49*INTRO!$E$48,0)) -> 1442 | F49: =IF(INTRO!$E$49="","",ROUND($D49*INTRO!$E$49,0)) -> 3559 | G49: =IF(INTRO!$E$50="","",ROUND($D49*INTRO!$E$50,0)) -> 9672 | H49: 0 | I49: 0 | J49: 1 | K49: 2 | L49: 0 | M49: 0 | N49: =IF(INTRO!$E$42="Endemic", IF(AND($J49>1,$J49<5), IF($J49=4, "Unknown", E49+F49), 0),"Not required") -> 0 | O49: =IF(INTRO!$E$44="Endemic", IF(AND($K49>0,$K49<5), IF($K49=4,"Unknown", IF($K49=1, $F49*0.33, IF($K49=2, $F49*0.5+$G49*0.2, SUM(F49:G49)))), 0),"Not required") -> 3713.9 | P49: 0 | Q49: 0 | R49: 0 | S49: 0 | X49: 45444 | Y49: Ntondozi | AC49: TRUE | AD49: =_xlfn.XLOOKUP($X49,[1]COUNTRY_INFO!$X$9:$X$63,[1]COUNTRY_INFO!J$9:J$63) -> 1 | AE49: =_xlfn.XLOOKUP($X49,[1]COUNTRY_INFO!$X$9:$X$63,[1]COUNTRY_INFO!K$9:K$63) -> 2 | AF49: TRUE | AH49: =_xlfn.XLOOKUP(X49,[1]COUNTRY_INFO!$X:$X,[1]COUNTRY_INFO!$AL:$AL) -> 2 | AI49: TRUE
A50: =IF(INTRO!$E$34<>0,INTRO!$E$34,"") -> ESWATINI | B50: SHISELWENI | C50: Gege | D50: 17957 | E50: =IF(INTRO!$E$48="","",ROUND($D50*INTRO!$E$48,0)) -> 1724 | F50: =IF(INTRO!$E$49="","",ROUND($D50*INTRO!$E$49,0)) -> 4256 | G50: =IF(INTRO!$E$50="","",ROUND($D50*INTRO!$E$50,0)) -> 11564 | H50: 0 | I50: 0 | J50: 1 | K50: 1 | L50: 0 | M50: 0 | N50: =IF(INTRO!$E$42="Endemic", IF(AND($J50>1,$J50<5), IF($J50=4, "Unknown", E50+F50), 0),"Not required") -> 0 | O50: =IF(INTRO!$E$44="Endemic", IF(AND($K50>0,$K50<5), IF($K50=4,"Unknown", IF($K50=1, $F50*0.33, IF($K50=2, $F50*0.5+$G50*0.2, SUM(F50:G50)))), 0),"Not required") -> 1404.48 | P50: 0 | Q50: 0 | R50: 0 | S50: 0 | X50: 45445 | Y50: Gege | AC50: TRUE | AD50: =_xlfn.XLOOKUP($X50,[1]COUNTRY_INFO!$X$9:$X$63,[1]COUNTRY_INFO!J$9:J$63) -> 1 | AE50: =_xlfn.XLOOKUP($X50,[1]COUNTRY_INFO!$X$9:$X$63,[1]COUNTRY_INFO!K$9:K$63) -> 1 | AF50: TRUE | AH50: =_xlfn.XLOOKUP(X50,[1]COUNTRY_INFO!$X:$X,[1]COUNTRY_INFO!$AL:$AL) -> 1 | AI50: TRUE
A51: =IF(INTRO!$E$34<>0,INTRO!$E$34,"") -> ESWATINI | B51: SHISELWENI | C51: Hosea | D51: 14940 | E51: =IF(INTRO!$E$48="","",ROUND($D51*INTRO!$E$48,0)) -> 1434 | F51: =IF(INTRO!$E$49="","",ROUND($D51*INTRO!$E$49,0)) -> 3541 | G51: =IF(INTRO!$E$50="","",ROUND($D51*INTRO!$E$50,0)) -> 9621 | H51: 0 | I51: 0 | J51: 0 | K51: 2 | L51: 0 | M51: 0 | N51: =IF(INTRO!$E$42="Endemic", IF(AND($J51>1,$J51<5), IF($J51=4, "Unknown", E51+F51), 0),"Not required") -> 0 | O51: =IF(INTRO!$E$44="Endemic", IF(AND($K51>0,$K51<5), IF($K51=4,"Unknown", IF($K51=1, $F51*0.33, IF($K51=2, $F51*0.5+$G51*0.2, SUM(F51:G51)))), 0),"Not required") -> 3694.7 | P51: 0 | Q51: 0 | R51: 0 | S51: 0 | X51: 45446 | Y51: Hosea | AC51: TRUE | AD51: =_xlfn.XLOOKUP($X51,[1]COUNTRY_INFO!$X$9:$X$63,[1]COUNTRY_INFO!J$9:J$63) -> 0 | AE51: =_xlfn.XLOOKUP($X51,[1]COUNTRY_INFO!$X$9:$X$63,[1]COUNTRY_INFO!K$9:K$63) -> 2 | AF51: TRUE | AH51: =_xlfn.XLOOKUP(X51,[1]COUNTRY_INFO!$X:$X,[1]COUNTRY_INFO!$AL:$AL) -> 2 | AI51: TRUE
A52: =IF(INTRO!$E$34<>0,INTRO!$E$34,"") -> ESWATINI | B52: SHISELWENI | C52: Khubutha | D52: 5933 | E52: =IF(INTRO!$E$48="","",ROUND($D52*INTRO!$E$48,0)) -> 570 | F52: =IF(INTRO!$E$49="","",ROUND($D52*INTRO!$E$49,0)) -> 1406 | G52: =IF(INTRO!$E$50="","",ROUND($D52*INTRO!$E$50,0)) -> 3821 | H52: 0 | I52: 0 | J52: 1 | K52: 2 | L52: 0 | M52: 0 | N52: =IF(INTRO!$E$42="Endemic", IF(AND($J52>1,$J52<5), IF($J52=4, "Unknown", E52+F52), 0),"Not required") -> 0 | O52: =IF(INTRO!$E$44="Endemic", IF(AND($K52>0,$K52<5), IF($K52=4,"Unknown", IF($K52=1, $F52*0.33, IF($K52=2, $F52*0.5+$G52*0.2, SUM(F52:G52)))), 0),"Not required") -> 1467.2 | P52: 0 | Q52: 0 | R52: 0 | S52: 0 | X52: 45447 | Y52: Kubuta | AC52: TRUE | AD52: =_xlfn.XLOOKUP($X52,[1]COUNTRY_INFO!$X$9:$X$63,[1]COUNTRY_INFO!J$9:J$63) -> 1 | AE52: =_xlfn.XLOOKUP($X52,[1]COUNTRY_INFO!$X$9:$X$63,[1]COUNTRY_INFO!K$9:K$63) -> 2 | AF52: TRUE | AH52: =_xlfn.XLOOKUP(X52,[1]COUNTRY_INFO!$X:$X,[1]COUNTRY_INFO!$AL:$AL) -> 2 | AI52: TRUE
A53: =IF(INTRO!$E$34<>0,INTRO!$E$34,"") -> ESWATINI | B53: SHISELWENI | C53: Maseyisini | D53: 30019 | E53: =IF(INTRO!$E$48="","",ROUND($D53*INTRO!$E$48,0)) -> 2882 | F53: =IF(INTRO!$E$49="","",ROUND($D53*INTRO!$E$49,0)) -> 7115 | G53: =IF(INTRO!$E$50="","",ROUND($D53*INTRO!$E$50,0)) -> 19332 | H53: 0 | I53: 0 | J53: 1 | K53: 2 | L53: 0 | M53: 0 | N53: =IF(INTRO!$E$42="Endemic", IF(AND($J53>1,$J53<5), IF($J53=4, "Unknown", E53+F53), 0),"Not required") -> 0 | O53: =IF(INTRO!$E$44="Endemic", IF(AND($K53>0,$K53<5), IF($K53=4,"Unknown", IF($K53=1, $F53*0.33, IF($K53=2, $F53*0.5+$G53*0.2, SUM(F53:G53)))), 0),"Not required") -> 7423.9 | P53: 0 | Q53: 0 | R53: 0 | S53: 0 | X53: 45449 | Y53: Maseyisini | AC53: TRUE | AD53: =_xlfn.XLOOKUP($X53,[1]COUNTRY_INFO!$X$9:$X$63,[1]COUNTRY_INFO!J$9:J$63) -> 1 | AE53: =_xlfn.XLOOKUP($X53,[1]COUNTRY_INFO!$X$9:$X$63,[1]COUNTRY_INFO!K$9:K$63) -> 2 | AF53: TRUE | AH53: =_xlfn.XLOOKUP(X53,[1]COUNTRY_INFO!$X:$X,[1]COUNTRY_INFO!$AL:$AL) -> 2 | AI53: TRUE
A54: =IF(INTRO!$E$34<>0,INTRO!$E$34,"") -> ESWATINI | B54: SHISELWENI | C54: Matsanjeni South | D54: 10666 | E54: =IF(INTRO!$E$48="","",ROUND($D54*INTRO!$E$48,0)) -> 1024 | F54: =IF(INTRO!$E$49="","",ROUND($D54*INTRO!$E$49,0)) -> 2528 | G54: =IF(INTRO!$E$50="","",ROUND($D54*INTRO!$E$50,0)) -> 6869 | H54: 0 | I54: 0 | J54: 1 | K54: 1 | L54: 0 | M54: 0 | N54: =IF(INTRO!$E$42="Endemic", IF(AND($J54>1,$J54<5), IF($J54=4, "Unknown", E54+F54), 0),"Not required") -> 0 | O54: =IF(INTRO!$E$44="Endemic", IF(AND($K54>0,$K54<5), IF($K54=4,"Unknown", IF($K54=1, $F54*0.33, IF($K54=2, $F54*0.5+$G54*0.2, SUM(F54:G54)))), 0),"Not required") -> 834.24 | P54: 0 | Q54: 0 | R54: 0 | S54: 0 | X54: 45450 | Y54: Matsanjeni South | AC54: TRUE | AD54: =_xlfn.XLOOKUP($X54,[1]COUNTRY_INFO!$X$9:$X$63,[1]COUNTRY_INFO!J$9:J$63) -> 1 | AE54: =_xlfn.XLOOKUP($X54,[1]COUNTRY_INFO!$X$9:$X$63,[1]COUNTRY_INFO!K$9:K$63) -> 1 | AF54: TRUE | AH54: =_xlfn.XLOOKUP(X54,[1]COUNTRY_INFO!$X:$X,[1]COUNTRY_INFO!$AL:$AL) -> 1 | AI54: TRUE
A55: =IF(INTRO!$E$34<>0,INTRO!$E$34,"") -> ESWATINI | B55: SHISELWENI | C55: Mtsambama | D55: 18430 | E55: =IF(INTRO!$E$48="","",ROUND($D55*INTRO!$E$48,0)) -> 1769 | F55: =IF(INTRO!$E$49="","",ROUND($D55*INTRO!$E$49,0)) -> 4368 | G55: =IF(INTRO!$E$50="","",ROUND($D55*INTRO!$E$50,0)) -> 11869 | H55: 0 | I55: 0 | J55: 1 | K55: 2 | L55: 0 | M55: 0 | N55: =IF(INTRO!$E$42="Endemic", IF(AND($J55>1,$J55<5), IF($J55=4, "Unknown", E55+F55), 0),"Not required") -> 0 | O55: =IF(INTRO!$E$44="Endemic", IF(AND($K55>0,$K55<5), IF($K55=4,"Unknown", IF($K55=1, $F55*0.33, IF($K55=2, $F55*0.5+$G55*0.2, SUM(F55:G55)))), 0),"Not required") -> 4557.8 | P55: 0 | Q55: 0 | R55: 0 | S55: 0 | X55: 45452 | Y55: Mtsambama | AC55: TRUE | AD55: =_xlfn.XLOOKUP($X55,[1]COUNTRY_INFO!$X$9:$X$63,[1]COUNTRY_INFO!J$9:J$63) -> 1 | AE55: =_xlfn.XLOOKUP($X55,[1]COUNTRY_INFO!$X$9:$X$63,[1]COUNTRY_INFO!K$9:K$63) -> 2 | AF55: TRUE | AH55: =_xlfn.XLOOKUP(X55,[1]COUNTRY_INFO!$X:$X,[1]COUNTRY_INFO!$AL:$AL) -> 2 | AI55: TRUE
A56: =IF(INTRO!$E$34<>0,INTRO!$E$34,"") -> ESWATINI | B56: SHISELWENI | C56: Ngudzeni | D56: 8993 | E56: =IF(INTRO!$E$48="","",ROUND($D56*INTRO!$E$48,0)) -> 863 | F56: =IF(INTRO!$E$49="","",ROUND($D56*INTRO!$E$49,0)) -> 2131 | G56: =IF(INTRO!$E$50="","",ROUND($D56*INTRO!$E$50,0)) -> 5791 | H56: 0 | I56: 0 | J56: 1 | K56: 3 | L56: 0 | M56: 0 | N56: =IF(INTRO!$E$42="Endemic", IF(AND($J56>1,$J56<5), IF($J56=4, "Unknown", E56+F56), 0),"Not required") -> 0 | O56: =IF(INTRO!$E$44="Endemic", IF(AND($K56>0,$K56<5), IF($K56=4,"Unknown", IF($K56=1, $F56*0.33, IF($K56=2, $F56*0.5+$G56*0.2, SUM(F56:G56)))), 0),"Not required") -> 7922 | P56: 0 | Q56: 0 | R56: 0 | S56: 0 | X56: 45453 | Y56: Ngudzeni | AC56: TRUE | AD56: =_xlfn.XLOOKUP($X56,[1]COUNTRY_INFO!$X$9:$X$63,[1]COUNTRY_INFO!J$9:J$63) -> 1 | AE56: =_xlfn.XLOOKUP($X56,[1]COUNTRY_INFO!$X$9:$X$63,[1]COUNTRY_INFO!K$9:K$63) -> 3 | AF56: TRUE | AH56: =_xlfn.XLOOKUP(X56,[1]COUNTRY_INFO!$X:$X,[1]COUNTRY_INFO!$AL:$AL) -> 3 | AI56: TRUE
A57: =IF(INTRO!$E$34<>0,INTRO!$E$34,"") -> ESWATINI | B57: SHISELWENI | C57: Nkwene | D57: 6861 | E57: =IF(INTRO!$E$48="","",ROUND($D57*INTRO!$E$48,0)) -> 659 | F57: =IF(INTRO!$E$49="","",ROUND($D57*INTRO!$E$49,0)) -> 1626 | G57: =IF(INTRO!$E$50="","",ROUND($D57*INTRO!$E$50,0)) -> 4418 | H57: 0 | I57: 0 | J57: 1 | K57: 2 | L57: 0 | M57: 0 | N57: =IF(INTRO!$E$42="Endemic", IF(AND($J57>1,$J57<5), IF($J57=4, "Unknown", E57+F57), 0),"Not required") -> 0 | O57: =IF(INTRO!$E$44="Endemic", IF(AND($K57>0,$K57<5), IF($K57=4,"Unknown", IF($K57=1, $F57*0.33, IF($K57=2, $F57*0.5+$G57*0.2, SUM(F57:G57)))), 0),"Not required") -> 1696.6 | P57: 0 | Q57: 0 | R57: 0 | S57: 0 | X57: 45454 | Y57: Nkwene | AC57: TRUE | AD57: =_xlfn.XLOOKUP($X57,[1]COUNTRY_INFO!$X$9:$X$63,[1]COUNTRY_INFO!J$9:J$63) -> 1 | AE57: =_xlfn.XLOOKUP($X57,[1]COUNTRY_INFO!$X$9:$X$63,[1]COUNTRY_INFO!K$9:K$63) -> 2 | AF57: TRUE | AH57: =_xlfn.XLOOKUP(X57,[1]COUNTRY_INFO!$X:$X,[1]COUNTRY_INFO!$AL:$AL) -> 2 | AI57: TRUE
A58: =IF(INTRO!$E$34<>0,INTRO!$E$34,"") -> ESWATINI | B58: SHISELWENI | C58: Sandleni | D58: 18126 | E58: =IF(INTRO!$E$48="","",ROUND($D58*INTRO!$E$48,0)) -> 1740 | F58: =IF(INTRO!$E$49="","",ROUND($D58*INTRO!$E$49,0)) -> 4296 | G58: =IF(INTRO!$E$50="","",ROUND($D58*INTRO!$E$50,0)) -> 11673 | H58: 0 | I58: 0 | J58: 1 | K58: 2 | L58: 0 | M58: 0 | N58: =IF(INTRO!$E$42="Endemic", IF(AND($J58>1,$J58<5), IF($J58=4, "Unknown", E58+F58), 0),"Not required") -> 0 | O58: =IF(INTRO!$E$44="Endemic", IF(AND($K58>0,$K58<5), IF($K58=4,"Unknown", IF($K58=1, $F58*0.33, IF($K58=2, $F58*0.5+$G58*0.2, SUM(F58:G58)))), 0),"Not required") -> 4482.6 | P58: 0 | Q58: 0 | R58: 0 | S58: 0 | X58: 45455 | Y58: Sandleni | AC58: TRUE | AD58: =_xlfn.XLOOKUP($X58,[1]COUNTRY_INFO!$X$9:$X$63,[1]COUNTRY_INFO!J$9:J$63) -> 1 | AE58: =_xlfn.XLOOKUP($X58,[1]COUNTRY_INFO!$X$9:$X$63,[1]COUNTRY_INFO!K$9:K$63) -> 2 | AF58: TRUE | AH58: =_xlfn.XLOOKUP(X58,[1]COUNTRY_INFO!$X:$X,[1]COUNTRY_INFO!$AL:$AL) -> 2 | AI58: TRUE
A59: =IF(INTRO!$E$34<>0,INTRO!$E$34,"") -> ESWATINI | B59: SHISELWENI | C59: Shiselweni 1 | D59: 9399 | E59: =IF(INTRO!$E$48="","",ROUND($D59*INTRO!$E$48,0)) -> 902 | F59: =IF(INTRO!$E$49="","",ROUND($D59*INTRO!$E$49,0)) -> 2228 | G59: =IF(INTRO!$E$50="","",ROUND($D59*INTRO!$E$50,0)) -> 6053 | H59: 0 | I59: 0 | J59: 1 | K59: 2 | L59: 0 | M59: 0 | N59: =IF(INTRO!$E$42="Endemic", IF(AND($J59>1,$J59<5), IF($J59=4, "Unknown", E59+F59), 0),"Not required") -> 0 | O59: =IF(INTRO!$E$44="Endemic", IF(AND($K59>0,$K59<5), IF($K59=4,"Unknown", IF($K59=1, $F59*0.33, IF($K59=2, $F59*0.5+$G59*0.2, SUM(F59:G59)))), 0),"Not required") -> 2324.6 | P59: 0 | Q59: 0 | R59: 0 | S59: 0 | X59: 45456 | Y59: Shiselweni 1 | AC59: TRUE | AD59: =_xlfn.XLOOKUP($X59,[1]COUNTRY_INFO!$X$9:$X$63,[1]COUNTRY_INFO!J$9:J$63) -> 1 | AE59: =_xlfn.XLOOKUP($X59,[1]COUNTRY_INFO!$X$9:$X$63,[1]COUNTRY_INFO!K$9:K$63) -> 2 | AF59: TRUE | AH59: =_xlfn.XLOOKUP(X59,[1]COUNTRY_INFO!$X:$X,[1]COUNTRY_INFO!$AL:$AL) -> 2 | AI59: TRUE
A60: =IF(INTRO!$E$34<>0,INTRO!$E$34,"") -> ESWATINI | B60: SHISELWENI | C60: Shiselweni 2/Mbangweni | D60: 32772 | E60: =IF(INTRO!$E$48="","",ROUND($D60*INTRO!$E$48,0)) -> 3146 | F60: =IF(INTRO!$E$49="","",ROUND($D60*INTRO!$E$49,0)) -> 7767 | G60: =IF(INTRO!$E$50="","",ROUND($D60*INTRO!$E$50,0)) -> 21105 | H60: 0 | I60: 0 | J60: 1 | K60: 2 | L60: 0 | M60: 0 | N60: =IF(INTRO!$E$42="Endemic", IF(AND($J60>1,$J60<5), IF($J60=4, "Unknown", E60+F60), 0),"Not required") -> 0 | O60: =IF(INTRO!$E$44="Endemic", IF(AND($K60>0,$K60<5), IF($K60=4,"Unknown", IF($K60=1, $F60*0.33, IF($K60=2, $F60*0.5+$G60*0.2, SUM(F60:G60)))), 0),"Not required") -> 8104.5 | P60: 0 | Q60: 0 | R60: 1 | S60: 0 | T60: T3 (ALB/MBD) | X60: 45451 | Y60: Shiselweni 2 | AC60: TRUE | AD60: =_xlfn.XLOOKUP($X60,[1]COUNTRY_INFO!$X$9:$X$63,[1]COUNTRY_INFO!J$9:J$63) -> 1 | AE60: =_xlfn.XLOOKUP($X60,[1]COUNTRY_INFO!$X$9:$X$63,[1]COUNTRY_INFO!K$9:K$63) -> 2 | AF60: TRUE | AH60: =_xlfn.XLOOKUP(X60,[1]COUNTRY_INFO!$X:$X,[1]COUNTRY_INFO!$AL:$AL) -> 2 | AI60: TRUE
A61: =IF(INTRO!$E$34<>0,INTRO!$E$34,"") -> ESWATINI | B61: SHISELWENI | C61: Sigwe | D61: 9977 | E61: =IF(INTRO!$E$48="","",ROUND($D61*INTRO!$E$48,0)) -> 958 | F61: =IF(INTRO!$E$49="","",ROUND($D61*INTRO!$E$49,0)) -> 2365 | G61: =IF(INTRO!$E$50="","",ROUND($D61*INTRO!$E$50,0)) -> 6425 | H61: 0 | I61: 0 | J61: 1 | K61: 2 | L61: 0 | M61: 0 | N61: =IF(INTRO!$E$42="Endemic", IF(AND($J61>1,$J61<5), IF($J61=4, "Unknown", E61+F61), 0),"Not required") -> 0 | O61: =IF(INTRO!$E$44="Endemic", IF(AND($K61>0,$K61<5), IF($K61=4,"Unknown", IF($K61=1, $F61*0.33, IF($K61=2, $F61*0.5+$G61*0.2, SUM(F61:G61)))), 0),"Not required") -> 2467.5 | P61: 0 | Q61: 0 | R61: 0 | S61: 0 | X61: 45457 | Y61: Sigwe | AC61: TRUE | AD61: =_xlfn.XLOOKUP($X61,[1]COUNTRY_INFO!$X$9:$X$63,[1]COUNTRY_INFO!J$9:J$63) -> 1 | AE61: =_xlfn.XLOOKUP($X61,[1]COUNTRY_INFO!$X$9:$X$63,[1]COUNTRY_INFO!K$9:K$63) -> 2 | AF61: TRUE | AH61: =_xlfn.XLOOKUP(X61,[1]COUNTRY_INFO!$X:$X,[1]COUNTRY_INFO!$AL:$AL) -> 2 | AI61: TRUE
A62: =IF(INTRO!$E$34<>0,INTRO!$E$34,"") -> ESWATINI | B62: SHISELWENI | C62: Somntongo | D62: 8474 | E62: =IF(INTRO!$E$48="","",ROUND($D62*INTRO!$E$48,0)) -> 814 | F62: =IF(INTRO!$E$49="","",ROUND($D62*INTRO!$E$49,0)) -> 2008 | G62: =IF(INTRO!$E$50="","",ROUND($D62*INTRO!$E$50,0)) -> 5457 | H62: 0 | I62: 0 | J62: 1 | K62: 0 | L62: 0 | M62: 0 | N62: =IF(INTRO!$E$42="Endemic", IF(AND($J62>1,$J62<5), IF($J62=4, "Unknown", E62+F62), 0),"Not required") -> 0 | O62: =IF(INTRO!$E$44="Endemic", IF(AND($K62>0,$K62<5), IF($K62=4,"Unknown", IF($K62=1, $F62*0.33, IF($K62=2, $F62*0.5+$G62*0.2, SUM(F62:G62)))), 0),"Not required") -> 0 | P62: 0 | Q62: 0 | R62: 0 | S62: 0 | X62: 45448 | Y62: Somntongo | AC62: TRUE | AD62: =_xlfn.XLOOKUP($X62,[1]COUNTRY_INFO!$X$9:$X$63,[1]COUNTRY_INFO!J$9:J$63) -> 1 | AE62: =_xlfn.XLOOKUP($X62,[1]COUNTRY_INFO!$X$9:$X$63,[1]COUNTRY_INFO!K$9:K$63) -> 0 | AF62: TRUE | AH62: =_xlfn.XLOOKUP(X62,[1]COUNTRY_INFO!$X:$X,[1]COUNTRY_INFO!$AL:$AL) -> 0 | AI62: TRUE
A63: =IF(INTRO!$E$34<>0,INTRO!$E$34,"") -> ESWATINI | B63: SHISELWENI | C63: Zombodze Emuva | D63: 14431 | E63: =IF(INTRO!$E$48="","",ROUND($D63*INTRO!$E$48,0)) -> 1385 | F63: =IF(INTRO!$E$49="","",ROUND($D63*INTRO!$E$49,0)) -> 3420 | G63: =IF(INTRO!$E$50="","",ROUND($D63*INTRO!$E$50,0)) -> 9294 | H63: 0 | I63: 0 | J63: 1 | K63: 2 | L63: 0 | M63: 0 | N63: =IF(INTRO!$E$42="Endemic", IF(AND($J63>1,$J63<5), IF($J63=4, "Unknown", E63+F63), 0),"Not required") -> 0 | O63: =IF(INTRO!$E$44="Endemic", IF(AND($K63>0,$K63<5), IF($K63=4,"Unknown", IF($K63=1, $F63*0.33, IF($K63=2, $F63*0.5+$G63*0.2, SUM(F63:G63)))), 0),"Not required") -> 3568.8 | P63: 0 | Q63: 0 | R63: 0 | S63: 0 | X63: 45458 | Y63: Zombodze Emuva | AC63: TRUE | AD63: =_xlfn.XLOOKUP($X63,[1]COUNTRY_INFO!$X$9:$X$63,[1]COUNTRY_INFO!J$9:J$63) -> 1 | AE63: =_xlfn.XLOOKUP($X63,[1]COUNTRY_INFO!$X$9:$X$63,[1]COUNTRY_INFO!K$9:K$63) -> 2 | AF63: TRUE | AH63: =_xlfn.XLOOKUP(X63,[1]COUNTRY_INFO!$X:$X,[1]COUNTRY_INFO!$AL:$AL) -> 2 | AI63: TRUE

Sheet MDA1 (hidden)
A1: MDA 1 - Ivermectin (IVM) and Albendazole (ALB)
A2: Administrative structure, population requiring PC by age group, population treated by age group and coverage
A4: TOTAL | G4: =SUM(G$9:G$1000) -> 0 | H4: =SUM(H$9:H$1000) -> 0 | I4: =SUM(I$9:I$1000) -> 0 | K4: =SUM(K$9:K$1000) -> 0 | L4: =SUM(L$9:L$1000) -> 0 | M4: =SUM(M$9:M$1000) -> 0 | O4: =IF(G4<>0, IF(K4/G4*100=0, "-", K4/G4*100), " ") ->  | P4: =IF(H4<>0, IF(L4/H4*100=0, "-", L4/H4*100), " ") ->  | Q4: =IF(I4<>0, IF(M4/I4*100=0, "-", M4/I4*100), " ") -> 
D6: PC implemented | E6: Date | F6: Population targeted for MDA 1 | J6: Population treated | N6: Programme coverage (%)
A7: Country | B7: Province/State | C7: District | F7: PreSAC | G7: SAC | H7: Adults | I7: Total | J7: PreSAC | K7: SAC | L7: Adults | M7: Total | N7: PreSAC | O7: SAC | P7: Adults | Q7: Total
A9: =IF(COUNTRY_INFO!A9=0," ",COUNTRY_INFO!A9) -> ESWATINI | B9: =IF(COUNTRY_INFO!B9=0," ",COUNTRY_INFO!B9) -> HHOHHO | C9: =IF(COUNTRY_INFO!C9=0," ",COUNTRY_INFO!C9) -> Hhukwini | D9: =IF(COUNTRY_INFO!$T$9:$T$1000="MDA1 (IVM+ALB)", COUNTRY_INFO!$T$9:$T$1000, " ") ->  | I9: =SUM(F9:H9) -> 0 | M9: =SUM(J9:L9) -> 0 | O9: =IF(G9<>0, IF(K9/G9*100=0, "-", K9/G9*100), " ") ->  | P9: =IF(H9<>0, IF(L9/H9*100=0, "-", L9/H9*100), " ") -> 
A10: =IF(COUNTRY_INFO!A10=0," ",COUNTRY_INFO!A10) -> ESWATINI | B10: =IF(COUNTRY_INFO!B10=0," ",COUNTRY_INFO!B10) -> HHOHHO | C10: =IF(COUNTRY_INFO!C10=0," ",COUNTRY_INFO!C10) -> Lobamba | D10: =IF(COUNTRY_INFO!$T$9:$T$1000="MDA1 (IVM+ALB)", COUNTRY_INFO!$T$9:$T$1000, " ") ->  | I10: =SUM(F10:H10) -> 0 | M10: =SUM(J10:L10) -> 0 | O10: =IF(G10<>0, IF(K10/G10*100=0, "-", K10/G10*100), " ") ->  | P10: =IF(H10<>0, IF(L10/H10*100=0, "-", L10/H10*100), " ") ->  | Q10: =IF(I10<>0, IF(M10/I10*100=0, "-", M10/I10*100), " ") -> 
A11: =IF(COUNTRY_INFO!A11=0," ",COUNTRY_INFO!A11) -> ESWATINI | B11: =IF(COUNTRY_INFO!B11=0," ",COUNTRY_INFO!B11) -> HHOHHO | C11: =IF(COUNTRY_INFO!C11=0," ",COUNTRY_INFO!C11) -> Madlangempisi | D11: =IF(COUNTRY_INFO!$T$9:$T$1000="MDA1 (IVM+ALB)", COUNTRY_INFO!$T$9:$T$1000, " ") ->  | I11: 0 | M11: 0
A12: =IF(COUNTRY_INFO!A12=0," ",COUNTRY_INFO!A12) -> ESWATINI | B12: =IF(COUNTRY_INFO!B12=0," ",COUNTRY_INFO!B12) -> HHOHHO | C12: =IF(COUNTRY_INFO!C12=0," ",COUNTRY_INFO!C12) -> Maphalaleni | D12: =IF(COUNTRY_INFO!$T$9:$T$1000="MDA1 (IVM+ALB)", COUNTRY_INFO!$T$9:$T$1000, " ") ->  | I12: 0 | M12: 0
A13: =IF(COUNTRY_INFO!A13=0," ",COUNTRY_INFO!A13) -> ESWATINI | B13: =IF(COUNTRY_INFO!B13=0," ",COUNTRY_INFO!B13) -> HHOHHO | C13: =IF(COUNTRY_INFO!C13=0," ",COUNTRY_INFO!C13) -> Mayiwane | D13: =IF(COUNTRY_INFO!$T$9:$T$1000="MDA1 (IVM+ALB)", COUNTRY_INFO!$T$9:$T$1000, " ") ->  | I13: 0 | M13: 0
A14: =IF(COUNTRY_INFO!A14=0," ",COUNTRY_INFO!A14) -> ESWATINI | B14: =IF(COUNTRY_INFO!B14=0," ",COUNTRY_INFO!B14) -> HHOHHO | C14: =IF(COUNTRY_INFO!C14=0," ",COUNTRY_INFO!C14) -> Mbabane East | D14: =IF(COUNTRY_INFO!$T$9:$T$1000="MDA1 (IVM+ALB)", COUNTRY_INFO!$T$9:$T$1000, " ") ->  | I14: 0 | M14: 0
A15: =IF(COUNTRY_INFO!A15=0," ",COUNTRY_INFO!A15) -> ESWATINI | B15: =IF(COUNTRY_INFO!B15=0," ",COUNTRY_INFO!B15) -> HHOHHO | C15: =IF(COUNTRY_INFO!C15=0," ",COUNTRY_INFO!C15) -> Mbabane West | D15: =IF(COUNTRY_INFO!$T$9:$T$1000="MDA1 (IVM+ALB)", COUNTRY_INFO!$T$9:$T$1000, " ") ->  | I15: 0 | M15: 0
A16: =IF(COUNTRY_INFO!A16=0," ",COUNTRY_INFO!A16) -> ESWATINI | B16: =IF(COUNTRY_INFO!B16=0," ",COUNTRY_INFO!B16) -> HHOHHO | C16: =IF(COUNTRY_INFO!C16=0," ",COUNTRY_INFO!C16) -> Mhlangatane | D16: =IF(COUNTRY_INFO!$T$9:$T$1000="MDA1 (IVM+ALB)", COUNTRY_INFO!$T$9:$T$1000, " ") ->  | I16: 0 | M16: 0
A17: =IF(COUNTRY_INFO!A17=0," ",COUNTRY_INFO!A17) -> ESWATINI | B17: =IF(COUNTRY_INFO!B17=0," ",COUNTRY_INFO!B17) -> HHOHHO | C17: =IF(COUNTRY_INFO!C17=0," ",COUNTRY_INFO!C17) -> Motshane | D17: =IF(COUNTRY_INFO!$T$9:$T$1000="MDA1 (IVM+ALB)", COUNTRY_INFO!$T$9:$T$1000, " ") ->  | I17: 0 | M17: 0
A18: =IF(COUNTRY_INFO!A18=0," ",COUNTRY_INFO!A18) -> ESWATINI | B18: =IF(COUNTRY_INFO!B18=0," ",COUNTRY_INFO!B18) -> HHOHHO | C18: =IF(COUNTRY_INFO!C18=0," ",COUNTRY_INFO!C18) -> Ndzingeni | D18: =IF(COUNTRY_INFO!$T$9:$T$1000="MDA1 (IVM+ALB)", COUNTRY_INFO!$T$9:$T$1000, " ") ->  | I18: 0 | M18: 0
A19: =IF(COUNTRY_INFO!A19=0," ",COUNTRY_INFO!A19) -> ESWATINI | B19: =IF(COUNTRY_INFO!B19=0," ",COUNTRY_INFO!B19) -> HHOHHO | C19: =IF(COUNTRY_INFO!C19=0," ",COUNTRY_INFO!C19) -> Nkhaba | D19: =IF(COUNTRY_INFO!$T$9:$T$1000="MDA1 (IVM+ALB)", COUNTRY_INFO!$T$9:$T$1000, " ") ->  | I19: 0 | M19: 0
A20: =IF(COUNTRY_INFO!A20=0," ",COUNTRY_INFO!A20) -> ESWATINI | B20: =IF(COUNTRY_INFO!B20=0," ",COUNTRY_INFO!B20) -> HHOHHO | C20: =IF(COUNTRY_INFO!C20=0," ",COUNTRY_INFO!C20) -> Ntfonjeni | D20: =IF(COUNTRY_INFO!$T$9:$T$1000="MDA1 (IVM+ALB)", COUNTRY_INFO!$T$9:$T$1000, " ") ->  | I20: 0 | M20: 0
A21: =IF(COUNTRY_INFO!A21=0," ",COUNTRY_INFO!A21) -> ESWATINI | B21: =IF(COUNTRY_INFO!B21=0," ",COUNTRY_INFO!B21) -> HHOHHO | C21: =IF(COUNTRY_INFO!C21=0," ",COUNTRY_INFO!C21) -> Pigg's Peak | D21: =IF(COUNTRY_INFO!$T$9:$T$1000="MDA1 (IVM+ALB)", COUNTRY_INFO!$T$9:$T$1000, " ") ->  | I21: 0 | M21: 0
A22: =IF(COUNTRY_INFO!A22=0," ",COUNTRY_INFO!A22) -> ESWATINI | B22: =IF(COUNTRY_INFO!B22=0," ",COUNTRY_INFO!B22) -> HHOHHO | C22: =IF(COUNTRY_INFO!C22=0," ",COUNTRY_INFO!C22) -> Timphisini | D22: =IF(COUNTRY_INFO!$T$9:$T$1000="MDA1 (IVM+ALB)", COUNTRY_INFO!$T$9:$T$1000, " ") ->  | I22: 0 | M22: 0
A23: =IF(COUNTRY_INFO!A23=0," ",COUNTRY_INFO!A23) -> ESWATINI | B23: =IF(COUNTRY_INFO!B23=0," ",COUNTRY_INFO!B23) -> LUBOMBO | C23: =IF(COUNTRY_INFO!C23=0," ",COUNTRY_INFO!C23) -> Dvokodvweni | D23: =IF(COUNTRY_INFO!$T$9:$T$1000="MDA1 (IVM+ALB)", COUNTRY_INFO!$T$9:$T$1000, " ") ->  | I23: 0 | M23: 0
A24: =IF(COUNTRY_INFO!A24=0," ",COUNTRY_INFO!A24) -> ESWATINI | B24: =IF(COUNTRY_INFO!B24=0," ",COUNTRY_INFO!B24) -> LUBOMBO | C24: =IF(COUNTRY_INFO!C24=0," ",COUNTRY_INFO!C24) -> Hlane | D24: =IF(COUNTRY_INFO!$T$9:$T$1000="MDA1 (IVM+ALB)", COUNTRY_INFO!$T$9:$T$1000, " ") ->  | I24: 0 | M24: 0
A25: =IF(COUNTRY_INFO!A25=0," ",COUNTRY_INFO!A25) -> ESWATINI | B25: =IF(COUNTRY_INFO!B25=0," ",COUNTRY_INFO!B25) -> LUBOMBO | C25: =IF(COUNTRY_INFO!C25=0," ",COUNTRY_INFO!C25) -> Lomahasha | D25: =IF(COUNTRY_INFO!$T$9:$T$1000="MDA1 (IVM+ALB)", COUNTRY_INFO!$T$9:$T$1000, " ") ->  | I25: 0 | M25: 0
A26: =IF(COUNTRY_INFO!A26=0," ",COUNTRY_INFO!A26) -> ESWATINI | B26: =IF(COUNTRY_INFO!B26=0," ",COUNTRY_INFO!B26) -> LUBOMBO | C26: =IF(COUNTRY_INFO!C26=0," ",COUNTRY_INFO!C26) -> Lubuli | D26: =IF(COUNTRY_INFO!$T$9:$T$1000="MDA1 (IVM+ALB)", COUNTRY_INFO!$T$9:$T$1000, " ") ->  | I26: 0 | M26: 0
A27: =IF(COUNTRY_INFO!A27=0," ",COUNTRY_INFO!A27) -> ESWATINI | B27: =IF(COUNTRY_INFO!B27=0," ",COUNTRY_INFO!B27) -> LUBOMBO | C27: =IF(COUNTRY_INFO!C27=0," ",COUNTRY_INFO!C27) -> Lugongolweni | D27: =IF(COUNTRY_INFO!$T$9:$T$1000="MDA1 (IVM+ALB)", COUNTRY_INFO!$T$9:$T$1000, " ") ->  | I27: 0 | M27: 0
A28: =IF(COUNTRY_INFO!A28=0," ",COUNTRY_INFO!A28) -> ESWATINI | B28: =IF(COUNTRY_INFO!B28=0," ",COUNTRY_INFO!B28) -> LUBOMBO | C28: =IF(COUNTRY_INFO!C28=0," ",COUNTRY_INFO!C28) -> Matsanjeni North | D28: =IF(COUNTRY_INFO!$T$9:$T$1000="MDA1 (IVM+ALB)", COUNTRY_INFO!$T$9:$T$1000, " ") ->  | I28: 0 | M28: 0
A29: =IF(COUNTRY_INFO!A29=0," ",COUNTRY_INFO!A29) -> ESWATINI | B29: =IF(COUNTRY_INFO!B29=0," ",COUNTRY_INFO!B29) -> LUBOMBO | C29: =IF(COUNTRY_INFO!C29=0," ",COUNTRY_INFO!C29) -> Mhlume | D29: =IF(COUNTRY_INFO!$T$9:$T$1000="MDA1 (IVM+ALB)", COUNTRY_INFO!$T$9:$T$1000, " ") ->  | I29: 0 | M29: 0
A30: =IF(COUNTRY_INFO!A30=0," ",COUNTRY_INFO!A30) -> ESWATINI | B30: =IF(COUNTRY_INFO!B30=0," ",COUNTRY_INFO!B30) -> LUBOMBO | C30: =IF(COUNTRY_INFO!C30=0," ",COUNTRY_INFO!C30) -> Mpolonjeni | D30: =IF(COUNTRY_INFO!$T$9:$T$1000="MDA1 (IVM+ALB)", COUNTRY_INFO!$T$9:$T$1000, " ") ->  | I30: 0 | M30: 0
A31: =IF(COUNTRY_INFO!A31=0," ",COUNTRY_INFO!A31) -> ESWATINI | B31: =IF(COUNTRY_INFO!B31=0," ",COUNTRY_INFO!B31) -> LUBOMBO | C31: =IF(COUNTRY_INFO!C31=0," ",COUNTRY_INFO!C31) -> Nkilongo | D31: =IF(COUNTRY_INFO!$T$9:$T$1000="MDA1 (IVM+ALB)", COUNTRY_INFO!$T$9:$T$1000, " ") ->  | I31: 0 | M31: 0
A32: =IF(COUNTRY_INFO!A32=0," ",COUNTRY_INFO!A32) -> ESWATINI | B32: =IF(COUNTRY_INFO!B32=0," ",COUNTRY_INFO!B32) -> LUBOMBO | C32: =IF(COUNTRY_INFO!C32=0," ",COUNTRY_INFO!C32) -> Siphofaneni | D32: =IF(COUNTRY_INFO!$T$9:$T$1000="MDA1 (IVM+ALB)", COUNTRY_INFO!$T$9:$T$1000, " ") ->  | I32: 0 | M32: 0
A33: =IF(COUNTRY_INFO!A33=0," ",COUNTRY_INFO!A33) -> ESWATINI | B33: =IF(COUNTRY_INFO!B33=0," ",COUNTRY_INFO!B33) -> LUBOMBO | C33: =IF(COUNTRY_INFO!C33=0," ",COUNTRY_INFO!C33) -> Sithobela | D33: =IF(COUNTRY_INFO!$T$9:$T$1000="MDA1 (IVM+ALB)", COUNTRY_INFO!$T$9:$T$1000, " ") ->  | I33: 0 | M33: 0
A34: =IF(COUNTRY_INFO!A34=0," ",COUNTRY_INFO!A34) -> ESWATINI | B34: =IF(COUNTRY_INFO!B34=0," ",COUNTRY_INFO!B34) -> MANZINI | C34: =IF(COUNTRY_INFO!C34=0," ",COUNTRY_INFO!C34) -> Kukhanyeni | D34: =IF(COUNTRY_INFO!$T$9:$T$1000="MDA1 (IVM+ALB)", COUNTRY_INFO!$T$9:$T$1000, " ") ->  | I34: 0 | M34: 0
A35: =IF(COUNTRY_INFO!A35=0," ",COUNTRY_INFO!A35) -> ESWATINI | B35: =IF(COUNTRY_INFO!B35=0," ",COUNTRY_INFO!B35) -> MANZINI | C35: =IF(COUNTRY_INFO!C35=0," ",COUNTRY_INFO!C35) -> Kwaluseni | D35: =IF(COUNTRY_INFO!$T$9:$T$1000="MDA1 (IVM+ALB)", COUNTRY_INFO!$T$9:$T$1000, " ") ->  | I35: 0 | M35: 0
A36: =IF(COUNTRY_INFO!A36=0," ",COUNTRY_INFO!A36) -> ESWATINI | B36: =IF(COUNTRY_INFO!B36=0," ",COUNTRY_INFO!B36) -> MANZINI | C36: =IF(COUNTRY_INFO!C36=0," ",COUNTRY_INFO!C36) -> LaMgabhi | D36: =IF(COUNTRY_INFO!$T$9:$T$1000="MDA1 (IVM+ALB)", COUNTRY_INFO!$T$9:$T$1000, " ") ->  | I36: 0 | M36: 0
A37: =IF(COUNTRY_INFO!A37=0," ",COUNTRY_INFO!A37) -> ESWATINI | B37: =IF(COUNTRY_INFO!B37=0," ",COUNTRY_INFO!B37) -> MANZINI | C37: =IF(COUNTRY_INFO!C37=0," ",COUNTRY_INFO!C37) -> Lobamba Lomdzala | D37: =IF(COUNTRY_INFO!$T$9:$T$1000="MDA1 (IVM+ALB)", COUNTRY_INFO!$T$9:$T$1000, " ") ->  | I37: 0 | M37: 0
A38: =IF(COUNTRY_INFO!A38=0," ",COUNTRY_INFO!A38) -> ESWATINI | B38: =IF(COUNTRY_INFO!B38=0," ",COUNTRY_INFO!B38) -> MANZINI | C38: =IF(COUNTRY_INFO!C38=0," ",COUNTRY_INFO!C38) -> Ludzeludze | D38: =IF(COUNTRY_INFO!$T$9:$T$1000="MDA1 (IVM+ALB)", COUNTRY_INFO!$T$9:$T$1000, " ") ->  | I38: 0 | M38: 0
A39: =IF(COUNTRY_INFO!A39=0," ",COUNTRY_INFO!A39) -> ESWATINI | B39: =IF(COUNTRY_INFO!B39=0," ",COUNTRY_INFO!B39) -> MANZINI | C39: =IF(COUNTRY_INFO!C39=0," ",COUNTRY_INFO!C39) -> Mafutseni | D39: =IF(COUNTRY_INFO!$T$9:$T$1000="MDA1 (IVM+ALB)", COUNTRY_INFO!$T$9:$T$1000, " ") ->  | I39: 0 | M39: 0
A40: =IF(COUNTRY_INFO!A40=0," ",COUNTRY_INFO!A40) -> ESWATINI | B40: =IF(COUNTRY_INFO!B40=0," ",COUNTRY_INFO!B40) -> MANZINI | C40: =IF(COUNTRY_INFO!C40=0," ",COUNTRY_INFO!C40) -> Mahlangatsha | D40: =IF(COUNTRY_INFO!$T$9:$T$1000="MDA1 (IVM+ALB)", COUNTRY_INFO!$T$9:$T$1000, " ") ->  | I40: 0 | M40: 0
A41: =IF(COUNTRY_INFO!A41=0," ",COUNTRY_INFO!A41) -> ESWATINI | B41: =IF(COUNTRY_INFO!B41=0," ",COUNTRY_INFO!B41) -> MANZINI | C41: =IF(COUNTRY_INFO!C41=0," ",COUNTRY_INFO!C41) -> Mangcongco | D41: =IF(COUNTRY_INFO!$T$9:$T$1000="MDA1 (IVM+ALB)", COUNTRY_INFO!$T$9:$T$1000, " ") ->  | I41: 0 | M41: 0
A42: =IF(COUNTRY_INFO!A42=0," ",COUNTRY_INFO!A42) -> ESWATINI | B42: =IF(COUNTRY_INFO!B42=0," ",COUNTRY_INFO!B42) -> MANZINI | C42: =IF(COUNTRY_INFO!C42=0," ",COUNTRY_INFO!C42) -> Manzini North | D42: =IF(COUNTRY_INFO!$T$9:$T$1000="MDA1 (IVM+ALB)", COUNTRY_INFO!$T$9:$T$1000, " ") ->  | I42: 0 | M42: 0
A43: =IF(COUNTRY_INFO!A43=0," ",COUNTRY_INFO!A43) -> ESWATINI | B43: =IF(COUNTRY_INFO!B43=0," ",COUNTRY_INFO!B43) -> MANZINI | C43: =IF(COUNTRY_INFO!C43=0," ",COUNTRY_INFO!C43) -> Manzini South | D43: =IF(COUNTRY_INFO!$T$9:$T$1000="MDA1 (IVM+ALB)", COUNTRY_INFO!$T$9:$T$1000, " ") ->  | I43: 0 | M43: 0
A44: =IF(COUNTRY_INFO!A44=0," ",COUNTRY_INFO!A44) -> ESWATINI | B44: =IF(COUNTRY_INFO!B44=0," ",COUNTRY_INFO!B44) -> MANZINI | C44: =IF(COUNTRY_INFO!C44=0," ",COUNTRY_INFO!C44) -> Mhlambanyatsi | D44: =IF(COUNTRY_INFO!$T$9:$T$1000="MDA1 (IVM+ALB)", COUNTRY_INFO!$T$9:$T$1000, " ") ->  | I44: 0 | M44: 0
A45: =IF(COUNTRY_INFO!A45=0," ",COUNTRY_INFO!A45) -> ESWATINI | B45: =IF(COUNTRY_INFO!B45=0," ",COUNTRY_INFO!B45) -> MANZINI | C45: =IF(COUNTRY_INFO!C45=0," ",COUNTRY_INFO!C45) -> Mkhiweni | D45: =IF(COUNTRY_INFO!$T$9:$T$1000="MDA1 (IVM+ALB)", COUNTRY_INFO!$T$9:$T$1000, " ") ->  | I45: 0 | M45: 0
A46: =IF(COUNTRY_INFO!A46=0," ",COUNTRY_INFO!A46) -> ESWATINI | B46: =IF(COUNTRY_INFO!B46=0," ",COUNTRY_INFO!B46) -> MANZINI | C46: =IF(COUNTRY_INFO!C46=0," ",COUNTRY_INFO!C46) -> Mtfongwaneni | D46: =IF(COUNTRY_INFO!$T$9:$T$1000="MDA1 (IVM+ALB)", COUNTRY_INFO!$T$9:$T$1000, " ") ->  | I46: 0 | M46: 0
A47: =IF(COUNTRY_INFO!A47=0," ",COUNTRY_INFO!A47) -> ESWATINI | B47: =IF(COUNTRY_INFO!B47=0," ",COUNTRY_INFO!B47) -> MANZINI | C47: =IF(COUNTRY_INFO!C47=0," ",COUNTRY_INFO!C47) -> Ngwemphisi | D47: =IF(COUNTRY_INFO!$T$9:$T$1000="MDA1 (IVM+ALB)", COUNTRY_INFO!$T$9:$T$1000, " ") ->  | I47: 0 | M47: 0
A48: =IF(COUNTRY_INFO!A48=0," ",COUNTRY_INFO!A48) -> ESWATINI | B48: =IF(COUNTRY_INFO!B48=0," ",COUNTRY_INFO!B48) -> MANZINI | C48: =IF(COUNTRY_INFO!C48=0," ",COUNTRY_INFO!C48) -> Nhlambeni | D48: =IF(COUNTRY_INFO!$T$9:$T$1000="MDA1 (IVM+ALB)", COUNTRY_INFO!$T$9:$T$1000, " ") ->  | I48: 0 | M48: 0
A49: =IF(COUNTRY_INFO!A49=0," ",COUNTRY_INFO!A49) -> ESWATINI | B49: =IF(COUNTRY_INFO!B49=0," ",COUNTRY_INFO!B49) -> MANZINI | C49: =IF(COUNTRY_INFO!C49=0," ",COUNTRY_INFO!C49) -> Ntondozi | D49: =IF(COUNTRY_INFO!$T$9:$T$1000="MDA1 (IVM+ALB)", COUNTRY_INFO!$T$9:$T$1000, " ") ->  | I49: 0 | M49: 0
A50: =IF(COUNTRY_INFO!A50=0," ",COUNTRY_INFO!A50) -> ESWATINI | B50: =IF(COUNTRY_INFO!B50=0," ",COUNTRY_INFO!B50) -> SHISELWENI | C50: =IF(COUNTRY_INFO!C50=0," ",COUNTRY_INFO!C50) -> Gege | D50: =IF(COUNTRY_INFO!$T$9:$T$1000="MDA1 (IVM+ALB)", COUNTRY_INFO!$T$9:$T$1000, " ") ->  | I50: 0 | M50: 0
A51: =IF(COUNTRY_INFO!A51=0," ",COUNTRY_INFO!A51) -> ESWATINI | B51: =IF(COUNTRY_INFO!B51=0," ",COUNTRY_INFO!B51) -> SHISELWENI | C51: =IF(COUNTRY_INFO!C51=0," ",COUNTRY_INFO!C51) -> Hosea | D51: =IF(COUNTRY_INFO!$T$9:$T$1000="MDA1 (IVM+ALB)", COUNTRY_INFO!$T$9:$T$1000, " ") ->  | I51: 0 | M51: 0
A52: =IF(COUNTRY_INFO!A52=0," ",COUNTRY_INFO!A52) -> ESWATINI | B52: =IF(COUNTRY_INFO!B52=0," ",COUNTRY_INFO!B52) -> SHISELWENI | C52: =IF(COUNTRY_INFO!C52=0," ",COUNTRY_INFO!C52) -> Khubutha | D52: =IF(COUNTRY_INFO!$T$9:$T$1000="MDA1 (IVM+ALB)", COUNTRY_INFO!$T$9:$T$1000, " ") ->  | I52: 0 | M52: 0
A53: =IF(COUNTRY_INFO!A53=0," ",COUNTRY_INFO!A53) -> ESWATINI | B53: =IF(COUNTRY_INFO!B53=0," ",COUNTRY_INFO!B53) -> SHISELWENI | C53: =IF(COUNTRY_INFO!C53=0," ",COUNTRY_INFO!C53) -> Maseyisini | D53: =IF(COUNTRY_INFO!$T$9:$T$1000="MDA1 (IVM+ALB)", COUNTRY_INFO!$T$9:$T$1000, " ") ->  | I53: 0 | M53: 0
A54: =IF(COUNTRY_INFO!A54=0," ",COUNTRY_INFO!A54) -> ESWATINI | B54: =IF(COUNTRY_INFO!B54=0," ",COUNTRY_INFO!B54) -> SHISELWENI | C54: =IF(COUNTRY_INFO!C54=0," ",COUNTRY_INFO!C54) -> Matsanjeni South | D54: =IF(COUNTRY_INFO!$T$9:$T$1000="MDA1 (IVM+ALB)", COUNTRY_INFO!$T$9:$T$1000, " ") ->  | I54: 0 | M54: 0
A55: =IF(COUNTRY_INFO!A55=0," ",COUNTRY_INFO!A55) -> ESWATINI | B55: =IF(COUNTRY_INFO!B55=0," ",COUNTRY_INFO!B55) -> SHISELWENI | C55: =IF(COUNTRY_INFO!C55=0," ",COUNTRY_INFO!C55) -> Mtsambama | D55: =IF(COUNTRY_INFO!$T$9:$T$1000="MDA1 (IVM+ALB)", COUNTRY_INFO!$T$9:$T$1000, " ") ->  | I55: 0 | M55: 0
A56: =IF(COUNTRY_INFO!A56=0," ",COUNTRY_INFO!A56) -> ESWATINI | B56: =IF(COUNTRY_INFO!B56=0," ",COUNTRY_INFO!B56) -> SHISELWENI | C56: =IF(COUNTRY_INFO!C56=0," ",COUNTRY_INFO!C56) -> Ngudzeni | D56: =IF(COUNTRY_INFO!$T$9:$T$1000="MDA1 (IVM+ALB)", COUNTRY_INFO!$T$9:$T$1000, " ") ->  | I56: 0 | M56: 0
A57: =IF(COUNTRY_INFO!A57=0," ",COUNTRY_INFO!A57) -> ESWATINI | B57: =IF(COUNTRY_INFO!B57=0," ",COUNTRY_INFO!B57) -> SHISELWENI | C57: =IF(COUNTRY_INFO!C57=0," ",COUNTRY_INFO!C57) -> Nkwene | D57: =IF(COUNTRY_INFO!$T$9:$T$1000="MDA1 (IVM+ALB)", COUNTRY_INFO!$T$9:$T$1000, " ") ->  | I57: 0 | M57: 0
A58: =IF(COUNTRY_INFO!A58=0," ",COUNTRY_INFO!A58) -> ESWATINI | B58: =IF(COUNTRY_INFO!B58=0," ",COUNTRY_INFO!B58) -> SHISELWENI | C58: =IF(COUNTRY_INFO!C58=0," ",COUNTRY_INFO!C58) -> Sandleni | D58: =IF(COUNTRY_INFO!$T$9:$T$1000="MDA1 (IVM+ALB)", COUNTRY_INFO!$T$9:$T$1000, " ") ->  | I58: 0 | M58: 0
A59: =IF(COUNTRY_INFO!A59=0," ",COUNTRY_INFO!A59) -> ESWATINI | B59: =IF(COUNTRY_INFO!B59=0," ",COUNTRY_INFO!B59) -> SHISELWENI | C59: =IF(COUNTRY_INFO!C59=0," ",COUNTRY_INFO!C59) -> Shiselweni 1 | D59: =IF(COUNTRY_INFO!$T$9:$T$1000="MDA1 (IVM+ALB)", COUNTRY_INFO!$T$9:$T$1000, " ") ->  | I59: 0 | M59: 0
A60: =IF(COUNTRY_INFO!A60=0," ",COUNTRY_INFO!A60) -> ESWATINI | B60: =IF(COUNTRY_INFO!B60=0," ",COUNTRY_INFO!B60) -> SHISELWENI | C60: =IF(COUNTRY_INFO!C60=0," ",COUNTRY_INFO!C60) -> Shiselweni 2/Mbangweni | D60: =IF(COUNTRY_INFO!$T$9:$T$1000="MDA1 (IVM+ALB)", COUNTRY_INFO!$T$9:$T$1000, " ") ->  | I60: 0 | M60: 0
A61: =IF(COUNTRY_INFO!A61=0," ",COUNTRY_INFO!A61) -> ESWATINI | B61: =IF(COUNTRY_INFO!B61=0," ",COUNTRY_INFO!B61) -> SHISELWENI | C61: =IF(COUNTRY_INFO!C61=0," ",COUNTRY_INFO!C61) -> Sigwe | D61: =IF(COUNTRY_INFO!$T$9:$T$1000="MDA1 (IVM+ALB)", COUNTRY_INFO!$T$9:$T$1000, " ") ->  | I61: 0 | M61: 0
A62: =IF(COUNTRY_INFO!A62=0," ",COUNTRY_INFO!A62) -> ESWATINI | B62: =IF(COUNTRY_INFO!B62=0," ",COUNTRY_INFO!B62) -> SHISELWENI | C62: =IF(COUNTRY_INFO!C62=0," ",COUNTRY_INFO!C62) -> Somntongo | D62: =IF(COUNTRY_INFO!$T$9:$T$1000="MDA1 (IVM+ALB)", COUNTRY_INFO!$T$9:$T$1000, " ") ->  | I62: 0 | M62: 0
A63: =IF(COUNTRY_INFO!A63=0," ",COUNTRY_INFO!A63) -> ESWATINI | B63: =IF(COUNTRY_INFO!B63=0," ",COUNTRY_INFO!B63) -> SHISELWENI | C63: =IF(COUNTRY_INFO!C63=0," ",COUNTRY_INFO!C63) -> Zombodze Emuva | D63: =IF(COUNTRY_INFO!$T$9:$T$1000="MDA1 (IVM+ALB)", COUNTRY_INFO!$T$9:$T$1000, " ") ->  | I63: 0 | M63: 0

Sheet MDA2 (hidden)
A1: MDA 2 - Diethylcarbamazine citrate (DEC) + Albendazole (ALB)
A2: Administrative structure, population requiring PC by age group, population treated by age group and coverage
A4: TOTAL | F4: =SUM(F$9:F$1000) -> 0 | G4: =SUM(G$9:G$1000) -> 0 | H4: 0 | I4: 0 | J4: 0 | K4: 0 | L4: 0 | M4: 0 | N4: =IF(F4<>0, IF(J4/F4*100=0, "-", J4/F4*100), " ") ->  | O4: =IF(G4<>0, IF(K4/G4*100=0, "-", K4/G4*100), " ") ->  | P4: =IF(H4<>0, IF(L4/H4*100=0, "-", L4/H4*100), " ") ->  | Q4: =IF(I4<>0, IF(M4/I4*100=0, "-", M4/I4*100), " ") -> 
D6: PC implemented | E6: Date | F6: Population targeted for MDA 2 | J6: Population treated | N6: Programme coverage (%)
A7: Country | B7: Province/State | C7: District | F7: PreSAC | G7: SAC | H7: Adults | I7: Total | J7: PreSAC | K7: SAC | L7: Adults | M7: Total | N7: PreSAC | O7: SAC | P7: Adults | Q7: Total
A9: =IF(COUNTRY_INFO!A9=0," ",COUNTRY_INFO!A9) -> ESWATINI | B9: =IF(COUNTRY_INFO!B9=0," ",COUNTRY_INFO!B9) -> HHOHHO | C9: =IF(COUNTRY_INFO!C9=0," ",COUNTRY_INFO!C9) -> Hhukwini | D9: =IF(COUNTRY_INFO!$T$9:$T$1000="MDA2 (DEC+ALB)", COUNTRY_INFO!$T$9:$T$1000, " ") ->  | I9: =SUM(F9:H9) -> 0 | M9: =SUM(J9:L9) -> 0 | N9: =IF(F9<>0, IF(J9/F9*100=0, "-", J9/F9*100), " ") -> 
A10: =IF(COUNTRY_INFO!A10=0," ",COUNTRY_INFO!A10) -> ESWATINI | B10: =IF(COUNTRY_INFO!B10=0," ",COUNTRY_INFO!B10) -> HHOHHO | C10: =IF(COUNTRY_INFO!C10=0," ",COUNTRY_INFO!C10) -> Lobamba | D10: =IF(COUNTRY_INFO!$T$9:$T$1000="MDA2 (DEC+ALB)", COUNTRY_INFO!$T$9:$T$1000, " ") ->  | I10: =SUM(F10:H10) -> 0 | M10: =SUM(J10:L10) -> 0 | N10: =IF(F10<>0, IF(J10/F10*100=0, "-", J10/F10*100), " ") ->  | O10: =IF(G10<>0, IF(K10/G10*100=0, "-", K10/G10*100), " ") ->  | P10: =IF(H10<>0, IF(L10/H10*100=0, "-", L10/H10*100), " ") ->  | Q10: =IF(I10<>0, IF(M10/I10*100=0, "-", M10/I10*100), " ") -> 
A11: =IF(COUNTRY_INFO!A11=0," ",COUNTRY_INFO!A11) -> ESWATINI | B11: =IF(COUNTRY_INFO!B11=0," ",COUNTRY_INFO!B11) -> HHOHHO | C11: =IF(COUNTRY_INFO!C11=0," ",COUNTRY_INFO!C11) -> Madlangempisi | D11: =IF(COUNTRY_INFO!$T$9:$T$1000="MDA2 (DEC+ALB)", COUNTRY_INFO!$T$9:$T$1000, " ") ->  | I11: 0 | M11: 0
A12: =IF(COUNTRY_INFO!A12=0," ",COUNTRY_INFO!A12) -> ESWATINI | B12: =IF(COUNTRY_INFO!B12=0," ",COUNTRY_INFO!B12) -> HHOHHO | C12: =IF(COUNTRY_INFO!C12=0," ",COUNTRY_INFO!C12) -> Maphalaleni | D12: =IF(COUNTRY_INFO!$T$9:$T$1000="MDA2 (DEC+ALB)", COUNTRY_INFO!$T$9:$T$1000, " ") ->  | I12: 0 | M12: 0
A13: =IF(COUNTRY_INFO!A13=0," ",COUNTRY_INFO!A13) -> ESWATINI | B13: =IF(COUNTRY_INFO!B13=0," ",COUNTRY_INFO!B13) -> HHOHHO | C13: =IF(COUNTRY_INFO!C13=0," ",COUNTRY_INFO!C13) -> Mayiwane | D13: =IF(COUNTRY_INFO!$T$9:$T$1000="MDA2 (DEC+ALB)", COUNTRY_INFO!$T$9:$T$1000, " ") ->  | I13: 0 | M13: 0
A14: =IF(COUNTRY_INFO!A14=0," ",COUNTRY_INFO!A14) -> ESWATINI | B14: =IF(COUNTRY_INFO!B14=0," ",COUNTRY_INFO!B14) -> HHOHHO | C14: =IF(COUNTRY_INFO!C14=0," ",COUNTRY_INFO!C14) -> Mbabane East | D14: =IF(COUNTRY_INFO!$T$9:$T$1000="MDA2 (DEC+ALB)", COUNTRY_INFO!$T$9:$T$1000, " ") ->  | I14: 0 | M14: 0
A15: =IF(COUNTRY_INFO!A15=0," ",COUNTRY_INFO!A15) -> ESWATINI | B15: =IF(COUNTRY_INFO!B15=0," ",COUNTRY_INFO!B15) -> HHOHHO | C15: =IF(COUNTRY_INFO!C15=0," ",COUNTRY_INFO!C15) -> Mbabane West | D15: =IF(COUNTRY_INFO!$T$9:$T$1000="MDA2 (DEC+ALB)", COUNTRY_INFO!$T$9:$T$1000, " ") ->  | I15: 0 | M15: 0
A16: =IF(COUNTRY_INFO!A16=0," ",COUNTRY_INFO!A16) -> ESWATINI | B16: =IF(COUNTRY_INFO!B16=0," ",COUNTRY_INFO!B16) -> HHOHHO | C16: =IF(COUNTRY_INFO!C16=0," ",COUNTRY_INFO!C16) -> Mhlangatane | D16: =IF(COUNTRY_INFO!$T$9:$T$1000="MDA2 (DEC+ALB)", COUNTRY_INFO!$T$9:$T$1000, " ") ->  | I16: 0 | M16: 0
A17: =IF(COUNTRY_INFO!A17=0," ",COUNTRY_INFO!A17) -> ESWATINI | B17: =IF(COUNTRY_INFO!B17=0," ",COUNTRY_INFO!B17) -> HHOHHO | C17: =IF(COUNTRY_INFO!C17=0," ",COUNTRY_INFO!C17) -> Motshane | D17: =IF(COUNTRY_INFO!$T$9:$T$1000="MDA2 (DEC+ALB)", COUNTRY_INFO!$T$9:$T$1000, " ") ->  | I17: 0 | M17: 0
A18: =IF(COUNTRY_INFO!A18=0," ",COUNTRY_INFO!A18) -> ESWATINI | B18: =IF(COUNTRY_INFO!B18=0," ",COUNTRY_INFO!B18) -> HHOHHO | C18: =IF(COUNTRY_INFO!C18=0," ",COUNTRY_INFO!C18) -> Ndzingeni | D18: =IF(COUNTRY_INFO!$T$9:$T$1000="MDA2 (DEC+ALB)", COUNTRY_INFO!$T$9:$T$1000, " ") ->  | I18: 0 | M18: 0
A19: =IF(COUNTRY_INFO!A19=0," ",COUNTRY_INFO!A19) -> ESWATINI | B19: =IF(COUNTRY_INFO!B19=0," ",COUNTRY_INFO!B19) -> HHOHHO | C19: =IF(COUNTRY_INFO!C19=0," ",COUNTRY_INFO!C19) -> Nkhaba | D19: =IF(COUNTRY_INFO!$T$9:$T$1000="MDA2 (DEC+ALB)", COUNTRY_INFO!$T$9:$T$1000, " ") ->  | I19: 0 | M19: 0
A20: =IF(COUNTRY_INFO!A20=0," ",COUNTRY_INFO!A20) -> ESWATINI | B20: =IF(COUNTRY_INFO!B20=0," ",COUNTRY_INFO!B20) -> HHOHHO | C20: =IF(COUNTRY_INFO!C20=0," ",COUNTRY_INFO!C20) -> Ntfonjeni | D20: =IF(COUNTRY_INFO!$T$9:$T$1000="MDA2 (DEC+ALB)", COUNTRY_INFO!$T$9:$T$1000, " ") ->  | I20: 0 | M20: 0
A21: =IF(COUNTRY_INFO!A21=0," ",COUNTRY_INFO!A21) -> ESWATINI | B21: =IF(COUNTRY_INFO!B21=0," ",COUNTRY_INFO!B21) -> HHOHHO | C21: =IF(COUNTRY_INFO!C21=0," ",COUNTRY_INFO!C21) -> Pigg's Peak | D21: =IF(COUNTRY_INFO!$T$9:$T$1000="MDA2 (DEC+ALB)", COUNTRY_INFO!$T$9:$T$1000, " ") ->  | I21: 0 | M21: 0
A22: =IF(COUNTRY_INFO!A22=0," ",COUNTRY_INFO!A22) -> ESWATINI | B22: =IF(COUNTRY_INFO!B22=0," ",COUNTRY_INFO!B22) -> HHOHHO | C22: =IF(COUNTRY_INFO!C22=0," ",COUNTRY_INFO!C22) -> Timphisini | D22: =IF(COUNTRY_INFO!$T$9:$T$1000="MDA2 (DEC+ALB)", COUNTRY_INFO!$T$9:$T$1000, " ") ->  | I22: 0 | M22: 0
A23: =IF(COUNTRY_INFO!A23=0," ",COUNTRY_INFO!A23) -> ESWATINI | B23: =IF(COUNTRY_INFO!B23=0," ",COUNTRY_INFO!B23) -> LUBOMBO | C23: =IF(COUNTRY_INFO!C23=0," ",COUNTRY_INFO!C23) -> Dvokodvweni | D23: =IF(COUNTRY_INFO!$T$9:$T$1000="MDA2 (DEC+ALB)", COUNTRY_INFO!$T$9:$T$1000, " ") ->  | I23: 0 | M23: 0
A24: =IF(COUNTRY_INFO!A24=0," ",COUNTRY_INFO!A24) -> ESWATINI | B24: =IF(COUNTRY_INFO!B24=0," ",COUNTRY_INFO!B24) -> LUBOMBO | C24: =IF(COUNTRY_INFO!C24=0," ",COUNTRY_INFO!C24) -> Hlane | D24: =IF(COUNTRY_INFO!$T$9:$T$1000="MDA2 (DEC+ALB)", COUNTRY_INFO!$T$9:$T$1000, " ") ->  | I24: 0 | M24: 0
A25: =IF(COUNTRY_INFO!A25=0," ",COUNTRY_INFO!A25) -> ESWATINI | B25: =IF(COUNTRY_INFO!B25=0," ",COUNTRY_INFO!B25) -> LUBOMBO | C25: =IF(COUNTRY_INFO!C25=0," ",COUNTRY_INFO!C25) -> Lomahasha | D25: =IF(COUNTRY_INFO!$T$9:$T$1000="MDA2 (DEC+ALB)", COUNTRY_INFO!$T$9:$T$1000, " ") ->  | I25: 0 | M25: 0
A26: =IF(COUNTRY_INFO!A26=0," ",COUNTRY_INFO!A26) -> ESWATINI | B26: =IF(COUNTRY_INFO!B26=0," ",COUNTRY_INFO!B26) -> LUBOMBO | C26: =IF(COUNTRY_INFO!C26=0," ",COUNTRY_INFO!C26) -> Lubuli | D26: =IF(COUNTRY_INFO!$T$9:$T$1000="MDA2 (DEC+ALB)", COUNTRY_INFO!$T$9:$T$1000, " ") ->  | I26: 0 | M26: 0
A27: =IF(COUNTRY_INFO!A27=0," ",COUNTRY_INFO!A27) -> ESWATINI | B27: =IF(COUNTRY_INFO!B27=0," ",COUNTRY_INFO!B27) -> LUBOMBO | C27: =IF(COUNTRY_INFO!C27=0," ",COUNTRY_INFO!C27) -> Lugongolweni | D27: =IF(COUNTRY_INFO!$T$9:$T$1000="MDA2 (DEC+ALB)", COUNTRY_INFO!$T$9:$T$1000, " ") ->  | I27: 0 | M27: 0
A28: =IF(COUNTRY_INFO!A28=0," ",COUNTRY_INFO!A28) -> ESWATINI | B28: =IF(COUNTRY_INFO!B28=0," ",COUNTRY_INFO!B28) -> LUBOMBO | C28: =IF(COUNTRY_INFO!C28=0," ",COUNTRY_INFO!C28) -> Matsanjeni North | D28: =IF(COUNTRY_INFO!$T$9:$T$1000="MDA2 (DEC+ALB)", COUNTRY_INFO!$T$9:$T$1000, " ") ->  | I28: 0 | M28: 0
A29: =IF(COUNTRY_INFO!A29=0," ",COUNTRY_INFO!A29) -> ESWATINI | B29: =IF(COUNTRY_INFO!B29=0," ",COUNTRY_INFO!B29) -> LUBOMBO | C29: =IF(COUNTRY_INFO!C29=0," ",COUNTRY_INFO!C29) -> Mhlume | D29: =IF(COUNTRY_INFO!$T$9:$T$1000="MDA2 (DEC+ALB)", COUNTRY_INFO!$T$9:$T$1000, " ") ->  | I29: 0 | M29: 0
A30: =IF(COUNTRY_INFO!A30=0," ",COUNTRY_INFO!A30) -> ESWATINI | B30: =IF(COUNTRY_INFO!B30=0," ",COUNTRY_INFO!B30) -> LUBOMBO | C30: =IF(COUNTRY_INFO!C30=0," ",COUNTRY_INFO!C30) -> Mpolonjeni | D30: =IF(COUNTRY_INFO!$T$9:$T$1000="MDA2 (DEC+ALB)", COUNTRY_INFO!$T$9:$T$1000, " ") ->  | I30: 0 | M30: 0
A31: =IF(COUNTRY_INFO!A31=0," ",COUNTRY_INFO!A31) -> ESWATINI | B31: =IF(COUNTRY_INFO!B31=0," ",COUNTRY_INFO!B31) -> LUBOMBO | C31: =IF(COUNTRY_INFO!C31=0," ",COUNTRY_INFO!C31) -> Nkilongo | D31: =IF(COUNTRY_INFO!$T$9:$T$1000="MDA2 (DEC+ALB)", COUNTRY_INFO!$T$9:$T$1000, " ") ->  | I31: 0 | M31: 0
A32: =IF(COUNTRY_INFO!A32=0," ",COUNTRY_INFO!A32) -> ESWATINI | B32: =IF(COUNTRY_INFO!B32=0," ",COUNTRY_INFO!B32) -> LUBOMBO | C32: =IF(COUNTRY_INFO!C32=0," ",COUNTRY_INFO!C32) -> Siphofaneni | D32: =IF(COUNTRY_INFO!$T$9:$T$1000="MDA2 (DEC+ALB)", COUNTRY_INFO!$T$9:$T$1000, " ") ->  | I32: 0 | M32: 0
A33: =IF(COUNTRY_INFO!A33=0," ",COUNTRY_INFO!A33) -> ESWATINI | B33: =IF(COUNTRY_INFO!B33=0," ",COUNTRY_INFO!B33) -> LUBOMBO | C33: =IF(COUNTRY_INFO!C33=0," ",COUNTRY_INFO!C33) -> Sithobela | D33: =IF(COUNTRY_INFO!$T$9:$T$1000="MDA2 (DEC+ALB)", COUNTRY_INFO!$T$9:$T$1000, " ") ->  | I33: 0 | M33: 0
A34: =IF(COUNTRY_INFO!A34=0," ",COUNTRY_INFO!A34) -> ESWATINI | B34: =IF(COUNTRY_INFO!B34=0," ",COUNTRY_INFO!B34) -> MANZINI | C34: =IF(COUNTRY_INFO!C34=0," ",COUNTRY_INFO!C34) -> Kukhanyeni | D34: =IF(COUNTRY_INFO!$T$9:$T$1000="MDA2 (DEC+ALB)", COUNTRY_INFO!$T$9:$T$1000, " ") ->  | I34: 0 | M34: 0
A35: =IF(COUNTRY_INFO!A35=0," ",COUNTRY_INFO!A35) -> ESWATINI | B35: =IF(COUNTRY_INFO!B35=0," ",COUNTRY_INFO!B35) -> MANZINI | C35: =IF(COUNTRY_INFO!C35=0," ",COUNTRY_INFO!C35) -> Kwaluseni | D35: =IF(COUNTRY_INFO!$T$9:$T$1000="MDA2 (DEC+ALB)", COUNTRY_INFO!$T$9:$T$1000, " ") ->  | I35: 0 | M35: 0
A36: =IF(COUNTRY_INFO!A36=0," ",COUNTRY_INFO!A36) -> ESWATINI | B36: =IF(COUNTRY_INFO!B36=0," ",COUNTRY_INFO!B36) -> MANZINI | C36: =IF(COUNTRY_INFO!C36=0," ",COUNTRY_INFO!C36) -> LaMgabhi | D36: =IF(COUNTRY_INFO!$T$9:$T$1000="MDA2 (DEC+ALB)", COUNTRY_INFO!$T$9:$T$1000, " ") ->  | I36: 0 | M36: 0
A37: =IF(COUNTRY_INFO!A37=0," ",COUNTRY_INFO!A37) -> ESWATINI | B37: =IF(COUNTRY_INFO!B37=0," ",COUNTRY_INFO!B37) -> MANZINI | C37: =IF(COUNTRY_INFO!C37=0," ",COUNTRY_INFO!C37) -> Lobamba Lomdzala | D37: =IF(COUNTRY_INFO!$T$9:$T$1000="MDA2 (DEC+ALB)", COUNTRY_INFO!$T$9:$T$1000, " ") ->  | I37: 0 | M37: 0
A38: =IF(COUNTRY_INFO!A38=0," ",COUNTRY_INFO!A38) -> ESWATINI | B38: =IF(COUNTRY_INFO!B38=0," ",COUNTRY_INFO!B38) -> MANZINI | C38: =IF(COUNTRY_INFO!C38=0," ",COUNTRY_INFO!C38) -> Ludzeludze | D38: =IF(COUNTRY_INFO!$T$9:$T$1000="MDA2 (DEC+ALB)", COUNTRY_INFO!$T$9:$T$1000, " ") ->  | I38: 0 | M38: 0
A39: =IF(COUNTRY_INFO!A39=0," ",COUNTRY_INFO!A39) -> ESWATINI | B39: =IF(COUNTRY_INFO!B39=0," ",COUNTRY_INFO!B39) -> MANZINI | C39: =IF(COUNTRY_INFO!C39=0," ",COUNTRY_INFO!C39) -> Mafutseni | D39: =IF(COUNTRY_INFO!$T$9:$T$1000="MDA2 (DEC+ALB)", COUNTRY_INFO!$T$9:$T$1000, " ") ->  | I39: 0 | M39: 0
A40: =IF(COUNTRY_INFO!A40=0," ",COUNTRY_INFO!A40) -> ESWATINI | B40: =IF(COUNTRY_INFO!B40=0," ",COUNTRY_INFO!B40) -> MANZINI | C40: =IF(COUNTRY_INFO!C40=0," ",COUNTRY_INFO!C40) -> Mahlangatsha | D40: =IF(COUNTRY_INFO!$T$9:$T$1000="MDA2 (DEC+ALB)", COUNTRY_INFO!$T$9:$T$1000, " ") ->  | I40: 0 | M40: 0
A41: =IF(COUNTRY_INFO!A41=0," ",COUNTRY_INFO!A41) -> ESWATINI | B41: =IF(COUNTRY_INFO!B41=0," ",COUNTRY_INFO!B41) -> MANZINI | C41: =IF(COUNTRY_INFO!C41=0," ",COUNTRY_INFO!C41) -> Mangcongco | D41: =IF(COUNTRY_INFO!$T$9:$T$1000="MDA2 (DEC+ALB)", COUNTRY_INFO!$T$9:$T$1000, " ") ->  | I41: 0 | M41: 0
A42: =IF(COUNTRY_INFO!A42=0," ",COUNTRY_INFO!A42) -> ESWATINI | B42: =IF(COUNTRY_INFO!B42=0," ",COUNTRY_INFO!B42) -> MANZINI | C42: =IF(COUNTRY_INFO!C42=0," ",COUNTRY_INFO!C42) -> Manzini North | D42: =IF(COUNTRY_INFO!$T$9:$T$1000="MDA2 (DEC+ALB)", COUNTRY_INFO!$T$9:$T$1000, " ") ->  | I42: 0 | M42: 0
A43: =IF(COUNTRY_INFO!A43=0," ",COUNTRY_INFO!A43) -> ESWATINI | B43: =IF(COUNTRY_INFO!B43=0," ",COUNTRY_INFO!B43) -> MANZINI | C43: =IF(COUNTRY_INFO!C43=0," ",COUNTRY_INFO!C43) -> Manzini South | D43: =IF(COUNTRY_INFO!$T$9:$T$1000="MDA2 (DEC+ALB)", COUNTRY_INFO!$T$9:$T$1000, " ") ->  | I43: 0 | M43: 0
A44: =IF(COUNTRY_INFO!A44=0," ",COUNTRY_INFO!A44) -> ESWATINI | B44: =IF(COUNTRY_INFO!B44=0," ",COUNTRY_INFO!B44) -> MANZINI | C44: =IF(COUNTRY_INFO!C44=0," ",COUNTRY_INFO!C44) -> Mhlambanyatsi | D44: =IF(COUNTRY_INFO!$T$9:$T$1000="MDA2 (DEC+ALB)", COUNTRY_INFO!$T$9:$T$1000, " ") ->  | I44: 0 | M44: 0
A45: =IF(COUNTRY_INFO!A45=0," ",COUNTRY_INFO!A45) -> ESWATINI | B45: =IF(COUNTRY_INFO!B45=0," ",COUNTRY_INFO!B45) -> MANZINI | C45: =IF(COUNTRY_INFO!C45=0," ",COUNTRY_INFO!C45) -> Mkhiweni | D45: =IF(COUNTRY_INFO!$T$9:$T$1000="MDA2 (DEC+ALB)", COUNTRY_INFO!$T$9:$T$1000, " ") ->  | I45: 0 | M45: 0
A46: =IF(COUNTRY_INFO!A46=0," ",COUNTRY_INFO!A46) -> ESWATINI | B46: =IF(COUNTRY_INFO!B46=0," ",COUNTRY_INFO!B46) -> MANZINI | C46: =IF(COUNTRY_INFO!C46=0," ",COUNTRY_INFO!C46) -> Mtfongwaneni | D46: =IF(COUNTRY_INFO!$T$9:$T$1000="MDA2 (DEC+ALB)", COUNTRY_INFO!$T$9:$T$1000, " ") ->  | I46: 0 | M46: 0
A47: =IF(COUNTRY_INFO!A47=0," ",COUNTRY_INFO!A47) -> ESWATINI | B47: =IF(COUNTRY_INFO!B47=0," ",COUNTRY_INFO!B47) -> MANZINI | C47: =IF(COUNTRY_INFO!C47=0," ",COUNTRY_INFO!C47) -> Ngwemphisi | D47: =IF(COUNTRY_INFO!$T$9:$T$1000="MDA2 (DEC+ALB)", COUNTRY_INFO!$T$9:$T$1000, " ") ->  | I47: 0 | M47: 0
A48: =IF(COUNTRY_INFO!A48=0," ",COUNTRY_INFO!A48) -> ESWATINI | B48: =IF(COUNTRY_INFO!B48=0," ",COUNTRY_INFO!B48) -> MANZINI | C48: =IF(COUNTRY_INFO!C48=0," ",COUNTRY_INFO!C48) -> Nhlambeni | D48: =IF(COUNTRY_INFO!$T$9:$T$1000="MDA2 (DEC+ALB)", COUNTRY_INFO!$T$9:$T$1000, " ") ->  | I48: 0 | M48: 0
A49: =IF(COUNTRY_INFO!A49=0," ",COUNTRY_INFO!A49) -> ESWATINI | B49: =IF(COUNTRY_INFO!B49=0," ",COUNTRY_INFO!B49) -> MANZINI | C49: =IF(COUNTRY_INFO!C49=0," ",COUNTRY_INFO!C49) -> Ntondozi | D49: =IF(COUNTRY_INFO!$T$9:$T$1000="MDA2 (DEC+ALB)", COUNTRY_INFO!$T$9:$T$1000, " ") ->  | I49: 0 | M49: 0
A50: =IF(COUNTRY_INFO!A50=0," ",COUNTRY_INFO!A50) -> ESWATINI | B50: =IF(COUNTRY_INFO!B50=0," ",COUNTRY_INFO!B50) -> SHISELWENI | C50: =IF(COUNTRY_INFO!C50=0," ",COUNTRY_INFO!C50) -> Gege | D50: =IF(COUNTRY_INFO!$T$9:$T$1000="MDA2 (DEC+ALB)", COUNTRY_INFO!$T$9:$T$1000, " ") ->  | I50: 0 | M50: 0
A51: =IF(COUNTRY_INFO!A51=0," ",COUNTRY_INFO!A51) -> ESWATINI | B51: =IF(COUNTRY_INFO!B51=0," ",COUNTRY_INFO!B51) -> SHISELWENI | C51: =IF(COUNTRY_INFO!C51=0," ",COUNTRY_INFO!C51) -> Hosea | D51: =IF(COUNTRY_INFO!$T$9:$T$1000="MDA2 (DEC+ALB)", COUNTRY_INFO!$T$9:$T$1000, " ") ->  | I51: 0 | M51: 0
A52: =IF(COUNTRY_INFO!A52=0," ",COUNTRY_INFO!A52) -> ESWATINI | B52: =IF(COUNTRY_INFO!B52=0," ",COUNTRY_INFO!B52) -> SHISELWENI | C52: =IF(COUNTRY_INFO!C52=0," ",COUNTRY_INFO!C52) -> Khubutha | D52: =IF(COUNTRY_INFO!$T$9:$T$1000="MDA2 (DEC+ALB)", COUNTRY_INFO!$T$9:$T$1000, " ") ->  | I52: 0 | M52: 0
A53: =IF(COUNTRY_INFO!A53=0," ",COUNTRY_INFO!A53) -> ESWATINI | B53: =IF(COUNTRY_INFO!B53=0," ",COUNTRY_INFO!B53) -> SHISELWENI | C53: =IF(COUNTRY_INFO!C53=0," ",COUNTRY_INFO!C53) -> Maseyisini | D53: =IF(COUNTRY_INFO!$T$9:$T$1000="MDA2 (DEC+ALB)", COUNTRY_INFO!$T$9:$T$1000, " ") ->  | I53: 0 | M53: 0
A54: =IF(COUNTRY_INFO!A54=0," ",COUNTRY_INFO!A54) -> ESWATINI | B54: =IF(COUNTRY_INFO!B54=0," ",COUNTRY_INFO!B54) -> SHISELWENI | C54: =IF(COUNTRY_INFO!C54=0," ",COUNTRY_INFO!C54) -> Matsanjeni South | D54: =IF(COUNTRY_INFO!$T$9:$T$1000="MDA2 (DEC+ALB)", COUNTRY_INFO!$T$9:$T$1000, " ") ->  | I54: 0 | M54: 0
A55: =IF(COUNTRY_INFO!A55=0," ",COUNTRY_INFO!A55) -> ESWATINI | B55: =IF(COUNTRY_INFO!B55=0," ",COUNTRY_INFO!B55) -> SHISELWENI | C55: =IF(COUNTRY_INFO!C55=0," ",COUNTRY_INFO!C55) -> Mtsambama | D55: =IF(COUNTRY_INFO!$T$9:$T$1000="MDA2 (DEC+ALB)", COUNTRY_INFO!$T$9:$T$1000, " ") ->  | I55: 0 | M55: 0
A56: =IF(COUNTRY_INFO!A56=0," ",COUNTRY_INFO!A56) -> ESWATINI | B56: =IF(COUNTRY_INFO!B56=0," ",COUNTRY_INFO!B56) -> SHISELWENI | C56: =IF(COUNTRY_INFO!C56=0," ",COUNTRY_INFO!C56) -> Ngudzeni | D56: =IF(COUNTRY_INFO!$T$9:$T$1000="MDA2 (DEC+ALB)", COUNTRY_INFO!$T$9:$T$1000, " ") ->  | I56: 0 | M56: 0
A57: =IF(COUNTRY_INFO!A57=0," ",COUNTRY_INFO!A57) -> ESWATINI | B57: =IF(COUNTRY_INFO!B57=0," ",COUNTRY_INFO!B57) -> SHISELWENI | C57: =IF(COUNTRY_INFO!C57=0," ",COUNTRY_INFO!C57) -> Nkwene | D57: =IF(COUNTRY_INFO!$T$9:$T$1000="MDA2 (DEC+ALB)", COUNTRY_INFO!$T$9:$T$1000, " ") ->  | I57: 0 | M57: 0
A58: =IF(COUNTRY_INFO!A58=0," ",COUNTRY_INFO!A58) -> ESWATINI | B58: =IF(COUNTRY_INFO!B58=0," ",COUNTRY_INFO!B58) -> SHISELWENI | C58: =IF(COUNTRY_INFO!C58=0," ",COUNTRY_INFO!C58) -> Sandleni | D58: =IF(COUNTRY_INFO!$T$9:$T$1000="MDA2 (DEC+ALB)", COUNTRY_INFO!$T$9:$T$1000, " ") ->  | I58: 0 | M58: 0
A59: =IF(COUNTRY_INFO!A59=0," ",COUNTRY_INFO!A59) -> ESWATINI | B59: =IF(COUNTRY_INFO!B59=0," ",COUNTRY_INFO!B59) -> SHISELWENI | C59: =IF(COUNTRY_INFO!C59=0," ",COUNTRY_INFO!C59) -> Shiselweni 1 | D59: =IF(COUNTRY_INFO!$T$9:$T$1000="MDA2 (DEC+ALB)", COUNTRY_INFO!$T$9:$T$1000, " ") ->  | I59: 0 | M59: 0
A60: =IF(COUNTRY_INFO!A60=0," ",COUNTRY_INFO!A60) -> ESWATINI | B60: =IF(COUNTRY_INFO!B60=0," ",COUNTRY_INFO!B60) -> SHISELWENI | C60: =IF(COUNTRY_INFO!C60=0," ",COUNTRY_INFO!C60) -> Shiselweni 2/Mbangweni | D60: =IF(COUNTRY_INFO!$T$9:$T$1000="MDA2 (DEC+ALB)", COUNTRY_INFO!$T$9:$T$1000, " ") ->  | I60: 0 | M60: 0
A61: =IF(COUNTRY_INFO!A61=0," ",COUNTRY_INFO!A61) -> ESWATINI | B61: =IF(COUNTRY_INFO!B61=0," ",COUNTRY_INFO!B61) -> SHISELWENI | C61: =IF(COUNTRY_INFO!C61=0," ",COUNTRY_INFO!C61) -> Sigwe | D61: =IF(COUNTRY_INFO!$T$9:$T$1000="MDA2 (DEC+ALB)", COUNTRY_INFO!$T$9:$T$1000, " ") ->  | I61: 0 | M61: 0
A62: =IF(COUNTRY_INFO!A62=0," ",COUNTRY_INFO!A62) -> ESWATINI | B62: =IF(COUNTRY_INFO!B62=0," ",COUNTRY_INFO!B62) -> SHISELWENI | C62: =IF(COUNTRY_INFO!C62=0," ",COUNTRY_INFO!C62) -> Somntongo | D62: =IF(COUNTRY_INFO!$T$9:$T$1000="MDA2 (DEC+ALB)", COUNTRY_INFO!$T$9:$T$1000, " ") ->  | I62: 0 | M62: 0
A63: =IF(COUNTRY_INFO!A63=0," ",COUNTRY_INFO!A63) -> ESWATINI | B63: =IF(COUNTRY_INFO!B63=0," ",COUNTRY_INFO!B63) -> SHISELWENI | C63: =IF(COUNTRY_INFO!C63=0," ",COUNTRY_INFO!C63) -> Zombodze Emuva | D63: =IF(COUNTRY_INFO!$T$9:$T$1000="MDA2 (DEC+ALB)", COUNTRY_INFO!$T$9:$T$1000, " ") ->  | I63: 0 | M63: 0

Sheet MDA3 (hidden)
A1: MDA 3 - Ivermectin (IVM)
A2: Administrative structure, population requiring PC by age group, population treated by age group and coverage
A4: TOTAL | F4: =SUM(F$9:F$1000) -> 0 | G4: 0 | H4: 0 | I4: 0 | J4: 0 | K4: 0 | L4: 0 | M4: 0 | N4: 0 | O4: 0 | P4: 0 | Q4: 0 | R4: =IF(F4<>0, IF(O4/F4*100=0, "-", O4/F4*100), " ") ->  | S4: =IF(G4<>0, IF(P4/G4*100=0, "-", P4/G4*100), " ") ->  | T4: =IF(H4<>0, IF(Q4/H4*100=0, "-", Q4/H4*100), " ") -> 
D6: PC implemented | E6: Date | F6: Population targeted for MDA 3 | I6: Population treated - 1st round | L6: Population treated - 2nd round | O6: Population treated | R6: Programme coverage (%)
A7: Country | B7: Province/State | C7: District | F7: SAC | G7: Adults | H7: Total | I7: SAC | J7: Adults | K7: Total | L7: SAC | M7: Adults | N7: Total | O7: SAC | P7: Adults | Q7: Total | R7: SAC | S7: Adults | T7: Total
A9: =IF(COUNTRY_INFO!A9=0," ",COUNTRY_INFO!A9) -> ESWATINI | B9: =IF(COUNTRY_INFO!B9=0," ",COUNTRY_INFO!B9) -> HHOHHO | C9: =IF(COUNTRY_INFO!C9=0," ",COUNTRY_INFO!C9) -> Hhukwini | D9: =IF(COUNTRY_INFO!$T$9:$T$1000="MDA3 (IVM)", COUNTRY_INFO!$T$9:$T$1000, " ") ->  | H9: =SUM(F9:G9) -> 0 | K9: =SUM(I9:J9) -> 0 | N9: =SUM(L9:M9) -> 0 | O9: =MAX(I9,L9) -> 0 | P9: 0 | Q9: =SUM(O9:P9) -> 0 | R9: =IF(F9<>0, IF(MAX(I9,L9)/F9*100=0, "-", MAX(I9,L9)/F9*100), " ") ->  | T9: =IF(H9<>0, IF((MAX(I9,L9)+MAX(J9,M9))/H9*100=0, "-",(MAX(I9,L9)+MAX(J9,M9))/H9*100), " ") -> 
A10: =IF(COUNTRY_INFO!A10=0," ",COUNTRY_INFO!A10) -> ESWATINI | B10: =IF(COUNTRY_INFO!B10=0," ",COUNTRY_INFO!B10) -> HHOHHO | C10: =IF(COUNTRY_INFO!C10=0," ",COUNTRY_INFO!C10) -> Lobamba | D10: =IF(COUNTRY_INFO!$T$9:$T$1000="MDA3 (IVM)", COUNTRY_INFO!$T$9:$T$1000, " ") ->  | H10: =SUM(F10:G10) -> 0 | K10: =SUM(I10:J10) -> 0 | N10: =SUM(L10:M10) -> 0 | O10: =MAX(I10,L10) -> 0 | P10: =MAX(J10,M10) -> 0 | Q10: =SUM(O10:P10) -> 0 | R10: =IF(F10<>0, IF(MAX(I10,L10)/F10*100=0, "-", MAX(I10,L10)/F10*100), " ") ->  | S10: =IF(G10<>0, IF(MAX(J10,M10)/G10*100=0, "-", MAX(J10,M10)/G10*100), " ") ->  | T10: =IF(H10<>0, IF((MAX(I10,L10)+MAX(J10,M10))/H10*100=0, "-",(MAX(I10,L10)+MAX(J10,M10))/H10*100), " ") -> 
A11: =IF(COUNTRY_INFO!A11=0," ",COUNTRY_INFO!A11) -> ESWATINI | B11: =IF(COUNTRY_INFO!B11=0," ",COUNTRY_INFO!B11) -> HHOHHO | C11: =IF(COUNTRY_INFO!C11=0," ",COUNTRY_INFO!C11) -> Madlangempisi | D11: =IF(COUNTRY_INFO!$T$9:$T$1000="MDA3 (IVM)", COUNTRY_INFO!$T$9:$T$1000, " ") ->  | H11: 0 | K11: 0 | N11: 0 | O11: 0 | P11: 0 | Q11: 0
A12: =IF(COUNTRY_INFO!A12=0," ",COUNTRY_INFO!A12) -> ESWATINI | B12: =IF(COUNTRY_INFO!B12=0," ",COUNTRY_INFO!B12) -> HHOHHO | C12: =IF(COUNTRY_INFO!C12=0," ",COUNTRY_INFO!C12) -> Maphalaleni | D12: =IF(COUNTRY_INFO!$T$9:$T$1000="MDA3 (IVM)", COUNTRY_INFO!$T$9:$T$1000, " ") ->  | H12: 0 | K12: 0 | N12: 0 | O12: 0 | P12: 0 | Q12: 0
A13: =IF(COUNTRY_INFO!A13=0," ",COUNTRY_INFO!A13) -> ESWATINI | B13: =IF(COUNTRY_INFO!B13=0," ",COUNTRY_INFO!B13) -> HHOHHO | C13: =IF(COUNTRY_INFO!C13=0," ",COUNTRY_INFO!C13) -> Mayiwane | D13: =IF(COUNTRY_INFO!$T$9:$T$1000="MDA3 (IVM)", COUNTRY_INFO!$T$9:$T$1000, " ") ->  | H13: 0 | K13: 0 | N13: 0 | O13: 0 | P13: 0 | Q13: 0
A14: =IF(COUNTRY_INFO!A14=0," ",COUNTRY_INFO!A14) -> ESWATINI | B14: =IF(COUNTRY_INFO!B14=0," ",COUNTRY_INFO!B14) -> HHOHHO | C14: =IF(COUNTRY_INFO!C14=0," ",COUNTRY_INFO!C14) -> Mbabane East | D14: =IF(COUNTRY_INFO!$T$9:$T$1000="MDA3 (IVM)", COUNTRY_INFO!$T$9:$T$1000, " ") ->  | H14: 0 | K14: 0 | N14: 0 | O14: 0 | P14: 0 | Q14: 0
A15: =IF(COUNTRY_INFO!A15=0," ",COUNTRY_INFO!A15) -> ESWATINI | B15: =IF(COUNTRY_INFO!B15=0," ",COUNTRY_INFO!B15) -> HHOHHO | C15: =IF(COUNTRY_INFO!C15=0," ",COUNTRY_INFO!C15) -> Mbabane West | D15: =IF(COUNTRY_INFO!$T$9:$T$1000="MDA3 (IVM)", COUNTRY_INFO!$T$9:$T$1000, " ") ->  | H15: 0 | K15: 0 | N15: 0 | O15: 0 | P15: 0 | Q15: 0
A16: =IF(COUNTRY_INFO!A16=0," ",COUNTRY_INFO!A16) -> ESWATINI | B16: =IF(COUNTRY_INFO!B16=0," ",COUNTRY_INFO!B16) -> HHOHHO | C16: =IF(COUNTRY_INFO!C16=0," ",COUNTRY_INFO!C16) -> Mhlangatane | D16: =IF(COUNTRY_INFO!$T$9:$T$1000="MDA3 (IVM)", COUNTRY_INFO!$T$9:$T$1000, " ") ->  | H16: 0 | K16: 0 | N16: 0 | O16: 0 | P16: 0 | Q16: 0
A17: =IF(COUNTRY_INFO!A17=0," ",COUNTRY_INFO!A17) -> ESWATINI | B17: =IF(COUNTRY_INFO!B17=0," ",COUNTRY_INFO!B17) -> HHOHHO | C17: =IF(COUNTRY_INFO!C17=0," ",COUNTRY_INFO!C17) -> Motshane | D17: =IF(COUNTRY_INFO!$T$9:$T$1000="MDA3 (IVM)", COUNTRY_INFO!$T$9:$T$1000, " ") ->  | H17: 0 | K17: 0 | N17: 0 | O17: 0 | P17: 0 | Q17: 0
A18: =IF(COUNTRY_INFO!A18=0," ",COUNTRY_INFO!A18) -> ESWATINI | B18: =IF(COUNTRY_INFO!B18=0," ",COUNTRY_INFO!B18) -> HHOHHO | C18: =IF(COUNTRY_INFO!C18=0," ",COUNTRY_INFO!C18) -> Ndzingeni | D18: =IF(COUNTRY_INFO!$T$9:$T$1000="MDA3 (IVM)", COUNTRY_INFO!$T$9:$T$1000, " ") ->  | H18: 0 | K18: 0 | N18: 0 | O18: 0 | P18: 0 | Q18: 0
A19: =IF(COUNTRY_INFO!A19=0," ",COUNTRY_INFO!A19) -> ESWATINI | B19: =IF(COUNTRY_INFO!B19=0," ",COUNTRY_INFO!B19) -> HHOHHO | C19: =IF(COUNTRY_INFO!C19=0," ",COUNTRY_INFO!C19) -> Nkhaba | D19: =IF(COUNTRY_INFO!$T$9:$T$1000="MDA3 (IVM)", COUNTRY_INFO!$T$9:$T$1000, " ") ->  | H19: 0 | K19: 0 | N19: 0 | O19: 0 | P19: 0 | Q19: 0
A20: =IF(COUNTRY_INFO!A20=0," ",COUNTRY_INFO!A20) -> ESWATINI | B20: =IF(COUNTRY_INFO!B20=0," ",COUNTRY_INFO!B20) -> HHOHHO | C20: =IF(COUNTRY_INFO!C20=0," ",COUNTRY_INFO!C20) -> Ntfonjeni | D20: =IF(COUNTRY_INFO!$T$9:$T$1000="MDA3 (IVM)", COUNTRY_INFO!$T$9:$T$1000, " ") ->  | H20: 0 | K20: 0 | N20: 0 | O20: 0 | P20: 0 | Q20: 0
A21: =IF(COUNTRY_INFO!A21=0," ",COUNTRY_INFO!A21) -> ESWATINI | B21: =IF(COUNTRY_INFO!B21=0," ",COUNTRY_INFO!B21) -> HHOHHO | C21: =IF(COUNTRY_INFO!C21=0," ",COUNTRY_INFO!C21) -> Pigg's Peak | D21: =IF(COUNTRY_INFO!$T$9:$T$1000="MDA3 (IVM)", COUNTRY_INFO!$T$9:$T$1000, " ") ->  | H21: 0 | K21: 0 | N21: 0 | O21: 0 | P21: 0 | Q21: 0
A22: =IF(COUNTRY_INFO!A22=0," ",COUNTRY_INFO!A22) -> ESWATINI | B22: =IF(COUNTRY_INFO!B22=0," ",COUNTRY_INFO!B22) -> HHOHHO | C22: =IF(COUNTRY_INFO!C22=0," ",COUNTRY_INFO!C22) -> Timphisini | D22: =IF(COUNTRY_INFO!$T$9:$T$1000="MDA3 (IVM)", COUNTRY_INFO!$T$9:$T$1000, " ") ->  | H22: 0 | K22: 0 | N22: 0 | O22: 0 | P22: 0 | Q22: 0
A23: =IF(COUNTRY_INFO!A23=0," ",COUNTRY_INFO!A23) -> ESWATINI | B23: =IF(COUNTRY_INFO!B23=0," ",COUNTRY_INFO!B23) -> LUBOMBO | C23: =IF(COUNTRY_INFO!C23=0," ",COUNTRY_INFO!C23) -> Dvokodvweni | D23: =IF(COUNTRY_INFO!$T$9:$T$1000="MDA3 (IVM)", COUNTRY_INFO!$T$9:$T$1000, " ") ->  | H23: 0 | K23: 0 | N23: 0 | O23: 0 | P23: 0 | Q23: 0
A24: =IF(COUNTRY_INFO!A24=0," ",COUNTRY_INFO!A24) -> ESWATINI | B24: =IF(COUNTRY_INFO!B24=0," ",COUNTRY_INFO!B24) -> LUBOMBO | C24: =IF(COUNTRY_INFO!C24=0," ",COUNTRY_INFO!C24) -> Hlane | D24: =IF(COUNTRY_INFO!$T$9:$T$1000="MDA3 (IVM)", COUNTRY_INFO!$T$9:$T$1000, " ") ->  | H24: 0 | K24: 0 | N24: 0 | O24: 0 | P24: 0 | Q24: 0
A25: =IF(COUNTRY_INFO!A25=0," ",COUNTRY_INFO!A25) -> ESWATINI | B25: =IF(COUNTRY_INFO!B25=0," ",COUNTRY_INFO!B25) -> LUBOMBO | C25: =IF(COUNTRY_INFO!C25=0," ",COUNTRY_INFO!C25) -> Lomahasha | D25: =IF(COUNTRY_INFO!$T$9:$T$1000="MDA3 (IVM)", COUNTRY_INFO!$T$9:$T$1000, " ") ->  | H25: 0 | K25: 0 | N25: 0 | O25: 0 | P25: 0 | Q25: 0
A26: =IF(COUNTRY_INFO!A26=0," ",COUNTRY_INFO!A26) -> ESWATINI | B26: =IF(COUNTRY_INFO!B26=0," ",COUNTRY_INFO!B26) -> LUBOMBO | C26: =IF(COUNTRY_INFO!C26=0," ",COUNTRY_INFO!C26) -> Lubuli | D26: =IF(COUNTRY_INFO!$T$9:$T$1000="MDA3 (IVM)", COUNTRY_INFO!$T$9:$T$1000, " ") ->  | H26: 0 | K26: 0 | N26: 0 | O26: 0 | P26: 0 | Q26: 0
A27: =IF(COUNTRY_INFO!A27=0," ",COUNTRY_INFO!A27) -> ESWATINI | B27: =IF(COUNTRY_INFO!B27=0," ",COUNTRY_INFO!B27) -> LUBOMBO | C27: =IF(COUNTRY_INFO!C27=0," ",COUNTRY_INFO!C27) -> Lugongolweni | D27: =IF(COUNTRY_INFO!$T$9:$T$1000="MDA3 (IVM)", COUNTRY_INFO!$T$9:$T$1000, " ") ->  | H27: 0 | K27: 0 | N27: 0 | O27: 0 | P27: 0 | Q27: 0
A28: =IF(COUNTRY_INFO!A28=0," ",COUNTRY_INFO!A28) -> ESWATINI | B28: =IF(COUNTRY_INFO!B28=0," ",COUNTRY_INFO!B28) -> LUBOMBO | C28: =IF(COUNTRY_INFO!C28=0," ",COUNTRY_INFO!C28) -> Matsanjeni North | D28: =IF(COUNTRY_INFO!$T$9:$T$1000="MDA3 (IVM)", COUNTRY_INFO!$T$9:$T$1000, " ") ->  | H28: 0 | K28: 0 | N28: 0 | O28: 0 | P28: 0 | Q28: 0
A29: =IF(COUNTRY_INFO!A29=0," ",COUNTRY_INFO!A29) -> ESWATINI | B29: =IF(COUNTRY_INFO!B29=0," ",COUNTRY_INFO!B29) -> LUBOMBO | C29: =IF(COUNTRY_INFO!C29=0," ",COUNTRY_INFO!C29) -> Mhlume | D29: =IF(COUNTRY_INFO!$T$9:$T$1000="MDA3 (IVM)", COUNTRY_INFO!$T$9:$T$1000, " ") ->  | H29: 0 | K29: 0 | N29: 0 | O29: 0 | P29: 0 | Q29: 0
A30: =IF(COUNTRY_INFO!A30=0," ",COUNTRY_INFO!A30) -> ESWATINI | B30: =IF(COUNTRY_INFO!B30=0," ",COUNTRY_INFO!B30) -> LUBOMBO | C30: =IF(COUNTRY_INFO!C30=0," ",COUNTRY_INFO!C30) -> Mpolonjeni | D30: =IF(COUNTRY_INFO!$T$9:$T$1000="MDA3 (IVM)", COUNTRY_INFO!$T$9:$T$1000, " ") ->  | H30: 0 | K30: 0 | N30: 0 | O30: 0 | P30: 0 | Q30: 0
A31: =IF(COUNTRY_INFO!A31=0," ",COUNTRY_INFO!A31) -> ESWATINI | B31: =IF(COUNTRY_INFO!B31=0," ",COUNTRY_INFO!B31) -> LUBOMBO | C31: =IF(COUNTRY_INFO!C31=0," ",COUNTRY_INFO!C31) -> Nkilongo | D31: =IF(COUNTRY_INFO!$T$9:$T$1000="MDA3 (IVM)", COUNTRY_INFO!$T$9:$T$1000, " ") ->  | H31: 0 | K31: 0 | N31: 0 | O31: 0 | P31: 0 | Q31: 0
A32: =IF(COUNTRY_INFO!A32=0," ",COUNTRY_INFO!A32) -> ESWATINI | B32: =IF(COUNTRY_INFO!B32=0," ",COUNTRY_INFO!B32) -> LUBOMBO | C32: =IF(COUNTRY_INFO!C32=0," ",COUNTRY_INFO!C32) -> Siphofaneni | D32: =IF(COUNTRY_INFO!$T$9:$T$1000="MDA3 (IVM)", COUNTRY_INFO!$T$9:$T$1000, " ") ->  | H32: 0 | K32: 0 | N32: 0 | O32: 0 | P32: 0 | Q32: 0
A33: =IF(COUNTRY_INFO!A33=0," ",COUNTRY_INFO!A33) -> ESWATINI | B33: =IF(COUNTRY_INFO!B33=0," ",COUNTRY_INFO!B33) -> LUBOMBO | C33: =IF(COUNTRY_INFO!C33=0," ",COUNTRY_INFO!C33) -> Sithobela | D33: =IF(COUNTRY_INFO!$T$9:$T$1000="MDA3 (IVM)", COUNTRY_INFO!$T$9:$T$1000, " ") ->  | H33: 0 | K33: 0 | N33: 0 | O33: 0 | P33: 0 | Q33: 0
A34: =IF(COUNTRY_INFO!A34=0," ",COUNTRY_INFO!A34) -> ESWATINI | B34: =IF(COUNTRY_INFO!B34=0," ",COUNTRY_INFO!B34) -> MANZINI | C34: =IF(COUNTRY_INFO!C34=0," ",COUNTRY_INFO!C34) -> Kukhanyeni | D34: =IF(COUNTRY_INFO!$T$9:$T$1000="MDA3 (IVM)", COUNTRY_INFO!$T$9:$T$1000, " ") ->  | H34: 0 | K34: 0 | N34: 0 | O34: 0 | P34: 0 | Q34: 0
A35: =IF(COUNTRY_INFO!A35=0," ",COUNTRY_INFO!A35) -> ESWATINI | B35: =IF(COUNTRY_INFO!B35=0," ",COUNTRY_INFO!B35) -> MANZINI | C35: =IF(COUNTRY_INFO!C35=0," ",COUNTRY_INFO!C35) -> Kwaluseni | D35: =IF(COUNTRY_INFO!$T$9:$T$1000="MDA3 (IVM)", COUNTRY_INFO!$T$9:$T$1000, " ") ->  | H35: 0 | K35: 0 | N35: 0 | O35: 0 | P35: 0 | Q35: 0
A36: =IF(COUNTRY_INFO!A36=0," ",COUNTRY_INFO!A36) -> ESWATINI | B36: =IF(COUNTRY_INFO!B36=0," ",COUNTRY_INFO!B36) -> MANZINI | C36: =IF(COUNTRY_INFO!C36=0," ",COUNTRY_INFO!C36) -> LaMgabhi | D36: =IF(COUNTRY_INFO!$T$9:$T$1000="MDA3 (IVM)", COUNTRY_INFO!$T$9:$T$1000, " ") ->  | H36: 0 | K36: 0 | N36: 0 | O36: 0 | P36: 0 | Q36: 0
A37: =IF(COUNTRY_INFO!A37=0," ",COUNTRY_INFO!A37) -> ESWATINI | B37: =IF(COUNTRY_INFO!B37=0," ",COUNTRY_INFO!B37) -> MANZINI | C37: =IF(COUNTRY_INFO!C37=0," ",COUNTRY_INFO!C37) -> Lobamba Lomdzala | D37: =IF(COUNTRY_INFO!$T$9:$T$1000="MDA3 (IVM)", COUNTRY_INFO!$T$9:$T$1000, " ") ->  | H37: 0 | K37: 0 | N37: 0 | O37: 0 | P37: 0 | Q37: 0
A38: =IF(COUNTRY_INFO!A38=0," ",COUNTRY_INFO!A38) -> ESWATINI | B38: =IF(COUNTRY_INFO!B38=0," ",COUNTRY_INFO!B38) -> MANZINI | C38: =IF(COUNTRY_INFO!C38=0," ",COUNTRY_INFO!C38) -> Ludzeludze | D38: =IF(COUNTRY_INFO!$T$9:$T$1000="MDA3 (IVM)", COUNTRY_INFO!$T$9:$T$1000, " ") ->  | H38: 0 | K38: 0 | N38: 0 | O38: 0 | P38: 0 | Q38: 0
A39: =IF(COUNTRY_INFO!A39=0," ",COUNTRY_INFO!A39) -> ESWATINI | B39: =IF(COUNTRY_INFO!B39=0," ",COUNTRY_INFO!B39) -> MANZINI | C39: =IF(COUNTRY_INFO!C39=0," ",COUNTRY_INFO!C39) -> Mafutseni | D39: =IF(COUNTRY_INFO!$T$9:$T$1000="MDA3 (IVM)", COUNTRY_INFO!$T$9:$T$1000, " ") ->  | H39: 0 | K39: 0 | N39: 0 | O39: 0 | P39: 0 | Q39: 0
A40: =IF(COUNTRY_INFO!A40=0," ",COUNTRY_INFO!A40) -> ESWATINI | B40: =IF(COUNTRY_INFO!B40=0," ",COUNTRY_INFO!B40) -> MANZINI | C40: =IF(COUNTRY_INFO!C40=0," ",COUNTRY_INFO!C40) -> Mahlangatsha | D40: =IF(COUNTRY_INFO!$T$9:$T$1000="MDA3 (IVM)", COUNTRY_INFO!$T$9:$T$1000, " ") ->  | H40: 0 | K40: 0 | N40: 0 | O40: 0 | P40: 0 | Q40: 0
A41: =IF(COUNTRY_INFO!A41=0," ",COUNTRY_INFO!A41) -> ESWATINI | B41: =IF(COUNTRY_INFO!B41=0," ",COUNTRY_INFO!B41) -> MANZINI | C41: =IF(COUNTRY_INFO!C41=0," ",COUNTRY_INFO!C41) -> Mangcongco | D41: =IF(COUNTRY_INFO!$T$9:$T$1000="MDA3 (IVM)", COUNTRY_INFO!$T$9:$T$1000, " ") ->  | H41: 0 | K41: 0 | N41: 0 | O41: 0 | P41: 0 | Q41: 0
A42: =IF(COUNTRY_INFO!A42=0," ",COUNTRY_INFO!A42) -> ESWATINI | B42: =IF(COUNTRY_INFO!B42=0," ",COUNTRY_INFO!B42) -> MANZINI | C42: =IF(COUNTRY_INFO!C42=0," ",COUNTRY_INFO!C42) -> Manzini North | D42: =IF(COUNTRY_INFO!$T$9:$T$1000="MDA3 (IVM)", COUNTRY_INFO!$T$9:$T$1000, " ") ->  | H42: 0 | K42: 0 | N42: 0 | O42: 0 | P42: 0 | Q42: 0
A43: =IF(COUNTRY_INFO!A43=0," ",COUNTRY_INFO!A43) -> ESWATINI | B43: =IF(COUNTRY_INFO!B43=0," ",COUNTRY_INFO!B43) -> MANZINI | C43: =IF(COUNTRY_INFO!C43=0," ",COUNTRY_INFO!C43) -> Manzini South | D43: =IF(COUNTRY_INFO!$T$9:$T$1000="MDA3 (IVM)", COUNTRY_INFO!$T$9:$T$1000, " ") ->  | H43: 0 | K43: 0 | N43: 0 | O43: 0 | P43: 0 | Q43: 0
A44: =IF(COUNTRY_INFO!A44=0," ",COUNTRY_INFO!A44) -> ESWATINI | B44: =IF(COUNTRY_INFO!B44=0," ",COUNTRY_INFO!B44) -> MANZINI | C44: =IF(COUNTRY_INFO!C44=0," ",COUNTRY_INFO!C44) -> Mhlambanyatsi | D44: =IF(COUNTRY_INFO!$T$9:$T$1000="MDA3 (IVM)", COUNTRY_INFO!$T$9:$T$1000, " ") ->  | H44: 0 | K44: 0 | N44: 0 | O44: 0 | P44: 0 | Q44: 0
A45: =IF(COUNTRY_INFO!A45=0," ",COUNTRY_INFO!A45) -> ESWATINI | B45: =IF(COUNTRY_INFO!B45=0," ",COUNTRY_INFO!B45) -> MANZINI | C45: =IF(COUNTRY_INFO!C45=0," ",COUNTRY_INFO!C45) -> Mkhiweni | D45: =IF(COUNTRY_INFO!$T$9:$T$1000="MDA3 (IVM)", COUNTRY_INFO!$T$9:$T$1000, " ") ->  | H45: 0 | K45: 0 | N45: 0 | O45: 0 | P45: 0 | Q45: 0
A46: =IF(COUNTRY_INFO!A46=0," ",COUNTRY_INFO!A46) -> ESWATINI | B46: =IF(COUNTRY_INFO!B46=0," ",COUNTRY_INFO!B46) -> MANZINI | C46: =IF(COUNTRY_INFO!C46=0," ",COUNTRY_INFO!C46) -> Mtfongwaneni | D46: =IF(COUNTRY_INFO!$T$9:$T$1000="MDA3 (IVM)", COUNTRY_INFO!$T$9:$T$1000, " ") ->  | H46: 0 | K46: 0 | N46: 0 | O46: 0 | P46: 0 | Q46: 0
A47: =IF(COUNTRY_INFO!A47=0," ",COUNTRY_INFO!A47) -> ESWATINI | B47: =IF(COUNTRY_INFO!B47=0," ",COUNTRY_INFO!B47) -> MANZINI | C47: =IF(COUNTRY_INFO!C47=0," ",COUNTRY_INFO!C47) -> Ngwemphisi | D47: =IF(COUNTRY_INFO!$T$9:$T$1000="MDA3 (IVM)", COUNTRY_INFO!$T$9:$T$1000, " ") ->  | H47: 0 | K47: 0 | N47: 0 | O47: 0 | P47: 0 | Q47: 0
A48: =IF(COUNTRY_INFO!A48=0," ",COUNTRY_INFO!A48) -> ESWATINI | B48: =IF(COUNTRY_INFO!B48=0," ",COUNTRY_INFO!B48) -> MANZINI | C48: =IF(COUNTRY_INFO!C48=0," ",COUNTRY_INFO!C48) -> Nhlambeni | D48: =IF(COUNTRY_INFO!$T$9:$T$1000="MDA3 (IVM)", COUNTRY_INFO!$T$9:$T$1000, " ") ->  | H48: 0 | K48: 0 | N48: 0 | O48: 0 | P48: 0 | Q48: 0
A49: =IF(COUNTRY_INFO!A49=0," ",COUNTRY_INFO!A49) -> ESWATINI | B49: =IF(COUNTRY_INFO!B49=0," ",COUNTRY_INFO!B49) -> MANZINI | C49: =IF(COUNTRY_INFO!C49=0," ",COUNTRY_INFO!C49) -> Ntondozi | D49: =IF(COUNTRY_INFO!$T$9:$T$1000="MDA3 (IVM)", COUNTRY_INFO!$T$9:$T$1000, " ") ->  | H49: 0 | K49: 0 | N49: 0 | O49: 0 | P49: 0 | Q49: 0
A50: =IF(COUNTRY_INFO!A50=0," ",COUNTRY_INFO!A50) -> ESWATINI | B50: =IF(COUNTRY_INFO!B50=0," ",COUNTRY_INFO!B50) -> SHISELWENI | C50: =IF(COUNTRY_INFO!C50=0," ",COUNTRY_INFO!C50) -> Gege | D50: =IF(COUNTRY_INFO!$T$9:$T$1000="MDA3 (IVM)", COUNTRY_INFO!$T$9:$T$1000, " ") ->  | H50: 0 | K50: 0 | N50: 0 | O50: 0 | P50: 0 | Q50: 0
A51: =IF(COUNTRY_INFO!A51=0," ",COUNTRY_INFO!A51) -> ESWATINI | B51: =IF(COUNTRY_INFO!B51=0," ",COUNTRY_INFO!B51) -> SHISELWENI | C51: =IF(COUNTRY_INFO!C51=0," ",COUNTRY_INFO!C51) -> Hosea | D51: =IF(COUNTRY_INFO!$T$9:$T$1000="MDA3 (IVM)", COUNTRY_INFO!$T$9:$T$1000, " ") ->  | H51: 0 | K51: 0 | N51: 0 | O51: 0 | P51: 0 | Q51: 0
A52: =IF(COUNTRY_INFO!A52=0," ",COUNTRY_INFO!A52) -> ESWATINI | B52: =IF(COUNTRY_INFO!B52=0," ",COUNTRY_INFO!B52) -> SHISELWENI | C52: =IF(COUNTRY_INFO!C52=0," ",COUNTRY_INFO!C52) -> Khubutha | D52: =IF(COUNTRY_INFO!$T$9:$T$1000="MDA3 (IVM)", COUNTRY_INFO!$T$9:$T$1000, " ") ->  | H52: 0 | K52: 0 | N52: 0 | O52: 0 | P52: 0 | Q52: 0
A53: =IF(COUNTRY_INFO!A53=0," ",COUNTRY_INFO!A53) -> ESWATINI | B53: =IF(COUNTRY_INFO!B53=0," ",COUNTRY_INFO!B53) -> SHISELWENI | C53: =IF(COUNTRY_INFO!C53=0," ",COUNTRY_INFO!C53) -> Maseyisini | D53: =IF(COUNTRY_INFO!$T$9:$T$1000="MDA3 (IVM)", COUNTRY_INFO!$T$9:$T$1000, " ") ->  | H53: 0 | K53: 0 | N53: 0 | O53: 0 | P53: 0 | Q53: 0
A54: =IF(COUNTRY_INFO!A54=0," ",COUNTRY_INFO!A54) -> ESWATINI | B54: =IF(COUNTRY_INFO!B54=0," ",COUNTRY_INFO!B54) -> SHISELWENI | C54: =IF(COUNTRY_INFO!C54=0," ",COUNTRY_INFO!C54) -> Matsanjeni South | D54: =IF(COUNTRY_INFO!$T$9:$T$1000="MDA3 (IVM)", COUNTRY_INFO!$T$9:$T$1000, " ") ->  | H54: 0 | K54: 0 | N54: 0 | O54: 0 | P54: 0 | Q54: 0
A55: =IF(COUNTRY_INFO!A55=0," ",COUNTRY_INFO!A55) -> ESWATINI | B55: =IF(COUNTRY_INFO!B55=0," ",COUNTRY_INFO!B55) -> SHISELWENI | C55: =IF(COUNTRY_INFO!C55=0," ",COUNTRY_INFO!C55) -> Mtsambama | D55: =IF(COUNTRY_INFO!$T$9:$T$1000="MDA3 (IVM)", COUNTRY_INFO!$T$9:$T$1000, " ") ->  | H55: 0 | K55: 0 | N55: 0 | O55: 0 | P55: 0 | Q55: 0
A56: =IF(COUNTRY_INFO!A56=0," ",COUNTRY_INFO!A56) -> ESWATINI | B56: =IF(COUNTRY_INFO!B56=0," ",COUNTRY_INFO!B56) -> SHISELWENI | C56: =IF(COUNTRY_INFO!C56=0," ",COUNTRY_INFO!C56) -> Ngudzeni | D56: =IF(COUNTRY_INFO!$T$9:$T$1000="MDA3 (IVM)", COUNTRY_INFO!$T$9:$T$1000, " ") ->  | H56: 0 | K56: 0 | N56: 0 | O56: 0 | P56: 0 | Q56: 0
A57: =IF(COUNTRY_INFO!A57=0," ",COUNTRY_INFO!A57) -> ESWATINI | B57: =IF(COUNTRY_INFO!B57=0," ",COUNTRY_INFO!B57) -> SHISELWENI | C57: =IF(COUNTRY_INFO!C57=0," ",COUNTRY_INFO!C57) -> Nkwene | D57: =IF(COUNTRY_INFO!$T$9:$T$1000="MDA3 (IVM)", COUNTRY_INFO!$T$9:$T$1000, " ") ->  | H57: 0 | K57: 0 | N57: 0 | O57: 0 | P57: 0 | Q57: 0
A58: =IF(COUNTRY_INFO!A58=0," ",COUNTRY_INFO!A58) -> ESWATINI | B58: =IF(COUNTRY_INFO!B58=0," ",COUNTRY_INFO!B58) -> SHISELWENI | C58: =IF(COUNTRY_INFO!C58=0," ",COUNTRY_INFO!C58) -> Sandleni | D58: =IF(COUNTRY_INFO!$T$9:$T$1000="MDA3 (IVM)", COUNTRY_INFO!$T$9:$T$1000, " ") ->  | H58: 0 | K58: 0 | N58: 0 | O58: 0 | P58: 0 | Q58: 0
A59: =IF(COUNTRY_INFO!A59=0," ",COUNTRY_INFO!A59) -> ESWATINI | B59: =IF(COUNTRY_INFO!B59=0," ",COUNTRY_INFO!B59) -> SHISELWENI | C59: =IF(COUNTRY_INFO!C59=0," ",COUNTRY_INFO!C59) -> Shiselweni 1 | D59: =IF(COUNTRY_INFO!$T$9:$T$1000="MDA3 (IVM)", COUNTRY_INFO!$T$9:$T$1000, " ") ->  | H59: 0 | K59: 0 | N59: 0 | O59: 0 | P59: 0 | Q59: 0
A60: =IF(COUNTRY_INFO!A60=0," ",COUNTRY_INFO!A60) -> ESWATINI | B60: =IF(COUNTRY_INFO!B60=0," ",COUNTRY_INFO!B60) -> SHISELWENI | C60: =IF(COUNTRY_INFO!C60=0," ",COUNTRY_INFO!C60) -> Shiselweni 2/Mbangweni | D60: =IF(COUNTRY_INFO!$T$9:$T$1000="MDA3 (IVM)", COUNTRY_INFO!$T$9:$T$1000, " ") ->  | H60: 0 | K60: 0 | N60: 0 | O60: 0 | P60: 0 | Q60: 0
A61: =IF(COUNTRY_INFO!A61=0," ",COUNTRY_INFO!A61) -> ESWATINI | B61: =IF(COUNTRY_INFO!B61=0," ",COUNTRY_INFO!B61) -> SHISELWENI | C61: =IF(COUNTRY_INFO!C61=0," ",COUNTRY_INFO!C61) -> Sigwe | D61: =IF(COUNTRY_INFO!$T$9:$T$1000="MDA3 (IVM)", COUNTRY_INFO!$T$9:$T$1000, " ") ->  | H61: 0 | K61: 0 | N61: 0 | O61: 0 | P61: 0 | Q61: 0
A62: =IF(COUNTRY_INFO!A62=0," ",COUNTRY_INFO!A62) -> ESWATINI | B62: =IF(COUNTRY_INFO!B62=0," ",COUNTRY_INFO!B62) -> SHISELWENI | C62: =IF(COUNTRY_INFO!C62=0," ",COUNTRY_INFO!C62) -> Somntongo | D62: =IF(COUNTRY_INFO!$T$9:$T$1000="MDA3 (IVM)", COUNTRY_INFO!$T$9:$T$1000, " ") ->  | H62: 0 | K62: 0 | N62: 0 | O62: 0 | P62: 0 | Q62: 0
A63: =IF(COUNTRY_INFO!A63=0," ",COUNTRY_INFO!A63) -> ESWATINI | B63: =IF(COUNTRY_INFO!B63=0," ",COUNTRY_INFO!B63) -> SHISELWENI | C63: =IF(COUNTRY_INFO!C63=0," ",COUNTRY_INFO!C63) -> Zombodze Emuva | D63: =IF(COUNTRY_INFO!$T$9:$T$1000="MDA3 (IVM)", COUNTRY_INFO!$T$9:$T$1000, " ") ->  | H63: 0 | K63: 0 | N63: 0 | O63: 0 | P63: 0 | Q63: 0

Sheet T1
A1: T 1 - Praziquantel (PZQ) and Albendazole (ALB) or Mebendazole (MBD)
A2: Administrative structure, population requiring PC by age group, population treated by age group and coverage
A4: TOTAL | G4: =SUM(G$9:G$1000) -> 0 | H4: 0 | I4: 0 | J4: 0 | K4: =SUM(K$9:K$1000) -> 0 | L4: 0 | M4: 0 | N4: 0 | O4: 0 | P4: =IF(G4<>0, IF(L4/G4*100=0, "-", L4/G4*100), " ") ->  | Q4: =IF(OR(I4<>0,H4<>0), IF(M4/MAX(H4,I4)*100=0, "-", M4/MAX(H4,I4)*100), " ") ->  | R4: =IF(J4<>0, IF(N4/J4*100=0, "-", N4/J4*100), " ") ->  | S4: =IF(K4<>0, IF(O4/K4*100=0, "-", O4/K4*100), " ") -> 
D6: PC implemented | E6: Medicine | F6: Date | G6: Population targeted for T1 | L6: Population treated | P6: Programme coverage (%)
A7: Country | B7: Province/State | C7: District | G7: PreSAC (ALB) | H7: SAC (ALB) | I7: SAC (PZQ) | J7: Adults (PZQ) | K7: Total | L7: PreSAC | M7: SAC | N7: Adults | O7: Total | P7: PreSAC | Q7: SAC | R7: Adults | S7: Total
A9: =IF(COUNTRY_INFO!A9=0," ",COUNTRY_INFO!A9) -> ESWATINI | B9: =IF(COUNTRY_INFO!B9=0," ",COUNTRY_INFO!B9) -> HHOHHO | C9: =IF(COUNTRY_INFO!C9=0," ",COUNTRY_INFO!C9) -> Hhukwini | D9: =IF(OR(COUNTRY_INFO!$T$9:$T$1000="T1 (PZQ+ALB/MBD)",COUNTRY_INFO!$U$9:$U$1000="T1 (PZQ+ALB/MBD)"), "T1 (PZQ+ALB/MBD)", " ") ->  | K9: =MAX(H9:I9)+G9+J9 -> 0 | O9: =SUM(L9:N9) -> 0 | P9: =IF(G9<>0, IF(L9/G9*100=0, "-", L9/G9*100), " ") ->  | Q9: =IF(OR(I9<>0,H9<>0), IF(M9/MAX(H9,I9)*100=0, "-", M9/MAX(H9,I9)*100), " ") ->  | R9: =IF(J9<>0, IF(N9/J9*100=0, "-", N9/J9*100), " ") -> 
A10: =IF(COUNTRY_INFO!A10=0," ",COUNTRY_INFO!A10) -> ESWATINI | B10: =IF(COUNTRY_INFO!B10=0," ",COUNTRY_INFO!B10) -> HHOHHO | C10: =IF(COUNTRY_INFO!C10=0," ",COUNTRY_INFO!C10) -> Lobamba | D10: =IF(OR(COUNTRY_INFO!$T$9:$T$1000="T1 (PZQ+ALB/MBD)",COUNTRY_INFO!$U$9:$U$1000="T1 (PZQ+ALB/MBD)"), "T1 (PZQ+ALB/MBD)", " ") ->  | K10: =MAX(H10:I10)+G10+J10 -> 0 | O10: =SUM(L10:N10) -> 0 | P10: =IF(G10<>0, IF(L10/G10*100=0, "-", L10/G10*100), " ") ->  | Q10: =IF(OR(I10<>0,H10<>0), IF(M10/MAX(H10,I10)*100=0, "-", M10/MAX(H10,I10)*100), " ") ->  | R10: =IF(J10<>0, IF(N10/J10*100=0, "-", N10/J10*100), " ") ->  | S10: =IF(K10<>0, IF(O10/K10*100=0, "-", O10/K10*100), " ") -> 
A11: =IF(COUNTRY_INFO!A11=0," ",COUNTRY_INFO!A11) -> ESWATINI | B11: =IF(COUNTRY_INFO!B11=0," ",COUNTRY_INFO!B11) -> HHOHHO | C11: =IF(COUNTRY_INFO!C11=0," ",COUNTRY_INFO!C11) -> Madlangempisi | D11: =IF(OR(COUNTRY_INFO!$T$9:$T$1000="T1 (PZQ+ALB/MBD)",COUNTRY_INFO!$U$9:$U$1000="T1 (PZQ+ALB/MBD)"), "T1 (PZQ+ALB/MBD)", " ") ->  | K11: 0 | O11: 0
A12: =IF(COUNTRY_INFO!A12=0," ",COUNTRY_INFO!A12) -> ESWATINI | B12: =IF(COUNTRY_INFO!B12=0," ",COUNTRY_INFO!B12) -> HHOHHO | C12: =IF(COUNTRY_INFO!C12=0," ",COUNTRY_INFO!C12) -> Maphalaleni | D12: =IF(OR(COUNTRY_INFO!$T$9:$T$1000="T1 (PZQ+ALB/MBD)",COUNTRY_INFO!$U$9:$U$1000="T1 (PZQ+ALB/MBD)"), "T1 (PZQ+ALB/MBD)", " ") ->  | K12: 0 | O12: 0
A13: =IF(COUNTRY_INFO!A13=0," ",COUNTRY_INFO!A13) -> ESWATINI | B13: =IF(COUNTRY_INFO!B13=0," ",COUNTRY_INFO!B13) -> HHOHHO | C13: =IF(COUNTRY_INFO!C13=0," ",COUNTRY_INFO!C13) -> Mayiwane | D13: =IF(OR(COUNTRY_INFO!$T$9:$T$1000="T1 (PZQ+ALB/MBD)",COUNTRY_INFO!$U$9:$U$1000="T1 (PZQ+ALB/MBD)"), "T1 (PZQ+ALB/MBD)", " ") ->  | K13: 0 | O13: 0
A14: =IF(COUNTRY_INFO!A14=0," ",COUNTRY_INFO!A14) -> ESWATINI | B14: =IF(COUNTRY_INFO!B14=0," ",COUNTRY_INFO!B14) -> HHOHHO | C14: =IF(COUNTRY_INFO!C14=0," ",COUNTRY_INFO!C14) -> Mbabane East | D14: =IF(OR(COUNTRY_INFO!$T$9:$T$1000="T1 (PZQ+ALB/MBD)",COUNTRY_INFO!$U$9:$U$1000="T1 (PZQ+ALB/MBD)"), "T1 (PZQ+ALB/MBD)", " ") ->  | K14: 0 | O14: 0
A15: =IF(COUNTRY_INFO!A15=0," ",COUNTRY_INFO!A15) -> ESWATINI | B15: =IF(COUNTRY_INFO!B15=0," ",COUNTRY_INFO!B15) -> HHOHHO | C15: =IF(COUNTRY_INFO!C15=0," ",COUNTRY_INFO!C15) -> Mbabane West | D15: =IF(OR(COUNTRY_INFO!$T$9:$T$1000="T1 (PZQ+ALB/MBD)",COUNTRY_INFO!$U$9:$U$1000="T1 (PZQ+ALB/MBD)"), "T1 (PZQ+ALB/MBD)", " ") ->  | K15: 0 | O15: 0
A16: =IF(COUNTRY_INFO!A16=0," ",COUNTRY_INFO!A16) -> ESWATINI | B16: =IF(COUNTRY_INFO!B16=0," ",COUNTRY_INFO!B16) -> HHOHHO | C16: =IF(COUNTRY_INFO!C16=0," ",COUNTRY_INFO!C16) -> Mhlangatane | D16: =IF(OR(COUNTRY_INFO!$T$9:$T$1000="T1 (PZQ+ALB/MBD)",COUNTRY_INFO!$U$9:$U$1000="T1 (PZQ+ALB/MBD)"), "T1 (PZQ+ALB/MBD)", " ") ->  | K16: 0 | O16: 0
A17: =IF(COUNTRY_INFO!A17=0," ",COUNTRY_INFO!A17) -> ESWATINI | B17: =IF(COUNTRY_INFO!B17=0," ",COUNTRY_INFO!B17) -> HHOHHO | C17: =IF(COUNTRY_INFO!C17=0," ",COUNTRY_INFO!C17) -> Motshane | D17: =IF(OR(COUNTRY_INFO!$T$9:$T$1000="T1 (PZQ+ALB/MBD)",COUNTRY_INFO!$U$9:$U$1000="T1 (PZQ+ALB/MBD)"), "T1 (PZQ+ALB/MBD)", " ") ->  | K17: 0 | O17: 0
A18: =IF(COUNTRY_INFO!A18=0," ",COUNTRY_INFO!A18) -> ESWATINI | B18: =IF(COUNTRY_INFO!B18=0," ",COUNTRY_INFO!B18) -> HHOHHO | C18: =IF(COUNTRY_INFO!C18=0," ",COUNTRY_INFO!C18) -> Ndzingeni | D18: =IF(OR(COUNTRY_INFO!$T$9:$T$1000="T1 (PZQ+ALB/MBD)",COUNTRY_INFO!$U$9:$U$1000="T1 (PZQ+ALB/MBD)"), "T1 (PZQ+ALB/MBD)", " ") ->  | K18: 0 | O18: 0
A19: =IF(COUNTRY_INFO!A19=0," ",COUNTRY_INFO!A19) -> ESWATINI | B19: =IF(COUNTRY_INFO!B19=0," ",COUNTRY_INFO!B19) -> HHOHHO | C19: =IF(COUNTRY_INFO!C19=0," ",COUNTRY_INFO!C19) -> Nkhaba | D19: =IF(OR(COUNTRY_INFO!$T$9:$T$1000="T1 (PZQ+ALB/MBD)",COUNTRY_INFO!$U$9:$U$1000="T1 (PZQ+ALB/MBD)"), "T1 (PZQ+ALB/MBD)", " ") ->  | K19: 0 | O19: 0
A20: =IF(COUNTRY_INFO!A20=0," ",COUNTRY_INFO!A20) -> ESWATINI | B20: =IF(COUNTRY_INFO!B20=0," ",COUNTRY_INFO!B20) -> HHOHHO | C20: =IF(COUNTRY_INFO!C20=0," ",COUNTRY_INFO!C20) -> Ntfonjeni | D20: =IF(OR(COUNTRY_INFO!$T$9:$T$1000="T1 (PZQ+ALB/MBD)",COUNTRY_INFO!$U$9:$U$1000="T1 (PZQ+ALB/MBD)"), "T1 (PZQ+ALB/MBD)", " ") ->  | K20: 0 | O20: 0
A21: =IF(COUNTRY_INFO!A21=0," ",COUNTRY_INFO!A21) -> ESWATINI | B21: =IF(COUNTRY_INFO!B21=0," ",COUNTRY_INFO!B21) -> HHOHHO | C21: =IF(COUNTRY_INFO!C21=0," ",COUNTRY_INFO!C21) -> Pigg's Peak | D21: =IF(OR(COUNTRY_INFO!$T$9:$T$1000="T1 (PZQ+ALB/MBD)",COUNTRY_INFO!$U$9:$U$1000="T1 (PZQ+ALB/MBD)"), "T1 (PZQ+ALB/MBD)", " ") ->  | K21: 0 | O21: 0
A22: =IF(COUNTRY_INFO!A22=0," ",COUNTRY_INFO!A22) -> ESWATINI | B22: =IF(COUNTRY_INFO!B22=0," ",COUNTRY_INFO!B22) -> HHOHHO | C22: =IF(COUNTRY_INFO!C22=0," ",COUNTRY_INFO!C22) -> Timphisini | D22: =IF(OR(COUNTRY_INFO!$T$9:$T$1000="T1 (PZQ+ALB/MBD)",COUNTRY_INFO!$U$9:$U$1000="T1 (PZQ+ALB/MBD)"), "T1 (PZQ+ALB/MBD)", " ") ->  | K22: 0 | O22: 0
A23: =IF(COUNTRY_INFO!A23=0," ",COUNTRY_INFO!A23) -> ESWATINI | B23: =IF(COUNTRY_INFO!B23=0," ",COUNTRY_INFO!B23) -> LUBOMBO | C23: =IF(COUNTRY_INFO!C23=0," ",COUNTRY_INFO!C23) -> Dvokodvweni | D23: =IF(OR(COUNTRY_INFO!$T$9:$T$1000="T1 (PZQ+ALB/MBD)",COUNTRY_INFO!$U$9:$U$1000="T1 (PZQ+ALB/MBD)"), "T1 (PZQ+ALB/MBD)", " ") ->  | K23: 0 | O23: 0
A24: =IF(COUNTRY_INFO!A24=0," ",COUNTRY_INFO!A24) -> ESWATINI | B24: =IF(COUNTRY_INFO!B24=0," ",COUNTRY_INFO!B24) -> LUBOMBO | C24: =IF(COUNTRY_INFO!C24=0," ",COUNTRY_INFO!C24) -> Hlane | D24: =IF(OR(COUNTRY_INFO!$T$9:$T$1000="T1 (PZQ+ALB/MBD)",COUNTRY_INFO!$U$9:$U$1000="T1 (PZQ+ALB/MBD)"), "T1 (PZQ+ALB/MBD)", " ") ->  | K24: 0 | O24: 0
A25: =IF(COUNTRY_INFO!A25=0," ",COUNTRY_INFO!A25) -> ESWATINI | B25: =IF(COUNTRY_INFO!B25=0," ",COUNTRY_INFO!B25) -> LUBOMBO | C25: =IF(COUNTRY_INFO!C25=0," ",COUNTRY_INFO!C25) -> Lomahasha | D25: =IF(OR(COUNTRY_INFO!$T$9:$T$1000="T1 (PZQ+ALB/MBD)",COUNTRY_INFO!$U$9:$U$1000="T1 (PZQ+ALB/MBD)"), "T1 (PZQ+ALB/MBD)", " ") ->  | K25: 0 | O25: 0
A26: =IF(COUNTRY_INFO!A26=0," ",COUNTRY_INFO!A26) -> ESWATINI | B26: =IF(COUNTRY_INFO!B26=0," ",COUNTRY_INFO!B26) -> LUBOMBO | C26: =IF(COUNTRY_INFO!C26=0," ",COUNTRY_INFO!C26) -> Lubuli | D26: =IF(OR(COUNTRY_INFO!$T$9:$T$1000="T1 (PZQ+ALB/MBD)",COUNTRY_INFO!$U$9:$U$1000="T1 (PZQ+ALB/MBD)"), "T1 (PZQ+ALB/MBD)", " ") ->  | K26: 0 | O26: 0
A27: =IF(COUNTRY_INFO!A27=0," ",COUNTRY_INFO!A27) -> ESWATINI | B27: =IF(COUNTRY_INFO!B27=0," ",COUNTRY_INFO!B27) -> LUBOMBO | C27: =IF(COUNTRY_INFO!C27=0," ",COUNTRY_INFO!C27) -> Lugongolweni | D27: =IF(OR(COUNTRY_INFO!$T$9:$T$1000="T1 (PZQ+ALB/MBD)",COUNTRY_INFO!$U$9:$U$1000="T1 (PZQ+ALB/MBD)"), "T1 (PZQ+ALB/MBD)", " ") ->  | K27: 0 | O27: 0
A28: =IF(COUNTRY_INFO!A28=0," ",COUNTRY_INFO!A28) -> ESWATINI | B28: =IF(COUNTRY_INFO!B28=0," ",COUNTRY_INFO!B28) -> LUBOMBO | C28: =IF(COUNTRY_INFO!C28=0," ",COUNTRY_INFO!C28) -> Matsanjeni North | D28: =IF(OR(COUNTRY_INFO!$T$9:$T$1000="T1 (PZQ+ALB/MBD)",COUNTRY_INFO!$U$9:$U$1000="T1 (PZQ+ALB/MBD)"), "T1 (PZQ+ALB/MBD)", " ") ->  | K28: 0 | O28: 0
A29: =IF(COUNTRY_INFO!A29=0," ",COUNTRY_INFO!A29) -> ESWATINI | B29: =IF(COUNTRY_INFO!B29=0," ",COUNTRY_INFO!B29) -> LUBOMBO | C29: =IF(COUNTRY_INFO!C29=0," ",COUNTRY_INFO!C29) -> Mhlume | D29: =IF(OR(COUNTRY_INFO!$T$9:$T$1000="T1 (PZQ+ALB/MBD)",COUNTRY_INFO!$U$9:$U$1000="T1 (PZQ+ALB/MBD)"), "T1 (PZQ+ALB/MBD)", " ") ->  | K29: 0 | O29: 0
A30: =IF(COUNTRY_INFO!A30=0," ",COUNTRY_INFO!A30) -> ESWATINI | B30: =IF(COUNTRY_INFO!B30=0," ",COUNTRY_INFO!B30) -> LUBOMBO | C30: =IF(COUNTRY_INFO!C30=0," ",COUNTRY_INFO!C30) -> Mpolonjeni | D30: =IF(OR(COUNTRY_INFO!$T$9:$T$1000="T1 (PZQ+ALB/MBD)",COUNTRY_INFO!$U$9:$U$1000="T1 (PZQ+ALB/MBD)"), "T1 (PZQ+ALB/MBD)", " ") ->  | K30: 0 | O30: 0
A31: =IF(COUNTRY_INFO!A31=0," ",COUNTRY_INFO!A31) -> ESWATINI | B31: =IF(COUNTRY_INFO!B31=0," ",COUNTRY_INFO!B31) -> LUBOMBO | C31: =IF(COUNTRY_INFO!C31=0," ",COUNTRY_INFO!C31) -> Nkilongo | D31: =IF(OR(COUNTRY_INFO!$T$9:$T$1000="T1 (PZQ+ALB/MBD)",COUNTRY_INFO!$U$9:$U$1000="T1 (PZQ+ALB/MBD)"), "T1 (PZQ+ALB/MBD)", " ") ->  | K31: 0 | O31: 0
A32: =IF(COUNTRY_INFO!A32=0," ",COUNTRY_INFO!A32) -> ESWATINI | B32: =IF(COUNTRY_INFO!B32=0," ",COUNTRY_INFO!B32) -> LUBOMBO | C32: =IF(COUNTRY_INFO!C32=0," ",COUNTRY_INFO!C32) -> Siphofaneni | D32: =IF(OR(COUNTRY_INFO!$T$9:$T$1000="T1 (PZQ+ALB/MBD)",COUNTRY_INFO!$U$9:$U$1000="T1 (PZQ+ALB/MBD)"), "T1 (PZQ+ALB/MBD)", " ") ->  | K32: 0 | O32: 0
A33: =IF(COUNTRY_INFO!A33=0," ",COUNTRY_INFO!A33) -> ESWATINI | B33: =IF(COUNTRY_INFO!B33=0," ",COUNTRY_INFO!B33) -> LUBOMBO | C33: =IF(COUNTRY_INFO!C33=0," ",COUNTRY_INFO!C33) -> Sithobela | D33: =IF(OR(COUNTRY_INFO!$T$9:$T$1000="T1 (PZQ+ALB/MBD)",COUNTRY_INFO!$U$9:$U$1000="T1 (PZQ+ALB/MBD)"), "T1 (PZQ+ALB/MBD)", " ") ->  | K33: 0 | O33: 0
A34: =IF(COUNTRY_INFO!A34=0," ",COUNTRY_INFO!A34) -> ESWATINI | B34: =IF(COUNTRY_INFO!B34=0," ",COUNTRY_INFO!B34) -> MANZINI | C34: =IF(COUNTRY_INFO!C34=0," ",COUNTRY_INFO!C34) -> Kukhanyeni | D34: =IF(OR(COUNTRY_INFO!$T$9:$T$1000="T1 (PZQ+ALB/MBD)",COUNTRY_INFO!$U$9:$U$1000="T1 (PZQ+ALB/MBD)"), "T1 (PZQ+ALB/MBD)", " ") ->  | K34: 0 | O34: 0
A35: =IF(COUNTRY_INFO!A35=0," ",COUNTRY_INFO!A35) -> ESWATINI | B35: =IF(COUNTRY_INFO!B35=0," ",COUNTRY_INFO!B35) -> MANZINI | C35: =IF(COUNTRY_INFO!C35=0," ",COUNTRY_INFO!C35) -> Kwaluseni | D35: =IF(OR(COUNTRY_INFO!$T$9:$T$1000="T1 (PZQ+ALB/MBD)",COUNTRY_INFO!$U$9:$U$1000="T1 (PZQ+ALB/MBD)"), "T1 (PZQ+ALB/MBD)", " ") ->  | K35: 0 | O35: 0
A36: =IF(COUNTRY_INFO!A36=0," ",COUNTRY_INFO!A36) -> ESWATINI | B36: =IF(COUNTRY_INFO!B36=0," ",COUNTRY_INFO!B36) -> MANZINI | C36: =IF(COUNTRY_INFO!C36=0," ",COUNTRY_INFO!C36) -> LaMgabhi | D36: =IF(OR(COUNTRY_INFO!$T$9:$T$1000="T1 (PZQ+ALB/MBD)",COUNTRY_INFO!$U$9:$U$1000="T1 (PZQ+ALB/MBD)"), "T1 (PZQ+ALB/MBD)", " ") ->  | K36: 0 | O36: 0
A37: =IF(COUNTRY_INFO!A37=0," ",COUNTRY_INFO!A37) -> ESWATINI | B37: =IF(COUNTRY_INFO!B37=0," ",COUNTRY_INFO!B37) -> MANZINI | C37: =IF(COUNTRY_INFO!C37=0," ",COUNTRY_INFO!C37) -> Lobamba Lomdzala | D37: =IF(OR(COUNTRY_INFO!$T$9:$T$1000="T1 (PZQ+ALB/MBD)",COUNTRY_INFO!$U$9:$U$1000="T1 (PZQ+ALB/MBD)"), "T1 (PZQ+ALB/MBD)", " ") ->  | K37: 0 | O37: 0
A38: =IF(COUNTRY_INFO!A38=0," ",COUNTRY_INFO!A38) -> ESWATINI | B38: =IF(COUNTRY_INFO!B38=0," ",COUNTRY_INFO!B38) -> MANZINI | C38: =IF(COUNTRY_INFO!C38=0," ",COUNTRY_INFO!C38) -> Ludzeludze | D38: =IF(OR(COUNTRY_INFO!$T$9:$T$1000="T1 (PZQ+ALB/MBD)",COUNTRY_INFO!$U$9:$U$1000="T1 (PZQ+ALB/MBD)"), "T1 (PZQ+ALB/MBD)", " ") ->  | K38: 0 | O38: 0
A39: =IF(COUNTRY_INFO!A39=0," ",COUNTRY_INFO!A39) -> ESWATINI | B39: =IF(COUNTRY_INFO!B39=0," ",COUNTRY_INFO!B39) -> MANZINI | C39: =IF(COUNTRY_INFO!C39=0," ",COUNTRY_INFO!C39) -> Mafutseni | D39: =IF(OR(COUNTRY_INFO!$T$9:$T$1000="T1 (PZQ+ALB/MBD)",COUNTRY_INFO!$U$9:$U$1000="T1 (PZQ+ALB/MBD)"), "T1 (PZQ+ALB/MBD)", " ") ->  | K39: 0 | O39: 0
A40: =IF(COUNTRY_INFO!A40=0," ",COUNTRY_INFO!A40) -> ESWATINI | B40: =IF(COUNTRY_INFO!B40=0," ",COUNTRY_INFO!B40) -> MANZINI | C40: =IF(COUNTRY_INFO!C40=0," ",COUNTRY_INFO!C40) -> Mahlangatsha | D40: =IF(OR(COUNTRY_INFO!$T$9:$T$1000="T1 (PZQ+ALB/MBD)",COUNTRY_INFO!$U$9:$U$1000="T1 (PZQ+ALB/MBD)"), "T1 (PZQ+ALB/MBD)", " ") ->  | K40: 0 | O40: 0
A41: =IF(COUNTRY_INFO!A41=0," ",COUNTRY_INFO!A41) -> ESWATINI | B41: =IF(COUNTRY_INFO!B41=0," ",COUNTRY_INFO!B41) -> MANZINI | C41: =IF(COUNTRY_INFO!C41=0," ",COUNTRY_INFO!C41) -> Mangcongco | D41: =IF(OR(COUNTRY_INFO!$T$9:$T$1000="T1 (PZQ+ALB/MBD)",COUNTRY_INFO!$U$9:$U$1000="T1 (PZQ+ALB/MBD)"), "T1 (PZQ+ALB/MBD)", " ") ->  | K41: 0 | O41: 0
A42: =IF(COUNTRY_INFO!A42=0," ",COUNTRY_INFO!A42) -> ESWATINI | B42: =IF(COUNTRY_INFO!B42=0," ",COUNTRY_INFO!B42) -> MANZINI | C42: =IF(COUNTRY_INFO!C42=0," ",COUNTRY_INFO!C42) -> Manzini North | D42: =IF(OR(COUNTRY_INFO!$T$9:$T$1000="T1 (PZQ+ALB/MBD)",COUNTRY_INFO!$U$9:$U$1000="T1 (PZQ+ALB/MBD)"), "T1 (PZQ+ALB/MBD)", " ") ->  | K42: 0 | O42: 0
A43: =IF(COUNTRY_INFO!A43=0," ",COUNTRY_INFO!A43) -> ESWATINI | B43: =IF(COUNTRY_INFO!B43=0," ",COUNTRY_INFO!B43) -> MANZINI | C43: =IF(COUNTRY_INFO!C43=0," ",COUNTRY_INFO!C43) -> Manzini South | D43: =IF(OR(COUNTRY_INFO!$T$9:$T$1000="T1 (PZQ+ALB/MBD)",COUNTRY_INFO!$U$9:$U$1000="T1 (PZQ+ALB/MBD)"), "T1 (PZQ+ALB/MBD)", " ") ->  | K43: 0 | O43: 0
A44: =IF(COUNTRY_INFO!A44=0," ",COUNTRY_INFO!A44) -> ESWATINI | B44: =IF(COUNTRY_INFO!B44=0," ",COUNTRY_INFO!B44) -> MANZINI | C44: =IF(COUNTRY_INFO!C44=0," ",COUNTRY_INFO!C44) -> Mhlambanyatsi | D44: =IF(OR(COUNTRY_INFO!$T$9:$T$1000="T1 (PZQ+ALB/MBD)",COUNTRY_INFO!$U$9:$U$1000="T1 (PZQ+ALB/MBD)"), "T1 (PZQ+ALB/MBD)", " ") ->  | K44: 0 | O44: 0
A45: =IF(COUNTRY_INFO!A45=0," ",COUNTRY_INFO!A45) -> ESWATINI | B45: =IF(COUNTRY_INFO!B45=0," ",COUNTRY_INFO!B45) -> MANZINI | C45: =IF(COUNTRY_INFO!C45=0," ",COUNTRY_INFO!C45) -> Mkhiweni | D45: =IF(OR(COUNTRY_INFO!$T$9:$T$1000="T1 (PZQ+ALB/MBD)",COUNTRY_INFO!$U$9:$U$1000="T1 (PZQ+ALB/MBD)"), "T1 (PZQ+ALB/MBD)", " ") ->  | K45: 0 | O45: 0
A46: =IF(COUNTRY_INFO!A46=0," ",COUNTRY_INFO!A46) -> ESWATINI | B46: =IF(COUNTRY_INFO!B46=0," ",COUNTRY_INFO!B46) -> MANZINI | C46: =IF(COUNTRY_INFO!C46=0," ",COUNTRY_INFO!C46) -> Mtfongwaneni | D46: =IF(OR(COUNTRY_INFO!$T$9:$T$1000="T1 (PZQ+ALB/MBD)",COUNTRY_INFO!$U$9:$U$1000="T1 (PZQ+ALB/MBD)"), "T1 (PZQ+ALB/MBD)", " ") ->  | K46: 0 | O46: 0
A47: =IF(COUNTRY_INFO!A47=0," ",COUNTRY_INFO!A47) -> ESWATINI | B47: =IF(COUNTRY_INFO!B47=0," ",COUNTRY_INFO!B47) -> MANZINI | C47: =IF(COUNTRY_INFO!C47=0," ",COUNTRY_INFO!C47) -> Ngwemphisi | D47: =IF(OR(COUNTRY_INFO!$T$9:$T$1000="T1 (PZQ+ALB/MBD)",COUNTRY_INFO!$U$9:$U$1000="T1 (PZQ+ALB/MBD)"), "T1 (PZQ+ALB/MBD)", " ") ->  | K47: 0 | O47: 0
A48: =IF(COUNTRY_INFO!A48=0," ",COUNTRY_INFO!A48) -> ESWATINI | B48: =IF(COUNTRY_INFO!B48=0," ",COUNTRY_INFO!B48) -> MANZINI | C48: =IF(COUNTRY_INFO!C48=0," ",COUNTRY_INFO!C48) -> Nhlambeni | D48: =IF(OR(COUNTRY_INFO!$T$9:$T$1000="T1 (PZQ+ALB/MBD)",COUNTRY_INFO!$U$9:$U$1000="T1 (PZQ+ALB/MBD)"), "T1 (PZQ+ALB/MBD)", " ") ->  | K48: 0 | O48: 0
A49: =IF(COUNTRY_INFO!A49=0," ",COUNTRY_INFO!A49) -> ESWATINI | B49: =IF(COUNTRY_INFO!B49=0," ",COUNTRY_INFO!B49) -> MANZINI | C49: =IF(COUNTRY_INFO!C49=0," ",COUNTRY_INFO!C49) -> Ntondozi | D49: =IF(OR(COUNTRY_INFO!$T$9:$T$1000="T1 (PZQ+ALB/MBD)",COUNTRY_INFO!$U$9:$U$1000="T1 (PZQ+ALB/MBD)"), "T1 (PZQ+ALB/MBD)", " ") ->  | K49: 0 | O49: 0
A50: =IF(COUNTRY_INFO!A50=0," ",COUNTRY_INFO!A50) -> ESWATINI | B50: =IF(COUNTRY_INFO!B50=0," ",COUNTRY_INFO!B50) -> SHISELWENI | C50: =IF(COUNTRY_INFO!C50=0," ",COUNTRY_INFO!C50) -> Gege | D50: =IF(OR(COUNTRY_INFO!$T$9:$T$1000="T1 (PZQ+ALB/MBD)",COUNTRY_INFO!$U$9:$U$1000="T1 (PZQ+ALB/MBD)"), "T1 (PZQ+ALB/MBD)", " ") ->  | K50: 0 | O50: 0
A51: =IF(COUNTRY_INFO!A51=0," ",COUNTRY_INFO!A51) -> ESWATINI | B51: =IF(COUNTRY_INFO!B51=0," ",COUNTRY_INFO!B51) -> SHISELWENI | C51: =IF(COUNTRY_INFO!C51=0," ",COUNTRY_INFO!C51) -> Hosea | D51: =IF(OR(COUNTRY_INFO!$T$9:$T$1000="T1 (PZQ+ALB/MBD)",COUNTRY_INFO!$U$9:$U$1000="T1 (PZQ+ALB/MBD)"), "T1 (PZQ+ALB/MBD)", " ") ->  | K51: 0 | O51: 0
A52: =IF(COUNTRY_INFO!A52=0," ",COUNTRY_INFO!A52) -> ESWATINI | B52: =IF(COUNTRY_INFO!B52=0," ",COUNTRY_INFO!B52) -> SHISELWENI | C52: =IF(COUNTRY_INFO!C52=0," ",COUNTRY_INFO!C52) -> Khubutha | D52: =IF(OR(COUNTRY_INFO!$T$9:$T$1000="T1 (PZQ+ALB/MBD)",COUNTRY_INFO!$U$9:$U$1000="T1 (PZQ+ALB/MBD)"), "T1 (PZQ+ALB/MBD)", " ") ->  | K52: 0 | O52: 0
A53: =IF(COUNTRY_INFO!A53=0," ",COUNTRY_INFO!A53) -> ESWATINI | B53: =IF(COUNTRY_INFO!B53=0," ",COUNTRY_INFO!B53) -> SHISELWENI | C53: =IF(COUNTRY_INFO!C53=0," ",COUNTRY_INFO!C53) -> Maseyisini | D53: =IF(OR(COUNTRY_INFO!$T$9:$T$1000="T1 (PZQ+ALB/MBD)",COUNTRY_INFO!$U$9:$U$1000="T1 (PZQ+ALB/MBD)"), "T1 (PZQ+ALB/MBD)", " ") ->  | K53: 0 | O53: 0
A54: =IF(COUNTRY_INFO!A54=0," ",COUNTRY_INFO!A54) -> ESWATINI | B54: =IF(COUNTRY_INFO!B54=0," ",COUNTRY_INFO!B54) -> SHISELWENI | C54: =IF(COUNTRY_INFO!C54=0," ",COUNTRY_INFO!C54) -> Matsanjeni South | D54: =IF(OR(COUNTRY_INFO!$T$9:$T$1000="T1 (PZQ+ALB/MBD)",COUNTRY_INFO!$U$9:$U$1000="T1 (PZQ+ALB/MBD)"), "T1 (PZQ+ALB/MBD)", " ") ->  | K54: 0 | O54: 0
A55: =IF(COUNTRY_INFO!A55=0," ",COUNTRY_INFO!A55) -> ESWATINI | B55: =IF(COUNTRY_INFO!B55=0," ",COUNTRY_INFO!B55) -> SHISELWENI | C55: =IF(COUNTRY_INFO!C55=0," ",COUNTRY_INFO!C55) -> Mtsambama | D55: =IF(OR(COUNTRY_INFO!$T$9:$T$1000="T1 (PZQ+ALB/MBD)",COUNTRY_INFO!$U$9:$U$1000="T1 (PZQ+ALB/MBD)"), "T1 (PZQ+ALB/MBD)", " ") ->  | K55: 0 | O55: 0
A56: =IF(COUNTRY_INFO!A56=0," ",COUNTRY_INFO!A56) -> ESWATINI | B56: =IF(COUNTRY_INFO!B56=0," ",COUNTRY_INFO!B56) -> SHISELWENI | C56: =IF(COUNTRY_INFO!C56=0," ",COUNTRY_INFO!C56) -> Ngudzeni | D56: =IF(OR(COUNTRY_INFO!$T$9:$T$1000="T1 (PZQ+ALB/MBD)",COUNTRY_INFO!$U$9:$U$1000="T1 (PZQ+ALB/MBD)"), "T1 (PZQ+ALB/MBD)", " ") ->  | K56: 0 | O56: 0
A57: =IF(COUNTRY_INFO!A57=0," ",COUNTRY_INFO!A57) -> ESWATINI | B57: =IF(COUNTRY_INFO!B57=0," ",COUNTRY_INFO!B57) -> SHISELWENI | C57: =IF(COUNTRY_INFO!C57=0," ",COUNTRY_INFO!C57) -> Nkwene | D57: =IF(OR(COUNTRY_INFO!$T$9:$T$1000="T1 (PZQ+ALB/MBD)",COUNTRY_INFO!$U$9:$U$1000="T1 (PZQ+ALB/MBD)"), "T1 (PZQ+ALB/MBD)", " ") ->  | K57: 0 | O57: 0
A58: =IF(COUNTRY_INFO!A58=0," ",COUNTRY_INFO!A58) -> ESWATINI | B58: =IF(COUNTRY_INFO!B58=0," ",COUNTRY_INFO!B58) -> SHISELWENI | C58: =IF(COUNTRY_INFO!C58=0," ",COUNTRY_INFO!C58) -> Sandleni | D58: =IF(OR(COUNTRY_INFO!$T$9:$T$1000="T1 (PZQ+ALB/MBD)",COUNTRY_INFO!$U$9:$U$1000="T1 (PZQ+ALB/MBD)"), "T1 (PZQ+ALB/MBD)", " ") ->  | K58: 0 | O58: 0
A59: =IF(COUNTRY_INFO!A59=0," ",COUNTRY_INFO!A59) -> ESWATINI | B59: =IF(COUNTRY_INFO!B59=0," ",COUNTRY_INFO!B59) -> SHISELWENI | C59: =IF(COUNTRY_INFO!C59=0," ",COUNTRY_INFO!C59) -> Shiselweni 1 | D59: =IF(OR(COUNTRY_INFO!$T$9:$T$1000="T1 (PZQ+ALB/MBD)",COUNTRY_INFO!$U$9:$U$1000="T1 (PZQ+ALB/MBD)"), "T1 (PZQ+ALB/MBD)", " ") ->  | K59: 0 | O59: 0
A60: =IF(COUNTRY_INFO!A60=0," ",COUNTRY_INFO!A60) -> ESWATINI | B60: =IF(COUNTRY_INFO!B60=0," ",COUNTRY_INFO!B60) -> SHISELWENI | C60: =IF(COUNTRY_INFO!C60=0," ",COUNTRY_INFO!C60) -> Shiselweni 2/Mbangweni | D60: =IF(OR(COUNTRY_INFO!$T$9:$T$1000="T1 (PZQ+ALB/MBD)",COUNTRY_INFO!$U$9:$U$1000="T1 (PZQ+ALB/MBD)"), "T1 (PZQ+ALB/MBD)", " ") ->  | K60: 0 | O60: 0
A61: =IF(COUNTRY_INFO!A61=0," ",COUNTRY_INFO!A61) -> ESWATINI | B61: =IF(COUNTRY_INFO!B61=0," ",COUNTRY_INFO!B61) -> SHISELWENI | C61: =IF(COUNTRY_INFO!C61=0," ",COUNTRY_INFO!C61) -> Sigwe | D61: =IF(OR(COUNTRY_INFO!$T$9:$T$1000="T1 (PZQ+ALB/MBD)",COUNTRY_INFO!$U$9:$U$1000="T1 (PZQ+ALB/MBD)"), "T1 (PZQ+ALB/MBD)", " ") ->  | K61: 0 | O61: 0
A62: =IF(COUNTRY_INFO!A62=0," ",COUNTRY_INFO!A62) -> ESWATINI | B62: =IF(COUNTRY_INFO!B62=0," ",COUNTRY_INFO!B62) -> SHISELWENI | C62: =IF(COUNTRY_INFO!C62=0," ",COUNTRY_INFO!C62) -> Somntongo | D62: =IF(OR(COUNTRY_INFO!$T$9:$T$1000="T1 (PZQ+ALB/MBD)",COUNTRY_INFO!$U$9:$U$1000="T1 (PZQ+ALB/MBD)"), "T1 (PZQ+ALB/MBD)", " ") ->  | K62: 0 | O62: 0
A63: =IF(COUNTRY_INFO!A63=0," ",COUNTRY_INFO!A63) -> ESWATINI | B63: =IF(COUNTRY_INFO!B63=0," ",COUNTRY_INFO!B63) -> SHISELWENI | C63: =IF(COUNTRY_INFO!C63=0," ",COUNTRY_INFO!C63) -> Zombodze Emuva | D63: =IF(OR(COUNTRY_INFO!$T$9:$T$1000="T1 (PZQ+ALB/MBD)",COUNTRY_INFO!$U$9:$U$1000="T1 (PZQ+ALB/MBD)"), "T1 (PZQ+ALB/MBD)", " ") ->  | K63: 0 | O63: 0

Sheet T2
A1: T 2 - Praziquantel (PZQ)
A2: Administrative structure, population requiring PC by age group, population treated by age group and coverage
A4: TOTAL | F4: =SUM(F$9:F$1000) -> 0 | G4: 0 | H4: 0 | I4: 0 | J4: 0 | K4: 0 | L4: 0 | M4: 0 | N4: =IF(F4<>0, IF(J4/F4*100=0, "-", J4/F4*100), " ") ->  | O4: =IF(G4<>0, IF(K4/G4*100=0, "-", K4/G4*100), " ") ->  | P4: =IF(H4<>0, IF(L4/H4*100=0, "-", L4/H4*100), " ") ->  | Q4: =IF(I4<>0, IF(M4/I4*100=0, "-", M4/I4*100), " ") -> 
D6: PC implemented | E6: Date | F6: Population targeted for T2 | J6: Population treated | N6: Programme coverage (%)
A7: Country | B7: Province/State | C7: District | F7: PreSAC | G7: SAC | H7: Adults | I7: Total | J7: PreSAC | K7: SAC | L7: Adults | M7: Total | N7: PreSAC | O7: SAC | P7: Adults | Q7: Total
A9: =IF(COUNTRY_INFO!A9=0," ",COUNTRY_INFO!A9) -> ESWATINI | B9: =IF(COUNTRY_INFO!B9=0," ",COUNTRY_INFO!B9) -> HHOHHO | C9: =IF(COUNTRY_INFO!C9=0," ",COUNTRY_INFO!C9) -> Hhukwini | D9: =IF(OR(COUNTRY_INFO!$T$9:$T$1000="T2 (PZQ)",COUNTRY_INFO!$U$9:$U$1000="T2 (PZQ)"), "T2 (PZQ)", " ") ->  | I9: =SUM(F9:H9) -> 0 | M9: =SUM(J9:L9) -> 0 | N9: =IF(F9<>0, IF(J9/F9*100=0, "-", J9/F9*100), " ") -> 
A10: =IF(COUNTRY_INFO!A10=0," ",COUNTRY_INFO!A10) -> ESWATINI | B10: =IF(COUNTRY_INFO!B10=0," ",COUNTRY_INFO!B10) -> HHOHHO | C10: =IF(COUNTRY_INFO!C10=0," ",COUNTRY_INFO!C10) -> Lobamba | D10: =IF(OR(COUNTRY_INFO!$T$9:$T$1000="T2 (PZQ)",COUNTRY_INFO!$U$9:$U$1000="T2 (PZQ)"), "T2 (PZQ)", " ") ->  | I10: =SUM(F10:H10) -> 0 | M10: =SUM(J10:L10) -> 0 | N10: =IF(F10<>0, IF(J10/F10*100=0, "-", J10/F10*100), " ") ->  | O10: =IF(G10<>0, IF(K10/G10*100=0, "-", K10/G10*100), " ") ->  | P10: =IF(H10<>0, IF(L10/H10*100=0, "-", L10/H10*100), " ") ->  | Q10: =IF(I10<>0, IF(M10/I10*100=0, "-", M10/I10*100), " ") -> 
A11: =IF(COUNTRY_INFO!A11=0," ",COUNTRY_INFO!A11) -> ESWATINI | B11: =IF(COUNTRY_INFO!B11=0," ",COUNTRY_INFO!B11) -> HHOHHO | C11: =IF(COUNTRY_INFO!C11=0," ",COUNTRY_INFO!C11) -> Madlangempisi | D11: =IF(OR(COUNTRY_INFO!$T$9:$T$1000="T2 (PZQ)",COUNTRY_INFO!$U$9:$U$1000="T2 (PZQ)"), "T2 (PZQ)", " ") ->  | I11: 0 | M11: 0
A12: =IF(COUNTRY_INFO!A12=0," ",COUNTRY_INFO!A12) -> ESWATINI | B12: =IF(COUNTRY_INFO!B12=0," ",COUNTRY_INFO!B12) -> HHOHHO | C12: =IF(COUNTRY_INFO!C12=0," ",COUNTRY_INFO!C12) -> Maphalaleni | D12: =IF(OR(COUNTRY_INFO!$T$9:$T$1000="T2 (PZQ)",COUNTRY_INFO!$U$9:$U$1000="T2 (PZQ)"), "T2 (PZQ)", " ") ->  | I12: 0 | M12: 0
A13: =IF(COUNTRY_INFO!A13=0," ",COUNTRY_INFO!A13) -> ESWATINI | B13: =IF(COUNTRY_INFO!B13=0," ",COUNTRY_INFO!B13) -> HHOHHO | C13: =IF(COUNTRY_INFO!C13=0," ",COUNTRY_INFO!C13) -> Mayiwane | D13: =IF(OR(COUNTRY_INFO!$T$9:$T$1000="T2 (PZQ)",COUNTRY_INFO!$U$9:$U$1000="T2 (PZQ)"), "T2 (PZQ)", " ") ->  | I13: 0 | M13: 0
A14: =IF(COUNTRY_INFO!A14=0," ",COUNTRY_INFO!A14) -> ESWATINI | B14: =IF(COUNTRY_INFO!B14=0," ",COUNTRY_INFO!B14) -> HHOHHO | C14: =IF(COUNTRY_INFO!C14=0," ",COUNTRY_INFO!C14) -> Mbabane East | D14: =IF(OR(COUNTRY_INFO!$T$9:$T$1000="T2 (PZQ)",COUNTRY_INFO!$U$9:$U$1000="T2 (PZQ)"), "T2 (PZQ)", " ") ->  | I14: 0 | M14: 0
A15: =IF(COUNTRY_INFO!A15=0," ",COUNTRY_INFO!A15) -> ESWATINI | B15: =IF(COUNTRY_INFO!B15=0," ",COUNTRY_INFO!B15) -> HHOHHO | C15: =IF(COUNTRY_INFO!C15=0," ",COUNTRY_INFO!C15) -> Mbabane West | D15: =IF(OR(COUNTRY_INFO!$T$9:$T$1000="T2 (PZQ)",COUNTRY_INFO!$U$9:$U$1000="T2 (PZQ)"), "T2 (PZQ)", " ") ->  | I15: 0 | M15: 0
A16: =IF(COUNTRY_INFO!A16=0," ",COUNTRY_INFO!A16) -> ESWATINI | B16: =IF(COUNTRY_INFO!B16=0," ",COUNTRY_INFO!B16) -> HHOHHO | C16: =IF(COUNTRY_INFO!C16=0," ",COUNTRY_INFO!C16) -> Mhlangatane | D16: =IF(OR(COUNTRY_INFO!$T$9:$T$1000="T2 (PZQ)",COUNTRY_INFO!$U$9:$U$1000="T2 (PZQ)"), "T2 (PZQ)", " ") ->  | I16: 0 | M16: 0
A17: =IF(COUNTRY_INFO!A17=0," ",COUNTRY_INFO!A17) -> ESWATINI | B17: =IF(COUNTRY_INFO!B17=0," ",COUNTRY_INFO!B17) -> HHOHHO | C17: =IF(COUNTRY_INFO!C17=0," ",COUNTRY_INFO!C17) -> Motshane | D17: =IF(OR(COUNTRY_INFO!$T$9:$T$1000="T2 (PZQ)",COUNTRY_INFO!$U$9:$U$1000="T2 (PZQ)"), "T2 (PZQ)", " ") ->  | I17: 0 | M17: 0
A18: =IF(COUNTRY_INFO!A18=0," ",COUNTRY_INFO!A18) -> ESWATINI | B18: =IF(COUNTRY_INFO!B18=0," ",COUNTRY_INFO!B18) -> HHOHHO | C18: =IF(COUNTRY_INFO!C18=0," ",COUNTRY_INFO!C18) -> Ndzingeni | D18: =IF(OR(COUNTRY_INFO!$T$9:$T$1000="T2 (PZQ)",COUNTRY_INFO!$U$9:$U$1000="T2 (PZQ)"), "T2 (PZQ)", " ") ->  | I18: 0 | M18: 0
A19: =IF(COUNTRY_INFO!A19=0," ",COUNTRY_INFO!A19) -> ESWATINI | B19: =IF(COUNTRY_INFO!B19=0," ",COUNTRY_INFO!B19) -> HHOHHO | C19: =IF(COUNTRY_INFO!C19=0," ",COUNTRY_INFO!C19) -> Nkhaba | D19: =IF(OR(COUNTRY_INFO!$T$9:$T$1000="T2 (PZQ)",COUNTRY_INFO!$U$9:$U$1000="T2 (PZQ)"), "T2 (PZQ)", " ") ->  | I19: 0 | M19: 0
A20: =IF(COUNTRY_INFO!A20=0," ",COUNTRY_INFO!A20) -> ESWATINI | B20: =IF(COUNTRY_INFO!B20=0," ",COUNTRY_INFO!B20) -> HHOHHO | C20: =IF(COUNTRY_INFO!C20=0," ",COUNTRY_INFO!C20) -> Ntfonjeni | D20: =IF(OR(COUNTRY_INFO!$T$9:$T$1000="T2 (PZQ)",COUNTRY_INFO!$U$9:$U$1000="T2 (PZQ)"), "T2 (PZQ)", " ") ->  | I20: 0 | M20: 0
A21: =IF(COUNTRY_INFO!A21=0," ",COUNTRY_INFO!A21) -> ESWATINI | B21: =IF(COUNTRY_INFO!B21=0," ",COUNTRY_INFO!B21) -> HHOHHO | C21: =IF(COUNTRY_INFO!C21=0," ",COUNTRY_INFO!C21) -> Pigg's Peak | D21: =IF(OR(COUNTRY_INFO!$T$9:$T$1000="T2 (PZQ)",COUNTRY_INFO!$U$9:$U$1000="T2 (PZQ)"), "T2 (PZQ)", " ") ->  | I21: 0 | M21: 0
A22: =IF(COUNTRY_INFO!A22=0," ",COUNTRY_INFO!A22) -> ESWATINI | B22: =IF(COUNTRY_INFO!B22=0," ",COUNTRY_INFO!B22) -> HHOHHO | C22: =IF(COUNTRY_INFO!C22=0," ",COUNTRY_INFO!C22) -> Timphisini | D22: =IF(OR(COUNTRY_INFO!$T$9:$T$1000="T2 (PZQ)",COUNTRY_INFO!$U$9:$U$1000="T2 (PZQ)"), "T2 (PZQ)", " ") ->  | I22: 0 | M22: 0
A23: =IF(COUNTRY_INFO!A23=0," ",COUNTRY_INFO!A23) -> ESWATINI | B23: =IF(COUNTRY_INFO!B23=0," ",COUNTRY_INFO!B23) -> LUBOMBO | C23: =IF(COUNTRY_INFO!C23=0," ",COUNTRY_INFO!C23) -> Dvokodvweni | D23: =IF(OR(COUNTRY_INFO!$T$9:$T$1000="T2 (PZQ)",COUNTRY_INFO!$U$9:$U$1000="T2 (PZQ)"), "T2 (PZQ)", " ") ->  | I23: 0 | M23: 0
A24: =IF(COUNTRY_INFO!A24=0," ",COUNTRY_INFO!A24) -> ESWATINI | B24: =IF(COUNTRY_INFO!B24=0," ",COUNTRY_INFO!B24) -> LUBOMBO | C24: =IF(COUNTRY_INFO!C24=0," ",COUNTRY_INFO!C24) -> Hlane | D24: =IF(OR(COUNTRY_INFO!$T$9:$T$1000="T2 (PZQ)",COUNTRY_INFO!$U$9:$U$1000="T2 (PZQ)"), "T2 (PZQ)", " ") ->  | I24: 0 | M24: 0
A25: =IF(COUNTRY_INFO!A25=0," ",COUNTRY_INFO!A25) -> ESWATINI | B25: =IF(COUNTRY_INFO!B25=0," ",COUNTRY_INFO!B25) -> LUBOMBO | C25: =IF(COUNTRY_INFO!C25=0," ",COUNTRY_INFO!C25) -> Lomahasha | D25: =IF(OR(COUNTRY_INFO!$T$9:$T$1000="T2 (PZQ)",COUNTRY_INFO!$U$9:$U$1000="T2 (PZQ)"), "T2 (PZQ)", " ") ->  | I25: 0 | M25: 0
A26: =IF(COUNTRY_INFO!A26=0," ",COUNTRY_INFO!A26) -> ESWATINI | B26: =IF(COUNTRY_INFO!B26=0," ",COUNTRY_INFO!B26) -> LUBOMBO | C26: =IF(COUNTRY_INFO!C26=0," ",COUNTRY_INFO!C26) -> Lubuli | D26: =IF(OR(COUNTRY_INFO!$T$9:$T$1000="T2 (PZQ)",COUNTRY_INFO!$U$9:$U$1000="T2 (PZQ)"), "T2 (PZQ)", " ") ->  | I26: 0 | M26: 0
A27: =IF(COUNTRY_INFO!A27=0," ",COUNTRY_INFO!A27) -> ESWATINI | B27: =IF(COUNTRY_INFO!B27=0," ",COUNTRY_INFO!B27) -> LUBOMBO | C27: =IF(COUNTRY_INFO!C27=0," ",COUNTRY_INFO!C27) -> Lugongolweni | D27: =IF(OR(COUNTRY_INFO!$T$9:$T$1000="T2 (PZQ)",COUNTRY_INFO!$U$9:$U$1000="T2 (PZQ)"), "T2 (PZQ)", " ") ->  | I27: 0 | M27: 0
A28: =IF(COUNTRY_INFO!A28=0," ",COUNTRY_INFO!A28) -> ESWATINI | B28: =IF(COUNTRY_INFO!B28=0," ",COUNTRY_INFO!B28) -> LUBOMBO | C28: =IF(COUNTRY_INFO!C28=0," ",COUNTRY_INFO!C28) -> Matsanjeni North | D28: =IF(OR(COUNTRY_INFO!$T$9:$T$1000="T2 (PZQ)",COUNTRY_INFO!$U$9:$U$1000="T2 (PZQ)"), "T2 (PZQ)", " ") ->  | I28: 0 | M28: 0
A29: =IF(COUNTRY_INFO!A29=0," ",COUNTRY_INFO!A29) -> ESWATINI | B29: =IF(COUNTRY_INFO!B29=0," ",COUNTRY_INFO!B29) -> LUBOMBO | C29: =IF(COUNTRY_INFO!C29=0," ",COUNTRY_INFO!C29) -> Mhlume | D29: =IF(OR(COUNTRY_INFO!$T$9:$T$1000="T2 (PZQ)",COUNTRY_INFO!$U$9:$U$1000="T2 (PZQ)"), "T2 (PZQ)", " ") ->  | I29: 0 | M29: 0
A30: =IF(COUNTRY_INFO!A30=0," ",COUNTRY_INFO!A30) -> ESWATINI | B30: =IF(COUNTRY_INFO!B30=0," ",COUNTRY_INFO!B30) -> LUBOMBO | C30: =IF(COUNTRY_INFO!C30=0," ",COUNTRY_INFO!C30) -> Mpolonjeni | D30: =IF(OR(COUNTRY_INFO!$T$9:$T$1000="T2 (PZQ)",COUNTRY_INFO!$U$9:$U$1000="T2 (PZQ)"), "T2 (PZQ)", " ") ->  | I30: 0 | M30: 0
A31: =IF(COUNTRY_INFO!A31=0," ",COUNTRY_INFO!A31) -> ESWATINI | B31: =IF(COUNTRY_INFO!B31=0," ",COUNTRY_INFO!B31) -> LUBOMBO | C31: =IF(COUNTRY_INFO!C31=0," ",COUNTRY_INFO!C31) -> Nkilongo | D31: =IF(OR(COUNTRY_INFO!$T$9:$T$1000="T2 (PZQ)",COUNTRY_INFO!$U$9:$U$1000="T2 (PZQ)"), "T2 (PZQ)", " ") ->  | I31: 0 | M31: 0
A32: =IF(COUNTRY_INFO!A32=0," ",COUNTRY_INFO!A32) -> ESWATINI | B32: =IF(COUNTRY_INFO!B32=0," ",COUNTRY_INFO!B32) -> LUBOMBO | C32: =IF(COUNTRY_INFO!C32=0," ",COUNTRY_INFO!C32) -> Siphofaneni | D32: =IF(OR(COUNTRY_INFO!$T$9:$T$1000="T2 (PZQ)",COUNTRY_INFO!$U$9:$U$1000="T2 (PZQ)"), "T2 (PZQ)", " ") ->  | I32: 0 | M32: 0
A33: =IF(COUNTRY_INFO!A33=0," ",COUNTRY_INFO!A33) -> ESWATINI | B33: =IF(COUNTRY_INFO!B33=0," ",COUNTRY_INFO!B33) -> LUBOMBO | C33: =IF(COUNTRY_INFO!C33=0," ",COUNTRY_INFO!C33) -> Sithobela | D33: =IF(OR(COUNTRY_INFO!$T$9:$T$1000="T2 (PZQ)",COUNTRY_INFO!$U$9:$U$1000="T2 (PZQ)"), "T2 (PZQ)", " ") ->  | I33: 0 | M33: 0
A34: =IF(COUNTRY_INFO!A34=0," ",COUNTRY_INFO!A34) -> ESWATINI | B34: =IF(COUNTRY_INFO!B34=0," ",COUNTRY_INFO!B34) -> MANZINI | C34: =IF(COUNTRY_INFO!C34=0," ",COUNTRY_INFO!C34) -> Kukhanyeni | D34: =IF(OR(COUNTRY_INFO!$T$9:$T$1000="T2 (PZQ)",COUNTRY_INFO!$U$9:$U$1000="T2 (PZQ)"), "T2 (PZQ)", " ") ->  | I34: 0 | M34: 0
A35: =IF(COUNTRY_INFO!A35=0," ",COUNTRY_INFO!A35) -> ESWATINI | B35: =IF(COUNTRY_INFO!B35=0," ",COUNTRY_INFO!B35) -> MANZINI | C35: =IF(COUNTRY_INFO!C35=0," ",COUNTRY_INFO!C35) -> Kwaluseni | D35: =IF(OR(COUNTRY_INFO!$T$9:$T$1000="T2 (PZQ)",COUNTRY_INFO!$U$9:$U$1000="T2 (PZQ)"), "T2 (PZQ)", " ") ->  | I35: 0 | M35: 0
A36: =IF(COUNTRY_INFO!A36=0," ",COUNTRY_INFO!A36) -> ESWATINI | B36: =IF(COUNTRY_INFO!B36=0," ",COUNTRY_INFO!B36) -> MANZINI | C36: =IF(COUNTRY_INFO!C36=0," ",COUNTRY_INFO!C36) -> LaMgabhi | D36: =IF(OR(COUNTRY_INFO!$T$9:$T$1000="T2 (PZQ)",COUNTRY_INFO!$U$9:$U$1000="T2 (PZQ)"), "T2 (PZQ)", " ") ->  | I36: 0 | M36: 0
A37: =IF(COUNTRY_INFO!A37=0," ",COUNTRY_INFO!A37) -> ESWATINI | B37: =IF(COUNTRY_INFO!B37=0," ",COUNTRY_INFO!B37) -> MANZINI | C37: =IF(COUNTRY_INFO!C37=0," ",COUNTRY_INFO!C37) -> Lobamba Lomdzala | D37: =IF(OR(COUNTRY_INFO!$T$9:$T$1000="T2 (PZQ)",COUNTRY_INFO!$U$9:$U$1000="T2 (PZQ)"), "T2 (PZQ)", " ") ->  | I37: 0 | M37: 0
A38: =IF(COUNTRY_INFO!A38=0," ",COUNTRY_INFO!A38) -> ESWATINI | B38: =IF(COUNTRY_INFO!B38=0," ",COUNTRY_INFO!B38) -> MANZINI | C38: =IF(COUNTRY_INFO!C38=0," ",COUNTRY_INFO!C38) -> Ludzeludze | D38: =IF(OR(COUNTRY_INFO!$T$9:$T$1000="T2 (PZQ)",COUNTRY_INFO!$U$9:$U$1000="T2 (PZQ)"), "T2 (PZQ)", " ") ->  | I38: 0 | M38: 0
A39: =IF(COUNTRY_INFO!A39=0," ",COUNTRY_INFO!A39) -> ESWATINI | B39: =IF(COUNTRY_INFO!B39=0," ",COUNTRY_INFO!B39) -> MANZINI | C39: =IF(COUNTRY_INFO!C39=0," ",COUNTRY_INFO!C39) -> Mafutseni | D39: =IF(OR(COUNTRY_INFO!$T$9:$T$1000="T2 (PZQ)",COUNTRY_INFO!$U$9:$U$1000="T2 (PZQ)"), "T2 (PZQ)", " ") ->  | I39: 0 | M39: 0
A40: =IF(COUNTRY_INFO!A40=0," ",COUNTRY_INFO!A40) -> ESWATINI | B40: =IF(COUNTRY_INFO!B40=0," ",COUNTRY_INFO!B40) -> MANZINI | C40: =IF(COUNTRY_INFO!C40=0," ",COUNTRY_INFO!C40) -> Mahlangatsha | D40: =IF(OR(COUNTRY_INFO!$T$9:$T$1000="T2 (PZQ)",COUNTRY_INFO!$U$9:$U$1000="T2 (PZQ)"), "T2 (PZQ)", " ") ->  | I40: 0 | M40: 0
A41: =IF(COUNTRY_INFO!A41=0," ",COUNTRY_INFO!A41) -> ESWATINI | B41: =IF(COUNTRY_INFO!B41=0," ",COUNTRY_INFO!B41) -> MANZINI | C41: =IF(COUNTRY_INFO!C41=0," ",COUNTRY_INFO!C41) -> Mangcongco | D41: =IF(OR(COUNTRY_INFO!$T$9:$T$1000="T2 (PZQ)",COUNTRY_INFO!$U$9:$U$1000="T2 (PZQ)"), "T2 (PZQ)", " ") ->  | I41: 0 | M41: 0
A42: =IF(COUNTRY_INFO!A42=0," ",COUNTRY_INFO!A42) -> ESWATINI | B42: =IF(COUNTRY_INFO!B42=0," ",COUNTRY_INFO!B42) -> MANZINI | C42: =IF(COUNTRY_INFO!C42=0," ",COUNTRY_INFO!C42) -> Manzini North | D42: =IF(OR(COUNTRY_INFO!$T$9:$T$1000="T2 (PZQ)",COUNTRY_INFO!$U$9:$U$1000="T2 (PZQ)"), "T2 (PZQ)", " ") ->  | I42: 0 | M42: 0
A43: =IF(COUNTRY_INFO!A43=0," ",COUNTRY_INFO!A43) -> ESWATINI | B43: =IF(COUNTRY_INFO!B43=0," ",COUNTRY_INFO!B43) -> MANZINI | C43: =IF(COUNTRY_INFO!C43=0," ",COUNTRY_INFO!C43) -> Manzini South | D43: =IF(OR(COUNTRY_INFO!$T$9:$T$1000="T2 (PZQ)",COUNTRY_INFO!$U$9:$U$1000="T2 (PZQ)"), "T2 (PZQ)", " ") ->  | I43: 0 | M43: 0
A44: =IF(COUNTRY_INFO!A44=0," ",COUNTRY_INFO!A44) -> ESWATINI | B44: =IF(COUNTRY_INFO!B44=0," ",COUNTRY_INFO!B44) -> MANZINI | C44: =IF(COUNTRY_INFO!C44=0," ",COUNTRY_INFO!C44) -> Mhlambanyatsi | D44: =IF(OR(COUNTRY_INFO!$T$9:$T$1000="T2 (PZQ)",COUNTRY_INFO!$U$9:$U$1000="T2 (PZQ)"), "T2 (PZQ)", " ") ->  | I44: 0 | M44: 0
A45: =IF(COUNTRY_INFO!A45=0," ",COUNTRY_INFO!A45) -> ESWATINI | B45: =IF(COUNTRY_INFO!B45=0," ",COUNTRY_INFO!B45) -> MANZINI | C45: =IF(COUNTRY_INFO!C45=0," ",COUNTRY_INFO!C45) -> Mkhiweni | D45: =IF(OR(COUNTRY_INFO!$T$9:$T$1000="T2 (PZQ)",COUNTRY_INFO!$U$9:$U$1000="T2 (PZQ)"), "T2 (PZQ)", " ") ->  | I45: 0 | M45: 0
A46: =IF(COUNTRY_INFO!A46=0," ",COUNTRY_INFO!A46) -> ESWATINI | B46: =IF(COUNTRY_INFO!B46=0," ",COUNTRY_INFO!B46) -> MANZINI | C46: =IF(COUNTRY_INFO!C46=0," ",COUNTRY_INFO!C46) -> Mtfongwaneni | D46: =IF(OR(COUNTRY_INFO!$T$9:$T$1000="T2 (PZQ)",COUNTRY_INFO!$U$9:$U$1000="T2 (PZQ)"), "T2 (PZQ)", " ") ->  | I46: 0 | M46: 0
A47: =IF(COUNTRY_INFO!A47=0," ",COUNTRY_INFO!A47) -> ESWATINI | B47: =IF(COUNTRY_INFO!B47=0," ",COUNTRY_INFO!B47) -> MANZINI | C47: =IF(COUNTRY_INFO!C47=0," ",COUNTRY_INFO!C47) -> Ngwemphisi | D47: =IF(OR(COUNTRY_INFO!$T$9:$T$1000="T2 (PZQ)",COUNTRY_INFO!$U$9:$U$1000="T2 (PZQ)"), "T2 (PZQ)", " ") ->  | I47: 0 | M47: 0
A48: =IF(COUNTRY_INFO!A48=0," ",COUNTRY_INFO!A48) -> ESWATINI | B48: =IF(COUNTRY_INFO!B48=0," ",COUNTRY_INFO!B48) -> MANZINI | C48: =IF(COUNTRY_INFO!C48=0," ",COUNTRY_INFO!C48) -> Nhlambeni | D48: =IF(OR(COUNTRY_INFO!$T$9:$T$1000="T2 (PZQ)",COUNTRY_INFO!$U$9:$U$1000="T2 (PZQ)"), "T2 (PZQ)", " ") ->  | I48: 0 | M48: 0
A49: =IF(COUNTRY_INFO!A49=0," ",COUNTRY_INFO!A49) -> ESWATINI | B49: =IF(COUNTRY_INFO!B49=0," ",COUNTRY_INFO!B49) -> MANZINI | C49: =IF(COUNTRY_INFO!C49=0," ",COUNTRY_INFO!C49) -> Ntondozi | D49: =IF(OR(COUNTRY_INFO!$T$9:$T$1000="T2 (PZQ)",COUNTRY_INFO!$U$9:$U$1000="T2 (PZQ)"), "T2 (PZQ)", " ") ->  | I49: 0 | M49: 0
A50: =IF(COUNTRY_INFO!A50=0," ",COUNTRY_INFO!A50) -> ESWATINI | B50: =IF(COUNTRY_INFO!B50=0," ",COUNTRY_INFO!B50) -> SHISELWENI | C50: =IF(COUNTRY_INFO!C50=0," ",COUNTRY_INFO!C50) -> Gege | D50: =IF(OR(COUNTRY_INFO!$T$9:$T$1000="T2 (PZQ)",COUNTRY_INFO!$U$9:$U$1000="T2 (PZQ)"), "T2 (PZQ)", " ") ->  | I50: 0 | M50: 0
A51: =IF(COUNTRY_INFO!A51=0," ",COUNTRY_INFO!A51) -> ESWATINI | B51: =IF(COUNTRY_INFO!B51=0," ",COUNTRY_INFO!B51) -> SHISELWENI | C51: =IF(COUNTRY_INFO!C51=0," ",COUNTRY_INFO!C51) -> Hosea | D51: =IF(OR(COUNTRY_INFO!$T$9:$T$1000="T2 (PZQ)",COUNTRY_INFO!$U$9:$U$1000="T2 (PZQ)"), "T2 (PZQ)", " ") ->  | I51: 0 | M51: 0
A52: =IF(COUNTRY_INFO!A52=0," ",COUNTRY_INFO!A52) -> ESWATINI | B52: =IF(COUNTRY_INFO!B52=0," ",COUNTRY_INFO!B52) -> SHISELWENI | C52: =IF(COUNTRY_INFO!C52=0," ",COUNTRY_INFO!C52) -> Khubutha | D52: =IF(OR(COUNTRY_INFO!$T$9:$T$1000="T2 (PZQ)",COUNTRY_INFO!$U$9:$U$1000="T2 (PZQ)"), "T2 (PZQ)", " ") ->  | I52: 0 | M52: 0
A53: =IF(COUNTRY_INFO!A53=0," ",COUNTRY_INFO!A53) -> ESWATINI | B53: =IF(COUNTRY_INFO!B53=0," ",COUNTRY_INFO!B53) -> SHISELWENI | C53: =IF(COUNTRY_INFO!C53=0," ",COUNTRY_INFO!C53) -> Maseyisini | D53: =IF(OR(COUNTRY_INFO!$T$9:$T$1000="T2 (PZQ)",COUNTRY_INFO!$U$9:$U$1000="T2 (PZQ)"), "T2 (PZQ)", " ") ->  | I53: 0 | M53: 0
A54: =IF(COUNTRY_INFO!A54=0," ",COUNTRY_INFO!A54) -> ESWATINI | B54: =IF(COUNTRY_INFO!B54=0," ",COUNTRY_INFO!B54) -> SHISELWENI | C54: =IF(COUNTRY_INFO!C54=0," ",COUNTRY_INFO!C54) -> Matsanjeni South | D54: =IF(OR(COUNTRY_INFO!$T$9:$T$1000="T2 (PZQ)",COUNTRY_INFO!$U$9:$U$1000="T2 (PZQ)"), "T2 (PZQ)", " ") ->  | I54: 0 | M54: 0
A55: =IF(COUNTRY_INFO!A55=0," ",COUNTRY_INFO!A55) -> ESWATINI | B55: =IF(COUNTRY_INFO!B55=0," ",COUNTRY_INFO!B55) -> SHISELWENI | C55: =IF(COUNTRY_INFO!C55=0," ",COUNTRY_INFO!C55) -> Mtsambama | D55: =IF(OR(COUNTRY_INFO!$T$9:$T$1000="T2 (PZQ)",COUNTRY_INFO!$U$9:$U$1000="T2 (PZQ)"), "T2 (PZQ)", " ") ->  | I55: 0 | M55: 0
A56: =IF(COUNTRY_INFO!A56=0," ",COUNTRY_INFO!A56) -> ESWATINI | B56: =IF(COUNTRY_INFO!B56=0," ",COUNTRY_INFO!B56) -> SHISELWENI | C56: =IF(COUNTRY_INFO!C56=0," ",COUNTRY_INFO!C56) -> Ngudzeni | D56: =IF(OR(COUNTRY_INFO!$T$9:$T$1000="T2 (PZQ)",COUNTRY_INFO!$U$9:$U$1000="T2 (PZQ)"), "T2 (PZQ)", " ") ->  | I56: 0 | M56: 0
A57: =IF(COUNTRY_INFO!A57=0," ",COUNTRY_INFO!A57) -> ESWATINI | B57: =IF(COUNTRY_INFO!B57=0," ",COUNTRY_INFO!B57) -> SHISELWENI | C57: =IF(COUNTRY_INFO!C57=0," ",COUNTRY_INFO!C57) -> Nkwene | D57: =IF(OR(COUNTRY_INFO!$T$9:$T$1000="T2 (PZQ)",COUNTRY_INFO!$U$9:$U$1000="T2 (PZQ)"), "T2 (PZQ)", " ") ->  | I57: 0 | M57: 0
A58: =IF(COUNTRY_INFO!A58=0," ",COUNTRY_INFO!A58) -> ESWATINI | B58: =IF(COUNTRY_INFO!B58=0," ",COUNTRY_INFO!B58) -> SHISELWENI | C58: =IF(COUNTRY_INFO!C58=0," ",COUNTRY_INFO!C58) -> Sandleni | D58: =IF(OR(COUNTRY_INFO!$T$9:$T$1000="T2 (PZQ)",COUNTRY_INFO!$U$9:$U$1000="T2 (PZQ)"), "T2 (PZQ)", " ") ->  | I58: 0 | M58: 0
A59: =IF(COUNTRY_INFO!A59=0," ",COUNTRY_INFO!A59) -> ESWATINI | B59: =IF(COUNTRY_INFO!B59=0," ",COUNTRY_INFO!B59) -> SHISELWENI | C59: =IF(COUNTRY_INFO!C59=0," ",COUNTRY_INFO!C59) -> Shiselweni 1 | D59: =IF(OR(COUNTRY_INFO!$T$9:$T$1000="T2 (PZQ)",COUNTRY_INFO!$U$9:$U$1000="T2 (PZQ)"), "T2 (PZQ)", " ") ->  | I59: 0 | M59: 0
A60: =IF(COUNTRY_INFO!A60=0," ",COUNTRY_INFO!A60) -> ESWATINI | B60: =IF(COUNTRY_INFO!B60=0," ",COUNTRY_INFO!B60) -> SHISELWENI | C60: =IF(COUNTRY_INFO!C60=0," ",COUNTRY_INFO!C60) -> Shiselweni 2/Mbangweni | D60: =IF(OR(COUNTRY_INFO!$T$9:$T$1000="T2 (PZQ)",COUNTRY_INFO!$U$9:$U$1000="T2 (PZQ)"), "T2 (PZQ)", " ") ->  | I60: 0 | M60: 0
A61: =IF(COUNTRY_INFO!A61=0," ",COUNTRY_INFO!A61) -> ESWATINI | B61: =IF(COUNTRY_INFO!B61=0," ",COUNTRY_INFO!B61) -> SHISELWENI | C61: =IF(COUNTRY_INFO!C61=0," ",COUNTRY_INFO!C61) -> Sigwe | D61: =IF(OR(COUNTRY_INFO!$T$9:$T$1000="T2 (PZQ)",COUNTRY_INFO!$U$9:$U$1000="T2 (PZQ)"), "T2 (PZQ)", " ") ->  | I61: 0 | M61: 0
A62: =IF(COUNTRY_INFO!A62=0," ",COUNTRY_INFO!A62) -> ESWATINI | B62: =IF(COUNTRY_INFO!B62=0," ",COUNTRY_INFO!B62) -> SHISELWENI | C62: =IF(COUNTRY_INFO!C62=0," ",COUNTRY_INFO!C62) -> Somntongo | D62: =IF(OR(COUNTRY_INFO!$T$9:$T$1000="T2 (PZQ)",COUNTRY_INFO!$U$9:$U$1000="T2 (PZQ)"), "T2 (PZQ)", " ") ->  | I62: 0 | M62: 0
A63: =IF(COUNTRY_INFO!A63=0," ",COUNTRY_INFO!A63) -> ESWATINI | B63: =IF(COUNTRY_INFO!B63=0," ",COUNTRY_INFO!B63) -> SHISELWENI | C63: =IF(COUNTRY_INFO!C63=0," ",COUNTRY_INFO!C63) -> Zombodze Emuva | D63: =IF(OR(COUNTRY_INFO!$T$9:$T$1000="T2 (PZQ)",COUNTRY_INFO!$U$9:$U$1000="T2 (PZQ)"), "T2 (PZQ)", " ") ->  | I63: 0 | M63: 0

Sheet T3_R1
A1: T 3 - Albendazole (ALB) or Mebendazole (MBD) - Round 1
A2: Administrative structure, population requiring PC by age group, population treated by age group and coverage
A4: TOTAL | G4: =SUM(G$9:G$1000) -> 0 | H4: 118703 | I4: 0 | J4: 118703 | K4: 0 | L4: 92125 | M4: 0 | N4: 92125 | O4: =IF(G4<>0, IF(K4/G4*100=0, "-", K4/G4*100), " ") ->  | P4: =IF(H4<>0, IF(L4/H4*100=0, "-", L4/H4*100), " ") -> 77.60966446 | Q4: =IF(I4<>0, IF(M4/I4*100=0, "-", M4/I4*100), " ") ->  | R4: =IF(J4<>0, IF(N4/J4*100=0, "-", N4/J4*100), " ") -> 77.60966446
D6: PC implemented | E6: Medicine | F6: Date | G6: Population targeted for T3 | K6: Population treated | O6: Programme coverage (%)
A7: Country | B7: Province/State | C7: District | G7: PreSAC | H7: SAC | I7: Adults | J7: Total | K7: PreSAC | L7: SAC | M7: Adults | N7: Total | O7: PreSAC | P7: SAC | Q7: Adults | R7: Total
A9: =IF(COUNTRY_INFO!A9=0," ",COUNTRY_INFO!A9) -> ESWATINI | B9: =IF(COUNTRY_INFO!B9=0," ",COUNTRY_INFO!B9) -> HHOHHO | C9: =IF(COUNTRY_INFO!C9=0," ",COUNTRY_INFO!C9) -> Hhukwini | D9: =IF(OR(COUNTRY_INFO!$T$9:$T$1000="T3 (ALB/MBD)",COUNTRY_INFO!$U$9:$U$1000="T3 (ALB/MBD)"), "T3 (ALB/MBD)", " ") -> T3 (ALB/MBD) | E9: ALB | F9: June 2019 | H9: =COUNTRY_INFO!F9 -> 2894 | J9: =SUM(G9:I9) -> 2894 | L9: 1866 | N9: =SUM(K9:M9) -> 1866 | O9: =IF(G9<>0, IF(K9/G9*100=0, "-", K9/G9*100), " ") ->  | P9: 64.47823082 | R9: 64.47823082
A10: =IF(COUNTRY_INFO!A10=0," ",COUNTRY_INFO!A10) -> ESWATINI | B10: =IF(COUNTRY_INFO!B10=0," ",COUNTRY_INFO!B10) -> HHOHHO | C10: =IF(COUNTRY_INFO!C10=0," ",COUNTRY_INFO!C10) -> Lobamba | D10: =IF(OR(COUNTRY_INFO!$T$9:$T$1000="T3 (ALB/MBD)",COUNTRY_INFO!$U$9:$U$1000="T3 (ALB/MBD)"), "T3 (ALB/MBD)", " ") -> T3 (ALB/MBD) | E10: ALB | F10: June 2019 | H10: =COUNTRY_INFO!F10 -> 7727 | J10: =SUM(G10:I10) -> 7727 | L10: 4023 | N10: =SUM(K10:M10) -> 4023 | O10: =IF(G10<>0, IF(K10/G10*100=0, "-", K10/G10*100), " ") ->  | P10: =IF(H10<>0, IF(L10/H10*100=0, "-", L10/H10*100), " ") -> 52.0641905 | Q10: =IF(I10<>0, IF(M10/I10*100=0, "-", M10/I10*100), " ") ->  | R10: =IF(J10<>0, IF(N10/J10*100=0, "-", N10/J10*100), " ") -> 52.0641905
A11: =IF(COUNTRY_INFO!A11=0," ",COUNTRY_INFO!A11) -> ESWATINI | B11: =IF(COUNTRY_INFO!B11=0," ",COUNTRY_INFO!B11) -> HHOHHO | C11: =IF(COUNTRY_INFO!C11=0," ",COUNTRY_INFO!C11) -> Madlangempisi | D11: =IF(OR(COUNTRY_INFO!$T$9:$T$1000="T3 (ALB/MBD)",COUNTRY_INFO!$U$9:$U$1000="T3 (ALB/MBD)"), "T3 (ALB/MBD)", " ") -> T3 (ALB/MBD) | E11: ALB | F11: June 2019 | H11: =COUNTRY_INFO!F11 -> 5668 | J11: 5668 | L11: 5231 | N11: 5231 | P11: 92.2900494 | R11: 92.2900494
A12: =IF(COUNTRY_INFO!A12=0," ",COUNTRY_INFO!A12) -> ESWATINI | B12: =IF(COUNTRY_INFO!B12=0," ",COUNTRY_INFO!B12) -> HHOHHO | C12: =IF(COUNTRY_INFO!C12=0," ",COUNTRY_INFO!C12) -> Maphalaleni | D12: =IF(OR(COUNTRY_INFO!$T$9:$T$1000="T3 (ALB/MBD)",COUNTRY_INFO!$U$9:$U$1000="T3 (ALB/MBD)"), "T3 (ALB/MBD)", " ") -> T3 (ALB/MBD) | E12: ALB | F12: June 2019 | H12: =COUNTRY_INFO!F12 -> 4675 | J12: 4675 | L12: 2842 | N12: 2842 | P12: 60.79144385 | R12: 60.79144385
A13: =IF(COUNTRY_INFO!A13=0," ",COUNTRY_INFO!A13) -> ESWATINI | B13: =IF(COUNTRY_INFO!B13=0," ",COUNTRY_INFO!B13) -> HHOHHO | C13: =IF(COUNTRY_INFO!C13=0," ",COUNTRY_INFO!C13) -> Mayiwane | D13: =IF(OR(COUNTRY_INFO!$T$9:$T$1000="T3 (ALB/MBD)",COUNTRY_INFO!$U$9:$U$1000="T3 (ALB/MBD)"), "T3 (ALB/MBD)", " ") -> T3 (ALB/MBD) | E13: ALB | F13: June 2019 | H13: =COUNTRY_INFO!F13 -> 4105 | J13: 4105 | L13: 3334 | N13: 3334 | P13: 81.2180268 | R13: 81.2180268
A14: =IF(COUNTRY_INFO!A14=0," ",COUNTRY_INFO!A14) -> ESWATINI | B14: =IF(COUNTRY_INFO!B14=0," ",COUNTRY_INFO!B14) -> HHOHHO | C14: =IF(COUNTRY_INFO!C14=0," ",COUNTRY_INFO!C14) -> Mbabane East | D14: =IF(OR(COUNTRY_INFO!$T$9:$T$1000="T3 (ALB/MBD)",COUNTRY_INFO!$U$9:$U$1000="T3 (ALB/MBD)"), "T3 (ALB/MBD)", " ") -> T3 (ALB/MBD) | E14: ALB | F14: June 2019 | H14: =COUNTRY_INFO!F14 -> 8654 | J14: 8654 | L14: 8508 | N14: 8508 | P14: 98.31291888 | R14: 98.31291888
A15: =IF(COUNTRY_INFO!A15=0," ",COUNTRY_INFO!A15) -> ESWATINI | B15: =IF(COUNTRY_INFO!B15=0," ",COUNTRY_INFO!B15) -> HHOHHO | C15: =IF(COUNTRY_INFO!C15=0," ",COUNTRY_INFO!C15) -> Mbabane West | D15: =IF(OR(COUNTRY_INFO!$T$9:$T$1000="T3 (ALB/MBD)",COUNTRY_INFO!$U$9:$U$1000="T3 (ALB/MBD)"), "T3 (ALB/MBD)", " ") -> T3 (ALB/MBD) | E15: ALB | F15: June 2019 | H15: =COUNTRY_INFO!F15 -> 6275 | J15: 6275 | L15: 1943 | N15: 1943 | P15: 30.96414343 | R15: 30.96414343
A16: =IF(COUNTRY_INFO!A16=0," ",COUNTRY_INFO!A16) -> ESWATINI | B16: =IF(COUNTRY_INFO!B16=0," ",COUNTRY_INFO!B16) -> HHOHHO | C16: =IF(COUNTRY_INFO!C16=0," ",COUNTRY_INFO!C16) -> Mhlangatane | D16: =IF(OR(COUNTRY_INFO!$T$9:$T$1000="T3 (ALB/MBD)",COUNTRY_INFO!$U$9:$U$1000="T3 (ALB/MBD)"), "T3 (ALB/MBD)", " ") -> T3 (ALB/MBD) | E16: ALB | F16: June 2019 | H16: =COUNTRY_INFO!F16 -> 6112 | J16: 6112 | L16: 4851 | N16: 4851 | P16: 79.3684555 | R16: 79.3684555
A17: =IF(COUNTRY_INFO!A17=0," ",COUNTRY_INFO!A17) -> ESWATINI | B17: =IF(COUNTRY_INFO!B17=0," ",COUNTRY_INFO!B17) -> HHOHHO | C17: =IF(COUNTRY_INFO!C17=0," ",COUNTRY_INFO!C17) -> Motshane | D17: =IF(OR(COUNTRY_INFO!$T$9:$T$1000="T3 (ALB/MBD)",COUNTRY_INFO!$U$9:$U$1000="T3 (ALB/MBD)"), "T3 (ALB/MBD)", " ") -> T3 (ALB/MBD) | E17: ALB | F17: June 2019 | H17: =COUNTRY_INFO!F17 -> 8355 | J17: 8355 | L17: 5410 | N17: 5410 | P17: 64.75164572 | R17: 64.75164572
A18: =IF(COUNTRY_INFO!A18=0," ",COUNTRY_INFO!A18) -> ESWATINI | B18: =IF(COUNTRY_INFO!B18=0," ",COUNTRY_INFO!B18) -> HHOHHO | C18: =IF(COUNTRY_INFO!C18=0," ",COUNTRY_INFO!C18) -> Ndzingeni | D18: =IF(OR(COUNTRY_INFO!$T$9:$T$1000="T3 (ALB/MBD)",COUNTRY_INFO!$U$9:$U$1000="T3 (ALB/MBD)"), "T3 (ALB/MBD)", " ") -> T3 (ALB/MBD) | E18: ALB | F18: June 2019 | H18: =COUNTRY_INFO!F18 -> 4556 | J18: 4556 | L18: 3346 | N18: 3346 | P18: 73.44161545 | R18: 73.44161545
A19: =IF(COUNTRY_INFO!A19=0," ",COUNTRY_INFO!A19) -> ESWATINI | B19: =IF(COUNTRY_INFO!B19=0," ",COUNTRY_INFO!B19) -> HHOHHO | C19: =IF(COUNTRY_INFO!C19=0," ",COUNTRY_INFO!C19) -> Nkhaba | D19: =IF(OR(COUNTRY_INFO!$T$9:$T$1000="T3 (ALB/MBD)",COUNTRY_INFO!$U$9:$U$1000="T3 (ALB/MBD)"), "T3 (ALB/MBD)", " ") -> T3 (ALB/MBD) | E19: ALB | F19: June 2019 | H19: =COUNTRY_INFO!F19 -> 4917 | J19: 4917 | L19: 4580 | N19: 4580 | P19: 93.14622737 | R19: 93.14622737
A20: =IF(COUNTRY_INFO!A20=0," ",COUNTRY_INFO!A20) -> ESWATINI | B20: =IF(COUNTRY_INFO!B20=0," ",COUNTRY_INFO!B20) -> HHOHHO | C20: =IF(COUNTRY_INFO!C20=0," ",COUNTRY_INFO!C20) -> Ntfonjeni | D20: =IF(OR(COUNTRY_INFO!$T$9:$T$1000="T3 (ALB/MBD)",COUNTRY_INFO!$U$9:$U$1000="T3 (ALB/MBD)"), "T3 (ALB/MBD)", " ") ->  | J20: 0 | N20: 0
A21: =IF(COUNTRY_INFO!A21=0," ",COUNTRY_INFO!A21) -> ESWATINI | B21: =IF(COUNTRY_INFO!B21=0," ",COUNTRY_INFO!B21) -> HHOHHO | C21: =IF(COUNTRY_INFO!C21=0," ",COUNTRY_INFO!C21) -> Pigg's Peak | D21: =IF(OR(COUNTRY_INFO!$T$9:$T$1000="T3 (ALB/MBD)",COUNTRY_INFO!$U$9:$U$1000="T3 (ALB/MBD)"), "T3 (ALB/MBD)", " ") -> T3 (ALB/MBD) | E21: ALB | F21: June 2019 | H21: =COUNTRY_INFO!F21 -> 4732 | J21: 4732 | L21: 4323 | N21: 4323 | P21: 91.3567202 | R21: 91.3567202
A22: =IF(COUNTRY_INFO!A22=0," ",COUNTRY_INFO!A22) -> ESWATINI | B22: =IF(COUNTRY_INFO!B22=0," ",COUNTRY_INFO!B22) -> HHOHHO | C22: =IF(COUNTRY_INFO!C22=0," ",COUNTRY_INFO!C22) -> Timphisini | D22: =IF(OR(COUNTRY_INFO!$T$9:$T$1000="T3 (ALB/MBD)",COUNTRY_INFO!$U$9:$U$1000="T3 (ALB/MBD)"), "T3 (ALB/MBD)", " ") -> T3 (ALB/MBD) | E22: ALB | F22: June 2019 | H22: =COUNTRY_INFO!F22 -> 3055 | J22: 3055 | L22: 2156 | N22: 2156 | P22: 70.57283142 | R22: 70.57283142
A23: =IF(COUNTRY_INFO!A23=0," ",COUNTRY_INFO!A23) -> ESWATINI | B23: =IF(COUNTRY_INFO!B23=0," ",COUNTRY_INFO!B23) -> LUBOMBO | C23: =IF(COUNTRY_INFO!C23=0," ",COUNTRY_INFO!C23) -> Dvokodvweni | D23: =IF(OR(COUNTRY_INFO!$T$9:$T$1000="T3 (ALB/MBD)",COUNTRY_INFO!$U$9:$U$1000="T3 (ALB/MBD)"), "T3 (ALB/MBD)", " ") -> T3 (ALB/MBD) | E23: ALB | F23: June 2019 | H23: =COUNTRY_INFO!F23 -> 5010 | J23: 5010 | L23: 4724 | N23: 4724 | P23: 94.29141717 | R23: 94.29141717
A24: =IF(COUNTRY_INFO!A24=0," ",COUNTRY_INFO!A24) -> ESWATINI | B24: =IF(COUNTRY_INFO!B24=0," ",COUNTRY_INFO!B24) -> LUBOMBO | C24: =IF(COUNTRY_INFO!C24=0," ",COUNTRY_INFO!C24) -> Hlane | D24: =IF(OR(COUNTRY_INFO!$T$9:$T$1000="T3 (ALB/MBD)",COUNTRY_INFO!$U$9:$U$1000="T3 (ALB/MBD)"), "T3 (ALB/MBD)", " ") -> T3 (ALB/MBD) | E24: ALB | F24: June 2019 | H24: =COUNTRY_INFO!F24 -> 1540 | J24: 1540 | L24: 1500 | N24: 1500 | P24: 97.4025974 | R24: 97.4025974
A25: =IF(COUNTRY_INFO!A25=0," ",COUNTRY_INFO!A25) -> ESWATINI | B25: =IF(COUNTRY_INFO!B25=0," ",COUNTRY_INFO!B25) -> LUBOMBO | C25: =IF(COUNTRY_INFO!C25=0," ",COUNTRY_INFO!C25) -> Lomahasha | D25: =IF(OR(COUNTRY_INFO!$T$9:$T$1000="T3 (ALB/MBD)",COUNTRY_INFO!$U$9:$U$1000="T3 (ALB/MBD)"), "T3 (ALB/MBD)", " ") ->  | J25: 0 | N25: 0
A26: =IF(COUNTRY_INFO!A26=0," ",COUNTRY_INFO!A26) -> ESWATINI | B26: =IF(COUNTRY_INFO!B26=0," ",COUNTRY_INFO!B26) -> LUBOMBO | C26: =IF(COUNTRY_INFO!C26=0," ",COUNTRY_INFO!C26) -> Lubuli | D26: =IF(OR(COUNTRY_INFO!$T$9:$T$1000="T3 (ALB/MBD)",COUNTRY_INFO!$U$9:$U$1000="T3 (ALB/MBD)"), "T3 (ALB/MBD)", " ") -> T3 (ALB/MBD) | E26: ALB | F26: June 2019 | H26: =COUNTRY_INFO!F26 -> 3411 | J26: 3411 | L26: 3178 | N26: 3178 | P26: 93.1691586 | R26: 93.1691586
A27: =IF(COUNTRY_INFO!A27=0," ",COUNTRY_INFO!A27) -> ESWATINI | B27: =IF(COUNTRY_INFO!B27=0," ",COUNTRY_INFO!B27) -> LUBOMBO | C27: =IF(COUNTRY_INFO!C27=0," ",COUNTRY_INFO!C27) -> Lugongolweni | D27: =IF(OR(COUNTRY_INFO!$T$9:$T$1000="T3 (ALB/MBD)",COUNTRY_INFO!$U$9:$U$1000="T3 (ALB/MBD)"), "T3 (ALB/MBD)", " ") -> T3 (ALB/MBD) | E27: ALB | F27: June 2019 | H27: =COUNTRY_INFO!F27 -> 6584 | J27: 6584 | L27: 6005 | N27: 6005 | P27: 91.20595383 | R27: 91.20595383
A28: =IF(COUNTRY_INFO!A28=0," ",COUNTRY_INFO!A28) -> ESWATINI | B28: =IF(COUNTRY_INFO!B28=0," ",COUNTRY_INFO!B28) -> LUBOMBO | C28: =IF(COUNTRY_INFO!C28=0," ",COUNTRY_INFO!C28) -> Matsanjeni North | D28: =IF(OR(COUNTRY_INFO!$T$9:$T$1000="T3 (ALB/MBD)",COUNTRY_INFO!$U$9:$U$1000="T3 (ALB/MBD)"), "T3 (ALB/MBD)", " ") -> T3 (ALB/MBD) | E28: ALB | F28: June 2019 | H28: =COUNTRY_INFO!F28 -> 3736 | J28: 3736 | L28: 3520 | N28: 3520 | P28: 94.21841542 | R28: 94.21841542
A29: =IF(COUNTRY_INFO!A29=0," ",COUNTRY_INFO!A29) -> ESWATINI | B29: =IF(COUNTRY_INFO!B29=0," ",COUNTRY_INFO!B29) -> LUBOMBO | C29: =IF(COUNTRY_INFO!C29=0," ",COUNTRY_INFO!C29) -> Mhlume | D29: =IF(OR(COUNTRY_INFO!$T$9:$T$1000="T3 (ALB/MBD)",COUNTRY_INFO!$U$9:$U$1000="T3 (ALB/MBD)"), "T3 (ALB/MBD)", " ") ->  | J29: 0 | N29: 0
A30: =IF(COUNTRY_INFO!A30=0," ",COUNTRY_INFO!A30) -> ESWATINI | B30: =IF(COUNTRY_INFO!B30=0," ",COUNTRY_INFO!B30) -> LUBOMBO | C30: =IF(COUNTRY_INFO!C30=0," ",COUNTRY_INFO!C30) -> Mpolonjeni | D30: =IF(OR(COUNTRY_INFO!$T$9:$T$1000="T3 (ALB/MBD)",COUNTRY_INFO!$U$9:$U$1000="T3 (ALB/MBD)"), "T3 (ALB/MBD)", " ") -> T3 (ALB/MBD) | E30: ALB | F30: June 2019 | H30: =COUNTRY_INFO!F30 -> 3385 | J30: 3385 | L30: 2820 | N30: 2820 | P30: 83.30871492 | R30: 83.30871492
A31: =IF(COUNTRY_INFO!A31=0," ",COUNTRY_INFO!A31) -> ESWATINI | B31: =IF(COUNTRY_INFO!B31=0," ",COUNTRY_INFO!B31) -> LUBOMBO | C31: =IF(COUNTRY_INFO!C31=0," ",COUNTRY_INFO!C31) -> Nkilongo | D31: =IF(OR(COUNTRY_INFO!$T$9:$T$1000="T3 (ALB/MBD)",COUNTRY_INFO!$U$9:$U$1000="T3 (ALB/MBD)"), "T3 (ALB/MBD)", " ") -> T3 (ALB/MBD) | E31: ALB | F31: June 2019 | H31: =COUNTRY_INFO!F31 -> 3548 | J31: 3548 | L31: 2985 | N31: 2985 | P31: 84.1319053 | R31: 84.1319053
A32: =IF(COUNTRY_INFO!A32=0," ",COUNTRY_INFO!A32) -> ESWATINI | B32: =IF(COUNTRY_INFO!B32=0," ",COUNTRY_INFO!B32) -> LUBOMBO | C32: =IF(COUNTRY_INFO!C32=0," ",COUNTRY_INFO!C32) -> Siphofaneni | D32: =IF(OR(COUNTRY_INFO!$T$9:$T$1000="T3 (ALB/MBD)",COUNTRY_INFO!$U$9:$U$1000="T3 (ALB/MBD)"), "T3 (ALB/MBD)", " ") ->  | J32: 0 | N32: 0
A33: =IF(COUNTRY_INFO!A33=0," ",COUNTRY_INFO!A33) -> ESWATINI | B33: =IF(COUNTRY_INFO!B33=0," ",COUNTRY_INFO!B33) -> LUBOMBO | C33: =IF(COUNTRY_INFO!C33=0," ",COUNTRY_INFO!C33) -> Sithobela | D33: =IF(OR(COUNTRY_INFO!$T$9:$T$1000="T3 (ALB/MBD)",COUNTRY_INFO!$U$9:$U$1000="T3 (ALB/MBD)"), "T3 (ALB/MBD)", " ") -> T3 (ALB/MBD) | E33: ALB | F33: June 2019 | H33: =COUNTRY_INFO!F33 -> 6749 | J33: 6749 | L33: 5772 | N33: 5772 | P33: 85.5237813 | R33: 85.5237813
A34: =IF(COUNTRY_INFO!A34=0," ",COUNTRY_INFO!A34) -> ESWATINI | B34: =IF(COUNTRY_INFO!B34=0," ",COUNTRY_INFO!B34) -> MANZINI | C34: =IF(COUNTRY_INFO!C34=0," ",COUNTRY_INFO!C34) -> Kukhanyeni | D34: =IF(OR(COUNTRY_INFO!$T$9:$T$1000="T3 (ALB/MBD)",COUNTRY_INFO!$U$9:$U$1000="T3 (ALB/MBD)"), "T3 (ALB/MBD)", " ") ->  | J34: 0 | N34: 0
A35: =IF(COUNTRY_INFO!A35=0," ",COUNTRY_INFO!A35) -> ESWATINI | B35: =IF(COUNTRY_INFO!B35=0," ",COUNTRY_INFO!B35) -> MANZINI | C35: =IF(COUNTRY_INFO!C35=0," ",COUNTRY_INFO!C35) -> Kwaluseni | D35: =IF(OR(COUNTRY_INFO!$T$9:$T$1000="T3 (ALB/MBD)",COUNTRY_INFO!$U$9:$U$1000="T3 (ALB/MBD)"), "T3 (ALB/MBD)", " ") ->  | J35: 0 | N35: 0
A36: =IF(COUNTRY_INFO!A36=0," ",COUNTRY_INFO!A36) -> ESWATINI | B36: =IF(COUNTRY_INFO!B36=0," ",COUNTRY_INFO!B36) -> MANZINI | C36: =IF(COUNTRY_INFO!C36=0," ",COUNTRY_INFO!C36) -> LaMgabhi | D36: =IF(OR(COUNTRY_INFO!$T$9:$T$1000="T3 (ALB/MBD)",COUNTRY_INFO!$U$9:$U$1000="T3 (ALB/MBD)"), "T3 (ALB/MBD)", " ") ->  | J36: 0 | N36: 0
A37: =IF(COUNTRY_INFO!A37=0," ",COUNTRY_INFO!A37) -> ESWATINI | B37: =IF(COUNTRY_INFO!B37=0," ",COUNTRY_INFO!B37) -> MANZINI | C37: =IF(COUNTRY_INFO!C37=0," ",COUNTRY_INFO!C37) -> Lobamba Lomdzala | D37: =IF(OR(COUNTRY_INFO!$T$9:$T$1000="T3 (ALB/MBD)",COUNTRY_INFO!$U$9:$U$1000="T3 (ALB/MBD)"), "T3 (ALB/MBD)", " ") -> T3 (ALB/MBD) | E37: ALB | F37: June 2019 | H37: =COUNTRY_INFO!F37 -> 5248 | J37: 5248 | L37: 5076 | N37: 5076 | P37: 96.72256098 | R37: 96.72256098
A38: =IF(COUNTRY_INFO!A38=0," ",COUNTRY_INFO!A38) -> ESWATINI | B38: =IF(COUNTRY_INFO!B38=0," ",COUNTRY_INFO!B38) -> MANZINI | C38: =IF(COUNTRY_INFO!C38=0," ",COUNTRY_INFO!C38) -> Ludzeludze | D38: =IF(OR(COUNTRY_INFO!$T$9:$T$1000="T3 (ALB/MBD)",COUNTRY_INFO!$U$9:$U$1000="T3 (ALB/MBD)"), "T3 (ALB/MBD)", " ") ->  | J38: 0 | N38: 0
A39: =IF(COUNTRY_INFO!A39=0," ",COUNTRY_INFO!A39) -> ESWATINI | B39: =IF(COUNTRY_INFO!B39=0," ",COUNTRY_INFO!B39) -> MANZINI | C39: =IF(COUNTRY_INFO!C39=0," ",COUNTRY_INFO!C39) -> Mafutseni | D39: =IF(OR(COUNTRY_INFO!$T$9:$T$1000="T3 (ALB/MBD)",COUNTRY_INFO!$U$9:$U$1000="T3 (ALB/MBD)"), "T3 (ALB/MBD)", " ") ->  | J39: 0 | N39: 0
A40: =IF(COUNTRY_INFO!A40=0," ",COUNTRY_INFO!A40) -> ESWATINI | B40: =IF(COUNTRY_INFO!B40=0," ",COUNTRY_INFO!B40) -> MANZINI | C40: =IF(COUNTRY_INFO!C40=0," ",COUNTRY_INFO!C40) -> Mahlangatsha | D40: =IF(OR(COUNTRY_INFO!$T$9:$T$1000="T3 (ALB/MBD)",COUNTRY_INFO!$U$9:$U$1000="T3 (ALB/MBD)"), "T3 (ALB/MBD)", " ") ->  | J40: 0 | N40: 0
A41: =IF(COUNTRY_INFO!A41=0," ",COUNTRY_INFO!A41) -> ESWATINI | B41: =IF(COUNTRY_INFO!B41=0," ",COUNTRY_INFO!B41) -> MANZINI | C41: =IF(COUNTRY_INFO!C41=0," ",COUNTRY_INFO!C41) -> Mangcongco | D41: =IF(OR(COUNTRY_INFO!$T$9:$T$1000="T3 (ALB/MBD)",COUNTRY_INFO!$U$9:$U$1000="T3 (ALB/MBD)"), "T3 (ALB/MBD)", " ") ->  | J41: 0 | N41: 0
A42: =IF(COUNTRY_INFO!A42=0," ",COUNTRY_INFO!A42) -> ESWATINI | B42: =IF(COUNTRY_INFO!B42=0," ",COUNTRY_INFO!B42) -> MANZINI | C42: =IF(COUNTRY_INFO!C42=0," ",COUNTRY_INFO!C42) -> Manzini North | D42: =IF(OR(COUNTRY_INFO!$T$9:$T$1000="T3 (ALB/MBD)",COUNTRY_INFO!$U$9:$U$1000="T3 (ALB/MBD)"), "T3 (ALB/MBD)", " ") ->  | J42: 0 | N42: 0
A43: =IF(COUNTRY_INFO!A43=0," ",COUNTRY_INFO!A43) -> ESWATINI | B43: =IF(COUNTRY_INFO!B43=0," ",COUNTRY_INFO!B43) -> MANZINI | C43: =IF(COUNTRY_INFO!C43=0," ",COUNTRY_INFO!C43) -> Manzini South | D43: =IF(OR(COUNTRY_INFO!$T$9:$T$1000="T3 (ALB/MBD)",COUNTRY_INFO!$U$9:$U$1000="T3 (ALB/MBD)"), "T3 (ALB/MBD)", " ") ->  | J43: 0 | N43: 0
A44: =IF(COUNTRY_INFO!A44=0," ",COUNTRY_INFO!A44) -> ESWATINI | B44: =IF(COUNTRY_INFO!B44=0," ",COUNTRY_INFO!B44) -> MANZINI | C44: =IF(COUNTRY_INFO!C44=0," ",COUNTRY_INFO!C44) -> Mhlambanyatsi | D44: =IF(OR(COUNTRY_INFO!$T$9:$T$1000="T3 (ALB/MBD)",COUNTRY_INFO!$U$9:$U$1000="T3 (ALB/MBD)"), "T3 (ALB/MBD)", " ") ->  | J44: 0 | N44: 0
A45: =IF(COUNTRY_INFO!A45=0," ",COUNTRY_INFO!A45) -> ESWATINI | B45: =IF(COUNTRY_INFO!B45=0," ",COUNTRY_INFO!B45) -> MANZINI | C45: =IF(COUNTRY_INFO!C45=0," ",COUNTRY_INFO!C45) -> Mkhiweni | D45: =IF(OR(COUNTRY_INFO!$T$9:$T$1000="T3 (ALB/MBD)",COUNTRY_INFO!$U$9:$U$1000="T3 (ALB/MBD)"), "T3 (ALB/MBD)", " ") ->  | J45: 0 | N45: 0
A46: =IF(COUNTRY_INFO!A46=0," ",COUNTRY_INFO!A46) -> ESWATINI | B46: =IF(COUNTRY_INFO!B46=0," ",COUNTRY_INFO!B46) -> MANZINI | C46: =IF(COUNTRY_INFO!C46=0," ",COUNTRY_INFO!C46) -> Mtfongwaneni | D46: =IF(OR(COUNTRY_INFO!$T$9:$T$1000="T3 (ALB/MBD)",COUNTRY_INFO!$U$9:$U$1000="T3 (ALB/MBD)"), "T3 (ALB/MBD)", " ") ->  | J46: 0 | N46: 0
A47: =IF(COUNTRY_INFO!A47=0," ",COUNTRY_INFO!A47) -> ESWATINI | B47: =IF(COUNTRY_INFO!B47=0," ",COUNTRY_INFO!B47) -> MANZINI | C47: =IF(COUNTRY_INFO!C47=0," ",COUNTRY_INFO!C47) -> Ngwemphisi | D47: =IF(OR(COUNTRY_INFO!$T$9:$T$1000="T3 (ALB/MBD)",COUNTRY_INFO!$U$9:$U$1000="T3 (ALB/MBD)"), "T3 (ALB/MBD)", " ") ->  | J47: 0 | N47: 0
A48: =IF(COUNTRY_INFO!A48=0," ",COUNTRY_INFO!A48) -> ESWATINI | B48: =IF(COUNTRY_INFO!B48=0," ",COUNTRY_INFO!B48) -> MANZINI | C48: =IF(COUNTRY_INFO!C48=0," ",COUNTRY_INFO!C48) -> Nhlambeni | D48: =IF(OR(COUNTRY_INFO!$T$9:$T$1000="T3 (ALB/MBD)",COUNTRY_INFO!$U$9:$U$1000="T3 (ALB/MBD)"), "T3 (ALB/MBD)", " ") ->  | J48: 0 | N48: 0
A49: =IF(COUNTRY_INFO!A49=0," ",COUNTRY_INFO!A49) -> ESWATINI | B49: =IF(COUNTRY_INFO!B49=0," ",COUNTRY_INFO!B49) -> MANZINI | C49: =IF(COUNTRY_INFO!C49=0," ",COUNTRY_INFO!C49) -> Ntondozi | D49: =IF(OR(COUNTRY_INFO!$T$9:$T$1000="T3 (ALB/MBD)",COUNTRY_INFO!$U$9:$U$1000="T3 (ALB/MBD)"), "T3 (ALB/MBD)", " ") ->  | J49: 0 | N49: 0
A50: =IF(COUNTRY_INFO!A50=0," ",COUNTRY_INFO!A50) -> ESWATINI | B50: =IF(COUNTRY_INFO!B50=0," ",COUNTRY_INFO!B50) -> SHISELWENI | C50: =IF(COUNTRY_INFO!C50=0," ",COUNTRY_INFO!C50) -> Gege | D50: =IF(OR(COUNTRY_INFO!$T$9:$T$1000="T3 (ALB/MBD)",COUNTRY_INFO!$U$9:$U$1000="T3 (ALB/MBD)"), "T3 (ALB/MBD)", " ") ->  | J50: 0 | N50: 0
A51: =IF(COUNTRY_INFO!A51=0," ",COUNTRY_INFO!A51) -> ESWATINI | B51: =IF(COUNTRY_INFO!B51=0," ",COUNTRY_INFO!B51) -> SHISELWENI | C51: =IF(COUNTRY_INFO!C51=0," ",COUNTRY_INFO!C51) -> Hosea | D51: =IF(OR(COUNTRY_INFO!$T$9:$T$1000="T3 (ALB/MBD)",COUNTRY_INFO!$U$9:$U$1000="T3 (ALB/MBD)"), "T3 (ALB/MBD)", " ") ->  | J51: 0 | N51: 0
A52: =IF(COUNTRY_INFO!A52=0," ",COUNTRY_INFO!A52) -> ESWATINI | B52: =IF(COUNTRY_INFO!B52=0," ",COUNTRY_INFO!B52) -> SHISELWENI | C52: =IF(COUNTRY_INFO!C52=0," ",COUNTRY_INFO!C52) -> Khubutha | D52: =IF(OR(COUNTRY_INFO!$T$9:$T$1000="T3 (ALB/MBD)",COUNTRY_INFO!$U$9:$U$1000="T3 (ALB/MBD)"), "T3 (ALB/MBD)", " ") ->  | J52: 0 | N52: 0
A53: =IF(COUNTRY_INFO!A53=0," ",COUNTRY_INFO!A53) -> ESWATINI | B53: =IF(COUNTRY_INFO!B53=0," ",COUNTRY_INFO!B53) -> SHISELWENI | C53: =IF(COUNTRY_INFO!C53=0," ",COUNTRY_INFO!C53) -> Maseyisini | D53: =IF(OR(COUNTRY_INFO!$T$9:$T$1000="T3 (ALB/MBD)",COUNTRY_INFO!$U$9:$U$1000="T3 (ALB/MBD)"), "T3 (ALB/MBD)", " ") ->  | J53: 0 | N53: 0
A54: =IF(COUNTRY_INFO!A54=0," ",COUNTRY_INFO!A54) -> ESWATINI | B54: =IF(COUNTRY_INFO!B54=0," ",COUNTRY_INFO!B54) -> SHISELWENI | C54: =IF(COUNTRY_INFO!C54=0," ",COUNTRY_INFO!C54) -> Matsanjeni South | D54: =IF(OR(COUNTRY_INFO!$T$9:$T$1000="T3 (ALB/MBD)",COUNTRY_INFO!$U$9:$U$1000="T3 (ALB/MBD)"), "T3 (ALB/MBD)", " ") ->  | J54: 0 | N54: 0
A55: =IF(COUNTRY_INFO!A55=0," ",COUNTRY_INFO!A55) -> ESWATINI | B55: =IF(COUNTRY_INFO!B55=0," ",COUNTRY_INFO!B55) -> SHISELWENI | C55: =IF(COUNTRY_INFO!C55=0," ",COUNTRY_INFO!C55) -> Mtsambama | D55: =IF(OR(COUNTRY_INFO!$T$9:$T$1000="T3 (ALB/MBD)",COUNTRY_INFO!$U$9:$U$1000="T3 (ALB/MBD)"), "T3 (ALB/MBD)", " ") ->  | J55: 0 | N55: 0
A56: =IF(COUNTRY_INFO!A56=0," ",COUNTRY_INFO!A56) -> ESWATINI | B56: =IF(COUNTRY_INFO!B56=0," ",COUNTRY_INFO!B56) -> SHISELWENI | C56: =IF(COUNTRY_INFO!C56=0," ",COUNTRY_INFO!C56) -> Ngudzeni | D56: =IF(OR(COUNTRY_INFO!$T$9:$T$1000="T3 (ALB/MBD)",COUNTRY_INFO!$U$9:$U$1000="T3 (ALB/MBD)"), "T3 (ALB/MBD)", " ") ->  | J56: 0 | N56: 0
A57: =IF(COUNTRY_INFO!A57=0," ",COUNTRY_INFO!A57) -> ESWATINI | B57: =IF(COUNTRY_INFO!B57=0," ",COUNTRY_INFO!B57) -> SHISELWENI | C57: =IF(COUNTRY_INFO!C57=0," ",COUNTRY_INFO!C57) -> Nkwene | D57: =IF(OR(COUNTRY_INFO!$T$9:$T$1000="T3 (ALB/MBD)",COUNTRY_INFO!$U$9:$U$1000="T3 (ALB/MBD)"), "T3 (ALB/MBD)", " ") ->  | J57: 0 | N57: 0
A58: =IF(COUNTRY_INFO!A58=0," ",COUNTRY_INFO!A58) -> ESWATINI | B58: =IF(COUNTRY_INFO!B58=0," ",COUNTRY_INFO!B58) -> SHISELWENI | C58: =IF(COUNTRY_INFO!C58=0," ",COUNTRY_INFO!C58) -> Sandleni | D58: =IF(OR(COUNTRY_INFO!$T$9:$T$1000="T3 (ALB/MBD)",COUNTRY_INFO!$U$9:$U$1000="T3 (ALB/MBD)"), "T3 (ALB/MBD)", " ") ->  | J58: 0 | N58: 0
A59: =IF(COUNTRY_INFO!A59=0," ",COUNTRY_INFO!A59) -> ESWATINI | B59: =IF(COUNTRY_INFO!B59=0," ",COUNTRY_INFO!B59) -> SHISELWENI | C59: =IF(COUNTRY_INFO!C59=0," ",COUNTRY_INFO!C59) -> Shiselweni 1 | D59: =IF(OR(COUNTRY_INFO!$T$9:$T$1000="T3 (ALB/MBD)",COUNTRY_INFO!$U$9:$U$1000="T3 (ALB/MBD)"), "T3 (ALB/MBD)", " ") ->  | J59: 0 | N59: 0
A60: =IF(COUNTRY_INFO!A60=0," ",COUNTRY_INFO!A60) -> ESWATINI | B60: =IF(COUNTRY_INFO!B60=0," ",COUNTRY_INFO!B60) -> SHISELWENI | C60: =IF(COUNTRY_INFO!C60=0," ",COUNTRY_INFO!C60) -> Shiselweni 2/Mbangweni | D60: =IF(OR(COUNTRY_INFO!$T$9:$T$1000="T3 (ALB/MBD)",COUNTRY_INFO!$U$9:$U$1000="T3 (ALB/MBD)"), "T3 (ALB/MBD)", " ") -> T3 (ALB/MBD) | E60: ALB | F60: June 2019 | H60: =COUNTRY_INFO!F60 -> 7767 | J60: 7767 | L60: 4132 | N60: 4132 | P60: 53.1994335 | R60: 53.1994335
A61: =IF(COUNTRY_INFO!A61=0," ",COUNTRY_INFO!A61) -> ESWATINI | B61: =IF(COUNTRY_INFO!B61=0," ",COUNTRY_INFO!B61) -> SHISELWENI | C61: =IF(COUNTRY_INFO!C61=0," ",COUNTRY_INFO!C61) -> Sigwe | D61: =IF(OR(COUNTRY_INFO!$T$9:$T$1000="T3 (ALB/MBD)",COUNTRY_INFO!$U$9:$U$1000="T3 (ALB/MBD)"), "T3 (ALB/MBD)", " ") ->  | J61: 0 | N61: 0
A62: =IF(COUNTRY_INFO!A62=0," ",COUNTRY_INFO!A62) -> ESWATINI | B62: =IF(COUNTRY_INFO!B62=0," ",COUNTRY_INFO!B62) -> SHISELWENI | C62: =IF(COUNTRY_INFO!C62=0," ",COUNTRY_INFO!C62) -> Somntongo | D62: =IF(OR(COUNTRY_INFO!$T$9:$T$1000="T3 (ALB/MBD)",COUNTRY_INFO!$U$9:$U$1000="T3 (ALB/MBD)"), "T3 (ALB/MBD)", " ") ->  | J62: 0 | N62: 0
A63: =IF(COUNTRY_INFO!A63=0," ",COUNTRY_INFO!A63) -> ESWATINI | B63: =IF(COUNTRY_INFO!B63=0," ",COUNTRY_INFO!B63) -> SHISELWENI | C63: =IF(COUNTRY_INFO!C63=0," ",COUNTRY_INFO!C63) -> Zombodze Emuva | D63: =IF(OR(COUNTRY_INFO!$T$9:$T$1000="T3 (ALB/MBD)",COUNTRY_INFO!$U$9:$U$1000="T3 (ALB/MBD)"), "T3 (ALB/MBD)", " ") ->  | J63: 0 | N63: 0

Sheet T3_R2
A1: T 3 - Albendazole (ALB) or Mebendazole (MBD) - Round 2
A2: Administrative structure, population requiring PC by age group, population treated by age group and coverage
A4: TOTAL | G4: =SUM(G$9:G$1000) -> 0 | H4: 0 | I4: 0 | J4: 0 | K4: 0 | L4: 0 | M4: 0 | N4: 0 | O4: =IF(G4<>0, IF(K4/G4*100=0, "-", K4/G4*100), " ") ->  | P4: =IF(H4<>0, IF(L4/H4*100=0, "-", L4/H4*100), " ") ->  | Q4: =IF(I4<>0, IF(M4/I4*100=0, "-", M4/I4*100), " ") ->  | R4: =IF(J4<>0, IF(N4/J4*100=0, "-", N4/J4*100), " ") -> 
D6: PC implemented | E6: Medicine | F6: Date | G6: Population targeted for T3 | K6: Population treated | O6: Programme coverage (%)
A7: Country | B7: Province/State | C7: District | G7: PreSAC | H7: SAC | I7: Adults | J7: Total | K7: PreSAC | L7: SAC | M7: Adults | N7: Total | O7: PreSAC | P7: SAC | Q7: Adults | R7: Total
A9: =IF(COUNTRY_INFO!A9=0," ",COUNTRY_INFO!A9) -> ESWATINI | B9: =IF(COUNTRY_INFO!B9=0," ",COUNTRY_INFO!B9) -> HHOHHO | C9: =IF(COUNTRY_INFO!C9=0," ",COUNTRY_INFO!C9) -> Hhukwini | D9: =IF(AND(COUNTRY_INFO!$T$9:$T$1000="T3 (ALB/MBD)",COUNTRY_INFO!$U$9:$U$1000="T3 (ALB/MBD)"), "T3 (ALB/MBD)", " ") ->  | J9: =SUM(G9:I9) -> 0 | N9: =SUM(K9:M9) -> 0 | O9: =IF(G9<>0, IF(K9/G9*100=0, "-", K9/G9*100), " ") -> 
A10: =IF(COUNTRY_INFO!A10=0," ",COUNTRY_INFO!A10) -> ESWATINI | B10: =IF(COUNTRY_INFO!B10=0," ",COUNTRY_INFO!B10) -> HHOHHO | C10: =IF(COUNTRY_INFO!C10=0," ",COUNTRY_INFO!C10) -> Lobamba | D10: =IF(AND(COUNTRY_INFO!$T$9:$T$1000="T3 (ALB/MBD)",COUNTRY_INFO!$U$9:$U$1000="T3 (ALB/MBD)"), "T3 (ALB/MBD)", " ") ->  | J10: =SUM(G10:I10) -> 0 | N10: =SUM(K10:M10) -> 0 | O10: =IF(G10<>0, IF(K10/G10*100=0, "-", K10/G10*100), " ") ->  | P10: =IF(H10<>0, IF(L10/H10*100=0, "-", L10/H10*100), " ") ->  | Q10: =IF(I10<>0, IF(M10/I10*100=0, "-", M10/I10*100), " ") ->  | R10: =IF(J10<>0, IF(N10/J10*100=0, "-", N10/J10*100), " ") -> 
A11: =IF(COUNTRY_INFO!A11=0," ",COUNTRY_INFO!A11) -> ESWATINI | B11: =IF(COUNTRY_INFO!B11=0," ",COUNTRY_INFO!B11) -> HHOHHO | C11: =IF(COUNTRY_INFO!C11=0," ",COUNTRY_INFO!C11) -> Madlangempisi | D11: =IF(AND(COUNTRY_INFO!$T$9:$T$1000="T3 (ALB/MBD)",COUNTRY_INFO!$U$9:$U$1000="T3 (ALB/MBD)"), "T3 (ALB/MBD)", " ") ->  | J11: 0 | N11: 0
A12: =IF(COUNTRY_INFO!A12=0," ",COUNTRY_INFO!A12) -> ESWATINI | B12: =IF(COUNTRY_INFO!B12=0," ",COUNTRY_INFO!B12) -> HHOHHO | C12: =IF(COUNTRY_INFO!C12=0," ",COUNTRY_INFO!C12) -> Maphalaleni | D12: =IF(AND(COUNTRY_INFO!$T$9:$T$1000="T3 (ALB/MBD)",COUNTRY_INFO!$U$9:$U$1000="T3 (ALB/MBD)"), "T3 (ALB/MBD)", " ") ->  | J12: 0 | N12: 0
A13: =IF(COUNTRY_INFO!A13=0," ",COUNTRY_INFO!A13) -> ESWATINI | B13: =IF(COUNTRY_INFO!B13=0," ",COUNTRY_INFO!B13) -> HHOHHO | C13: =IF(COUNTRY_INFO!C13=0," ",COUNTRY_INFO!C13) -> Mayiwane | D13: =IF(AND(COUNTRY_INFO!$T$9:$T$1000="T3 (ALB/MBD)",COUNTRY_INFO!$U$9:$U$1000="T3 (ALB/MBD)"), "T3 (ALB/MBD)", " ") ->  | J13: 0 | N13: 0
A14: =IF(COUNTRY_INFO!A14=0," ",COUNTRY_INFO!A14) -> ESWATINI | B14: =IF(COUNTRY_INFO!B14=0," ",COUNTRY_INFO!B14) -> HHOHHO | C14: =IF(COUNTRY_INFO!C14=0," ",COUNTRY_INFO!C14) -> Mbabane East | D14: =IF(AND(COUNTRY_INFO!$T$9:$T$1000="T3 (ALB/MBD)",COUNTRY_INFO!$U$9:$U$1000="T3 (ALB/MBD)"), "T3 (ALB/MBD)", " ") ->  | J14: 0 | N14: 0
A15: =IF(COUNTRY_INFO!A15=0," ",COUNTRY_INFO!A15) -> ESWATINI | B15: =IF(COUNTRY_INFO!B15=0," ",COUNTRY_INFO!B15) -> HHOHHO | C15: =IF(COUNTRY_INFO!C15=0," ",COUNTRY_INFO!C15) -> Mbabane West | D15: =IF(AND(COUNTRY_INFO!$T$9:$T$1000="T3 (ALB/MBD)",COUNTRY_INFO!$U$9:$U$1000="T3 (ALB/MBD)"), "T3 (ALB/MBD)", " ") ->  | J15: 0 | N15: 0
A16: =IF(COUNTRY_INFO!A16=0," ",COUNTRY_INFO!A16) -> ESWATINI | B16: =IF(COUNTRY_INFO!B16=0," ",COUNTRY_INFO!B16) -> HHOHHO | C16: =IF(COUNTRY_INFO!C16=0," ",COUNTRY_INFO!C16) -> Mhlangatane | D16: =IF(AND(COUNTRY_INFO!$T$9:$T$1000="T3 (ALB/MBD)",COUNTRY_INFO!$U$9:$U$1000="T3 (ALB/MBD)"), "T3 (ALB/MBD)", " ") ->  | J16: 0 | N16: 0
A17: =IF(COUNTRY_INFO!A17=0," ",COUNTRY_INFO!A17) -> ESWATINI | B17: =IF(COUNTRY_INFO!B17=0," ",COUNTRY_INFO!B17) -> HHOHHO | C17: =IF(COUNTRY_INFO!C17=0," ",COUNTRY_INFO!C17) -> Motshane | D17: =IF(AND(COUNTRY_INFO!$T$9:$T$1000="T3 (ALB/MBD)",COUNTRY_INFO!$U$9:$U$1000="T3 (ALB/MBD)"), "T3 (ALB/MBD)", " ") ->  | J17: 0 | N17: 0
A18: =IF(COUNTRY_INFO!A18=0," ",COUNTRY_INFO!A18) -> ESWATINI | B18: =IF(COUNTRY_INFO!B18=0," ",COUNTRY_INFO!B18) -> HHOHHO | C18: =IF(COUNTRY_INFO!C18=0," ",COUNTRY_INFO!C18) -> Ndzingeni | D18: =IF(AND(COUNTRY_INFO!$T$9:$T$1000="T3 (ALB/MBD)",COUNTRY_INFO!$U$9:$U$1000="T3 (ALB/MBD)"), "T3 (ALB/MBD)", " ") ->  | J18: 0 | N18: 0
A19: =IF(COUNTRY_INFO!A19=0," ",COUNTRY_INFO!A19) -> ESWATINI | B19: =IF(COUNTRY_INFO!B19=0," ",COUNTRY_INFO!B19) -> HHOHHO | C19: =IF(COUNTRY_INFO!C19=0," ",COUNTRY_INFO!C19) -> Nkhaba | D19: =IF(AND(COUNTRY_INFO!$T$9:$T$1000="T3 (ALB/MBD)",COUNTRY_INFO!$U$9:$U$1000="T3 (ALB/MBD)"), "T3 (ALB/MBD)", " ") ->  | J19: 0 | N19: 0
A20: =IF(COUNTRY_INFO!A20=0," ",COUNTRY_INFO!A20) -> ESWATINI | B20: =IF(COUNTRY_INFO!B20=0," ",COUNTRY_INFO!B20) -> HHOHHO | C20: =IF(COUNTRY_INFO!C20=0," ",COUNTRY_INFO!C20) -> Ntfonjeni | D20: =IF(AND(COUNTRY_INFO!$T$9:$T$1000="T3 (ALB/MBD)",COUNTRY_INFO!$U$9:$U$1000="T3 (ALB/MBD)"), "T3 (ALB/MBD)", " ") ->  | J20: 0 | N20: 0
A21: =IF(COUNTRY_INFO!A21=0," ",COUNTRY_INFO!A21) -> ESWATINI | B21: =IF(COUNTRY_INFO!B21=0," ",COUNTRY_INFO!B21) -> HHOHHO | C21: =IF(COUNTRY_INFO!C21=0," ",COUNTRY_INFO!C21) -> Pigg's Peak | D21: =IF(AND(COUNTRY_INFO!$T$9:$T$1000="T3 (ALB/MBD)",COUNTRY_INFO!$U$9:$U$1000="T3 (ALB/MBD)"), "T3 (ALB/MBD)", " ") ->  | J21: 0 | N21: 0
A22: =IF(COUNTRY_INFO!A22=0," ",COUNTRY_INFO!A22) -> ESWATINI | B22: =IF(COUNTRY_INFO!B22=0," ",COUNTRY_INFO!B22) -> HHOHHO | C22: =IF(COUNTRY_INFO!C22=0," ",COUNTRY_INFO!C22) -> Timphisini | D22: =IF(AND(COUNTRY_INFO!$T$9:$T$1000="T3 (ALB/MBD)",COUNTRY_INFO!$U$9:$U$1000="T3 (ALB/MBD)"), "T3 (ALB/MBD)", " ") ->  | J22: 0 | N22: 0
A23: =IF(COUNTRY_INFO!A23=0," ",COUNTRY_INFO!A23) -> ESWATINI | B23: =IF(COUNTRY_INFO!B23=0," ",COUNTRY_INFO!B23) -> LUBOMBO | C23: =IF(COUNTRY_INFO!C23=0," ",COUNTRY_INFO!C23) -> Dvokodvweni | D23: =IF(AND(COUNTRY_INFO!$T$9:$T$1000="T3 (ALB/MBD)",COUNTRY_INFO!$U$9:$U$1000="T3 (ALB/MBD)"), "T3 (ALB/MBD)", " ") ->  | J23: 0 | N23: 0
A24: =IF(COUNTRY_INFO!A24=0," ",COUNTRY_INFO!A24) -> ESWATINI | B24: =IF(COUNTRY_INFO!B24=0," ",COUNTRY_INFO!B24) -> LUBOMBO | C24: =IF(COUNTRY_INFO!C24=0," ",COUNTRY_INFO!C24) -> Hlane | D24: =IF(AND(COUNTRY_INFO!$T$9:$T$1000="T3 (ALB/MBD)",COUNTRY_INFO!$U$9:$U$1000="T3 (ALB/MBD)"), "T3 (ALB/MBD)", " ") ->  | J24: 0 | N24: 0
A25: =IF(COUNTRY_INFO!A25=0," ",COUNTRY_INFO!A25) -> ESWATINI | B25: =IF(COUNTRY_INFO!B25=0," ",COUNTRY_INFO!B25) -> LUBOMBO | C25: =IF(COUNTRY_INFO!C25=0," ",COUNTRY_INFO!C25) -> Lomahasha | D25: =IF(AND(COUNTRY_INFO!$T$9:$T$1000="T3 (ALB/MBD)",COUNTRY_INFO!$U$9:$U$1000="T3 (ALB/MBD)"), "T3 (ALB/MBD)", " ") ->  | J25: 0 | N25: 0
A26: =IF(COUNTRY_INFO!A26=0," ",COUNTRY_INFO!A26) -> ESWATINI | B26: =IF(COUNTRY_INFO!B26=0," ",COUNTRY_INFO!B26) -> LUBOMBO | C26: =IF(COUNTRY_INFO!C26=0," ",COUNTRY_INFO!C26) -> Lubuli | D26: =IF(AND(COUNTRY_INFO!$T$9:$T$1000="T3 (ALB/MBD)",COUNTRY_INFO!$U$9:$U$1000="T3 (ALB/MBD)"), "T3 (ALB/MBD)", " ") ->  | J26: 0 | N26: 0
A27: =IF(COUNTRY_INFO!A27=0," ",COUNTRY_INFO!A27) -> ESWATINI | B27: =IF(COUNTRY_INFO!B27=0," ",COUNTRY_INFO!B27) -> LUBOMBO | C27: =IF(COUNTRY_INFO!C27=0," ",COUNTRY_INFO!C27) -> Lugongolweni | D27: =IF(AND(COUNTRY_INFO!$T$9:$T$1000="T3 (ALB/MBD)",COUNTRY_INFO!$U$9:$U$1000="T3 (ALB/MBD)"), "T3 (ALB/MBD)", " ") ->  | J27: 0 | N27: 0
A28: =IF(COUNTRY_INFO!A28=0," ",COUNTRY_INFO!A28) -> ESWATINI | B28: =IF(COUNTRY_INFO!B28=0," ",COUNTRY_INFO!B28) -> LUBOMBO | C28: =IF(COUNTRY_INFO!C28=0," ",COUNTRY_INFO!C28) -> Matsanjeni North | D28: =IF(AND(COUNTRY_INFO!$T$9:$T$1000="T3 (ALB/MBD)",COUNTRY_INFO!$U$9:$U$1000="T3 (ALB/MBD)"), "T3 (ALB/MBD)", " ") ->  | J28: 0 | N28: 0
A29: =IF(COUNTRY_INFO!A29=0," ",COUNTRY_INFO!A29) -> ESWATINI | B29: =IF(COUNTRY_INFO!B29=0," ",COUNTRY_INFO!B29) -> LUBOMBO | C29: =IF(COUNTRY_INFO!C29=0," ",COUNTRY_INFO!C29) -> Mhlume | D29: =IF(AND(COUNTRY_INFO!$T$9:$T$1000="T3 (ALB/MBD)",COUNTRY_INFO!$U$9:$U$1000="T3 (ALB/MBD)"), "T3 (ALB/MBD)", " ") ->  | J29: 0 | N29: 0
A30: =IF(COUNTRY_INFO!A30=0," ",COUNTRY_INFO!A30) -> ESWATINI | B30: =IF(COUNTRY_INFO!B30=0," ",COUNTRY_INFO!B30) -> LUBOMBO | C30: =IF(COUNTRY_INFO!C30=0," ",COUNTRY_INFO!C30) -> Mpolonjeni | D30: =IF(AND(COUNTRY_INFO!$T$9:$T$1000="T3 (ALB/MBD)",COUNTRY_INFO!$U$9:$U$1000="T3 (ALB/MBD)"), "T3 (ALB/MBD)", " ") ->  | J30: 0 | N30: 0
A31: =IF(COUNTRY_INFO!A31=0," ",COUNTRY_INFO!A31) -> ESWATINI | B31: =IF(COUNTRY_INFO!B31=0," ",COUNTRY_INFO!B31) -> LUBOMBO | C31: =IF(COUNTRY_INFO!C31=0," ",COUNTRY_INFO!C31) -> Nkilongo | D31: =IF(AND(COUNTRY_INFO!$T$9:$T$1000="T3 (ALB/MBD)",COUNTRY_INFO!$U$9:$U$1000="T3 (ALB/MBD)"), "T3 (ALB/MBD)", " ") ->  | J31: 0 | N31: 0
A32: =IF(COUNTRY_INFO!A32=0," ",COUNTRY_INFO!A32) -> ESWATINI | B32: =IF(COUNTRY_INFO!B32=0," ",COUNTRY_INFO!B32) -> LUBOMBO | C32: =IF(COUNTRY_INFO!C32=0," ",COUNTRY_INFO!C32) -> Siphofaneni | D32: =IF(AND(COUNTRY_INFO!$T$9:$T$1000="T3 (ALB/MBD)",COUNTRY_INFO!$U$9:$U$1000="T3 (ALB/MBD)"), "T3 (ALB/MBD)", " ") ->  | J32: 0 | N32: 0
A33: =IF(COUNTRY_INFO!A33=0," ",COUNTRY_INFO!A33) -> ESWATINI | B33: =IF(COUNTRY_INFO!B33=0," ",COUNTRY_INFO!B33) -> LUBOMBO | C33: =IF(COUNTRY_INFO!C33=0," ",COUNTRY_INFO!C33) -> Sithobela | D33: =IF(AND(COUNTRY_INFO!$T$9:$T$1000="T3 (ALB/MBD)",COUNTRY_INFO!$U$9:$U$1000="T3 (ALB/MBD)"), "T3 (ALB/MBD)", " ") ->  | J33: 0 | N33: 0
A34: =IF(COUNTRY_INFO!A34=0," ",COUNTRY_INFO!A34) -> ESWATINI | B34: =IF(COUNTRY_INFO!B34=0," ",COUNTRY_INFO!B34) -> MANZINI | C34: =IF(COUNTRY_INFO!C34=0," ",COUNTRY_INFO!C34) -> Kukhanyeni | D34: =IF(AND(COUNTRY_INFO!$T$9:$T$1000="T3 (ALB/MBD)",COUNTRY_INFO!$U$9:$U$1000="T3 (ALB/MBD)"), "T3 (ALB/MBD)", " ") ->  | J34: 0 | N34: 0
A35: =IF(COUNTRY_INFO!A35=0," ",COUNTRY_INFO!A35) -> ESWATINI | B35: =IF(COUNTRY_INFO!B35=0," ",COUNTRY_INFO!B35) -> MANZINI | C35: =IF(COUNTRY_INFO!C35=0," ",COUNTRY_INFO!C35) -> Kwaluseni | D35: =IF(AND(COUNTRY_INFO!$T$9:$T$1000="T3 (ALB/MBD)",COUNTRY_INFO!$U$9:$U$1000="T3 (ALB/MBD)"), "T3 (ALB/MBD)", " ") ->  | J35: 0 | N35: 0
A36: =IF(COUNTRY_INFO!A36=0," ",COUNTRY_INFO!A36) -> ESWATINI | B36: =IF(COUNTRY_INFO!B36=0," ",COUNTRY_INFO!B36) -> MANZINI | C36: =IF(COUNTRY_INFO!C36=0," ",COUNTRY_INFO!C36) -> LaMgabhi | D36: =IF(AND(COUNTRY_INFO!$T$9:$T$1000="T3 (ALB/MBD)",COUNTRY_INFO!$U$9:$U$1000="T3 (ALB/MBD)"), "T3 (ALB/MBD)", " ") ->  | J36: 0 | N36: 0
A37: =IF(COUNTRY_INFO!A37=0," ",COUNTRY_INFO!A37) -> ESWATINI | B37: =IF(COUNTRY_INFO!B37=0," ",COUNTRY_INFO!B37) -> MANZINI | C37: =IF(COUNTRY_INFO!C37=0," ",COUNTRY_INFO!C37) -> Lobamba Lomdzala | D37: =IF(AND(COUNTRY_INFO!$T$9:$T$1000="T3 (ALB/MBD)",COUNTRY_INFO!$U$9:$U$1000="T3 (ALB/MBD)"), "T3 (ALB/MBD)", " ") ->  | J37: 0 | N37: 0
A38: =IF(COUNTRY_INFO!A38=0," ",COUNTRY_INFO!A38) -> ESWATINI | B38: =IF(COUNTRY_INFO!B38=0," ",COUNTRY_INFO!B38) -> MANZINI | C38: =IF(COUNTRY_INFO!C38=0," ",COUNTRY_INFO!C38) -> Ludzeludze | D38: =IF(AND(COUNTRY_INFO!$T$9:$T$1000="T3 (ALB/MBD)",COUNTRY_INFO!$U$9:$U$1000="T3 (ALB/MBD)"), "T3 (ALB/MBD)", " ") ->  | J38: 0 | N38: 0
A39: =IF(COUNTRY_INFO!A39=0," ",COUNTRY_INFO!A39) -> ESWATINI | B39: =IF(COUNTRY_INFO!B39=0," ",COUNTRY_INFO!B39) -> MANZINI | C39: =IF(COUNTRY_INFO!C39=0," ",COUNTRY_INFO!C39) -> Mafutseni | D39: =IF(AND(COUNTRY_INFO!$T$9:$T$1000="T3 (ALB/MBD)",COUNTRY_INFO!$U$9:$U$1000="T3 (ALB/MBD)"), "T3 (ALB/MBD)", " ") ->  | J39: 0 | N39: 0
A40: =IF(COUNTRY_INFO!A40=0," ",COUNTRY_INFO!A40) -> ESWATINI | B40: =IF(COUNTRY_INFO!B40=0," ",COUNTRY_INFO!B40) -> MANZINI | C40: =IF(COUNTRY_INFO!C40=0," ",COUNTRY_INFO!C40) -> Mahlangatsha | D40: =IF(AND(COUNTRY_INFO!$T$9:$T$1000="T3 (ALB/MBD)",COUNTRY_INFO!$U$9:$U$1000="T3 (ALB/MBD)"), "T3 (ALB/MBD)", " ") ->  | J40: 0 | N40: 0
A41: =IF(COUNTRY_INFO!A41=0," ",COUNTRY_INFO!A41) -> ESWATINI | B41: =IF(COUNTRY_INFO!B41=0," ",COUNTRY_INFO!B41) -> MANZINI | C41: =IF(COUNTRY_INFO!C41=0," ",COUNTRY_INFO!C41) -> Mangcongco | D41: =IF(AND(COUNTRY_INFO!$T$9:$T$1000="T3 (ALB/MBD)",COUNTRY_INFO!$U$9:$U$1000="T3 (ALB/MBD)"), "T3 (ALB/MBD)", " ") ->  | J41: 0 | N41: 0
A42: =IF(COUNTRY_INFO!A42=0," ",COUNTRY_INFO!A42) -> ESWATINI | B42: =IF(COUNTRY_INFO!B42=0," ",COUNTRY_INFO!B42) -> MANZINI | C42: =IF(COUNTRY_INFO!C42=0," ",COUNTRY_INFO!C42) -> Manzini North | D42: =IF(AND(COUNTRY_INFO!$T$9:$T$1000="T3 (ALB/MBD)",COUNTRY_INFO!$U$9:$U$1000="T3 (ALB/MBD)"), "T3 (ALB/MBD)", " ") ->  | J42: 0 | N42: 0
A43: =IF(COUNTRY_INFO!A43=0," ",COUNTRY_INFO!A43) -> ESWATINI | B43: =IF(COUNTRY_INFO!B43=0," ",COUNTRY_INFO!B43) -> MANZINI | C43: =IF(COUNTRY_INFO!C43=0," ",COUNTRY_INFO!C43) -> Manzini South | D43: =IF(AND(COUNTRY_INFO!$T$9:$T$1000="T3 (ALB/MBD)",COUNTRY_INFO!$U$9:$U$1000="T3 (ALB/MBD)"), "T3 (ALB/MBD)", " ") ->  | J43: 0 | N43: 0
A44: =IF(COUNTRY_INFO!A44=0," ",COUNTRY_INFO!A44) -> ESWATINI | B44: =IF(COUNTRY_INFO!B44=0," ",COUNTRY_INFO!B44) -> MANZINI | C44: =IF(COUNTRY_INFO!C44=0," ",COUNTRY_INFO!C44) -> Mhlambanyatsi | D44: =IF(AND(COUNTRY_INFO!$T$9:$T$1000="T3 (ALB/MBD)",COUNTRY_INFO!$U$9:$U$1000="T3 (ALB/MBD)"), "T3 (ALB/MBD)", " ") ->  | J44: 0 | N44: 0
A45: =IF(COUNTRY_INFO!A45=0," ",COUNTRY_INFO!A45) -> ESWATINI | B45: =IF(COUNTRY_INFO!B45=0," ",COUNTRY_INFO!B45) -> MANZINI | C45: =IF(COUNTRY_INFO!C45=0," ",COUNTRY_INFO!C45) -> Mkhiweni | D45: =IF(AND(COUNTRY_INFO!$T$9:$T$1000="T3 (ALB/MBD)",COUNTRY_INFO!$U$9:$U$1000="T3 (ALB/MBD)"), "T3 (ALB/MBD)", " ") ->  | J45: 0 | N45: 0
A46: =IF(COUNTRY_INFO!A46=0," ",COUNTRY_INFO!A46) -> ESWATINI | B46: =IF(COUNTRY_INFO!B46=0," ",COUNTRY_INFO!B46) -> MANZINI | C46: =IF(COUNTRY_INFO!C46=0," ",COUNTRY_INFO!C46) -> Mtfongwaneni | D46: =IF(AND(COUNTRY_INFO!$T$9:$T$1000="T3 (ALB/MBD)",COUNTRY_INFO!$U$9:$U$1000="T3 (ALB/MBD)"), "T3 (ALB/MBD)", " ") ->  | J46: 0 | N46: 0
A47: =IF(COUNTRY_INFO!A47=0," ",COUNTRY_INFO!A47) -> ESWATINI | B47: =IF(COUNTRY_INFO!B47=0," ",COUNTRY_INFO!B47) -> MANZINI | C47: =IF(COUNTRY_INFO!C47=0," ",COUNTRY_INFO!C47) -> Ngwemphisi | D47: =IF(AND(COUNTRY_INFO!$T$9:$T$1000="T3 (ALB/MBD)",COUNTRY_INFO!$U$9:$U$1000="T3 (ALB/MBD)"), "T3 (ALB/MBD)", " ") ->  | J47: 0 | N47: 0
A48: =IF(COUNTRY_INFO!A48=0," ",COUNTRY_INFO!A48) -> ESWATINI | B48: =IF(COUNTRY_INFO!B48=0," ",COUNTRY_INFO!B48) -> MANZINI | C48: =IF(COUNTRY_INFO!C48=0," ",COUNTRY_INFO!C48) -> Nhlambeni | D48: =IF(AND(COUNTRY_INFO!$T$9:$T$1000="T3 (ALB/MBD)",COUNTRY_INFO!$U$9:$U$1000="T3 (ALB/MBD)"), "T3 (ALB/MBD)", " ") ->  | J48: 0 | N48: 0
A49: =IF(COUNTRY_INFO!A49=0," ",COUNTRY_INFO!A49) -> ESWATINI | B49: =IF(COUNTRY_INFO!B49=0," ",COUNTRY_INFO!B49) -> MANZINI | C49: =IF(COUNTRY_INFO!C49=0," ",COUNTRY_INFO!C49) -> Ntondozi | D49: =IF(AND(COUNTRY_INFO!$T$9:$T$1000="T3 (ALB/MBD)",COUNTRY_INFO!$U$9:$U$1000="T3 (ALB/MBD)"), "T3 (ALB/MBD)", " ") ->  | J49: 0 | N49: 0
A50: =IF(COUNTRY_INFO!A50=0," ",COUNTRY_INFO!A50) -> ESWATINI | B50: =IF(COUNTRY_INFO!B50=0," ",COUNTRY_INFO!B50) -> SHISELWENI | C50: =IF(COUNTRY_INFO!C50=0," ",COUNTRY_INFO!C50) -> Gege | D50: =IF(AND(COUNTRY_INFO!$T$9:$T$1000="T3 (ALB/MBD)",COUNTRY_INFO!$U$9:$U$1000="T3 (ALB/MBD)"), "T3 (ALB/MBD)", " ") ->  | J50: 0 | N50: 0
A51: =IF(COUNTRY_INFO!A51=0," ",COUNTRY_INFO!A51) -> ESWATINI | B51: =IF(COUNTRY_INFO!B51=0," ",COUNTRY_INFO!B51) -> SHISELWENI | C51: =IF(COUNTRY_INFO!C51=0," ",COUNTRY_INFO!C51) -> Hosea | D51: =IF(AND(COUNTRY_INFO!$T$9:$T$1000="T3 (ALB/MBD)",COUNTRY_INFO!$U$9:$U$1000="T3 (ALB/MBD)"), "T3 (ALB/MBD)", " ") ->  | J51: 0 | N51: 0
A52: =IF(COUNTRY_INFO!A52=0," ",COUNTRY_INFO!A52) -> ESWATINI | B52: =IF(COUNTRY_INFO!B52=0," ",COUNTRY_INFO!B52) -> SHISELWENI | C52: =IF(COUNTRY_INFO!C52=0," ",COUNTRY_INFO!C52) -> Khubutha | D52: =IF(AND(COUNTRY_INFO!$T$9:$T$1000="T3 (ALB/MBD)",COUNTRY_INFO!$U$9:$U$1000="T3 (ALB/MBD)"), "T3 (ALB/MBD)", " ") ->  | J52: 0 | N52: 0
A53: =IF(COUNTRY_INFO!A53=0," ",COUNTRY_INFO!A53) -> ESWATINI | B53: =IF(COUNTRY_INFO!B53=0," ",COUNTRY_INFO!B53) -> SHISELWENI | C53: =IF(COUNTRY_INFO!C53=0," ",COUNTRY_INFO!C53) -> Maseyisini | D53: =IF(AND(COUNTRY_INFO!$T$9:$T$1000="T3 (ALB/MBD)",COUNTRY_INFO!$U$9:$U$1000="T3 (ALB/MBD)"), "T3 (ALB/MBD)", " ") ->  | J53: 0 | N53: 0
A54: =IF(COUNTRY_INFO!A54=0," ",COUNTRY_INFO!A54) -> ESWATINI | B54: =IF(COUNTRY_INFO!B54=0," ",COUNTRY_INFO!B54) -> SHISELWENI | C54: =IF(COUNTRY_INFO!C54=0," ",COUNTRY_INFO!C54) -> Matsanjeni South | D54: =IF(AND(COUNTRY_INFO!$T$9:$T$1000="T3 (ALB/MBD)",COUNTRY_INFO!$U$9:$U$1000="T3 (ALB/MBD)"), "T3 (ALB/MBD)", " ") ->  | J54: 0 | N54: 0
A55: =IF(COUNTRY_INFO!A55=0," ",COUNTRY_INFO!A55) -> ESWATINI | B55: =IF(COUNTRY_INFO!B55=0," ",COUNTRY_INFO!B55) -> SHISELWENI | C55: =IF(COUNTRY_INFO!C55=0," ",COUNTRY_INFO!C55) -> Mtsambama | D55: =IF(AND(COUNTRY_INFO!$T$9:$T$1000="T3 (ALB/MBD)",COUNTRY_INFO!$U$9:$U$1000="T3 (ALB/MBD)"), "T3 (ALB/MBD)", " ") ->  | J55: 0 | N55: 0
A56: =IF(COUNTRY_INFO!A56=0," ",COUNTRY_INFO!A56) -> ESWATINI | B56: =IF(COUNTRY_INFO!B56=0," ",COUNTRY_INFO!B56) -> SHISELWENI | C56: =IF(COUNTRY_INFO!C56=0," ",COUNTRY_INFO!C56) -> Ngudzeni | D56: =IF(AND(COUNTRY_INFO!$T$9:$T$1000="T3 (ALB/MBD)",COUNTRY_INFO!$U$9:$U$1000="T3 (ALB/MBD)"), "T3 (ALB/MBD)", " ") ->  | J56: 0 | N56: 0
A57: =IF(COUNTRY_INFO!A57=0," ",COUNTRY_INFO!A57) -> ESWATINI | B57: =IF(COUNTRY_INFO!B57=0," ",COUNTRY_INFO!B57) -> SHISELWENI | C57: =IF(COUNTRY_INFO!C57=0," ",COUNTRY_INFO!C57) -> Nkwene | D57: =IF(AND(COUNTRY_INFO!$T$9:$T$1000="T3 (ALB/MBD)",COUNTRY_INFO!$U$9:$U$1000="T3 (ALB/MBD)"), "T3 (ALB/MBD)", " ") ->  | J57: 0 | N57: 0
A58: =IF(COUNTRY_INFO!A58=0," ",COUNTRY_INFO!A58) -> ESWATINI | B58: =IF(COUNTRY_INFO!B58=0," ",COUNTRY_INFO!B58) -> SHISELWENI | C58: =IF(COUNTRY_INFO!C58=0," ",COUNTRY_INFO!C58) -> Sandleni | D58: =IF(AND(COUNTRY_INFO!$T$9:$T$1000="T3 (ALB/MBD)",COUNTRY_INFO!$U$9:$U$1000="T3 (ALB/MBD)"), "T3 (ALB/MBD)", " ") ->  | J58: 0 | N58: 0
A59: =IF(COUNTRY_INFO!A59=0," ",COUNTRY_INFO!A59) -> ESWATINI | B59: =IF(COUNTRY_INFO!B59=0," ",COUNTRY_INFO!B59) -> SHISELWENI | C59: =IF(COUNTRY_INFO!C59=0," ",COUNTRY_INFO!C59) -> Shiselweni 1 | D59: =IF(AND(COUNTRY_INFO!$T$9:$T$1000="T3 (ALB/MBD)",COUNTRY_INFO!$U$9:$U$1000="T3 (ALB/MBD)"), "T3 (ALB/MBD)", " ") ->  | J59: 0 | N59: 0
A60: =IF(COUNTRY_INFO!A60=0," ",COUNTRY_INFO!A60) -> ESWATINI | B60: =IF(COUNTRY_INFO!B60=0," ",COUNTRY_INFO!B60) -> SHISELWENI | C60: =IF(COUNTRY_INFO!C60=0," ",COUNTRY_INFO!C60) -> Shiselweni 2/Mbangweni | D60: =IF(AND(COUNTRY_INFO!$T$9:$T$1000="T3 (ALB/MBD)",COUNTRY_INFO!$U$9:$U$1000="T3 (ALB/MBD)"), "T3 (ALB/MBD)", " ") ->  | J60: 0 | N60: 0
A61: =IF(COUNTRY_INFO!A61=0," ",COUNTRY_INFO!A61) -> ESWATINI | B61: =IF(COUNTRY_INFO!B61=0," ",COUNTRY_INFO!B61) -> SHISELWENI | C61: =IF(COUNTRY_INFO!C61=0," ",COUNTRY_INFO!C61) -> Sigwe | D61: =IF(AND(COUNTRY_INFO!$T$9:$T$1000="T3 (ALB/MBD)",COUNTRY_INFO!$U$9:$U$1000="T3 (ALB/MBD)"), "T3 (ALB/MBD)", " ") ->  | J61: 0 | N61: 0
A62: =IF(COUNTRY_INFO!A62=0," ",COUNTRY_INFO!A62) -> ESWATINI | B62: =IF(COUNTRY_INFO!B62=0," ",COUNTRY_INFO!B62) -> SHISELWENI | C62: =IF(COUNTRY_INFO!C62=0," ",COUNTRY_INFO!C62) -> Somntongo | D62: =IF(AND(COUNTRY_INFO!$T$9:$T$1000="T3 (ALB/MBD)",COUNTRY_INFO!$U$9:$U$1000="T3 (ALB/MBD)"), "T3 (ALB/MBD)", " ") ->  | J62: 0 | N62: 0
A63: =IF(COUNTRY_INFO!A63=0," ",COUNTRY_INFO!A63) -> ESWATINI | B63: =IF(COUNTRY_INFO!B63=0," ",COUNTRY_INFO!B63) -> SHISELWENI | C63: =IF(COUNTRY_INFO!C63=0," ",COUNTRY_INFO!C63) -> Zombodze Emuva | D63: =IF(AND(COUNTRY_INFO!$T$9:$T$1000="T3 (ALB/MBD)",COUNTRY_INFO!$U$9:$U$1000="T3 (ALB/MBD)"), "T3 (ALB/MBD)", " ") ->  | J63: 0 | N63: 0

Sheet DISTRICT
A1: Number of individuals treated
A2: Administrative structure, population treated by age group and gender
A4: TOTAL | D4: =SUM(D$9:D$1000) -> 0 | E4: =SUM(E$9:E$1000) -> 0 | F4: =SUM(F$9:F$1000) -> 0 | G4: =SUM(G$9:G$1000) -> 0 | H4: =SUM(H$9:H$1000) -> 0 | I4: =IF(D4>0, IF(H4/D4*100<>0, H4/D4*100, "-"),0) -> 0 | J4: =SUM(J$9:J$1000) -> 0 | K4: =SUM(K$9:K$1000) -> 0 | L4: =SUM(L$9:L$1000) -> 0 | M4: =SUM(M$9:M$1000) -> 0 | N4: =SUM(N$9:N$1000) -> 0 | O4: =IF(J4>0, IF(N4/J4*100<>0, N4/J4*100, "-"),0) -> 0 | P4: =SUM(P$9:P$1000) -> 20097 | Q4: =SUM(Q$9:Q$1000) -> 0 | R4: =SUM(R$9:R$1000) -> 0 | S4: =SUM(S$9:S$1000) -> 92125 | T4: =SUM(T$9:T$1000) -> 0 | V4: 9432 | X4: =SUM(X$9:X$1000) -> 9432 | Y4: =IF(P4>0, IF(X4/P4*100<>0, X4/P4*100, "-"),0) -> 46.93237797 | Z4: =SUM(Z$9:Z$1000) -> 241389.61 | AA4: 0 | AB4: 0 | AC4: 0 | AD4: 0 | AF4: 0 | AH4: 0 | AI4: =IF(Z4>0, IF(AH4/Z4*100<>0, AH4/Z4*100, "-"),0) -> -
D6: Population requiring PC for LF | E6: Population treated for lymphatic filariasis | J6: Population requiring PC for ONCHO | K6: Population treated for onchocerciasis | P6: Population requiring PC for STH | Q6: Population treated for STH | Z6: Population requiring PC for SCH | AA6: Population treated for schistosomiasis | AP6: =SUM(AP9:AP1000) -> 0 | AQ6: 5793.930682 | AR6: 129766.6373 | AS6: 119266.6 | AT6: =SUM(AT9:AT1000) -> 254827.168 | AU6: =COUNTIF(AU9:AU1000,"Y") -> 0 | AV6: =SUM(AV9:AV1000) -> 0 | AW6: 92125 | AX6: 0 | AY6: =SUM(AY9:AY1000) -> 92125 | AZ6: 0 | BA6: 9432 | BB6: 0 | BC6: 9432 | BD6: =IF(AT6<>0,BC6/AT6,0) -> 0.03701332191
A7: Country | B7: Province/State | C7: District | E7: Male | F7: Female | G7: Total treated | H7: Total in need treated | I7: (%) | K7: Male | L7: Female | M7: Total treated | N7: Total in need treated | O7: (%) | Q7: Male | R7: Female | S7: Total treated | T7: PreSAC in need treated | U7: PreSAC (%) | V7: SAC in need treated | W7: SAC (%) | X7: Total in need treated | Y7: (%) | AA7: Male | AB7: Female | AC7: Total treated | AD7: SAC in need treated | AE7: SAC (%) | AF7: Adults in need treated | AG7: Adults (%) | AH7: Total in need treated | AI7: (%) | AK7: LF | AL7: ONCHO | AM7: STH | AN7: SCH-SAC | AO7: SCH_Adults | AP7: <1 | AQ7: PreSAC | AR7: SAC | AS7: Adults | AT7: Total | AU7: Dis | AV7: PreSAC | AW7: SAC | AX7: Adults | AY7: Total | AZ7: PreSAC | BA7: SAC | BB7: Adults | BC7: Total | BD7: Coverage
A9: =IF(COUNTRY_INFO!A9=0," ",COUNTRY_INFO!A9) -> ESWATINI | B9: =IF(COUNTRY_INFO!B9=0," ",COUNTRY_INFO!B9) -> HHOHHO | C9: =IF(COUNTRY_INFO!C9=0," ",COUNTRY_INFO!C9) -> Hhukwini | D9: =COUNTRY_INFO!L9 -> 0 | G9: =MAX('MDA1'!M9,'MDA2'!M9) -> 0 | H9: =IF(AND(COUNTRY_INFO!H9>0,COUNTRY_INFO!H9<4),IF(D9>MAX('MDA1'!M9,'MDA2'!M9),MAX('MDA1'!M9,'MDA2'!M9),D9),0) -> 0 | I9: =IF(AND(COUNTRY_INFO!H9>0,COUNTRY_INFO!H9<4), IF(G9/D9*100<>0, IF(G9/D9*100>100,100,G9/D9*100), "-"),0) -> 0 | J9: =COUNTRY_INFO!M9 -> 0 | M9: =MAX('MDA1'!M9,MAX('MDA3'!I9,'MDA3'!L9)+MAX('MDA3'!J9,'MDA3'!M9)) -> 0 | N9: =IF(AND(COUNTRY_INFO!I9>0,COUNTRY_INFO!I9<4),IF(J9>MAX('MDA1'!M9,MAX('MDA3'!I9,'MDA3'!L9)+MAX('MDA3'!J9,'MDA3'!M9)),MAX('MDA1'!M9,MAX('MDA3'!I9,'MDA3'!L9)+MAX('MDA3'!J9,'MDA3'!M9)),J9),0) -> 0 | O9: =IF(AND(COUNTRY_INFO!I9>0,COUNTRY_INFO!I9<4), IF(M9/J9*100<>0, IF(M9/J9*100>100,100,M9/J9*100), "-"),0) -> 0 | P9: =COUNTRY_INFO!N9 -> 4066 | S9: =SUM(MAX('MDA2'!J9, 'T1'!L9, MAX(T3_R1!K9, T3_R2!K9)), MAX('MDA1'!K9, 'MDA2'!K9, 'T1'!M9, MAX(T3_R1!L9, T3_R2!L9)), MAX('MDA1'!L9, 'MDA2'!L9, 'T1'!N9, MAX(T3_R1!M9, T3_R2!M9))) -> 1866 | T9: =IF(AND(COUNTRY_INFO!J9>1,COUNTRY_INFO!J9<4),IF(COUNTRY_INFO!E9>MAX('MDA2'!J9,'T1'!L9,MAX(T3_R1!K9,T3_R2!K9)),MAX('MDA2'!J9,'T1'!L9,MAX(T3_R1!K9,T3_R2!K9)),COUNTRY_INFO!E9),0) -> 0 | U9: =IF(AND(COUNTRY_INFO!J9>1,COUNTRY_INFO!J9<4), IF(T9/COUNTRY_INFO!E9*100<>0, IF(T9/COUNTRY_INFO!E9*100>100,100,T9/COUNTRY_INFO!E9*100), "-"),0) -> - | V9: =IF(AND(COUNTRY_INFO!J9>1,COUNTRY_INFO!J9<4),IF(COUNTRY_INFO!F9>MAX('MDA1'!K9,'MDA2'!K9,'T1'!M9,MAX(T3_R1!L9,T3_R2!L9)),MAX('MDA1'!K9,'MDA2'!K9,'T1'!M9,MAX(T3_R1!L9,T3_R2!L9)),COUNTRY_INFO!F9),0) -> 1866 | W9: =IF(AND(COUNTRY_INFO!J9>1,COUNTRY_INFO!J9<4), IF(V9/COUNTRY_INFO!F9*100<>0, IF(V9/COUNTRY_INFO!F9*100>100,100,V9/COUNTRY_INFO!F9*100), "-"),0) -> 64.47823082 | X9: =SUM(T9,V9) -> 1866 | Y9: =IF(AND(COUNTRY_INFO!J9>1,COUNTRY_INFO!J9<4), IF(S9/P9*100<>0, IF(X9/P9*100>100,100,X9/P9*100), "-"),0) -> 45.89276931 | Z9: =COUNTRY_INFO!O9 -> 955.02 | AC9: =MAX('T1'!L9,'T2'!J9)+MAX('T1'!M9,'T2'!K9)+MAX('T1'!N9,'T2'!L9) -> 0 | AD9: =IF(COUNTRY_INFO!K9=1,IF(COUNTRY_INFO!F9*0.33>MAX('T1'!M9,'T2'!K9),MAX('T1'!M9,'T2'!K9),COUNTRY_INFO!F9*0.33),IF(COUNTRY_INFO!K9=2,IF(COUNTRY_INFO!F9*0.5>MAX('T1'!M9,'T2'!K9),MAX('T1'!M9,'T2'!K9),COUNTRY_INFO!F9*0.5),IF(COUNTRY_INFO!K9=3,IF(COUNTRY_INFO!F9>MAX('T1'!M9,'T2'!K9),MAX('T1'!M9,'T2'!K9),COUNTRY_INFO!F9),0))) -> 0 | AE9: =IF(AND(COUNTRY_INFO!K9>0,COUNTRY_INFO!K9<4),IF(Z9>0,IF(COUNTRY_INFO!K9=1, AD9/(COUNTRY_INFO!F9*0.33)*100, IF(COUNTRY_INFO!K9=2, AD9/(COUNTRY_INFO!F9*0.5)*100, IF(COUNTRY_INFO!K9=3, AD9/COUNTRY_INFO!F9*100))),"-"),0) -> 0 | AF9: =IF(COUNTRY_INFO!K9=2,IF(COUNTRY_INFO!G9*0.2>MAX('T1'!N9,'T2'!L9),MAX('T1'!N9,'T2'!L9),COUNTRY_INFO!G9*0.2),IF(COUNTRY_INFO!K9=3,IF(COUNTRY_INFO!G9>MAX('T1'!N9,'T2'!L9),MAX('T1'!N9,'T2'!L9),COUNTRY_INFO!G9),0)) -> 0 | AG9: =IF(AND(COUNTRY_INFO!K9>0,COUNTRY_INFO!K9<4),IF(Z9>0,IF(COUNTRY_INFO!K9=1, 0, IF(COUNTRY_INFO!K9=2, AF9/(COUNTRY_INFO!G9*0.2)*100, IF(COUNTRY_INFO!K9=3, AF9/COUNTRY_INFO!G9*100))),"-"),0) -> 0 | AH9: =SUM(AD9,AF9) -> 0 | AI9: =IF(AND(COUNTRY_INFO!K9>0,COUNTRY_INFO!K9<4), IF(AC9/Z9*100<>0, IF(AH9/Z9*100>100,100,AH9/Z9*100), "-"),0) -> - | AK9: =IF(AND(D9<>0, D9<>"Unknown",D9<>"Stopped",D9<>"Not required"),D9/COUNTRY_INFO!D9, 0) -> 0 | AL9: =IF(AND(J9<>0,J9<>"Unknown",J9<>"Stopped",J9<>"Not required"),J9/COUNTRY_INFO!D9, 0) -> 0 | AM9: =IF(AND(P9<>0,P9<>"Unknown",P9<>"Not required"),P9/(COUNTRY_INFO!E9+COUNTRY_INFO!F9), 0) -> 1 | AN9: =IF(AND(Z9<>0,Z9<>"Unknown",Z9<>"Not required"),IF(COUNTRY_INFO!K9=1,1,IF(COUNTRY_INFO!K9=2,0.5*COUNTRY_INFO!F9/(0.5*COUNTRY_INFO!F9+0.2*COUNTRY_INFO!G9),IF(COUNTRY_INFO!K9=3,COUNTRY_INFO!F9/(COUNTRY_INFO!F9+COUNTRY_INFO!G9)))),0) -> 1 | AO9: =IF(AND(Z9<>0,Z9<>"Unknown",Z9<>"Not required"),IF(COUNTRY_INFO!K9=1,0,IF(COUNTRY_INFO!K9=2,0.2*COUNTRY_INFO!G9/(0.5*COUNTRY_INFO!F9+0.2*COUNTRY_INFO!G9),IF(COUNTRY_INFO!K9=3,COUNTRY_INFO!G9/(COUNTRY_INFO!F9+COUNTRY_INFO!G9)))),0) -> 0 | AP9: =MAX(COUNTRY_INFO!D9*AK9*PROFILE!$G$7,COUNTRY_INFO!D9*AL9*PROFILE!$G$7) -> 0 | AQ9: =MAX(COUNTRY_INFO!D9*AK9*PROFILE!$G$8,COUNTRY_INFO!D9*AL9*PROFILE!$G$8,COUNTRY_INFO!D9*AM9*PROFILE!$G$8) -> 1172.072634 | AR9: =MAX(COUNTRY_INFO!D9*AK9*PROFILE!$G$9,COUNTRY_INFO!D9*AL9*PROFILE!$G$9,COUNTRY_INFO!D9*AM9*PROFILE!$G$9,IF(AND(DISTRICT!Z9<>"Unknown",Z9<>"Not required"),COUNTRY_INFO!O9*DISTRICT!AN9,0)) -> 2893.530225 | AS9: =MAX(COUNTRY_INFO!D9*AK9*PROFILE!$G$10,COUNTRY_INFO!D9*AL9*PROFILE!$G$10,IF(AND(DISTRICT!Z9<>"Unknown",Z9<>"Not required"),COUNTRY_INFO!O9*DISTRICT!AO9,0)) -> 0 | AT9: =SUM(AP9:AS9) -> 4065.602859 | AU9: =IF(COUNTIFS(AK9:AN9,">0")=0,0, IF(COUNTIFS(AK9:AN9,">0")<=IF(AND(OR(D9>=0,D9="Not required",D9="Unknown",D9="Stopped"),D9>0,H9>0),1,0)+IF(AND(OR(J9>=0,J9="Not required",J9="Unknown",J9="Stopped"),J9>0,N9>0),1,0)+IF(AND(OR(P9>=0,P9="Not required",P9="Unknown"),P9>0,X9>0),1,0)+IF(AND(OR(Z9>=0,Z9="Not required",Z9="Unknown"),Z9>0,AH9>0),1,0),"Y",0)) -> 0 | AV9: =MAX('MDA2'!J9,'T1'!L9,'T2'!J9,T3_R1!K9,T3_R2!K9) -> 0 | AW9: =MAX('MDA1'!K9,'MDA2'!K9,'MDA3'!I9,'MDA3'!L9,'T1'!M9,'T2'!K9,T3_R1!L9,T3_R2!L9) -> 1866 | AX9: =MAX('MDA1'!L9,'MDA2'!L9,'MDA3'!J9,'MDA3'!M9,'T1'!N9,'T2'!L9,T3_R1!M9,T3_R2!M9) -> 0 | AY9: =SUM(AV9:AX9) -> 1866 | AZ9: =MAX('MDA2'!J9,T9) -> 0 | BA9: =MAX('MDA1'!K9,'MDA2'!K9,'MDA3'!I9,'MDA3'!L9,V9,AD9) -> 1866 | BB9: =MAX('MDA1'!L9,'MDA2'!L9,'MDA3'!J9,'MDA3'!M9,AF9) -> 0 | BC9: =IF(AT9<SUM(AZ9:BB9), AT9,SUM(AZ9:BB9)) -> 1866 | BD9: =IF(AT9<>0,BC9/AT9*100,0) -> 45.89725226
A10: =IF(COUNTRY_INFO!A10=0," ",COUNTRY_INFO!A10) -> ESWATINI | B10: =IF(COUNTRY_INFO!B10=0," ",COUNTRY_INFO!B10) -> HHOHHO | C10: =IF(COUNTRY_INFO!C10=0," ",COUNTRY_INFO!C10) -> Lobamba | D10: =COUNTRY_INFO!L10 -> 0 | G10: =MAX('MDA1'!M10,'MDA2'!M10) -> 0 | H10: =IF(AND(COUNTRY_INFO!H10>0,COUNTRY_INFO!H10<4),IF(D10>MAX('MDA1'!M10,'MDA2'!M10),MAX('MDA1'!M10,'MDA2'!M10),D10),0) -> 0 | I10: =IF(AND(COUNTRY_INFO!H10>0,COUNTRY_INFO!H10<4), IF(G10/D10*100<>0, IF(G10/D10*100>100,100,G10/D10*100), "-"),0) -> 0 | J10: =COUNTRY_INFO!M10 -> 0 | M10: =MAX('MDA1'!M10,MAX('MDA3'!I10,'MDA3'!L10)+MAX('MDA3'!J10,'MDA3'!M10)) -> 0 | N10: =IF(AND(COUNTRY_INFO!I10>0,COUNTRY_INFO!I10<4),IF(J10>MAX('MDA1'!M10,MAX('MDA3'!I10,'MDA3'!L10)+MAX('MDA3'!J10,'MDA3'!M10)),MAX('MDA1'!M10,MAX('MDA3'!I10,'MDA3'!L10)+MAX('MDA3'!J10,'MDA3'!M10)),J10),0) -> 0 | O10: =IF(AND(COUNTRY_INFO!I10>0,COUNTRY_INFO!I10<4), IF(M10/J10*100<>0, IF(M10/J10*100>100,100,M10/J10*100), "-"),0) -> 0 | P10: =COUNTRY_INFO!N10 -> 0 | S10: =SUM(MAX('MDA2'!J10, 'T1'!L10, MAX(T3_R1!K10, T3_R2!K10)), MAX('MDA1'!K10, 'MDA2'!K10, 'T1'!M10, MAX(T3_R1!L10, T3_R2!L10)), MAX('MDA1'!L10, 'MDA2'!L10, 'T1'!N10, MAX(T3_R1!M10, T3_R2!M10))) -> 4023 | T10: =IF(AND(COUNTRY_INFO!J10>1,COUNTRY_INFO!J10<4),IF(COUNTRY_INFO!E10>MAX('MDA2'!J10,'T1'!L10,MAX(T3_R1!K10,T3_R2!K10)),MAX('MDA2'!J10,'T1'!L10,MAX(T3_R1!K10,T3_R2!K10)),COUNTRY_INFO!E10),0) -> 0 | U10: =IF(AND(COUNTRY_INFO!J10>1,COUNTRY_INFO!J10<4), IF(T10/COUNTRY_INFO!E10*100<>0, IF(T10/COUNTRY_INFO!E10*100>100,100,T10/COUNTRY_INFO!E10*100), "-"),0) -> 0 | V10: =IF(AND(COUNTRY_INFO!J10>1,COUNTRY_INFO!J10<4),IF(COUNTRY_INFO!F10>MAX('MDA1'!K10,'MDA2'!K10,'T1'!M10,MAX(T3_R1!L10,T3_R2!L10)),MAX('MDA1'!K10,'MDA2'!K10,'T1'!M10,MAX(T3_R1!L10,T3_R2!L10)),COUNTRY_INFO!F10),0) -> 0 | W10: =IF(AND(COUNTRY_INFO!J10>1,COUNTRY_INFO!J10<4), IF(V10/COUNTRY_INFO!F10*100<>0, IF(V10/COUNTRY_INFO!F10*100>100,100,V10/COUNTRY_INFO!F10*100), "-"),0) -> 0 | X10: =SUM(T10,V10) -> 0 | Y10: =IF(AND(COUNTRY_INFO!J10>1,COUNTRY_INFO!J10<4), IF(S10/P10*100<>0, IF(X10/P10*100>100,100,X10/P10*100), "-"),0) -> 0 | Z10: =COUNTRY_INFO!O10 -> 2549.91 | AC10: =MAX('T1'!L10,'T2'!J10)+MAX('T1'!M10,'T2'!K10)+MAX('T1'!N10,'T2'!L10) -> 0 | AD10: =IF(COUNTRY_INFO!K10=1,IF(COUNTRY_INFO!F10*0.33>MAX('T1'!M10,'T2'!K10),MAX('T1'!M10,'T2'!K10),COUNTRY_INFO!F10*0.33),IF(COUNTRY_INFO!K10=2,IF(COUNTRY_INFO!F10*0.5>MAX('T1'!M10,'T2'!K10),MAX('T1'!M10,'T2'!K10),COUNTRY_INFO!F10*0.5),IF(COUNTRY_INFO!K10=3,IF(COUNTRY_INFO!F10>MAX('T1'!M10,'T2'!K10),MAX('T1'!M10,'T2'!K10),COUNTRY_INFO!F10),0))) -> 0 | AE10: =IF(AND(COUNTRY_INFO!K10>0,COUNTRY_INFO!K10<4),IF(Z10>0,IF(COUNTRY_INFO!K10=1, AD10/(COUNTRY_INFO!F10*0.33)*100, IF(COUNTRY_INFO!K10=2, AD10/(COUNTRY_INFO!F10*0.5)*100, IF(COUNTRY_INFO!K10=3, AD10/COUNTRY_INFO!F10*100))),"-"),0) -> 0 | AF10: =IF(COUNTRY_INFO!K10=2,IF(COUNTRY_INFO!G10*0.2>MAX('T1'!N10,'T2'!L10),MAX('T1'!N10,'T2'!L10),COUNTRY_INFO!G10*0.2),IF(COUNTRY_INFO!K10=3,IF(COUNTRY_INFO!G10>MAX('T1'!N10,'T2'!L10),MAX('T1'!N10,'T2'!L10),COUNTRY_INFO!G10),0)) -> 0 | AG10: =IF(AND(COUNTRY_INFO!K10>0,COUNTRY_INFO!K10<4),IF(Z10>0,IF(COUNTRY_INFO!K10=1, 0, IF(COUNTRY_INFO!K10=2, AF10/(COUNTRY_INFO!G10*0.2)*100, IF(COUNTRY_INFO!K10=3, AF10/COUNTRY_INFO!G10*100))),"-"),0) -> 0 | AH10: =SUM(AD10,AF10) -> 0 | AI10: =IF(AND(COUNTRY_INFO!K10>0,COUNTRY_INFO!K10<4), IF(AC10/Z10*100<>0, IF(AH10/Z10*100>100,100,AH10/Z10*100), "-"),0) -> - | AK10: =IF(AND(D10<>0, D10<>"Unknown",D10<>"Stopped",D10<>"Not required"),D10/COUNTRY_INFO!D10, 0) -> 0 | AL10: =IF(AND(J10<>0,J10<>"Unknown",J10<>"Stopped",J10<>"Not required"),J10/COUNTRY_INFO!D10, 0) -> 0 | AM10: =IF(AND(P10<>0,P10<>"Unknown",P10<>"Not required"),P10/(COUNTRY_INFO!E10+COUNTRY_INFO!F10), 0) -> 0 | AN10: =IF(AND(Z10<>0,Z10<>"Unknown",Z10<>"Not required"),IF(COUNTRY_INFO!K10=1,1,IF(COUNTRY_INFO!K10=2,0.5*COUNTRY_INFO!F10/(0.5*COUNTRY_INFO!F10+0.2*COUNTRY_INFO!G10),IF(COUNTRY_INFO!K10=3,COUNTRY_INFO!F10/(COUNTRY_INFO!F10+COUNTRY_INFO!G10)))),0) -> 1 | AO10: =IF(AND(Z10<>0,Z10<>"Unknown",Z10<>"Not required"),IF(COUNTRY_INFO!K10=1,0,IF(COUNTRY_INFO!K10=2,0.2*COUNTRY_INFO!G10/(0.5*COUNTRY_INFO!F10+0.2*COUNTRY_INFO!G10),IF(COUNTRY_INFO!K10=3,COUNTRY_INFO!G10/(COUNTRY_INFO!F10+COUNTRY_INFO!G10)))),0) -> 0 | AP10: =MAX(COUNTRY_INFO!D10*AK10*PROFILE!$G$7,COUNTRY_INFO!D10*AL10*PROFILE!$G$7) -> 0 | AQ10: =MAX(COUNTRY_INFO!D10*AK10*PROFILE!$G$8,COUNTRY_INFO!D10*AL10*PROFILE!$G$8,COUNTRY_INFO!D10*AM10*PROFILE!$G$8) -> 0 | AR10: =MAX(COUNTRY_INFO!D10*AK10*PROFILE!$G$9,COUNTRY_INFO!D10*AL10*PROFILE!$G$9,COUNTRY_INFO!D10*AM10*PROFILE!$G$9,IF(AND(DISTRICT!Z10<>"Unknown",Z10<>"Not required"),COUNTRY_INFO!O10*DISTRICT!AN10,0)) -> 2549.91 | AS10: =MAX(COUNTRY_INFO!D10*AK10*PROFILE!$G$10,COUNTRY_INFO!D10*AL10*PROFILE!$G$10,IF(AND(DISTRICT!Z10<>"Unknown",Z10<>"Not required"),COUNTRY_INFO!O10*DISTRICT!AO10,0)) -> 0 | AT10: =SUM(AP10:AS10) -> 2549.91 | AU10: 0 | AV10: =MAX('MDA2'!J10,'T1'!L10,'T2'!J10,T3_R1!K10,T3_R2!K10) -> 0 | AW10: =MAX('MDA1'!K10,'MDA2'!K10,'MDA3'!I10,'MDA3'!L10,'T1'!M10,'T2'!K10,T3_R1!L10,T3_R2!L10) -> 4023 | AX10: =MAX('MDA1'!L10,'MDA2'!L10,'MDA3'!J10,'MDA3'!M10,'T1'!N10,'T2'!L10,T3_R1!M10,T3_R2!M10) -> 0 | AY10: =SUM(AV10:AX10) -> 4023 | AZ10: =MAX('MDA2'!J10,T10) -> 0 | BA10: =MAX('MDA1'!K10,'MDA2'!K10,'MDA3'!I10,'MDA3'!L10,V10,AD10) -> 0 | BB10: =MAX('MDA1'!L10,'MDA2'!L10,'MDA3'!J10,'MDA3'!M10,AF10) -> 0 | BC10: 0 | BD10: 0
A11: =IF(COUNTRY_INFO!A11=0," ",COUNTRY_INFO!A11) -> ESWATINI | B11: =IF(COUNTRY_INFO!B11=0," ",COUNTRY_INFO!B11) -> HHOHHO | C11: =IF(COUNTRY_INFO!C11=0," ",COUNTRY_INFO!C11) -> Madlangempisi | D11: =COUNTRY_INFO!L11 -> 0 | G11: =MAX('MDA1'!M11,'MDA2'!M11) -> 0 | H11: =IF(AND(COUNTRY_INFO!H11>0,COUNTRY_INFO!H11<4),IF(D11>MAX('MDA1'!M11,'MDA2'!M11),MAX('MDA1'!M11,'MDA2'!M11),D11),0) -> 0 | I11: =IF(AND(COUNTRY_INFO!H11>0,COUNTRY_INFO!H11<4), IF(G11/D11*100<>0, IF(G11/D11*100>100,100,G11/D11*100), "-"),0) -> 0 | J11: =COUNTRY_INFO!M11 -> 0 | M11: =MAX('MDA1'!M11,MAX('MDA3'!I11,'MDA3'!L11)+MAX('MDA3'!J11,'MDA3'!M11)) -> 0 | N11: =IF(AND(COUNTRY_INFO!I11>0,COUNTRY_INFO!I11<4),IF(J11>MAX('MDA1'!M11,MAX('MDA3'!I11,'MDA3'!L11)+MAX('MDA3'!J11,'MDA3'!M11)),MAX('MDA1'!M11,MAX('MDA3'!I11,'MDA3'!L11)+MAX('MDA3'!J11,'MDA3'!M11)),J11),0) -> 0 | O11: =IF(AND(COUNTRY_INFO!I11>0,COUNTRY_INFO!I11<4), IF(M11/J11*100<>0, IF(M11/J11*100>100,100,M11/J11*100), "-"),0) -> 0 | P11: =COUNTRY_INFO!N11 -> 0 | S11: =SUM(MAX('MDA2'!J11, 'T1'!L11, MAX(T3_R1!K11, T3_R2!K11)), MAX('MDA1'!K11, 'MDA2'!K11, 'T1'!M11, MAX(T3_R1!L11, T3_R2!L11)), MAX('MDA1'!L11, 'MDA2'!L11, 'T1'!N11, MAX(T3_R1!M11, T3_R2!M11))) -> 5231 | T11: =IF(AND(COUNTRY_INFO!J11>1,COUNTRY_INFO!J11<4),IF(COUNTRY_INFO!E11>MAX('MDA2'!J11,'T1'!L11,MAX(T3_R1!K11,T3_R2!K11)),MAX('MDA2'!J11,'T1'!L11,MAX(T3_R1!K11,T3_R2!K11)),COUNTRY_INFO!E11),0) -> 0 | U11: =IF(AND(COUNTRY_INFO!J11>1,COUNTRY_INFO!J11<4), IF(T11/COUNTRY_INFO!E11*100<>0, IF(T11/COUNTRY_INFO!E11*100>100,100,T11/COUNTRY_INFO!E11*100), "-"),0) -> 0 | V11: =IF(AND(COUNTRY_INFO!J11>1,COUNTRY_INFO!J11<4),IF(COUNTRY_INFO!F11>MAX('MDA1'!K11,'MDA2'!K11,'T1'!M11,MAX(T3_R1!L11,T3_R2!L11)),MAX('MDA1'!K11,'MDA2'!K11,'T1'!M11,MAX(T3_R1!L11,T3_R2!L11)),COUNTRY_INFO!F11),0) -> 0 | W11: =IF(AND(COUNTRY_INFO!J11>1,COUNTRY_INFO!J11<4), IF(V11/COUNTRY_INFO!F11*100<>0, IF(V11/COUNTRY_INFO!F11*100>100,100,V11/COUNTRY_INFO!F11*100), "-"),0) -> 0 | X11: 0 | Y11: =IF(AND(COUNTRY_INFO!J11>1,COUNTRY_INFO!J11<4), IF(S11/P11*100<>0, IF(X11/P11*100>100,100,X11/P11*100), "-"),0) -> 0 | Z11: =COUNTRY_INFO!O11 -> 5914.6 | AC11: =MAX('T1'!L11,'T2'!J11)+MAX('T1'!M11,'T2'!K11)+MAX('T1'!N11,'T2'!L11) -> 0 | AD11: =IF(COUNTRY_INFO!K11=1,IF(COUNTRY_INFO!F11*0.33>MAX('T1'!M11,'T2'!K11),MAX('T1'!M11,'T2'!K11),COUNTRY_INFO!F11*0.33),IF(COUNTRY_INFO!K11=2,IF(COUNTRY_INFO!F11*0.5>MAX('T1'!M11,'T2'!K11),MAX('T1'!M11,'T2'!K11),COUNTRY_INFO!F11*0.5),IF(COUNTRY_INFO!K11=3,IF(COUNTRY_INFO!F11>MAX('T1'!M11,'T2'!K11),MAX('T1'!M11,'T2'!K11),COUNTRY_INFO!F11),0))) -> 0 | AE11: =IF(AND(COUNTRY_INFO!K11>0,COUNTRY_INFO!K11<4),IF(Z11>0,IF(COUNTRY_INFO!K11=1, AD11/(COUNTRY_INFO!F11*0.33)*100, IF(COUNTRY_INFO!K11=2, AD11/(COUNTRY_INFO!F11*0.5)*100, IF(COUNTRY_INFO!K11=3, AD11/COUNTRY_INFO!F11*100))),"-"),0) -> 0 | AF11: =IF(COUNTRY_INFO!K11=2,IF(COUNTRY_INFO!G11*0.2>MAX('T1'!N11,'T2'!L11),MAX('T1'!N11,'T2'!L11),COUNTRY_INFO!G11*0.2),IF(COUNTRY_INFO!K11=3,IF(COUNTRY_INFO!G11>MAX('T1'!N11,'T2'!L11),MAX('T1'!N11,'T2'!L11),COUNTRY_INFO!G11),0)) -> 0 | AG11: =IF(AND(COUNTRY_INFO!K11>0,COUNTRY_INFO!K11<4),IF(Z11>0,IF(COUNTRY_INFO!K11=1, 0, IF(COUNTRY_INFO!K11=2, AF11/(COUNTRY_INFO!G11*0.2)*100, IF(COUNTRY_INFO!K11=3, AF11/COUNTRY_INFO!G11*100))),"-"),0) -> 0 | AH11: 0 | AI11: =IF(AND(COUNTRY_INFO!K11>0,COUNTRY_INFO!K11<4), IF(AC11/Z11*100<>0, IF(AH11/Z11*100>100,100,AH11/Z11*100), "-"),0) -> - | AK11: =IF(AND(D11<>0, D11<>"Unknown",D11<>"Stopped",D11<>"Not required"),D11/COUNTRY_INFO!D11, 0) -> 0 | AL11: =IF(AND(J11<>0,J11<>"Unknown",J11<>"Stopped",J11<>"Not required"),J11/COUNTRY_INFO!D11, 0) -> 0 | AM11: =IF(AND(P11<>0,P11<>"Unknown",P11<>"Not required"),P11/(COUNTRY_INFO!E11+COUNTRY_INFO!F11), 0) -> 0 | AN11: =IF(AND(Z11<>0,Z11<>"Unknown",Z11<>"Not required"),IF(COUNTRY_INFO!K11=1,1,IF(COUNTRY_INFO!K11=2,0.5*COUNTRY_INFO!F11/(0.5*COUNTRY_INFO!F11+0.2*COUNTRY_INFO!G11),IF(COUNTRY_INFO!K11=3,COUNTRY_INFO!F11/(COUNTRY_INFO!F11+COUNTRY_INFO!G11)))),0) -> 0.4791532817 | AO11: =IF(AND(Z11<>0,Z11<>"Unknown",Z11<>"Not required"),IF(COUNTRY_INFO!K11=1,0,IF(COUNTRY_INFO!K11=2,0.2*COUNTRY_INFO!G11/(0.5*COUNTRY_INFO!F11+0.2*COUNTRY_INFO!G11),IF(COUNTRY_INFO!K11=3,COUNTRY_INFO!G11/(COUNTRY_INFO!F11+COUNTRY_INFO!G11)))),0) -> 0.5208467183 | AP11: =MAX(COUNTRY_INFO!D11*AK11*PROFILE!$G$7,COUNTRY_INFO!D11*AL11*PROFILE!$G$7) -> 0 | AQ11: =MAX(COUNTRY_INFO!D11*AK11*PROFILE!$G$8,COUNTRY_INFO!D11*AL11*PROFILE!$G$8,COUNTRY_INFO!D11*AM11*PROFILE!$G$8) -> 0 | AR11: =MAX(COUNTRY_INFO!D11*AK11*PROFILE!$G$9,COUNTRY_INFO!D11*AL11*PROFILE!$G$9,COUNTRY_INFO!D11*AM11*PROFILE!$G$9,IF(AND(DISTRICT!Z11<>"Unknown",Z11<>"Not required"),COUNTRY_INFO!O11*DISTRICT!AN11,0)) -> 2834 | AS11: =MAX(COUNTRY_INFO!D11*AK11*PROFILE!$G$10,COUNTRY_INFO!D11*AL11*PROFILE!$G$10,IF(AND(DISTRICT!Z11<>"Unknown",Z11<>"Not required"),COUNTRY_INFO!O11*DISTRICT!AO11,0)) -> 3080.6 | AT11: 5914.6 | AU11: 0 | AV11: =MAX('MDA2'!J11,'T1'!L11,'T2'!J11,T3_R1!K11,T3_R2!K11) -> 0 | AW11: =MAX('MDA1'!K11,'MDA2'!K11,'MDA3'!I11,'MDA3'!L11,'T1'!M11,'T2'!K11,T3_R1!L11,T3_R2!L11) -> 5231 | AX11: =MAX('MDA1'!L11,'MDA2'!L11,'MDA3'!J11,'MDA3'!M11,'T1'!N11,'T2'!L11,T3_R1!M11,T3_R2!M11) -> 0 | AY11: 5231 | AZ11: =MAX('MDA2'!J11,T11) -> 0 | BA11: =MAX('MDA1'!K11,'MDA2'!K11,'MDA3'!I11,'MDA3'!L11,V11,AD11) -> 0 | BB11: =MAX('MDA1'!L11,'MDA2'!L11,'MDA3'!J11,'MDA3'!M11,AF11) -> 0 | BC11: 0 | BD11: 0
A12: =IF(COUNTRY_INFO!A12=0," ",COUNTRY_INFO!A12) -> ESWATINI | B12: =IF(COUNTRY_INFO!B12=0," ",COUNTRY_INFO!B12) -> HHOHHO | C12: =IF(COUNTRY_INFO!C12=0," ",COUNTRY_INFO!C12) -> Maphalaleni | D12: =COUNTRY_INFO!L12 -> 0 | G12: =MAX('MDA1'!M12,'MDA2'!M12) -> 0 | H12: =IF(AND(COUNTRY_INFO!H12>0,COUNTRY_INFO!H12<4),IF(D12>MAX('MDA1'!M12,'MDA2'!M12),MAX('MDA1'!M12,'MDA2'!M12),D12),0) -> 0 | I12: =IF(AND(COUNTRY_INFO!H12>0,COUNTRY_INFO!H12<4), IF(G12/D12*100<>0, IF(G12/D12*100>100,100,G12/D12*100), "-"),0) -> 0 | J12: =COUNTRY_INFO!M12 -> 0 | M12: =MAX('MDA1'!M12,MAX('MDA3'!I12,'MDA3'!L12)+MAX('MDA3'!J12,'MDA3'!M12)) -> 0 | N12: =IF(AND(COUNTRY_INFO!I12>0,COUNTRY_INFO!I12<4),IF(J12>MAX('MDA1'!M12,MAX('MDA3'!I12,'MDA3'!L12)+MAX('MDA3'!J12,'MDA3'!M12)),MAX('MDA1'!M12,MAX('MDA3'!I12,'MDA3'!L12)+MAX('MDA3'!J12,'MDA3'!M12)),J12),0) -> 0 | O12: =IF(AND(COUNTRY_INFO!I12>0,COUNTRY_INFO!I12<4), IF(M12/J12*100<>0, IF(M12/J12*100>100,100,M12/J12*100), "-"),0) -> 0 | P12: =COUNTRY_INFO!N12 -> 0 | S12: =SUM(MAX('MDA2'!J12, 'T1'!L12, MAX(T3_R1!K12, T3_R2!K12)), MAX('MDA1'!K12, 'MDA2'!K12, 'T1'!M12, MAX(T3_R1!L12, T3_R2!L12)), MAX('MDA1'!L12, 'MDA2'!L12, 'T1'!N12, MAX(T3_R1!M12, T3_R2!M12))) -> 2842 | T12: =IF(AND(COUNTRY_INFO!J12>1,COUNTRY_INFO!J12<4),IF(COUNTRY_INFO!E12>MAX('MDA2'!J12,'T1'!L12,MAX(T3_R1!K12,T3_R2!K12)),MAX('MDA2'!J12,'T1'!L12,MAX(T3_R1!K12,T3_R2!K12)),COUNTRY_INFO!E12),0) -> 0 | U12: =IF(AND(COUNTRY_INFO!J12>1,COUNTRY_INFO!J12<4), IF(T12/COUNTRY_INFO!E12*100<>0, IF(T12/COUNTRY_INFO!E12*100>100,100,T12/COUNTRY_INFO!E12*100), "-"),0) -> 0 | V12: =IF(AND(COUNTRY_INFO!J12>1,COUNTRY_INFO!J12<4),IF(COUNTRY_INFO!F12>MAX('MDA1'!K12,'MDA2'!K12,'T1'!M12,MAX(T3_R1!L12,T3_R2!L12)),MAX('MDA1'!K12,'MDA2'!K12,'T1'!M12,MAX(T3_R1!L12,T3_R2!L12)),COUNTRY_INFO!F12),0) -> 0 | W12: =IF(AND(COUNTRY_INFO!J12>1,COUNTRY_INFO!J12<4), IF(V12/COUNTRY_INFO!F12*100<>0, IF(V12/COUNTRY_INFO!F12*100>100,100,V12/COUNTRY_INFO!F12*100), "-"),0) -> 0 | X12: 0 | Y12: =IF(AND(COUNTRY_INFO!J12>1,COUNTRY_INFO!J12<4), IF(S12/P12*100<>0, IF(X12/P12*100>100,100,X12/P12*100), "-"),0) -> 0 | Z12: =COUNTRY_INFO!O12 -> 17379 | AC12: =MAX('T1'!L12,'T2'!J12)+MAX('T1'!M12,'T2'!K12)+MAX('T1'!N12,'T2'!L12) -> 0 | AD12: =IF(COUNTRY_INFO!K12=1,IF(COUNTRY_INFO!F12*0.33>MAX('T1'!M12,'T2'!K12),MAX('T1'!M12,'T2'!K12),COUNTRY_INFO!F12*0.33),IF(COUNTRY_INFO!K12=2,IF(COUNTRY_INFO!F12*0.5>MAX('T1'!M12,'T2'!K12),MAX('T1'!M12,'T2'!K12),COUNTRY_INFO!F12*0.5),IF(COUNTRY_INFO!K12=3,IF(COUNTRY_INFO!F12>MAX('T1'!M12,'T2'!K12),MAX('T1'!M12,'T2'!K12),COUNTRY_INFO!F12),0))) -> 0 | AE12: =IF(AND(COUNTRY_INFO!K12>0,COUNTRY_INFO!K12<4),IF(Z12>0,IF(COUNTRY_INFO!K12=1, AD12/(COUNTRY_INFO!F12*0.33)*100, IF(COUNTRY_INFO!K12=2, AD12/(COUNTRY_INFO!F12*0.5)*100, IF(COUNTRY_INFO!K12=3, AD12/COUNTRY_INFO!F12*100))),"-"),0) -> 0 | AF12: =IF(COUNTRY_INFO!K12=2,IF(COUNTRY_INFO!G12*0.2>MAX('T1'!N12,'T2'!L12),MAX('T1'!N12,'T2'!L12),COUNTRY_INFO!G12*0.2),IF(COUNTRY_INFO!K12=3,IF(COUNTRY_INFO!G12>MAX('T1'!N12,'T2'!L12),MAX('T1'!N12,'T2'!L12),COUNTRY_INFO!G12),0)) -> 0 | AG12: =IF(AND(COUNTRY_INFO!K12>0,COUNTRY_INFO!K12<4),IF(Z12>0,IF(COUNTRY_INFO!K12=1, 0, IF(COUNTRY_INFO!K12=2, AF12/(COUNTRY_INFO!G12*0.2)*100, IF(COUNTRY_INFO!K12=3, AF12/COUNTRY_INFO!G12*100))),"-"),0) -> 0 | AH12: 0 | AI12: =IF(AND(COUNTRY_INFO!K12>0,COUNTRY_INFO!K12<4), IF(AC12/Z12*100<>0, IF(AH12/Z12*100>100,100,AH12/Z12*100), "-"),0) -> - | AK12: =IF(AND(D12<>0, D12<>"Unknown",D12<>"Stopped",D12<>"Not required"),D12/COUNTRY_INFO!D12, 0) -> 0 | AL12: =IF(AND(J12<>0,J12<>"Unknown",J12<>"Stopped",J12<>"Not required"),J12/COUNTRY_INFO!D12, 0) -> 0 | AM12: =IF(AND(P12<>0,P12<>"Unknown",P12<>"Not required"),P12/(COUNTRY_INFO!E12+COUNTRY_INFO!F12), 0) -> 0 | AN12: =IF(AND(Z12<>0,Z12<>"Unknown",Z12<>"Not required"),IF(COUNTRY_INFO!K12=1,1,IF(COUNTRY_INFO!K12=2,0.5*COUNTRY_INFO!F12/(0.5*COUNTRY_INFO!F12+0.2*COUNTRY_INFO!G12),IF(COUNTRY_INFO!K12=3,COUNTRY_INFO!F12/(COUNTRY_INFO!F12+COUNTRY_INFO!G12)))),0) -> 0.2690028195 | AO12: =IF(AND(Z12<>0,Z12<>"Unknown",Z12<>"Not required"),IF(COUNTRY_INFO!K12=1,0,IF(COUNTRY_INFO!K12=2,0.2*COUNTRY_INFO!G12/(0.5*COUNTRY_INFO!F12+0.2*COUNTRY_INFO!G12),IF(COUNTRY_INFO!K12=3,COUNTRY_INFO!G12/(COUNTRY_INFO!F12+COUNTRY_INFO!G12)))),0) -> 0.7309971805 | AP12: =MAX(COUNTRY_INFO!D12*AK12*PROFILE!$G$7,COUNTRY_INFO!D12*AL12*PROFILE!$G$7) -> 0 | AQ12: =MAX(COUNTRY_INFO!D12*AK12*PROFILE!$G$8,COUNTRY_INFO!D12*AL12*PROFILE!$G$8,COUNTRY_INFO!D12*AM12*PROFILE!$G$8) -> 0 | AR12: =MAX(COUNTRY_INFO!D12*AK12*PROFILE!$G$9,COUNTRY_INFO!D12*AL12*PROFILE!$G$9,COUNTRY_INFO!D12*AM12*PROFILE!$G$9,IF(AND(DISTRICT!Z12<>"Unknown",Z12<>"Not required"),COUNTRY_INFO!O12*DISTRICT!AN12,0)) -> 4675 | AS12: =MAX(COUNTRY_INFO!D12*AK12*PROFILE!$G$10,COUNTRY_INFO!D12*AL12*PROFILE!$G$10,IF(AND(DISTRICT!Z12<>"Unknown",Z12<>"Not required"),COUNTRY_INFO!O12*DISTRICT!AO12,0)) -> 12704 | AT12: 17379 | AU12: 0 | AV12: =MAX('MDA2'!J12,'T1'!L12,'T2'!J12,T3_R1!K12,T3_R2!K12) -> 0 | AW12: =MAX('MDA1'!K12,'MDA2'!K12,'MDA3'!I12,'MDA3'!L12,'T1'!M12,'T2'!K12,T3_R1!L12,T3_R2!L12) -> 2842 | AX12: =MAX('MDA1'!L12,'MDA2'!L12,'MDA3'!J12,'MDA3'!M12,'T1'!N12,'T2'!L12,T3_R1!M12,T3_R2!M12) -> 0 | AY12: 2842 | AZ12: =MAX('MDA2'!J12,T12) -> 0 | BA12: =MAX('MDA1'!K12,'MDA2'!K12,'MDA3'!I12,'MDA3'!L12,V12,AD12) -> 0 | BB12: =MAX('MDA1'!L12,'MDA2'!L12,'MDA3'!J12,'MDA3'!M12,AF12) -> 0 | BC12: 0 | BD12: 0
A13: =IF(COUNTRY_INFO!A13=0," ",COUNTRY_INFO!A13) -> ESWATINI | B13: =IF(COUNTRY_INFO!B13=0," ",COUNTRY_INFO!B13) -> HHOHHO | C13: =IF(COUNTRY_INFO!C13=0," ",COUNTRY_INFO!C13) -> Mayiwane | D13: =COUNTRY_INFO!L13 -> 0 | G13: =MAX('MDA1'!M13,'MDA2'!M13) -> 0 | H13: =IF(AND(COUNTRY_INFO!H13>0,COUNTRY_INFO!H13<4),IF(D13>MAX('MDA1'!M13,'MDA2'!M13),MAX('MDA1'!M13,'MDA2'!M13),D13),0) -> 0 | I13: =IF(AND(COUNTRY_INFO!H13>0,COUNTRY_INFO!H13<4), IF(G13/D13*100<>0, IF(G13/D13*100>100,100,G13/D13*100), "-"),0) -> 0 | J13: =COUNTRY_INFO!M13 -> 0 | M13: =MAX('MDA1'!M13,MAX('MDA3'!I13,'MDA3'!L13)+MAX('MDA3'!J13,'MDA3'!M13)) -> 0 | N13: =IF(AND(COUNTRY_INFO!I13>0,COUNTRY_INFO!I13<4),IF(J13>MAX('MDA1'!M13,MAX('MDA3'!I13,'MDA3'!L13)+MAX('MDA3'!J13,'MDA3'!M13)),MAX('MDA1'!M13,MAX('MDA3'!I13,'MDA3'!L13)+MAX('MDA3'!J13,'MDA3'!M13)),J13),0) -> 0 | O13: =IF(AND(COUNTRY_INFO!I13>0,COUNTRY_INFO!I13<4), IF(M13/J13*100<>0, IF(M13/J13*100>100,100,M13/J13*100), "-"),0) -> 0 | P13: =COUNTRY_INFO!N13 -> 0 | S13: =SUM(MAX('MDA2'!J13, 'T1'!L13, MAX(T3_R1!K13, T3_R2!K13)), MAX('MDA1'!K13, 'MDA2'!K13, 'T1'!M13, MAX(T3_R1!L13, T3_R2!L13)), MAX('MDA1'!L13, 'MDA2'!L13, 'T1'!N13, MAX(T3_R1!M13, T3_R2!M13))) -> 3334 | T13: =IF(AND(COUNTRY_INFO!J13>1,COUNTRY_INFO!J13<4),IF(COUNTRY_INFO!E13>MAX('MDA2'!J13,'T1'!L13,MAX(T3_R1!K13,T3_R2!K13)),MAX('MDA2'!J13,'T1'!L13,MAX(T3_R1!K13,T3_R2!K13)),COUNTRY_INFO!E13),0) -> 0 | U13: =IF(AND(COUNTRY_INFO!J13>1,COUNTRY_INFO!J13<4), IF(T13/COUNTRY_INFO!E13*100<>0, IF(T13/COUNTRY_INFO!E13*100>100,100,T13/COUNTRY_INFO!E13*100), "-"),0) -> 0 | V13: =IF(AND(COUNTRY_INFO!J13>1,COUNTRY_INFO!J13<4),IF(COUNTRY_INFO!F13>MAX('MDA1'!K13,'MDA2'!K13,'T1'!M13,MAX(T3_R1!L13,T3_R2!L13)),MAX('MDA1'!K13,'MDA2'!K13,'T1'!M13,MAX(T3_R1!L13,T3_R2!L13)),COUNTRY_INFO!F13),0) -> 0 | W13: =IF(AND(COUNTRY_INFO!J13>1,COUNTRY_INFO!J13<4), IF(V13/COUNTRY_INFO!F13*100<>0, IF(V13/COUNTRY_INFO!F13*100>100,100,V13/COUNTRY_INFO!F13*100), "-"),0) -> 0 | X13: 0 | Y13: =IF(AND(COUNTRY_INFO!J13>1,COUNTRY_INFO!J13<4), IF(S13/P13*100<>0, IF(X13/P13*100>100,100,X13/P13*100), "-"),0) -> 0 | Z13: =COUNTRY_INFO!O13 -> 4283.1 | AC13: =MAX('T1'!L13,'T2'!J13)+MAX('T1'!M13,'T2'!K13)+MAX('T1'!N13,'T2'!L13) -> 0 | AD13: =IF(COUNTRY_INFO!K13=1,IF(COUNTRY_INFO!F13*0.33>MAX('T1'!M13,'T2'!K13),MAX('T1'!M13,'T2'!K13),COUNTRY_INFO!F13*0.33),IF(COUNTRY_INFO!K13=2,IF(COUNTRY_INFO!F13*0.5>MAX('T1'!M13,'T2'!K13),MAX('T1'!M13,'T2'!K13),COUNTRY_INFO!F13*0.5),IF(COUNTRY_INFO!K13=3,IF(COUNTRY_INFO!F13>MAX('T1'!M13,'T2'!K13),MAX('T1'!M13,'T2'!K13),COUNTRY_INFO!F13),0))) -> 0 | AE13: =IF(AND(COUNTRY_INFO!K13>0,COUNTRY_INFO!K13<4),IF(Z13>0,IF(COUNTRY_INFO!K13=1, AD13/(COUNTRY_INFO!F13*0.33)*100, IF(COUNTRY_INFO!K13=2, AD13/(COUNTRY_INFO!F13*0.5)*100, IF(COUNTRY_INFO!K13=3, AD13/COUNTRY_INFO!F13*100))),"-"),0) -> 0 | AF13: =IF(COUNTRY_INFO!K13=2,IF(COUNTRY_INFO!G13*0.2>MAX('T1'!N13,'T2'!L13),MAX('T1'!N13,'T2'!L13),COUNTRY_INFO!G13*0.2),IF(COUNTRY_INFO!K13=3,IF(COUNTRY_INFO!G13>MAX('T1'!N13,'T2'!L13),MAX('T1'!N13,'T2'!L13),COUNTRY_INFO!G13),0)) -> 0 | AG13: =IF(AND(COUNTRY_INFO!K13>0,COUNTRY_INFO!K13<4),IF(Z13>0,IF(COUNTRY_INFO!K13=1, 0, IF(COUNTRY_INFO!K13=2, AF13/(COUNTRY_INFO!G13*0.2)*100, IF(COUNTRY_INFO!K13=3, AF13/COUNTRY_INFO!G13*100))),"-"),0) -> 0 | AH13: 0 | AI13: =IF(AND(COUNTRY_INFO!K13>0,COUNTRY_INFO!K13<4), IF(AC13/Z13*100<>0, IF(AH13/Z13*100>100,100,AH13/Z13*100), "-"),0) -> - | AK13: =IF(AND(D13<>0, D13<>"Unknown",D13<>"Stopped",D13<>"Not required"),D13/COUNTRY_INFO!D13, 0) -> 0 | AL13: =IF(AND(J13<>0,J13<>"Unknown",J13<>"Stopped",J13<>"Not required"),J13/COUNTRY_INFO!D13, 0) -> 0 | AM13: =IF(AND(P13<>0,P13<>"Unknown",P13<>"Not required"),P13/(COUNTRY_INFO!E13+COUNTRY_INFO!F13), 0) -> 0 | AN13: =IF(AND(Z13<>0,Z13<>"Unknown",Z13<>"Not required"),IF(COUNTRY_INFO!K13=1,1,IF(COUNTRY_INFO!K13=2,0.5*COUNTRY_INFO!F13/(0.5*COUNTRY_INFO!F13+0.2*COUNTRY_INFO!G13),IF(COUNTRY_INFO!K13=3,COUNTRY_INFO!F13/(COUNTRY_INFO!F13+COUNTRY_INFO!G13)))),0) -> 0.4792089841 | AO13: =IF(AND(Z13<>0,Z13<>"Unknown",Z13<>"Not required"),IF(COUNTRY_INFO!K13=1,0,IF(COUNTRY_INFO!K13=2,0.2*COUNTRY_INFO!G13/(0.5*COUNTRY_INFO!F13+0.2*COUNTRY_INFO!G13),IF(COUNTRY_INFO!K13=3,COUNTRY_INFO!G13/(COUNTRY_INFO!F13+COUNTRY_INFO!G13)))),0) -> 0.5207910159 | AP13: =MAX(COUNTRY_INFO!D13*AK13*PROFILE!$G$7,COUNTRY_INFO!D13*AL13*PROFILE!$G$7) -> 0 | AQ13: =MAX(COUNTRY_INFO!D13*AK13*PROFILE!$G$8,COUNTRY_INFO!D13*AL13*PROFILE!$G$8,COUNTRY_INFO!D13*AM13*PROFILE!$G$8) -> 0 | AR13: =MAX(COUNTRY_INFO!D13*AK13*PROFILE!$G$9,COUNTRY_INFO!D13*AL13*PROFILE!$G$9,COUNTRY_INFO!D13*AM13*PROFILE!$G$9,IF(AND(DISTRICT!Z13<>"Unknown",Z13<>"Not required"),COUNTRY_INFO!O13*DISTRICT!AN13,0)) -> 2052.5 | AS13: =MAX(COUNTRY_INFO!D13*AK13*PROFILE!$G$10,COUNTRY_INFO!D13*AL13*PROFILE!$G$10,IF(AND(DISTRICT!Z13<>"Unknown",Z13<>"Not required"),COUNTRY_INFO!O13*DISTRICT!AO13,0)) -> 2230.6 | AT13: 4283.1 | AU13: 0 | AV13: =MAX('MDA2'!J13,'T1'!L13,'T2'!J13,T3_R1!K13,T3_R2!K13) -> 0 | AW13: =MAX('MDA1'!K13,'MDA2'!K13,'MDA3'!I13,'MDA3'!L13,'T1'!M13,'T2'!K13,T3_R1!L13,T3_R2!L13) -> 3334 | AX13: =MAX('MDA1'!L13,'MDA2'!L13,'MDA3'!J13,'MDA3'!M13,'T1'!N13,'T2'!L13,T3_R1!M13,T3_R2!M13) -> 0 | AY13: 3334 | AZ13: =MAX('MDA2'!J13,T13) -> 0 | BA13: =MAX('MDA1'!K13,'MDA2'!K13,'MDA3'!I13,'MDA3'!L13,V13,AD13) -> 0 | BB13: =MAX('MDA1'!L13,'MDA2'!L13,'MDA3'!J13,'MDA3'!M13,AF13) -> 0 | BC13: 0 | BD13: 0
A14: =IF(COUNTRY_INFO!A14=0," ",COUNTRY_INFO!A14) -> ESWATINI | B14: =IF(COUNTRY_INFO!B14=0," ",COUNTRY_INFO!B14) -> HHOHHO | C14: =IF(COUNTRY_INFO!C14=0," ",COUNTRY_INFO!C14) -> Mbabane East | D14: =COUNTRY_INFO!L14 -> 0 | G14: =MAX('MDA1'!M14,'MDA2'!M14) -> 0 | H14: =IF(AND(COUNTRY_INFO!H14>0,COUNTRY_INFO!H14<4),IF(D14>MAX('MDA1'!M14,'MDA2'!M14),MAX('MDA1'!M14,'MDA2'!M14),D14),0) -> 0 | I14: =IF(AND(COUNTRY_INFO!H14>0,COUNTRY_INFO!H14<4), IF(G14/D14*100<>0, IF(G14/D14*100>100,100,G14/D14*100), "-"),0) -> 0 | J14: =COUNTRY_INFO!M14 -> 0 | M14: =MAX('MDA1'!M14,MAX('MDA3'!I14,'MDA3'!L14)+MAX('MDA3'!J14,'MDA3'!M14)) -> 0 | N14: =IF(AND(COUNTRY_INFO!I14>0,COUNTRY_INFO!I14<4),IF(J14>MAX('MDA1'!M14,MAX('MDA3'!I14,'MDA3'!L14)+MAX('MDA3'!J14,'MDA3'!M14)),MAX('MDA1'!M14,MAX('MDA3'!I14,'MDA3'!L14)+MAX('MDA3'!J14,'MDA3'!M14)),J14),0) -> 0 | O14: =IF(AND(COUNTRY_INFO!I14>0,COUNTRY_INFO!I14<4), IF(M14/J14*100<>0, IF(M14/J14*100>100,100,M14/J14*100), "-"),0) -> 0 | P14: =COUNTRY_INFO!N14 -> 0 | S14: =SUM(MAX('MDA2'!J14, 'T1'!L14, MAX(T3_R1!K14, T3_R2!K14)), MAX('MDA1'!K14, 'MDA2'!K14, 'T1'!M14, MAX(T3_R1!L14, T3_R2!L14)), MAX('MDA1'!L14, 'MDA2'!L14, 'T1'!N14, MAX(T3_R1!M14, T3_R2!M14))) -> 8508 | T14: =IF(AND(COUNTRY_INFO!J14>1,COUNTRY_INFO!J14<4),IF(COUNTRY_INFO!E14>MAX('MDA2'!J14,'T1'!L14,MAX(T3_R1!K14,T3_R2!K14)),MAX('MDA2'!J14,'T1'!L14,MAX(T3_R1!K14,T3_R2!K14)),COUNTRY_INFO!E14),0) -> 0 | U14: =IF(AND(COUNTRY_INFO!J14>1,COUNTRY_INFO!J14<4), IF(T14/COUNTRY_INFO!E14*100<>0, IF(T14/COUNTRY_INFO!E14*100>100,100,T14/COUNTRY_INFO!E14*100), "-"),0) -> 0 | V14: =IF(AND(COUNTRY_INFO!J14>1,COUNTRY_INFO!J14<4),IF(COUNTRY_INFO!F14>MAX('MDA1'!K14,'MDA2'!K14,'T1'!M14,MAX(T3_R1!L14,T3_R2!L14)),MAX('MDA1'!K14,'MDA2'!K14,'T1'!M14,MAX(T3_R1!L14,T3_R2!L14)),COUNTRY_INFO!F14),0) -> 0 | W14: =IF(AND(COUNTRY_INFO!J14>1,COUNTRY_INFO!J14<4), IF(V14/COUNTRY_INFO!F14*100<>0, IF(V14/COUNTRY_INFO!F14*100>100,100,V14/COUNTRY_INFO!F14*100), "-"),0) -> 0 | X14: 0 | Y14: =IF(AND(COUNTRY_INFO!J14>1,COUNTRY_INFO!J14<4), IF(S14/P14*100<>0, IF(X14/P14*100>100,100,X14/P14*100), "-"),0) -> 0 | Z14: =COUNTRY_INFO!O14 -> 9030.2 | AC14: =MAX('T1'!L14,'T2'!J14)+MAX('T1'!M14,'T2'!K14)+MAX('T1'!N14,'T2'!L14) -> 0 | AD14: =IF(COUNTRY_INFO!K14=1,IF(COUNTRY_INFO!F14*0.33>MAX('T1'!M14,'T2'!K14),MAX('T1'!M14,'T2'!K14),COUNTRY_INFO!F14*0.33),IF(COUNTRY_INFO!K14=2,IF(COUNTRY_INFO!F14*0.5>MAX('T1'!M14,'T2'!K14),MAX('T1'!M14,'T2'!K14),COUNTRY_INFO!F14*0.5),IF(COUNTRY_INFO!K14=3,IF(COUNTRY_INFO!F14>MAX('T1'!M14,'T2'!K14),MAX('T1'!M14,'T2'!K14),COUNTRY_INFO!F14),0))) -> 0 | AE14: =IF(AND(COUNTRY_INFO!K14>0,COUNTRY_INFO!K14<4),IF(Z14>0,IF(COUNTRY_INFO!K14=1, AD14/(COUNTRY_INFO!F14*0.33)*100, IF(COUNTRY_INFO!K14=2, AD14/(COUNTRY_INFO!F14*0.5)*100, IF(COUNTRY_INFO!K14=3, AD14/COUNTRY_INFO!F14*100))),"-"),0) -> 0 | AF14: =IF(COUNTRY_INFO!K14=2,IF(COUNTRY_INFO!G14*0.2>MAX('T1'!N14,'T2'!L14),MAX('T1'!N14,'T2'!L14),COUNTRY_INFO!G14*0.2),IF(COUNTRY_INFO!K14=3,IF(COUNTRY_INFO!G14>MAX('T1'!N14,'T2'!L14),MAX('T1'!N14,'T2'!L14),COUNTRY_INFO!G14),0)) -> 0 | AG14: =IF(AND(COUNTRY_INFO!K14>0,COUNTRY_INFO!K14<4),IF(Z14>0,IF(COUNTRY_INFO!K14=1, 0, IF(COUNTRY_INFO!K14=2, AF14/(COUNTRY_INFO!G14*0.2)*100, IF(COUNTRY_INFO!K14=3, AF14/COUNTRY_INFO!G14*100))),"-"),0) -> 0 | AH14: 0 | AI14: =IF(AND(COUNTRY_INFO!K14>0,COUNTRY_INFO!K14<4), IF(AC14/Z14*100<>0, IF(AH14/Z14*100>100,100,AH14/Z14*100), "-"),0) -> - | AK14: =IF(AND(D14<>0, D14<>"Unknown",D14<>"Stopped",D14<>"Not required"),D14/COUNTRY_INFO!D14, 0) -> 0 | AL14: =IF(AND(J14<>0,J14<>"Unknown",J14<>"Stopped",J14<>"Not required"),J14/COUNTRY_INFO!D14, 0) -> 0 | AM14: =IF(AND(P14<>0,P14<>"Unknown",P14<>"Not required"),P14/(COUNTRY_INFO!E14+COUNTRY_INFO!F14), 0) -> 0 | AN14: =IF(AND(Z14<>0,Z14<>"Unknown",Z14<>"Not required"),IF(COUNTRY_INFO!K14=1,1,IF(COUNTRY_INFO!K14=2,0.5*COUNTRY_INFO!F14/(0.5*COUNTRY_INFO!F14+0.2*COUNTRY_INFO!G14),IF(COUNTRY_INFO!K14=3,COUNTRY_INFO!F14/(COUNTRY_INFO!F14+COUNTRY_INFO!G14)))),0) -> 0.4791698966 | AO14: =IF(AND(Z14<>0,Z14<>"Unknown",Z14<>"Not required"),IF(COUNTRY_INFO!K14=1,0,IF(COUNTRY_INFO!K14=2,0.2*COUNTRY_INFO!G14/(0.5*COUNTRY_INFO!F14+0.2*COUNTRY_INFO!G14),IF(COUNTRY_INFO!K14=3,COUNTRY_INFO!G14/(COUNTRY_INFO!F14+COUNTRY_INFO!G14)))),0) -> 0.5208301034 | AP14: =MAX(COUNTRY_INFO!D14*AK14*PROFILE!$G$7,COUNTRY_INFO!D14*AL14*PROFILE!$G$7) -> 0 | AQ14: =MAX(COUNTRY_INFO!D14*AK14*PROFILE!$G$8,COUNTRY_INFO!D14*AL14*PROFILE!$G$8,COUNTRY_INFO!D14*AM14*PROFILE!$G$8) -> 0 | AR14: =MAX(COUNTRY_INFO!D14*AK14*PROFILE!$G$9,COUNTRY_INFO!D14*AL14*PROFILE!$G$9,COUNTRY_INFO!D14*AM14*PROFILE!$G$9,IF(AND(DISTRICT!Z14<>"Unknown",Z14<>"Not required"),COUNTRY_INFO!O14*DISTRICT!AN14,0)) -> 4327 | AS14: =MAX(COUNTRY_INFO!D14*AK14*PROFILE!$G$10,COUNTRY_INFO!D14*AL14*PROFILE!$G$10,IF(AND(DISTRICT!Z14<>"Unknown",Z14<>"Not required"),COUNTRY_INFO!O14*DISTRICT!AO14,0)) -> 4703.2 | AT14: 9030.2 | AU14: 0 | AV14: =MAX('MDA2'!J14,'T1'!L14,'T2'!J14,T3_R1!K14,T3_R2!K14) -> 0 | AW14: =MAX('MDA1'!K14,'MDA2'!K14,'MDA3'!I14,'MDA3'!L14,'T1'!M14,'T2'!K14,T3_R1!L14,T3_R2!L14) -> 8508 | AX14: =MAX('MDA1'!L14,'MDA2'!L14,'MDA3'!J14,'MDA3'!M14,'T1'!N14,'T2'!L14,T3_R1!M14,T3_R2!M14) -> 0 | AY14: 8508 | AZ14: =MAX('MDA2'!J14,T14) -> 0 | BA14: =MAX('MDA1'!K14,'MDA2'!K14,'MDA3'!I14,'MDA3'!L14,V14,AD14) -> 0 | BB14: =MAX('MDA1'!L14,'MDA2'!L14,'MDA3'!J14,'MDA3'!M14,AF14) -> 0 | BC14: 0 | BD14: 0
A15: =IF(COUNTRY_INFO!A15=0," ",COUNTRY_INFO!A15) -> ESWATINI | B15: =IF(COUNTRY_INFO!B15=0," ",COUNTRY_INFO!B15) -> HHOHHO | C15: =IF(COUNTRY_INFO!C15=0," ",COUNTRY_INFO!C15) -> Mbabane West | D15: =COUNTRY_INFO!L15 -> 0 | G15: =MAX('MDA1'!M15,'MDA2'!M15) -> 0 | H15: =IF(AND(COUNTRY_INFO!H15>0,COUNTRY_INFO!H15<4),IF(D15>MAX('MDA1'!M15,'MDA2'!M15),MAX('MDA1'!M15,'MDA2'!M15),D15),0) -> 0 | I15: =IF(AND(COUNTRY_INFO!H15>0,COUNTRY_INFO!H15<4), IF(G15/D15*100<>0, IF(G15/D15*100>100,100,G15/D15*100), "-"),0) -> 0 | J15: =COUNTRY_INFO!M15 -> 0 | M15: =MAX('MDA1'!M15,MAX('MDA3'!I15,'MDA3'!L15)+MAX('MDA3'!J15,'MDA3'!M15)) -> 0 | N15: =IF(AND(COUNTRY_INFO!I15>0,COUNTRY_INFO!I15<4),IF(J15>MAX('MDA1'!M15,MAX('MDA3'!I15,'MDA3'!L15)+MAX('MDA3'!J15,'MDA3'!M15)),MAX('MDA1'!M15,MAX('MDA3'!I15,'MDA3'!L15)+MAX('MDA3'!J15,'MDA3'!M15)),J15),0) -> 0 | O15: =IF(AND(COUNTRY_INFO!I15>0,COUNTRY_INFO!I15<4), IF(M15/J15*100<>0, IF(M15/J15*100>100,100,M15/J15*100), "-"),0) -> 0 | P15: =COUNTRY_INFO!N15 -> 0 | S15: =SUM(MAX('MDA2'!J15, 'T1'!L15, MAX(T3_R1!K15, T3_R2!K15)), MAX('MDA1'!K15, 'MDA2'!K15, 'T1'!M15, MAX(T3_R1!L15, T3_R2!L15)), MAX('MDA1'!L15, 'MDA2'!L15, 'T1'!N15, MAX(T3_R1!M15, T3_R2!M15))) -> 1943 | T15: =IF(AND(COUNTRY_INFO!J15>1,COUNTRY_INFO!J15<4),IF(COUNTRY_INFO!E15>MAX('MDA2'!J15,'T1'!L15,MAX(T3_R1!K15,T3_R2!K15)),MAX('MDA2'!J15,'T1'!L15,MAX(T3_R1!K15,T3_R2!K15)),COUNTRY_INFO!E15),0) -> 0 | U15: =IF(AND(COUNTRY_INFO!J15>1,COUNTRY_INFO!J15<4), IF(T15/COUNTRY_INFO!E15*100<>0, IF(T15/COUNTRY_INFO!E15*100>100,100,T15/COUNTRY_INFO!E15*100), "-"),0) -> 0 | V15: =IF(AND(COUNTRY_INFO!J15>1,COUNTRY_INFO!J15<4),IF(COUNTRY_INFO!F15>MAX('MDA1'!K15,'MDA2'!K15,'T1'!M15,MAX(T3_R1!L15,T3_R2!L15)),MAX('MDA1'!K15,'MDA2'!K15,'T1'!M15,MAX(T3_R1!L15,T3_R2!L15)),COUNTRY_INFO!F15),0) -> 0 | W15: =IF(AND(COUNTRY_INFO!J15>1,COUNTRY_INFO!J15<4), IF(V15/COUNTRY_INFO!F15*100<>0, IF(V15/COUNTRY_INFO!F15*100>100,100,V15/COUNTRY_INFO!F15*100), "-"),0) -> 0 | X15: 0 | Y15: =IF(AND(COUNTRY_INFO!J15>1,COUNTRY_INFO!J15<4), IF(S15/P15*100<>0, IF(X15/P15*100>100,100,X15/P15*100), "-"),0) -> 0 | Z15: =COUNTRY_INFO!O15 -> 2070.75 | AC15: =MAX('T1'!L15,'T2'!J15)+MAX('T1'!M15,'T2'!K15)+MAX('T1'!N15,'T2'!L15) -> 0 | AD15: =IF(COUNTRY_INFO!K15=1,IF(COUNTRY_INFO!F15*0.33>MAX('T1'!M15,'T2'!K15),MAX('T1'!M15,'T2'!K15),COUNTRY_INFO!F15*0.33),IF(COUNTRY_INFO!K15=2,IF(COUNTRY_INFO!F15*0.5>MAX('T1'!M15,'T2'!K15),MAX('T1'!M15,'T2'!K15),COUNTRY_INFO!F15*0.5),IF(COUNTRY_INFO!K15=3,IF(COUNTRY_INFO!F15>MAX('T1'!M15,'T2'!K15),MAX('T1'!M15,'T2'!K15),COUNTRY_INFO!F15),0))) -> 0 | AE15: =IF(AND(COUNTRY_INFO!K15>0,COUNTRY_INFO!K15<4),IF(Z15>0,IF(COUNTRY_INFO!K15=1, AD15/(COUNTRY_INFO!F15*0.33)*100, IF(COUNTRY_INFO!K15=2, AD15/(COUNTRY_INFO!F15*0.5)*100, IF(COUNTRY_INFO!K15=3, AD15/COUNTRY_INFO!F15*100))),"-"),0) -> 0 | AF15: =IF(COUNTRY_INFO!K15=2,IF(COUNTRY_INFO!G15*0.2>MAX('T1'!N15,'T2'!L15),MAX('T1'!N15,'T2'!L15),COUNTRY_INFO!G15*0.2),IF(COUNTRY_INFO!K15=3,IF(COUNTRY_INFO!G15>MAX('T1'!N15,'T2'!L15),MAX('T1'!N15,'T2'!L15),COUNTRY_INFO!G15),0)) -> 0 | AG15: =IF(AND(COUNTRY_INFO!K15>0,COUNTRY_INFO!K15<4),IF(Z15>0,IF(COUNTRY_INFO!K15=1, 0, IF(COUNTRY_INFO!K15=2, AF15/(COUNTRY_INFO!G15*0.2)*100, IF(COUNTRY_INFO!K15=3, AF15/COUNTRY_INFO!G15*100))),"-"),0) -> 0 | AH15: 0 | AI15: =IF(AND(COUNTRY_INFO!K15>0,COUNTRY_INFO!K15<4), IF(AC15/Z15*100<>0, IF(AH15/Z15*100>100,100,AH15/Z15*100), "-"),0) -> - | AK15: =IF(AND(D15<>0, D15<>"Unknown",D15<>"Stopped",D15<>"Not required"),D15/COUNTRY_INFO!D15, 0) -> 0 | AL15: =IF(AND(J15<>0,J15<>"Unknown",J15<>"Stopped",J15<>"Not required"),J15/COUNTRY_INFO!D15, 0) -> 0 | AM15: =IF(AND(P15<>0,P15<>"Unknown",P15<>"Not required"),P15/(COUNTRY_INFO!E15+COUNTRY_INFO!F15), 0) -> 0 | AN15: =IF(AND(Z15<>0,Z15<>"Unknown",Z15<>"Not required"),IF(COUNTRY_INFO!K15=1,1,IF(COUNTRY_INFO!K15=2,0.5*COUNTRY_INFO!F15/(0.5*COUNTRY_INFO!F15+0.2*COUNTRY_INFO!G15),IF(COUNTRY_INFO!K15=3,COUNTRY_INFO!F15/(COUNTRY_INFO!F15+COUNTRY_INFO!G15)))),0) -> 1 | AO15: =IF(AND(Z15<>0,Z15<>"Unknown",Z15<>"Not required"),IF(COUNTRY_INFO!K15=1,0,IF(COUNTRY_INFO!K15=2,0.2*COUNTRY_INFO!G15/(0.5*COUNTRY_INFO!F15+0.2*COUNTRY_INFO!G15),IF(COUNTRY_INFO!K15=3,COUNTRY_INFO!G15/(COUNTRY_INFO!F15+COUNTRY_INFO!G15)))),0) -> 0 | AP15: =MAX(COUNTRY_INFO!D15*AK15*PROFILE!$G$7,COUNTRY_INFO!D15*AL15*PROFILE!$G$7) -> 0 | AQ15: =MAX(COUNTRY_INFO!D15*AK15*PROFILE!$G$8,COUNTRY_INFO!D15*AL15*PROFILE!$G$8,COUNTRY_INFO!D15*AM15*PROFILE!$G$8) -> 0 | AR15: =MAX(COUNTRY_INFO!D15*AK15*PROFILE!$G$9,COUNTRY_INFO!D15*AL15*PROFILE!$G$9,COUNTRY_INFO!D15*AM15*PROFILE!$G$9,IF(AND(DISTRICT!Z15<>"Unknown",Z15<>"Not required"),COUNTRY_INFO!O15*DISTRICT!AN15,0)) -> 2070.75 | AS15: =MAX(COUNTRY_INFO!D15*AK15*PROFILE!$G$10,COUNTRY_INFO!D15*AL15*PROFILE!$G$10,IF(AND(DISTRICT!Z15<>"Unknown",Z15<>"Not required"),COUNTRY_INFO!O15*DISTRICT!AO15,0)) -> 0 | AT15: 2070.75 | AU15: 0 | AV15: =MAX('MDA2'!J15,'T1'!L15,'T2'!J15,T3_R1!K15,T3_R2!K15) -> 0 | AW15: =MAX('MDA1'!K15,'MDA2'!K15,'MDA3'!I15,'MDA3'!L15,'T1'!M15,'T2'!K15,T3_R1!L15,T3_R2!L15) -> 1943 | AX15: =MAX('MDA1'!L15,'MDA2'!L15,'MDA3'!J15,'MDA3'!M15,'T1'!N15,'T2'!L15,T3_R1!M15,T3_R2!M15) -> 0 | AY15: 1943 | AZ15: =MAX('MDA2'!J15,T15) -> 0 | BA15: =MAX('MDA1'!K15,'MDA2'!K15,'MDA3'!I15,'MDA3'!L15,V15,AD15) -> 0 | BB15: =MAX('MDA1'!L15,'MDA2'!L15,'MDA3'!J15,'MDA3'!M15,AF15) -> 0 | BC15: 0 | BD15: 0
A16: =IF(COUNTRY_INFO!A16=0," ",COUNTRY_INFO!A16) -> ESWATINI | B16: =IF(COUNTRY_INFO!B16=0," ",COUNTRY_INFO!B16) -> HHOHHO | C16: =IF(COUNTRY_INFO!C16=0," ",COUNTRY_INFO!C16) -> Mhlangatane | D16: =COUNTRY_INFO!L16 -> 0 | G16: =MAX('MDA1'!M16,'MDA2'!M16) -> 0 | H16: =IF(AND(COUNTRY_INFO!H16>0,COUNTRY_INFO!H16<4),IF(D16>MAX('MDA1'!M16,'MDA2'!M16),MAX('MDA1'!M16,'MDA2'!M16),D16),0) -> 0 | I16: =IF(AND(COUNTRY_INFO!H16>0,COUNTRY_INFO!H16<4), IF(G16/D16*100<>0, IF(G16/D16*100>100,100,G16/D16*100), "-"),0) -> 0 | J16: =COUNTRY_INFO!M16 -> 0 | M16: =MAX('MDA1'!M16,MAX('MDA3'!I16,'MDA3'!L16)+MAX('MDA3'!J16,'MDA3'!M16)) -> 0 | N16: =IF(AND(COUNTRY_INFO!I16>0,COUNTRY_INFO!I16<4),IF(J16>MAX('MDA1'!M16,MAX('MDA3'!I16,'MDA3'!L16)+MAX('MDA3'!J16,'MDA3'!M16)),MAX('MDA1'!M16,MAX('MDA3'!I16,'MDA3'!L16)+MAX('MDA3'!J16,'MDA3'!M16)),J16),0) -> 0 | O16: =IF(AND(COUNTRY_INFO!I16>0,COUNTRY_INFO!I16<4), IF(M16/J16*100<>0, IF(M16/J16*100>100,100,M16/J16*100), "-"),0) -> 0 | P16: =COUNTRY_INFO!N16 -> 0 | S16: =SUM(MAX('MDA2'!J16, 'T1'!L16, MAX(T3_R1!K16, T3_R2!K16)), MAX('MDA1'!K16, 'MDA2'!K16, 'T1'!M16, MAX(T3_R1!L16, T3_R2!L16)), MAX('MDA1'!L16, 'MDA2'!L16, 'T1'!N16, MAX(T3_R1!M16, T3_R2!M16))) -> 4851 | T16: =IF(AND(COUNTRY_INFO!J16>1,COUNTRY_INFO!J16<4),IF(COUNTRY_INFO!E16>MAX('MDA2'!J16,'T1'!L16,MAX(T3_R1!K16,T3_R2!K16)),MAX('MDA2'!J16,'T1'!L16,MAX(T3_R1!K16,T3_R2!K16)),COUNTRY_INFO!E16),0) -> 0 | U16: =IF(AND(COUNTRY_INFO!J16>1,COUNTRY_INFO!J16<4), IF(T16/COUNTRY_INFO!E16*100<>0, IF(T16/COUNTRY_INFO!E16*100>100,100,T16/COUNTRY_INFO!E16*100), "-"),0) -> 0 | V16: =IF(AND(COUNTRY_INFO!J16>1,COUNTRY_INFO!J16<4),IF(COUNTRY_INFO!F16>MAX('MDA1'!K16,'MDA2'!K16,'T1'!M16,MAX(T3_R1!L16,T3_R2!L16)),MAX('MDA1'!K16,'MDA2'!K16,'T1'!M16,MAX(T3_R1!L16,T3_R2!L16)),COUNTRY_INFO!F16),0) -> 0 | W16: =IF(AND(COUNTRY_INFO!J16>1,COUNTRY_INFO!J16<4), IF(V16/COUNTRY_INFO!F16*100<>0, IF(V16/COUNTRY_INFO!F16*100>100,100,V16/COUNTRY_INFO!F16*100), "-"),0) -> 0 | X16: 0 | Y16: =IF(AND(COUNTRY_INFO!J16>1,COUNTRY_INFO!J16<4), IF(S16/P16*100<>0, IF(X16/P16*100>100,100,X16/P16*100), "-"),0) -> 0 | Z16: =COUNTRY_INFO!O16 -> 6377.4 | AC16: =MAX('T1'!L16,'T2'!J16)+MAX('T1'!M16,'T2'!K16)+MAX('T1'!N16,'T2'!L16) -> 0 | AD16: =IF(COUNTRY_INFO!K16=1,IF(COUNTRY_INFO!F16*0.33>MAX('T1'!M16,'T2'!K16),MAX('T1'!M16,'T2'!K16),COUNTRY_INFO!F16*0.33),IF(COUNTRY_INFO!K16=2,IF(COUNTRY_INFO!F16*0.5>MAX('T1'!M16,'T2'!K16),MAX('T1'!M16,'T2'!K16),COUNTRY_INFO!F16*0.5),IF(COUNTRY_INFO!K16=3,IF(COUNTRY_INFO!F16>MAX('T1'!M16,'T2'!K16),MAX('T1'!M16,'T2'!K16),COUNTRY_INFO!F16),0))) -> 0 | AE16: =IF(AND(COUNTRY_INFO!K16>0,COUNTRY_INFO!K16<4),IF(Z16>0,IF(COUNTRY_INFO!K16=1, AD16/(COUNTRY_INFO!F16*0.33)*100, IF(COUNTRY_INFO!K16=2, AD16/(COUNTRY_INFO!F16*0.5)*100, IF(COUNTRY_INFO!K16=3, AD16/COUNTRY_INFO!F16*100))),"-"),0) -> 0 | AF16: =IF(COUNTRY_INFO!K16=2,IF(COUNTRY_INFO!G16*0.2>MAX('T1'!N16,'T2'!L16),MAX('T1'!N16,'T2'!L16),COUNTRY_INFO!G16*0.2),IF(COUNTRY_INFO!K16=3,IF(COUNTRY_INFO!G16>MAX('T1'!N16,'T2'!L16),MAX('T1'!N16,'T2'!L16),COUNTRY_INFO!G16),0)) -> 0 | AG16: =IF(AND(COUNTRY_INFO!K16>0,COUNTRY_INFO!K16<4),IF(Z16>0,IF(COUNTRY_INFO!K16=1, 0, IF(COUNTRY_INFO!K16=2, AF16/(COUNTRY_INFO!G16*0.2)*100, IF(COUNTRY_INFO!K16=3, AF16/COUNTRY_INFO!G16*100))),"-"),0) -> 0 | AH16: 0 | AI16: =IF(AND(COUNTRY_INFO!K16>0,COUNTRY_INFO!K16<4), IF(AC16/Z16*100<>0, IF(AH16/Z16*100>100,100,AH16/Z16*100), "-"),0) -> - | AK16: =IF(AND(D16<>0, D16<>"Unknown",D16<>"Stopped",D16<>"Not required"),D16/COUNTRY_INFO!D16, 0) -> 0 | AL16: =IF(AND(J16<>0,J16<>"Unknown",J16<>"Stopped",J16<>"Not required"),J16/COUNTRY_INFO!D16, 0) -> 0 | AM16: =IF(AND(P16<>0,P16<>"Unknown",P16<>"Not required"),P16/(COUNTRY_INFO!E16+COUNTRY_INFO!F16), 0) -> 0 | AN16: =IF(AND(Z16<>0,Z16<>"Unknown",Z16<>"Not required"),IF(COUNTRY_INFO!K16=1,1,IF(COUNTRY_INFO!K16=2,0.5*COUNTRY_INFO!F16/(0.5*COUNTRY_INFO!F16+0.2*COUNTRY_INFO!G16),IF(COUNTRY_INFO!K16=3,COUNTRY_INFO!F16/(COUNTRY_INFO!F16+COUNTRY_INFO!G16)))),0) -> 0.4791921473 | AO16: =IF(AND(Z16<>0,Z16<>"Unknown",Z16<>"Not required"),IF(COUNTRY_INFO!K16=1,0,IF(COUNTRY_INFO!K16=2,0.2*COUNTRY_INFO!G16/(0.5*COUNTRY_INFO!F16+0.2*COUNTRY_INFO!G16),IF(COUNTRY_INFO!K16=3,COUNTRY_INFO!G16/(COUNTRY_INFO!F16+COUNTRY_INFO!G16)))),0) -> 0.5208078527 | AP16: =MAX(COUNTRY_INFO!D16*AK16*PROFILE!$G$7,COUNTRY_INFO!D16*AL16*PROFILE!$G$7) -> 0 | AQ16: =MAX(COUNTRY_INFO!D16*AK16*PROFILE!$G$8,COUNTRY_INFO!D16*AL16*PROFILE!$G$8,COUNTRY_INFO!D16*AM16*PROFILE!$G$8) -> 0 | AR16: =MAX(COUNTRY_INFO!D16*AK16*PROFILE!$G$9,COUNTRY_INFO!D16*AL16*PROFILE!$G$9,COUNTRY_INFO!D16*AM16*PROFILE!$G$9,IF(AND(DISTRICT!Z16<>"Unknown",Z16<>"Not required"),COUNTRY_INFO!O16*DISTRICT!AN16,0)) -> 3056 | AS16: =MAX(COUNTRY_INFO!D16*AK16*PROFILE!$G$10,COUNTRY_INFO!D16*AL16*PROFILE!$G$10,IF(AND(DISTRICT!Z16<>"Unknown",Z16<>"Not required"),COUNTRY_INFO!O16*DISTRICT!AO16,0)) -> 3321.4 | AT16: 6377.4 | AU16: 0 | AV16: =MAX('MDA2'!J16,'T1'!L16,'T2'!J16,T3_R1!K16,T3_R2!K16) -> 0 | AW16: =MAX('MDA1'!K16,'MDA2'!K16,'MDA3'!I16,'MDA3'!L16,'T1'!M16,'T2'!K16,T3_R1!L16,T3_R2!L16) -> 4851 | AX16: =MAX('MDA1'!L16,'MDA2'!L16,'MDA3'!J16,'MDA3'!M16,'T1'!N16,'T2'!L16,T3_R1!M16,T3_R2!M16) -> 0 | AY16: 4851 | AZ16: =MAX('MDA2'!J16,T16) -> 0 | BA16: =MAX('MDA1'!K16,'MDA2'!K16,'MDA3'!I16,'MDA3'!L16,V16,AD16) -> 0 | BB16: =MAX('MDA1'!L16,'MDA2'!L16,'MDA3'!J16,'MDA3'!M16,AF16) -> 0 | BC16: 0 | BD16: 0
A17: =IF(COUNTRY_INFO!A17=0," ",COUNTRY_INFO!A17) -> ESWATINI | B17: =IF(COUNTRY_INFO!B17=0," ",COUNTRY_INFO!B17) -> HHOHHO | C17: =IF(COUNTRY_INFO!C17=0," ",COUNTRY_INFO!C17) -> Motshane | D17: =COUNTRY_INFO!L17 -> 0 | G17: =MAX('MDA1'!M17,'MDA2'!M17) -> 0 | H17: =IF(AND(COUNTRY_INFO!H17>0,COUNTRY_INFO!H17<4),IF(D17>MAX('MDA1'!M17,'MDA2'!M17),MAX('MDA1'!M17,'MDA2'!M17),D17),0) -> 0 | I17: =IF(AND(COUNTRY_INFO!H17>0,COUNTRY_INFO!H17<4), IF(G17/D17*100<>0, IF(G17/D17*100>100,100,G17/D17*100), "-"),0) -> 0 | J17: =COUNTRY_INFO!M17 -> 0 | M17: =MAX('MDA1'!M17,MAX('MDA3'!I17,'MDA3'!L17)+MAX('MDA3'!J17,'MDA3'!M17)) -> 0 | N17: =IF(AND(COUNTRY_INFO!I17>0,COUNTRY_INFO!I17<4),IF(J17>MAX('MDA1'!M17,MAX('MDA3'!I17,'MDA3'!L17)+MAX('MDA3'!J17,'MDA3'!M17)),MAX('MDA1'!M17,MAX('MDA3'!I17,'MDA3'!L17)+MAX('MDA3'!J17,'MDA3'!M17)),J17),0) -> 0 | O17: =IF(AND(COUNTRY_INFO!I17>0,COUNTRY_INFO!I17<4), IF(M17/J17*100<>0, IF(M17/J17*100>100,100,M17/J17*100), "-"),0) -> 0 | P17: =COUNTRY_INFO!N17 -> 11739 | S17: =SUM(MAX('MDA2'!J17, 'T1'!L17, MAX(T3_R1!K17, T3_R2!K17)), MAX('MDA1'!K17, 'MDA2'!K17, 'T1'!M17, MAX(T3_R1!L17, T3_R2!L17)), MAX('MDA1'!L17, 'MDA2'!L17, 'T1'!N17, MAX(T3_R1!M17, T3_R2!M17))) -> 5410 | T17: =IF(AND(COUNTRY_INFO!J17>1,COUNTRY_INFO!J17<4),IF(COUNTRY_INFO!E17>MAX('MDA2'!J17,'T1'!L17,MAX(T3_R1!K17,T3_R2!K17)),MAX('MDA2'!J17,'T1'!L17,MAX(T3_R1!K17,T3_R2!K17)),COUNTRY_INFO!E17),0) -> 0 | U17: =IF(AND(COUNTRY_INFO!J17>1,COUNTRY_INFO!J17<4), IF(T17/COUNTRY_INFO!E17*100<>0, IF(T17/COUNTRY_INFO!E17*100>100,100,T17/COUNTRY_INFO!E17*100), "-"),0) -> - | V17: =IF(AND(COUNTRY_INFO!J17>1,COUNTRY_INFO!J17<4),IF(COUNTRY_INFO!F17>MAX('MDA1'!K17,'MDA2'!K17,'T1'!M17,MAX(T3_R1!L17,T3_R2!L17)),MAX('MDA1'!K17,'MDA2'!K17,'T1'!M17,MAX(T3_R1!L17,T3_R2!L17)),COUNTRY_INFO!F17),0) -> 5410 | W17: =IF(AND(COUNTRY_INFO!J17>1,COUNTRY_INFO!J17<4), IF(V17/COUNTRY_INFO!F17*100<>0, IF(V17/COUNTRY_INFO!F17*100>100,100,V17/COUNTRY_INFO!F17*100), "-"),0) -> 64.75164572 | X17: 5410 | Y17: =IF(AND(COUNTRY_INFO!J17>1,COUNTRY_INFO!J17<4), IF(S17/P17*100<>0, IF(X17/P17*100>100,100,X17/P17*100), "-"),0) -> 46.08569725 | Z17: =COUNTRY_INFO!O17 -> 8718.3 | AC17: =MAX('T1'!L17,'T2'!J17)+MAX('T1'!M17,'T2'!K17)+MAX('T1'!N17,'T2'!L17) -> 0 | AD17: =IF(COUNTRY_INFO!K17=1,IF(COUNTRY_INFO!F17*0.33>MAX('T1'!M17,'T2'!K17),MAX('T1'!M17,'T2'!K17),COUNTRY_INFO!F17*0.33),IF(COUNTRY_INFO!K17=2,IF(COUNTRY_INFO!F17*0.5>MAX('T1'!M17,'T2'!K17),MAX('T1'!M17,'T2'!K17),COUNTRY_INFO!F17*0.5),IF(COUNTRY_INFO!K17=3,IF(COUNTRY_INFO!F17>MAX('T1'!M17,'T2'!K17),MAX('T1'!M17,'T2'!K17),COUNTRY_INFO!F17),0))) -> 0 | AE17: =IF(AND(COUNTRY_INFO!K17>0,COUNTRY_INFO!K17<4),IF(Z17>0,IF(COUNTRY_INFO!K17=1, AD17/(COUNTRY_INFO!F17*0.33)*100, IF(COUNTRY_INFO!K17=2, AD17/(COUNTRY_INFO!F17*0.5)*100, IF(COUNTRY_INFO!K17=3, AD17/COUNTRY_INFO!F17*100))),"-"),0) -> 0 | AF17: =IF(COUNTRY_INFO!K17=2,IF(COUNTRY_INFO!G17*0.2>MAX('T1'!N17,'T2'!L17),MAX('T1'!N17,'T2'!L17),COUNTRY_INFO!G17*0.2),IF(COUNTRY_INFO!K17=3,IF(COUNTRY_INFO!G17>MAX('T1'!N17,'T2'!L17),MAX('T1'!N17,'T2'!L17),COUNTRY_INFO!G17),0)) -> 0 | AG17: =IF(AND(COUNTRY_INFO!K17>0,COUNTRY_INFO!K17<4),IF(Z17>0,IF(COUNTRY_INFO!K17=1, 0, IF(COUNTRY_INFO!K17=2, AF17/(COUNTRY_INFO!G17*0.2)*100, IF(COUNTRY_INFO!K17=3, AF17/COUNTRY_INFO!G17*100))),"-"),0) -> 0 | AH17: 0 | AI17: =IF(AND(COUNTRY_INFO!K17>0,COUNTRY_INFO!K17<4), IF(AC17/Z17*100<>0, IF(AH17/Z17*100>100,100,AH17/Z17*100), "-"),0) -> - | AK17: =IF(AND(D17<>0, D17<>"Unknown",D17<>"Stopped",D17<>"Not required"),D17/COUNTRY_INFO!D17, 0) -> 0 | AL17: =IF(AND(J17<>0,J17<>"Unknown",J17<>"Stopped",J17<>"Not required"),J17/COUNTRY_INFO!D17, 0) -> 0 | AM17: =IF(AND(P17<>0,P17<>"Unknown",P17<>"Not required"),P17/(COUNTRY_INFO!E17+COUNTRY_INFO!F17), 0) -> 1 | AN17: =IF(AND(Z17<>0,Z17<>"Unknown",Z17<>"Not required"),IF(COUNTRY_INFO!K17=1,1,IF(COUNTRY_INFO!K17=2,0.5*COUNTRY_INFO!F17/(0.5*COUNTRY_INFO!F17+0.2*COUNTRY_INFO!G17),IF(COUNTRY_INFO!K17=3,COUNTRY_INFO!F17/(COUNTRY_INFO!F17+COUNTRY_INFO!G17)))),0) -> 0.479164516 | AO17: =IF(AND(Z17<>0,Z17<>"Unknown",Z17<>"Not required"),IF(COUNTRY_INFO!K17=1,0,IF(COUNTRY_INFO!K17=2,0.2*COUNTRY_INFO!G17/(0.5*COUNTRY_INFO!F17+0.2*COUNTRY_INFO!G17),IF(COUNTRY_INFO!K17=3,COUNTRY_INFO!G17/(COUNTRY_INFO!F17+COUNTRY_INFO!G17)))),0) -> 0.520835484 | AP17: =MAX(COUNTRY_INFO!D17*AK17*PROFILE!$G$7,COUNTRY_INFO!D17*AL17*PROFILE!$G$7) -> 0 | AQ17: =MAX(COUNTRY_INFO!D17*AK17*PROFILE!$G$8,COUNTRY_INFO!D17*AL17*PROFILE!$G$8,COUNTRY_INFO!D17*AM17*PROFILE!$G$8) -> 3384.408932 | AR17: =MAX(COUNTRY_INFO!D17*AK17*PROFILE!$G$9,COUNTRY_INFO!D17*AL17*PROFILE!$G$9,COUNTRY_INFO!D17*AM17*PROFILE!$G$9,IF(AND(DISTRICT!Z17<>"Unknown",Z17<>"Not required"),COUNTRY_INFO!O17*DISTRICT!AN17,0)) -> 8355.189986 | AS17: =MAX(COUNTRY_INFO!D17*AK17*PROFILE!$G$10,COUNTRY_INFO!D17*AL17*PROFILE!$G$10,IF(AND(DISTRICT!Z17<>"Unknown",Z17<>"Not required"),COUNTRY_INFO!O17*DISTRICT!AO17,0)) -> 4540.8 | AT17: 16280.39892 | AU17: 0 | AV17: =MAX('MDA2'!J17,'T1'!L17,'T2'!J17,T3_R1!K17,T3_R2!K17) -> 0 | AW17: =MAX('MDA1'!K17,'MDA2'!K17,'MDA3'!I17,'MDA3'!L17,'T1'!M17,'T2'!K17,T3_R1!L17,T3_R2!L17) -> 5410 | AX17: =MAX('MDA1'!L17,'MDA2'!L17,'MDA3'!J17,'MDA3'!M17,'T1'!N17,'T2'!L17,T3_R1!M17,T3_R2!M17) -> 0 | AY17: 5410 | AZ17: =MAX('MDA2'!J17,T17) -> 0 | BA17: =MAX('MDA1'!K17,'MDA2'!K17,'MDA3'!I17,'MDA3'!L17,V17,AD17) -> 5410 | BB17: =MAX('MDA1'!L17,'MDA2'!L17,'MDA3'!J17,'MDA3'!M17,AF17) -> 0 | BC17: 5410 | BD17: 33.23014397
A18: =IF(COUNTRY_INFO!A18=0," ",COUNTRY_INFO!A18) -> ESWATINI | B18: =IF(COUNTRY_INFO!B18=0," ",COUNTRY_INFO!B18) -> HHOHHO | C18: =IF(COUNTRY_INFO!C18=0," ",COUNTRY_INFO!C18) -> Ndzingeni | D18: =COUNTRY_INFO!L18 -> 0 | G18: =MAX('MDA1'!M18,'MDA2'!M18) -> 0 | H18: =IF(AND(COUNTRY_INFO!H18>0,COUNTRY_INFO!H18<4),IF(D18>MAX('MDA1'!M18,'MDA2'!M18),MAX('MDA1'!M18,'MDA2'!M18),D18),0) -> 0 | I18: =IF(AND(COUNTRY_INFO!H18>0,COUNTRY_INFO!H18<4), IF(G18/D18*100<>0, IF(G18/D18*100>100,100,G18/D18*100), "-"),0) -> 0 | J18: =COUNTRY_INFO!M18 -> 0 | M18: =MAX('MDA1'!M18,MAX('MDA3'!I18,'MDA3'!L18)+MAX('MDA3'!J18,'MDA3'!M18)) -> 0 | N18: =IF(AND(COUNTRY_INFO!I18>0,COUNTRY_INFO!I18<4),IF(J18>MAX('MDA1'!M18,MAX('MDA3'!I18,'MDA3'!L18)+MAX('MDA3'!J18,'MDA3'!M18)),MAX('MDA1'!M18,MAX('MDA3'!I18,'MDA3'!L18)+MAX('MDA3'!J18,'MDA3'!M18)),J18),0) -> 0 | O18: =IF(AND(COUNTRY_INFO!I18>0,COUNTRY_INFO!I18<4), IF(M18/J18*100<>0, IF(M18/J18*100>100,100,M18/J18*100), "-"),0) -> 0 | P18: =COUNTRY_INFO!N18 -> 0 | S18: =SUM(MAX('MDA2'!J18, 'T1'!L18, MAX(T3_R1!K18, T3_R2!K18)), MAX('MDA1'!K18, 'MDA2'!K18, 'T1'!M18, MAX(T3_R1!L18, T3_R2!L18)), MAX('MDA1'!L18, 'MDA2'!L18, 'T1'!N18, MAX(T3_R1!M18, T3_R2!M18))) -> 3346 | T18: =IF(AND(COUNTRY_INFO!J18>1,COUNTRY_INFO!J18<4),IF(COUNTRY_INFO!E18>MAX('MDA2'!J18,'T1'!L18,MAX(T3_R1!K18,T3_R2!K18)),MAX('MDA2'!J18,'T1'!L18,MAX(T3_R1!K18,T3_R2!K18)),COUNTRY_INFO!E18),0) -> 0 | U18: =IF(AND(COUNTRY_INFO!J18>1,COUNTRY_INFO!J18<4), IF(T18/COUNTRY_INFO!E18*100<>0, IF(T18/COUNTRY_INFO!E18*100>100,100,T18/COUNTRY_INFO!E18*100), "-"),0) -> 0 | V18: =IF(AND(COUNTRY_INFO!J18>1,COUNTRY_INFO!J18<4),IF(COUNTRY_INFO!F18>MAX('MDA1'!K18,'MDA2'!K18,'T1'!M18,MAX(T3_R1!L18,T3_R2!L18)),MAX('MDA1'!K18,'MDA2'!K18,'T1'!M18,MAX(T3_R1!L18,T3_R2!L18)),COUNTRY_INFO!F18),0) -> 0 | W18: =IF(AND(COUNTRY_INFO!J18>1,COUNTRY_INFO!J18<4), IF(V18/COUNTRY_INFO!F18*100<>0, IF(V18/COUNTRY_INFO!F18*100>100,100,V18/COUNTRY_INFO!F18*100), "-"),0) -> 0 | X18: 0 | Y18: =IF(AND(COUNTRY_INFO!J18>1,COUNTRY_INFO!J18<4), IF(S18/P18*100<>0, IF(X18/P18*100>100,100,X18/P18*100), "-"),0) -> 0 | Z18: =COUNTRY_INFO!O18 -> 1503.48 | AC18: =MAX('T1'!L18,'T2'!J18)+MAX('T1'!M18,'T2'!K18)+MAX('T1'!N18,'T2'!L18) -> 0 | AD18: =IF(COUNTRY_INFO!K18=1,IF(COUNTRY_INFO!F18*0.33>MAX('T1'!M18,'T2'!K18),MAX('T1'!M18,'T2'!K18),COUNTRY_INFO!F18*0.33),IF(COUNTRY_INFO!K18=2,IF(COUNTRY_INFO!F18*0.5>MAX('T1'!M18,'T2'!K18),MAX('T1'!M18,'T2'!K18),COUNTRY_INFO!F18*0.5),IF(COUNTRY_INFO!K18=3,IF(COUNTRY_INFO!F18>MAX('T1'!M18,'T2'!K18),MAX('T1'!M18,'T2'!K18),COUNTRY_INFO!F18),0))) -> 0 | AE18: =IF(AND(COUNTRY_INFO!K18>0,COUNTRY_INFO!K18<4),IF(Z18>0,IF(COUNTRY_INFO!K18=1, AD18/(COUNTRY_INFO!F18*0.33)*100, IF(COUNTRY_INFO!K18=2, AD18/(COUNTRY_INFO!F18*0.5)*100, IF(COUNTRY_INFO!K18=3, AD18/COUNTRY_INFO!F18*100))),"-"),0) -> 0 | AF18: =IF(COUNTRY_INFO!K18=2,IF(COUNTRY_INFO!G18*0.2>MAX('T1'!N18,'T2'!L18),MAX('T1'!N18,'T2'!L18),COUNTRY_INFO!G18*0.2),IF(COUNTRY_INFO!K18=3,IF(COUNTRY_INFO!G18>MAX('T1'!N18,'T2'!L18),MAX('T1'!N18,'T2'!L18),COUNTRY_INFO!G18),0)) -> 0 | AG18: =IF(AND(COUNTRY_INFO!K18>0,COUNTRY_INFO!K18<4),IF(Z18>0,IF(COUNTRY_INFO!K18=1, 0, IF(COUNTRY_INFO!K18=2, AF18/(COUNTRY_INFO!G18*0.2)*100, IF(COUNTRY_INFO!K18=3, AF18/COUNTRY_INFO!G18*100))),"-"),0) -> 0 | AH18: 0 | AI18: =IF(AND(COUNTRY_INFO!K18>0,COUNTRY_INFO!K18<4), IF(AC18/Z18*100<>0, IF(AH18/Z18*100>100,100,AH18/Z18*100), "-"),0) -> - | AK18: =IF(AND(D18<>0, D18<>"Unknown",D18<>"Stopped",D18<>"Not required"),D18/COUNTRY_INFO!D18, 0) -> 0 | AL18: =IF(AND(J18<>0,J18<>"Unknown",J18<>"Stopped",J18<>"Not required"),J18/COUNTRY_INFO!D18, 0) -> 0 | AM18: =IF(AND(P18<>0,P18<>"Unknown",P18<>"Not required"),P18/(COUNTRY_INFO!E18+COUNTRY_INFO!F18), 0) -> 0 | AN18: =IF(AND(Z18<>0,Z18<>"Unknown",Z18<>"Not required"),IF(COUNTRY_INFO!K18=1,1,IF(COUNTRY_INFO!K18=2,0.5*COUNTRY_INFO!F18/(0.5*COUNTRY_INFO!F18+0.2*COUNTRY_INFO!G18),IF(COUNTRY_INFO!K18=3,COUNTRY_INFO!F18/(COUNTRY_INFO!F18+COUNTRY_INFO!G18)))),0) -> 1 | AO18: =IF(AND(Z18<>0,Z18<>"Unknown",Z18<>"Not required"),IF(COUNTRY_INFO!K18=1,0,IF(COUNTRY_INFO!K18=2,0.2*COUNTRY_INFO!G18/(0.5*COUNTRY_INFO!F18+0.2*COUNTRY_INFO!G18),IF(COUNTRY_INFO!K18=3,COUNTRY_INFO!G18/(COUNTRY_INFO!F18+COUNTRY_INFO!G18)))),0) -> 0 | AP18: =MAX(COUNTRY_INFO!D18*AK18*PROFILE!$G$7,COUNTRY_INFO!D18*AL18*PROFILE!$G$7) -> 0 | AQ18: =MAX(COUNTRY_INFO!D18*AK18*PROFILE!$G$8,COUNTRY_INFO!D18*AL18*PROFILE!$G$8,COUNTRY_INFO!D18*AM18*PROFILE!$G$8) -> 0 | AR18: =MAX(COUNTRY_INFO!D18*AK18*PROFILE!$G$9,COUNTRY_INFO!D18*AL18*PROFILE!$G$9,COUNTRY_INFO!D18*AM18*PROFILE!$G$9,IF(AND(DISTRICT!Z18<>"Unknown",Z18<>"Not required"),COUNTRY_INFO!O18*DISTRICT!AN18,0)) -> 1503.48 | AS18: =MAX(COUNTRY_INFO!D18*AK18*PROFILE!$G$10,COUNTRY_INFO!D18*AL18*PROFILE!$G$10,IF(AND(DISTRICT!Z18<>"Unknown",Z18<>"Not required"),COUNTRY_INFO!O18*DISTRICT!AO18,0)) -> 0 | AT18: 1503.48 | AU18: 0 | AV18: =MAX('MDA2'!J18,'T1'!L18,'T2'!J18,T3_R1!K18,T3_R2!K18) -> 0 | AW18: =MAX('MDA1'!K18,'MDA2'!K18,'MDA3'!I18,'MDA3'!L18,'T1'!M18,'T2'!K18,T3_R1!L18,T3_R2!L18) -> 3346 | AX18: =MAX('MDA1'!L18,'MDA2'!L18,'MDA3'!J18,'MDA3'!M18,'T1'!N18,'T2'!L18,T3_R1!M18,T3_R2!M18) -> 0 | AY18: 3346 | AZ18: =MAX('MDA2'!J18,T18) -> 0 | BA18: =MAX('MDA1'!K18,'MDA2'!K18,'MDA3'!I18,'MDA3'!L18,V18,AD18) -> 0 | BB18: =MAX('MDA1'!L18,'MDA2'!L18,'MDA3'!J18,'MDA3'!M18,AF18) -> 0 | BC18: 0 | BD18: 0
A19: =IF(COUNTRY_INFO!A19=0," ",COUNTRY_INFO!A19) -> ESWATINI | B19: =IF(COUNTRY_INFO!B19=0," ",COUNTRY_INFO!B19) -> HHOHHO | C19: =IF(COUNTRY_INFO!C19=0," ",COUNTRY_INFO!C19) -> Nkhaba | D19: =COUNTRY_INFO!L19 -> 0 | G19: =MAX('MDA1'!M19,'MDA2'!M19) -> 0 | H19: =IF(AND(COUNTRY_INFO!H19>0,COUNTRY_INFO!H19<4),IF(D19>MAX('MDA1'!M19,'MDA2'!M19),MAX('MDA1'!M19,'MDA2'!M19),D19),0) -> 0 | I19: =IF(AND(COUNTRY_INFO!H19>0,COUNTRY_INFO!H19<4), IF(G19/D19*100<>0, IF(G19/D19*100>100,100,G19/D19*100), "-"),0) -> 0 | J19: =COUNTRY_INFO!M19 -> 0 | M19: =MAX('MDA1'!M19,MAX('MDA3'!I19,'MDA3'!L19)+MAX('MDA3'!J19,'MDA3'!M19)) -> 0 | N19: =IF(AND(COUNTRY_INFO!I19>0,COUNTRY_INFO!I19<4),IF(J19>MAX('MDA1'!M19,MAX('MDA3'!I19,'MDA3'!L19)+MAX('MDA3'!J19,'MDA3'!M19)),MAX('MDA1'!M19,MAX('MDA3'!I19,'MDA3'!L19)+MAX('MDA3'!J19,'MDA3'!M19)),J19),0) -> 0 | O19: =IF(AND(COUNTRY_INFO!I19>0,COUNTRY_INFO!I19<4), IF(M19/J19*100<>0, IF(M19/J19*100>100,100,M19/J19*100), "-"),0) -> 0 | P19: =COUNTRY_INFO!N19 -> 0 | S19: =SUM(MAX('MDA2'!J19, 'T1'!L19, MAX(T3_R1!K19, T3_R2!K19)), MAX('MDA1'!K19, 'MDA2'!K19, 'T1'!M19, MAX(T3_R1!L19, T3_R2!L19)), MAX('MDA1'!L19, 'MDA2'!L19, 'T1'!N19, MAX(T3_R1!M19, T3_R2!M19))) -> 4580 | T19: =IF(AND(COUNTRY_INFO!J19>1,COUNTRY_INFO!J19<4),IF(COUNTRY_INFO!E19>MAX('MDA2'!J19,'T1'!L19,MAX(T3_R1!K19,T3_R2!K19)),MAX('MDA2'!J19,'T1'!L19,MAX(T3_R1!K19,T3_R2!K19)),COUNTRY_INFO!E19),0) -> 0 | U19: =IF(AND(COUNTRY_INFO!J19>1,COUNTRY_INFO!J19<4), IF(T19/COUNTRY_INFO!E19*100<>0, IF(T19/COUNTRY_INFO!E19*100>100,100,T19/COUNTRY_INFO!E19*100), "-"),0) -> 0 | V19: =IF(AND(COUNTRY_INFO!J19>1,COUNTRY_INFO!J19<4),IF(COUNTRY_INFO!F19>MAX('MDA1'!K19,'MDA2'!K19,'T1'!M19,MAX(T3_R1!L19,T3_R2!L19)),MAX('MDA1'!K19,'MDA2'!K19,'T1'!M19,MAX(T3_R1!L19,T3_R2!L19)),COUNTRY_INFO!F19),0) -> 0 | W19: =IF(AND(COUNTRY_INFO!J19>1,COUNTRY_INFO!J19<4), IF(V19/COUNTRY_INFO!F19*100<>0, IF(V19/COUNTRY_INFO!F19*100>100,100,V19/COUNTRY_INFO!F19*100), "-"),0) -> 0 | X19: 0 | Y19: =IF(AND(COUNTRY_INFO!J19>1,COUNTRY_INFO!J19<4), IF(S19/P19*100<>0, IF(X19/P19*100>100,100,X19/P19*100), "-"),0) -> 0 | Z19: =COUNTRY_INFO!O19 -> 1622.61 | AC19: =MAX('T1'!L19,'T2'!J19)+MAX('T1'!M19,'T2'!K19)+MAX('T1'!N19,'T2'!L19) -> 0 | AD19: =IF(COUNTRY_INFO!K19=1,IF(COUNTRY_INFO!F19*0.33>MAX('T1'!M19,'T2'!K19),MAX('T1'!M19,'T2'!K19),COUNTRY_INFO!F19*0.33),IF(COUNTRY_INFO!K19=2,IF(COUNTRY_INFO!F19*0.5>MAX('T1'!M19,'T2'!K19),MAX('T1'!M19,'T2'!K19),COUNTRY_INFO!F19*0.5),IF(COUNTRY_INFO!K19=3,IF(COUNTRY_INFO!F19>MAX('T1'!M19,'T2'!K19),MAX('T1'!M19,'T2'!K19),COUNTRY_INFO!F19),0))) -> 0 | AE19: =IF(AND(COUNTRY_INFO!K19>0,COUNTRY_INFO!K19<4),IF(Z19>0,IF(COUNTRY_INFO!K19=1, AD19/(COUNTRY_INFO!F19*0.33)*100, IF(COUNTRY_INFO!K19=2, AD19/(COUNTRY_INFO!F19*0.5)*100, IF(COUNTRY_INFO!K19=3, AD19/COUNTRY_INFO!F19*100))),"-"),0) -> 0 | AF19: =IF(COUNTRY_INFO!K19=2,IF(COUNTRY_INFO!G19*0.2>MAX('T1'!N19,'T2'!L19),MAX('T1'!N19,'T2'!L19),COUNTRY_INFO!G19*0.2),IF(COUNTRY_INFO!K19=3,IF(COUNTRY_INFO!G19>MAX('T1'!N19,'T2'!L19),MAX('T1'!N19,'T2'!L19),COUNTRY_INFO!G19),0)) -> 0 | AG19: =IF(AND(COUNTRY_INFO!K19>0,COUNTRY_INFO!K19<4),IF(Z19>0,IF(COUNTRY_INFO!K19=1, 0, IF(COUNTRY_INFO!K19=2, AF19/(COUNTRY_INFO!G19*0.2)*100, IF(COUNTRY_INFO!K19=3, AF19/COUNTRY_INFO!G19*100))),"-"),0) -> 0 | AH19: 0 | AI19: =IF(AND(COUNTRY_INFO!K19>0,COUNTRY_INFO!K19<4), IF(AC19/Z19*100<>0, IF(AH19/Z19*100>100,100,AH19/Z19*100), "-"),0) -> - | AK19: =IF(AND(D19<>0, D19<>"Unknown",D19<>"Stopped",D19<>"Not required"),D19/COUNTRY_INFO!D19, 0) -> 0 | AL19: =IF(AND(J19<>0,J19<>"Unknown",J19<>"Stopped",J19<>"Not required"),J19/COUNTRY_INFO!D19, 0) -> 0 | AM19: =IF(AND(P19<>0,P19<>"Unknown",P19<>"Not required"),P19/(COUNTRY_INFO!E19+COUNTRY_INFO!F19), 0) -> 0 | AN19: =IF(AND(Z19<>0,Z19<>"Unknown",Z19<>"Not required"),IF(COUNTRY_INFO!K19=1,1,IF(COUNTRY_INFO!K19=2,0.5*COUNTRY_INFO!F19/(0.5*COUNTRY_INFO!F19+0.2*COUNTRY_INFO!G19),IF(COUNTRY_INFO!K19=3,COUNTRY_INFO!F19/(COUNTRY_INFO!F19+COUNTRY_INFO!G19)))),0) -> 1 | AO19: =IF(AND(Z19<>0,Z19<>"Unknown",Z19<>"Not required"),IF(COUNTRY_INFO!K19=1,0,IF(COUNTRY_INFO!K19=2,0.2*COUNTRY_INFO!G19/(0.5*COUNTRY_INFO!F19+0.2*COUNTRY_INFO!G19),IF(COUNTRY_INFO!K19=3,COUNTRY_INFO!G19/(COUNTRY_INFO!F19+COUNTRY_INFO!G19)))),0) -> 0 | AP19: =MAX(COUNTRY_INFO!D19*AK19*PROFILE!$G$7,COUNTRY_INFO!D19*AL19*PROFILE!$G$7) -> 0 | AQ19: =MAX(COUNTRY_INFO!D19*AK19*PROFILE!$G$8,COUNTRY_INFO!D19*AL19*PROFILE!$G$8,COUNTRY_INFO!D19*AM19*PROFILE!$G$8) -> 0 | AR19: =MAX(COUNTRY_INFO!D19*AK19*PROFILE!$G$9,COUNTRY_INFO!D19*AL19*PROFILE!$G$9,COUNTRY_INFO!D19*AM19*PROFILE!$G$9,IF(AND(DISTRICT!Z19<>"Unknown",Z19<>"Not required"),COUNTRY_INFO!O19*DISTRICT!AN19,0)) -> 1622.61 | AS19: =MAX(COUNTRY_INFO!D19*AK19*PROFILE!$G$10,COUNTRY_INFO!D19*AL19*PROFILE!$G$10,IF(AND(DISTRICT!Z19<>"Unknown",Z19<>"Not required"),COUNTRY_INFO!O19*DISTRICT!AO19,0)) -> 0 | AT19: 1622.61 | AU19: 0 | AV19: =MAX('MDA2'!J19,'T1'!L19,'T2'!J19,T3_R1!K19,T3_R2!K19) -> 0 | AW19: =MAX('MDA1'!K19,'MDA2'!K19,'MDA3'!I19,'MDA3'!L19,'T1'!M19,'T2'!K19,T3_R1!L19,T3_R2!L19) -> 4580 | AX19: =MAX('MDA1'!L19,'MDA2'!L19,'MDA3'!J19,'MDA3'!M19,'T1'!N19,'T2'!L19,T3_R1!M19,T3_R2!M19) -> 0 | AY19: 4580 | AZ19: =MAX('MDA2'!J19,T19) -> 0 | BA19: =MAX('MDA1'!K19,'MDA2'!K19,'MDA3'!I19,'MDA3'!L19,V19,AD19) -> 0 | BB19: =MAX('MDA1'!L19,'MDA2'!L19,'MDA3'!J19,'MDA3'!M19,AF19) -> 0 | BC19: 0 | BD19: 0
A20: =IF(COUNTRY_INFO!A20=0," ",COUNTRY_INFO!A20) -> ESWATINI | B20: =IF(COUNTRY_INFO!B20=0," ",COUNTRY_INFO!B20) -> HHOHHO | C20: =IF(COUNTRY_INFO!C20=0," ",COUNTRY_INFO!C20) -> Ntfonjeni | D20: =COUNTRY_INFO!L20 -> 0 | G20: =MAX('MDA1'!M20,'MDA2'!M20) -> 0 | H20: =IF(AND(COUNTRY_INFO!H20>0,COUNTRY_INFO!H20<4),IF(D20>MAX('MDA1'!M20,'MDA2'!M20),MAX('MDA1'!M20,'MDA2'!M20),D20),0) -> 0 | I20: =IF(AND(COUNTRY_INFO!H20>0,COUNTRY_INFO!H20<4), IF(G20/D20*100<>0, IF(G20/D20*100>100,100,G20/D20*100), "-"),0) -> 0 | J20: =COUNTRY_INFO!M20 -> 0 | M20: =MAX('MDA1'!M20,MAX('MDA3'!I20,'MDA3'!L20)+MAX('MDA3'!J20,'MDA3'!M20)) -> 0 | N20: =IF(AND(COUNTRY_INFO!I20>0,COUNTRY_INFO!I20<4),IF(J20>MAX('MDA1'!M20,MAX('MDA3'!I20,'MDA3'!L20)+MAX('MDA3'!J20,'MDA3'!M20)),MAX('MDA1'!M20,MAX('MDA3'!I20,'MDA3'!L20)+MAX('MDA3'!J20,'MDA3'!M20)),J20),0) -> 0 | O20: =IF(AND(COUNTRY_INFO!I20>0,COUNTRY_INFO!I20<4), IF(M20/J20*100<>0, IF(M20/J20*100>100,100,M20/J20*100), "-"),0) -> 0 | P20: =COUNTRY_INFO!N20 -> 0 | S20: =SUM(MAX('MDA2'!J20, 'T1'!L20, MAX(T3_R1!K20, T3_R2!K20)), MAX('MDA1'!K20, 'MDA2'!K20, 'T1'!M20, MAX(T3_R1!L20, T3_R2!L20)), MAX('MDA1'!L20, 'MDA2'!L20, 'T1'!N20, MAX(T3_R1!M20, T3_R2!M20))) -> 0 | T20: =IF(AND(COUNTRY_INFO!J20>1,COUNTRY_INFO!J20<4),IF(COUNTRY_INFO!E20>MAX('MDA2'!J20,'T1'!L20,MAX(T3_R1!K20,T3_R2!K20)),MAX('MDA2'!J20,'T1'!L20,MAX(T3_R1!K20,T3_R2!K20)),COUNTRY_INFO!E20),0) -> 0 | U20: =IF(AND(COUNTRY_INFO!J20>1,COUNTRY_INFO!J20<4), IF(T20/COUNTRY_INFO!E20*100<>0, IF(T20/COUNTRY_INFO!E20*100>100,100,T20/COUNTRY_INFO!E20*100), "-"),0) -> 0 | V20: =IF(AND(COUNTRY_INFO!J20>1,COUNTRY_INFO!J20<4),IF(COUNTRY_INFO!F20>MAX('MDA1'!K20,'MDA2'!K20,'T1'!M20,MAX(T3_R1!L20,T3_R2!L20)),MAX('MDA1'!K20,'MDA2'!K20,'T1'!M20,MAX(T3_R1!L20,T3_R2!L20)),COUNTRY_INFO!F20),0) -> 0 | W20: =IF(AND(COUNTRY_INFO!J20>1,COUNTRY_INFO!J20<4), IF(V20/COUNTRY_INFO!F20*100<>0, IF(V20/COUNTRY_INFO!F20*100>100,100,V20/COUNTRY_INFO!F20*100), "-"),0) -> 0 | X20: 0 | Y20: =IF(AND(COUNTRY_INFO!J20>1,COUNTRY_INFO!J20<4), IF(S20/P20*100<>0, IF(X20/P20*100>100,100,X20/P20*100), "-"),0) -> 0 | Z20: =COUNTRY_INFO!O20 -> 1761.21 | AC20: =MAX('T1'!L20,'T2'!J20)+MAX('T1'!M20,'T2'!K20)+MAX('T1'!N20,'T2'!L20) -> 0 | AD20: =IF(COUNTRY_INFO!K20=1,IF(COUNTRY_INFO!F20*0.33>MAX('T1'!M20,'T2'!K20),MAX('T1'!M20,'T2'!K20),COUNTRY_INFO!F20*0.33),IF(COUNTRY_INFO!K20=2,IF(COUNTRY_INFO!F20*0.5>MAX('T1'!M20,'T2'!K20),MAX('T1'!M20,'T2'!K20),COUNTRY_INFO!F20*0.5),IF(COUNTRY_INFO!K20=3,IF(COUNTRY_INFO!F20>MAX('T1'!M20,'T2'!K20),MAX('T1'!M20,'T2'!K20),COUNTRY_INFO!F20),0))) -> 0 | AE20: =IF(AND(COUNTRY_INFO!K20>0,COUNTRY_INFO!K20<4),IF(Z20>0,IF(COUNTRY_INFO!K20=1, AD20/(COUNTRY_INFO!F20*0.33)*100, IF(COUNTRY_INFO!K20=2, AD20/(COUNTRY_INFO!F20*0.5)*100, IF(COUNTRY_INFO!K20=3, AD20/COUNTRY_INFO!F20*100))),"-"),0) -> 0 | AF20: =IF(COUNTRY_INFO!K20=2,IF(COUNTRY_INFO!G20*0.2>MAX('T1'!N20,'T2'!L20),MAX('T1'!N20,'T2'!L20),COUNTRY_INFO!G20*0.2),IF(COUNTRY_INFO!K20=3,IF(COUNTRY_INFO!G20>MAX('T1'!N20,'T2'!L20),MAX('T1'!N20,'T2'!L20),COUNTRY_INFO!G20),0)) -> 0 | AG20: =IF(AND(COUNTRY_INFO!K20>0,COUNTRY_INFO!K20<4),IF(Z20>0,IF(COUNTRY_INFO!K20=1, 0, IF(COUNTRY_INFO!K20=2, AF20/(COUNTRY_INFO!G20*0.2)*100, IF(COUNTRY_INFO!K20=3, AF20/COUNTRY_INFO!G20*100))),"-"),0) -> 0 | AH20: 0 | AI20: =IF(AND(COUNTRY_INFO!K20>0,COUNTRY_INFO!K20<4), IF(AC20/Z20*100<>0, IF(AH20/Z20*100>100,100,AH20/Z20*100), "-"),0) -> - | AK20: =IF(AND(D20<>0, D20<>"Unknown",D20<>"Stopped",D20<>"Not required"),D20/COUNTRY_INFO!D20, 0) -> 0 | AL20: =IF(AND(J20<>0,J20<>"Unknown",J20<>"Stopped",J20<>"Not required"),J20/COUNTRY_INFO!D20, 0) -> 0 | AM20: =IF(AND(P20<>0,P20<>"Unknown",P20<>"Not required"),P20/(COUNTRY_INFO!E20+COUNTRY_INFO!F20), 0) -> 0 | AN20: =IF(AND(Z20<>0,Z20<>"Unknown",Z20<>"Not required"),IF(COUNTRY_INFO!K20=1,1,IF(COUNTRY_INFO!K20=2,0.5*COUNTRY_INFO!F20/(0.5*COUNTRY_INFO!F20+0.2*COUNTRY_INFO!G20),IF(COUNTRY_INFO!K20=3,COUNTRY_INFO!F20/(COUNTRY_INFO!F20+COUNTRY_INFO!G20)))),0) -> 1 | AO20: =IF(AND(Z20<>0,Z20<>"Unknown",Z20<>"Not required"),IF(COUNTRY_INFO!K20=1,0,IF(COUNTRY_INFO!K20=2,0.2*COUNTRY_INFO!G20/(0.5*COUNTRY_INFO!F20+0.2*COUNTRY_INFO!G20),IF(COUNTRY_INFO!K20=3,COUNTRY_INFO!G20/(COUNTRY_INFO!F20+COUNTRY_INFO!G20)))),0) -> 0 | AP20: =MAX(COUNTRY_INFO!D20*AK20*PROFILE!$G$7,COUNTRY_INFO!D20*AL20*PROFILE!$G$7) -> 0 | AQ20: =MAX(COUNTRY_INFO!D20*AK20*PROFILE!$G$8,COUNTRY_INFO!D20*AL20*PROFILE!$G$8,COUNTRY_INFO!D20*AM20*PROFILE!$G$8) -> 0 | AR20: =MAX(COUNTRY_INFO!D20*AK20*PROFILE!$G$9,COUNTRY_INFO!D20*AL20*PROFILE!$G$9,COUNTRY_INFO!D20*AM20*PROFILE!$G$9,IF(AND(DISTRICT!Z20<>"Unknown",Z20<>"Not required"),COUNTRY_INFO!O20*DISTRICT!AN20,0)) -> 1761.21 | AS20: =MAX(COUNTRY_INFO!D20*AK20*PROFILE!$G$10,COUNTRY_INFO!D20*AL20*PROFILE!$G$10,IF(AND(DISTRICT!Z20<>"Unknown",Z20<>"Not required"),COUNTRY_INFO!O20*DISTRICT!AO20,0)) -> 0 | AT20: 1761.21 | AU20: 0 | AV20: =MAX('MDA2'!J20,'T1'!L20,'T2'!J20,T3_R1!K20,T3_R2!K20) -> 0 | AW20: =MAX('MDA1'!K20,'MDA2'!K20,'MDA3'!I20,'MDA3'!L20,'T1'!M20,'T2'!K20,T3_R1!L20,T3_R2!L20) -> 0 | AX20: =MAX('MDA1'!L20,'MDA2'!L20,'MDA3'!J20,'MDA3'!M20,'T1'!N20,'T2'!L20,T3_R1!M20,T3_R2!M20) -> 0 | AY20: 0 | AZ20: =MAX('MDA2'!J20,T20) -> 0 | BA20: =MAX('MDA1'!K20,'MDA2'!K20,'MDA3'!I20,'MDA3'!L20,V20,AD20) -> 0 | BB20: =MAX('MDA1'!L20,'MDA2'!L20,'MDA3'!J20,'MDA3'!M20,AF20) -> 0 | BC20: 0 | BD20: 0
A21: =IF(COUNTRY_INFO!A21=0," ",COUNTRY_INFO!A21) -> ESWATINI | B21: =IF(COUNTRY_INFO!B21=0," ",COUNTRY_INFO!B21) -> HHOHHO | C21: =IF(COUNTRY_INFO!C21=0," ",COUNTRY_INFO!C21) -> Pigg's Peak | D21: =COUNTRY_INFO!L21 -> 0 | G21: =MAX('MDA1'!M21,'MDA2'!M21) -> 0 | H21: =IF(AND(COUNTRY_INFO!H21>0,COUNTRY_INFO!H21<4),IF(D21>MAX('MDA1'!M21,'MDA2'!M21),MAX('MDA1'!M21,'MDA2'!M21),D21),0) -> 0 | I21: =IF(AND(COUNTRY_INFO!H21>0,COUNTRY_INFO!H21<4), IF(G21/D21*100<>0, IF(G21/D21*100>100,100,G21/D21*100), "-"),0) -> 0 | J21: =COUNTRY_INFO!M21 -> 0 | M21: =MAX('MDA1'!M21,MAX('MDA3'!I21,'MDA3'!L21)+MAX('MDA3'!J21,'MDA3'!M21)) -> 0 | N21: =IF(AND(COUNTRY_INFO!I21>0,COUNTRY_INFO!I21<4),IF(J21>MAX('MDA1'!M21,MAX('MDA3'!I21,'MDA3'!L21)+MAX('MDA3'!J21,'MDA3'!M21)),MAX('MDA1'!M21,MAX('MDA3'!I21,'MDA3'!L21)+MAX('MDA3'!J21,'MDA3'!M21)),J21),0) -> 0 | O21: =IF(AND(COUNTRY_INFO!I21>0,COUNTRY_INFO!I21<4), IF(M21/J21*100<>0, IF(M21/J21*100>100,100,M21/J21*100), "-"),0) -> 0 | P21: =COUNTRY_INFO!N21 -> 0 | S21: =SUM(MAX('MDA2'!J21, 'T1'!L21, MAX(T3_R1!K21, T3_R2!K21)), MAX('MDA1'!K21, 'MDA2'!K21, 'T1'!M21, MAX(T3_R1!L21, T3_R2!L21)), MAX('MDA1'!L21, 'MDA2'!L21, 'T1'!N21, MAX(T3_R1!M21, T3_R2!M21))) -> 4323 | T21: =IF(AND(COUNTRY_INFO!J21>1,COUNTRY_INFO!J21<4),IF(COUNTRY_INFO!E21>MAX('MDA2'!J21,'T1'!L21,MAX(T3_R1!K21,T3_R2!K21)),MAX('MDA2'!J21,'T1'!L21,MAX(T3_R1!K21,T3_R2!K21)),COUNTRY_INFO!E21),0) -> 0 | U21: =IF(AND(COUNTRY_INFO!J21>1,COUNTRY_INFO!J21<4), IF(T21/COUNTRY_INFO!E21*100<>0, IF(T21/COUNTRY_INFO!E21*100>100,100,T21/COUNTRY_INFO!E21*100), "-"),0) -> 0 | V21: =IF(AND(COUNTRY_INFO!J21>1,COUNTRY_INFO!J21<4),IF(COUNTRY_INFO!F21>MAX('MDA1'!K21,'MDA2'!K21,'T1'!M21,MAX(T3_R1!L21,T3_R2!L21)),MAX('MDA1'!K21,'MDA2'!K21,'T1'!M21,MAX(T3_R1!L21,T3_R2!L21)),COUNTRY_INFO!F21),0) -> 0 | W21: =IF(AND(COUNTRY_INFO!J21>1,COUNTRY_INFO!J21<4), IF(V21/COUNTRY_INFO!F21*100<>0, IF(V21/COUNTRY_INFO!F21*100>100,100,V21/COUNTRY_INFO!F21*100), "-"),0) -> 0 | X21: 0 | Y21: =IF(AND(COUNTRY_INFO!J21>1,COUNTRY_INFO!J21<4), IF(S21/P21*100<>0, IF(X21/P21*100>100,100,X21/P21*100), "-"),0) -> 0 | Z21: =COUNTRY_INFO!O21 -> 4937.8 | AC21: =MAX('T1'!L21,'T2'!J21)+MAX('T1'!M21,'T2'!K21)+MAX('T1'!N21,'T2'!L21) -> 0 | AD21: =IF(COUNTRY_INFO!K21=1,IF(COUNTRY_INFO!F21*0.33>MAX('T1'!M21,'T2'!K21),MAX('T1'!M21,'T2'!K21),COUNTRY_INFO!F21*0.33),IF(COUNTRY_INFO!K21=2,IF(COUNTRY_INFO!F21*0.5>MAX('T1'!M21,'T2'!K21),MAX('T1'!M21,'T2'!K21),COUNTRY_INFO!F21*0.5),IF(COUNTRY_INFO!K21=3,IF(COUNTRY_INFO!F21>MAX('T1'!M21,'T2'!K21),MAX('T1'!M21,'T2'!K21),COUNTRY_INFO!F21),0))) -> 0 | AE21: =IF(AND(COUNTRY_INFO!K21>0,COUNTRY_INFO!K21<4),IF(Z21>0,IF(COUNTRY_INFO!K21=1, AD21/(COUNTRY_INFO!F21*0.33)*100, IF(COUNTRY_INFO!K21=2, AD21/(COUNTRY_INFO!F21*0.5)*100, IF(COUNTRY_INFO!K21=3, AD21/COUNTRY_INFO!F21*100))),"-"),0) -> 0 | AF21: =IF(COUNTRY_INFO!K21=2,IF(COUNTRY_INFO!G21*0.2>MAX('T1'!N21,'T2'!L21),MAX('T1'!N21,'T2'!L21),COUNTRY_INFO!G21*0.2),IF(COUNTRY_INFO!K21=3,IF(COUNTRY_INFO!G21>MAX('T1'!N21,'T2'!L21),MAX('T1'!N21,'T2'!L21),COUNTRY_INFO!G21),0)) -> 0 | AG21: =IF(AND(COUNTRY_INFO!K21>0,COUNTRY_INFO!K21<4),IF(Z21>0,IF(COUNTRY_INFO!K21=1, 0, IF(COUNTRY_INFO!K21=2, AF21/(COUNTRY_INFO!G21*0.2)*100, IF(COUNTRY_INFO!K21=3, AF21/COUNTRY_INFO!G21*100))),"-"),0) -> 0 | AH21: 0 | AI21: =IF(AND(COUNTRY_INFO!K21>0,COUNTRY_INFO!K21<4), IF(AC21/Z21*100<>0, IF(AH21/Z21*100>100,100,AH21/Z21*100), "-"),0) -> - | AK21: =IF(AND(D21<>0, D21<>"Unknown",D21<>"Stopped",D21<>"Not required"),D21/COUNTRY_INFO!D21, 0) -> 0 | AL21: =IF(AND(J21<>0,J21<>"Unknown",J21<>"Stopped",J21<>"Not required"),J21/COUNTRY_INFO!D21, 0) -> 0 | AM21: =IF(AND(P21<>0,P21<>"Unknown",P21<>"Not required"),P21/(COUNTRY_INFO!E21+COUNTRY_INFO!F21), 0) -> 0 | AN21: =IF(AND(Z21<>0,Z21<>"Unknown",Z21<>"Not required"),IF(COUNTRY_INFO!K21=1,1,IF(COUNTRY_INFO!K21=2,0.5*COUNTRY_INFO!F21/(0.5*COUNTRY_INFO!F21+0.2*COUNTRY_INFO!G21),IF(COUNTRY_INFO!K21=3,COUNTRY_INFO!F21/(COUNTRY_INFO!F21+COUNTRY_INFO!G21)))),0) -> 0.4791607599 | AO21: =IF(AND(Z21<>0,Z21<>"Unknown",Z21<>"Not required"),IF(COUNTRY_INFO!K21=1,0,IF(COUNTRY_INFO!K21=2,0.2*COUNTRY_INFO!G21/(0.5*COUNTRY_INFO!F21+0.2*COUNTRY_INFO!G21),IF(COUNTRY_INFO!K21=3,COUNTRY_INFO!G21/(COUNTRY_INFO!F21+COUNTRY_INFO!G21)))),0) -> 0.5208392401 | AP21: =MAX(COUNTRY_INFO!D21*AK21*PROFILE!$G$7,COUNTRY_INFO!D21*AL21*PROFILE!$G$7) -> 0 | AQ21: =MAX(COUNTRY_INFO!D21*AK21*PROFILE!$G$8,COUNTRY_INFO!D21*AL21*PROFILE!$G$8,COUNTRY_INFO!D21*AM21*PROFILE!$G$8) -> 0 | AR21: =MAX(COUNTRY_INFO!D21*AK21*PROFILE!$G$9,COUNTRY_INFO!D21*AL21*PROFILE!$G$9,COUNTRY_INFO!D21*AM21*PROFILE!$G$9,IF(AND(DISTRICT!Z21<>"Unknown",Z21<>"Not required"),COUNTRY_INFO!O21*DISTRICT!AN21,0)) -> 2366 | AS21: =MAX(COUNTRY_INFO!D21*AK21*PROFILE!$G$10,COUNTRY_INFO!D21*AL21*PROFILE!$G$10,IF(AND(DISTRICT!Z21<>"Unknown",Z21<>"Not required"),COUNTRY_INFO!O21*DISTRICT!AO21,0)) -> 2571.8 | AT21: 4937.8 | AU21: 0 | AV21: =MAX('MDA2'!J21,'T1'!L21,'T2'!J21,T3_R1!K21,T3_R2!K21) -> 0 | AW21: =MAX('MDA1'!K21,'MDA2'!K21,'MDA3'!I21,'MDA3'!L21,'T1'!M21,'T2'!K21,T3_R1!L21,T3_R2!L21) -> 4323 | AX21: =MAX('MDA1'!L21,'MDA2'!L21,'MDA3'!J21,'MDA3'!M21,'T1'!N21,'T2'!L21,T3_R1!M21,T3_R2!M21) -> 0 | AY21: 4323 | AZ21: =MAX('MDA2'!J21,T21) -> 0 | BA21: =MAX('MDA1'!K21,'MDA2'!K21,'MDA3'!I21,'MDA3'!L21,V21,AD21) -> 0 | BB21: =MAX('MDA1'!L21,'MDA2'!L21,'MDA3'!J21,'MDA3'!M21,AF21) -> 0 | BC21: 0 | BD21: 0
A22: =IF(COUNTRY_INFO!A22=0," ",COUNTRY_INFO!A22) -> ESWATINI | B22: =IF(COUNTRY_INFO!B22=0," ",COUNTRY_INFO!B22) -> HHOHHO | C22: =IF(COUNTRY_INFO!C22=0," ",COUNTRY_INFO!C22) -> Timphisini | D22: =COUNTRY_INFO!L22 -> 0 | G22: =MAX('MDA1'!M22,'MDA2'!M22) -> 0 | H22: =IF(AND(COUNTRY_INFO!H22>0,COUNTRY_INFO!H22<4),IF(D22>MAX('MDA1'!M22,'MDA2'!M22),MAX('MDA1'!M22,'MDA2'!M22),D22),0) -> 0 | I22: =IF(AND(COUNTRY_INFO!H22>0,COUNTRY_INFO!H22<4), IF(G22/D22*100<>0, IF(G22/D22*100>100,100,G22/D22*100), "-"),0) -> 0 | J22: =COUNTRY_INFO!M22 -> 0 | M22: =MAX('MDA1'!M22,MAX('MDA3'!I22,'MDA3'!L22)+MAX('MDA3'!J22,'MDA3'!M22)) -> 0 | N22: =IF(AND(COUNTRY_INFO!I22>0,COUNTRY_INFO!I22<4),IF(J22>MAX('MDA1'!M22,MAX('MDA3'!I22,'MDA3'!L22)+MAX('MDA3'!J22,'MDA3'!M22)),MAX('MDA1'!M22,MAX('MDA3'!I22,'MDA3'!L22)+MAX('MDA3'!J22,'MDA3'!M22)),J22),0) -> 0 | O22: =IF(AND(COUNTRY_INFO!I22>0,COUNTRY_INFO!I22<4), IF(M22/J22*100<>0, IF(M22/J22*100>100,100,M22/J22*100), "-"),0) -> 0 | P22: =COUNTRY_INFO!N22 -> 4292 | S22: =SUM(MAX('MDA2'!J22, 'T1'!L22, MAX(T3_R1!K22, T3_R2!K22)), MAX('MDA1'!K22, 'MDA2'!K22, 'T1'!M22, MAX(T3_R1!L22, T3_R2!L22)), MAX('MDA1'!L22, 'MDA2'!L22, 'T1'!N22, MAX(T3_R1!M22, T3_R2!M22))) -> 2156 | T22: =IF(AND(COUNTRY_INFO!J22>1,COUNTRY_INFO!J22<4),IF(COUNTRY_INFO!E22>MAX('MDA2'!J22,'T1'!L22,MAX(T3_R1!K22,T3_R2!K22)),MAX('MDA2'!J22,'T1'!L22,MAX(T3_R1!K22,T3_R2!K22)),COUNTRY_INFO!E22),0) -> 0 | U22: =IF(AND(COUNTRY_INFO!J22>1,COUNTRY_INFO!J22<4), IF(T22/COUNTRY_INFO!E22*100<>0, IF(T22/COUNTRY_INFO!E22*100>100,100,T22/COUNTRY_INFO!E22*100), "-"),0) -> - | V22: =IF(AND(COUNTRY_INFO!J22>1,COUNTRY_INFO!J22<4),IF(COUNTRY_INFO!F22>MAX('MDA1'!K22,'MDA2'!K22,'T1'!M22,MAX(T3_R1!L22,T3_R2!L22)),MAX('MDA1'!K22,'MDA2'!K22,'T1'!M22,MAX(T3_R1!L22,T3_R2!L22)),COUNTRY_INFO!F22),0) -> 2156 | W22: =IF(AND(COUNTRY_INFO!J22>1,COUNTRY_INFO!J22<4), IF(V22/COUNTRY_INFO!F22*100<>0, IF(V22/COUNTRY_INFO!F22*100>100,100,V22/COUNTRY_INFO!F22*100), "-"),0) -> 70.57283142 | X22: 2156 | Y22: =IF(AND(COUNTRY_INFO!J22>1,COUNTRY_INFO!J22<4), IF(S22/P22*100<>0, IF(X22/P22*100>100,100,X22/P22*100), "-"),0) -> 50.23299161 | Z22: =COUNTRY_INFO!O22 -> 3187.7 | AC22: =MAX('T1'!L22,'T2'!J22)+MAX('T1'!M22,'T2'!K22)+MAX('T1'!N22,'T2'!L22) -> 0 | AD22: =IF(COUNTRY_INFO!K22=1,IF(COUNTRY_INFO!F22*0.33>MAX('T1'!M22,'T2'!K22),MAX('T1'!M22,'T2'!K22),COUNTRY_INFO!F22*0.33),IF(COUNTRY_INFO!K22=2,IF(COUNTRY_INFO!F22*0.5>MAX('T1'!M22,'T2'!K22),MAX('T1'!M22,'T2'!K22),COUNTRY_INFO!F22*0.5),IF(COUNTRY_INFO!K22=3,IF(COUNTRY_INFO!F22>MAX('T1'!M22,'T2'!K22),MAX('T1'!M22,'T2'!K22),COUNTRY_INFO!F22),0))) -> 0 | AE22: =IF(AND(COUNTRY_INFO!K22>0,COUNTRY_INFO!K22<4),IF(Z22>0,IF(COUNTRY_INFO!K22=1, AD22/(COUNTRY_INFO!F22*0.33)*100, IF(COUNTRY_INFO!K22=2, AD22/(COUNTRY_INFO!F22*0.5)*100, IF(COUNTRY_INFO!K22=3, AD22/COUNTRY_INFO!F22*100))),"-"),0) -> 0 | AF22: =IF(COUNTRY_INFO!K22=2,IF(COUNTRY_INFO!G22*0.2>MAX('T1'!N22,'T2'!L22),MAX('T1'!N22,'T2'!L22),COUNTRY_INFO!G22*0.2),IF(COUNTRY_INFO!K22=3,IF(COUNTRY_INFO!G22>MAX('T1'!N22,'T2'!L22),MAX('T1'!N22,'T2'!L22),COUNTRY_INFO!G22),0)) -> 0 | AG22: =IF(AND(COUNTRY_INFO!K22>0,COUNTRY_INFO!K22<4),IF(Z22>0,IF(COUNTRY_INFO!K22=1, 0, IF(COUNTRY_INFO!K22=2, AF22/(COUNTRY_INFO!G22*0.2)*100, IF(COUNTRY_INFO!K22=3, AF22/COUNTRY_INFO!G22*100))),"-"),0) -> 0 | AH22: 0 | AI22: =IF(AND(COUNTRY_INFO!K22>0,COUNTRY_INFO!K22<4), IF(AC22/Z22*100<>0, IF(AH22/Z22*100>100,100,AH22/Z22*100), "-"),0) -> - | AK22: =IF(AND(D22<>0, D22<>"Unknown",D22<>"Stopped",D22<>"Not required"),D22/COUNTRY_INFO!D22, 0) -> 0 | AL22: =IF(AND(J22<>0,J22<>"Unknown",J22<>"Stopped",J22<>"Not required"),J22/COUNTRY_INFO!D22, 0) -> 0 | AM22: =IF(AND(P22<>0,P22<>"Unknown",P22<>"Not required"),P22/(COUNTRY_INFO!E22+COUNTRY_INFO!F22), 0) -> 1 | AN22: =IF(AND(Z22<>0,Z22<>"Unknown",Z22<>"Not required"),IF(COUNTRY_INFO!K22=1,1,IF(COUNTRY_INFO!K22=2,0.5*COUNTRY_INFO!F22/(0.5*COUNTRY_INFO!F22+0.2*COUNTRY_INFO!G22),IF(COUNTRY_INFO!K22=3,COUNTRY_INFO!F22/(COUNTRY_INFO!F22+COUNTRY_INFO!G22)))),0) -> 0.4791856197 | AO22: =IF(AND(Z22<>0,Z22<>"Unknown",Z22<>"Not required"),IF(COUNTRY_INFO!K22=1,0,IF(COUNTRY_INFO!K22=2,0.2*COUNTRY_INFO!G22/(0.5*COUNTRY_INFO!F22+0.2*COUNTRY_INFO!G22),IF(COUNTRY_INFO!K22=3,COUNTRY_INFO!G22/(COUNTRY_INFO!F22+COUNTRY_INFO!G22)))),0) -> 0.5208143803 | AP22: =MAX(COUNTRY_INFO!D22*AK22*PROFILE!$G$7,COUNTRY_INFO!D22*AL22*PROFILE!$G$7) -> 0 | AQ22: =MAX(COUNTRY_INFO!D22*AK22*PROFILE!$G$8,COUNTRY_INFO!D22*AL22*PROFILE!$G$8,COUNTRY_INFO!D22*AM22*PROFILE!$G$8) -> 1237.449116 | AR22: =MAX(COUNTRY_INFO!D22*AK22*PROFILE!$G$9,COUNTRY_INFO!D22*AL22*PROFILE!$G$9,COUNTRY_INFO!D22*AM22*PROFILE!$G$9,IF(AND(DISTRICT!Z22<>"Unknown",Z22<>"Not required"),COUNTRY_INFO!O22*DISTRICT!AN22,0)) -> 3054.92707 | AS22: =MAX(COUNTRY_INFO!D22*AK22*PROFILE!$G$10,COUNTRY_INFO!D22*AL22*PROFILE!$G$10,IF(AND(DISTRICT!Z22<>"Unknown",Z22<>"Not required"),COUNTRY_INFO!O22*DISTRICT!AO22,0)) -> 1660.2 | AT22: 5952.576186 | AU22: 0 | AV22: =MAX('MDA2'!J22,'T1'!L22,'T2'!J22,T3_R1!K22,T3_R2!K22) -> 0 | AW22: =MAX('MDA1'!K22,'MDA2'!K22,'MDA3'!I22,'MDA3'!L22,'T1'!M22,'T2'!K22,T3_R1!L22,T3_R2!L22) -> 2156 | AX22: =MAX('MDA1'!L22,'MDA2'!L22,'MDA3'!J22,'MDA3'!M22,'T1'!N22,'T2'!L22,T3_R1!M22,T3_R2!M22) -> 0 | AY22: 2156 | AZ22: =MAX('MDA2'!J22,T22) -> 0 | BA22: =MAX('MDA1'!K22,'MDA2'!K22,'MDA3'!I22,'MDA3'!L22,V22,AD22) -> 2156 | BB22: =MAX('MDA1'!L22,'MDA2'!L22,'MDA3'!J22,'MDA3'!M22,AF22) -> 0 | BC22: 2156 | BD22: 36.21961203
A23: =IF(COUNTRY_INFO!A23=0," ",COUNTRY_INFO!A23) -> ESWATINI | B23: =IF(COUNTRY_INFO!B23=0," ",COUNTRY_INFO!B23) -> LUBOMBO | C23: =IF(COUNTRY_INFO!C23=0," ",COUNTRY_INFO!C23) -> Dvokodvweni | D23: =COUNTRY_INFO!L23 -> 0 | G23: =MAX('MDA1'!M23,'MDA2'!M23) -> 0 | H23: =IF(AND(COUNTRY_INFO!H23>0,COUNTRY_INFO!H23<4),IF(D23>MAX('MDA1'!M23,'MDA2'!M23),MAX('MDA1'!M23,'MDA2'!M23),D23),0) -> 0 | I23: =IF(AND(COUNTRY_INFO!H23>0,COUNTRY_INFO!H23<4), IF(G23/D23*100<>0, IF(G23/D23*100>100,100,G23/D23*100), "-"),0) -> 0 | J23: =COUNTRY_INFO!M23 -> 0 | M23: =MAX('MDA1'!M23,MAX('MDA3'!I23,'MDA3'!L23)+MAX('MDA3'!J23,'MDA3'!M23)) -> 0 | N23: =IF(AND(COUNTRY_INFO!I23>0,COUNTRY_INFO!I23<4),IF(J23>MAX('MDA1'!M23,MAX('MDA3'!I23,'MDA3'!L23)+MAX('MDA3'!J23,'MDA3'!M23)),MAX('MDA1'!M23,MAX('MDA3'!I23,'MDA3'!L23)+MAX('MDA3'!J23,'MDA3'!M23)),J23),0) -> 0 | O23: =IF(AND(COUNTRY_INFO!I23>0,COUNTRY_INFO!I23<4), IF(M23/J23*100<>0, IF(M23/J23*100>100,100,M23/J23*100), "-"),0) -> 0 | P23: =COUNTRY_INFO!N23 -> 0 | S23: =SUM(MAX('MDA2'!J23, 'T1'!L23, MAX(T3_R1!K23, T3_R2!K23)), MAX('MDA1'!K23, 'MDA2'!K23, 'T1'!M23, MAX(T3_R1!L23, T3_R2!L23)), MAX('MDA1'!L23, 'MDA2'!L23, 'T1'!N23, MAX(T3_R1!M23, T3_R2!M23))) -> 4724 | T23: =IF(AND(COUNTRY_INFO!J23>1,COUNTRY_INFO!J23<4),IF(COUNTRY_INFO!E23>MAX('MDA2'!J23,'T1'!L23,MAX(T3_R1!K23,T3_R2!K23)),MAX('MDA2'!J23,'T1'!L23,MAX(T3_R1!K23,T3_R2!K23)),COUNTRY_INFO!E23),0) -> 0 | U23: =IF(AND(COUNTRY_INFO!J23>1,COUNTRY_INFO!J23<4), IF(T23/COUNTRY_INFO!E23*100<>0, IF(T23/COUNTRY_INFO!E23*100>100,100,T23/COUNTRY_INFO!E23*100), "-"),0) -> 0 | V23: =IF(AND(COUNTRY_INFO!J23>1,COUNTRY_INFO!J23<4),IF(COUNTRY_INFO!F23>MAX('MDA1'!K23,'MDA2'!K23,'T1'!M23,MAX(T3_R1!L23,T3_R2!L23)),MAX('MDA1'!K23,'MDA2'!K23,'T1'!M23,MAX(T3_R1!L23,T3_R2!L23)),COUNTRY_INFO!F23),0) -> 0 | W23: =IF(AND(COUNTRY_INFO!J23>1,COUNTRY_INFO!J23<4), IF(V23/COUNTRY_INFO!F23*100<>0, IF(V23/COUNTRY_INFO!F23*100>100,100,V23/COUNTRY_INFO!F23*100), "-"),0) -> 0 | X23: 0 | Y23: =IF(AND(COUNTRY_INFO!J23>1,COUNTRY_INFO!J23<4), IF(S23/P23*100<>0, IF(X23/P23*100>100,100,X23/P23*100), "-"),0) -> 0 | Z23: =COUNTRY_INFO!O23 -> 1653.3 | AC23: =MAX('T1'!L23,'T2'!J23)+MAX('T1'!M23,'T2'!K23)+MAX('T1'!N23,'T2'!L23) -> 0 | AD23: =IF(COUNTRY_INFO!K23=1,IF(COUNTRY_INFO!F23*0.33>MAX('T1'!M23,'T2'!K23),MAX('T1'!M23,'T2'!K23),COUNTRY_INFO!F23*0.33),IF(COUNTRY_INFO!K23=2,IF(COUNTRY_INFO!F23*0.5>MAX('T1'!M23,'T2'!K23),MAX('T1'!M23,'T2'!K23),COUNTRY_INFO!F23*0.5),IF(COUNTRY_INFO!K23=3,IF(COUNTRY_INFO!F23>MAX('T1'!M23,'T2'!K23),MAX('T1'!M23,'T2'!K23),COUNTRY_INFO!F23),0))) -> 0 | AE23: =IF(AND(COUNTRY_INFO!K23>0,COUNTRY_INFO!K23<4),IF(Z23>0,IF(COUNTRY_INFO!K23=1, AD23/(COUNTRY_INFO!F23*0.33)*100, IF(COUNTRY_INFO!K23=2, AD23/(COUNTRY_INFO!F23*0.5)*100, IF(COUNTRY_INFO!K23=3, AD23/COUNTRY_INFO!F23*100))),"-"),0) -> 0 | AF23: =IF(COUNTRY_INFO!K23=2,IF(COUNTRY_INFO!G23*0.2>MAX('T1'!N23,'T2'!L23),MAX('T1'!N23,'T2'!L23),COUNTRY_INFO!G23*0.2),IF(COUNTRY_INFO!K23=3,IF(COUNTRY_INFO!G23>MAX('T1'!N23,'T2'!L23),MAX('T1'!N23,'T2'!L23),COUNTRY_INFO!G23),0)) -> 0 | AG23: =IF(AND(COUNTRY_INFO!K23>0,COUNTRY_INFO!K23<4),IF(Z23>0,IF(COUNTRY_INFO!K23=1, 0, IF(COUNTRY_INFO!K23=2, AF23/(COUNTRY_INFO!G23*0.2)*100, IF(COUNTRY_INFO!K23=3, AF23/COUNTRY_INFO!G23*100))),"-"),0) -> 0 | AH23: 0 | AI23: =IF(AND(COUNTRY_INFO!K23>0,COUNTRY_INFO!K23<4), IF(AC23/Z23*100<>0, IF(AH23/Z23*100>100,100,AH23/Z23*100), "-"),0) -> - | AK23: =IF(AND(D23<>0, D23<>"Unknown",D23<>"Stopped",D23<>"Not required"),D23/COUNTRY_INFO!D23, 0) -> 0 | AL23: =IF(AND(J23<>0,J23<>"Unknown",J23<>"Stopped",J23<>"Not required"),J23/COUNTRY_INFO!D23, 0) -> 0 | AM23: =IF(AND(P23<>0,P23<>"Unknown",P23<>"Not required"),P23/(COUNTRY_INFO!E23+COUNTRY_INFO!F23), 0) -> 0 | AN23: =IF(AND(Z23<>0,Z23<>"Unknown",Z23<>"Not required"),IF(COUNTRY_INFO!K23=1,1,IF(COUNTRY_INFO!K23=2,0.5*COUNTRY_INFO!F23/(0.5*COUNTRY_INFO!F23+0.2*COUNTRY_INFO!G23),IF(COUNTRY_INFO!K23=3,COUNTRY_INFO!F23/(COUNTRY_INFO!F23+COUNTRY_INFO!G23)))),0) -> 1 | AO23: =IF(AND(Z23<>0,Z23<>"Unknown",Z23<>"Not required"),IF(COUNTRY_INFO!K23=1,0,IF(COUNTRY_INFO!K23=2,0.2*COUNTRY_INFO!G23/(0.5*COUNTRY_INFO!F23+0.2*COUNTRY_INFO!G23),IF(COUNTRY_INFO!K23=3,COUNTRY_INFO!G23/(COUNTRY_INFO!F23+COUNTRY_INFO!G23)))),0) -> 0 | AP23: =MAX(COUNTRY_INFO!D23*AK23*PROFILE!$G$7,COUNTRY_INFO!D23*AL23*PROFILE!$G$7) -> 0 | AQ23: =MAX(COUNTRY_INFO!D23*AK23*PROFILE!$G$8,COUNTRY_INFO!D23*AL23*PROFILE!$G$8,COUNTRY_INFO!D23*AM23*PROFILE!$G$8) -> 0 | AR23: =MAX(COUNTRY_INFO!D23*AK23*PROFILE!$G$9,COUNTRY_INFO!D23*AL23*PROFILE!$G$9,COUNTRY_INFO!D23*AM23*PROFILE!$G$9,IF(AND(DISTRICT!Z23<>"Unknown",Z23<>"Not required"),COUNTRY_INFO!O23*DISTRICT!AN23,0)) -> 1653.3 | AS23: =MAX(COUNTRY_INFO!D23*AK23*PROFILE!$G$10,COUNTRY_INFO!D23*AL23*PROFILE!$G$10,IF(AND(DISTRICT!Z23<>"Unknown",Z23<>"Not required"),COUNTRY_INFO!O23*DISTRICT!AO23,0)) -> 0 | AT23: 1653.3 | AU23: 0 | AV23: =MAX('MDA2'!J23,'T1'!L23,'T2'!J23,T3_R1!K23,T3_R2!K23) -> 0 | AW23: =MAX('MDA1'!K23,'MDA2'!K23,'MDA3'!I23,'MDA3'!L23,'T1'!M23,'T2'!K23,T3_R1!L23,T3_R2!L23) -> 4724 | AX23: =MAX('MDA1'!L23,'MDA2'!L23,'MDA3'!J23,'MDA3'!M23,'T1'!N23,'T2'!L23,T3_R1!M23,T3_R2!M23) -> 0 | AY23: 4724 | AZ23: =MAX('MDA2'!J23,T23) -> 0 | BA23: =MAX('MDA1'!K23,'MDA2'!K23,'MDA3'!I23,'MDA3'!L23,V23,AD23) -> 0 | BB23: =MAX('MDA1'!L23,'MDA2'!L23,'MDA3'!J23,'MDA3'!M23,AF23) -> 0 | BC23: 0 | BD23: 0
A24: =IF(COUNTRY_INFO!A24=0," ",COUNTRY_INFO!A24) -> ESWATINI | B24: =IF(COUNTRY_INFO!B24=0," ",COUNTRY_INFO!B24) -> LUBOMBO | C24: =IF(COUNTRY_INFO!C24=0," ",COUNTRY_INFO!C24) -> Hlane | D24: =COUNTRY_INFO!L24 -> 0 | G24: =MAX('MDA1'!M24,'MDA2'!M24) -> 0 | H24: =IF(AND(COUNTRY_INFO!H24>0,COUNTRY_INFO!H24<4),IF(D24>MAX('MDA1'!M24,'MDA2'!M24),MAX('MDA1'!M24,'MDA2'!M24),D24),0) -> 0 | I24: =IF(AND(COUNTRY_INFO!H24>0,COUNTRY_INFO!H24<4), IF(G24/D24*100<>0, IF(G24/D24*100>100,100,G24/D24*100), "-"),0) -> 0 | J24: =COUNTRY_INFO!M24 -> 0 | M24: =MAX('MDA1'!M24,MAX('MDA3'!I24,'MDA3'!L24)+MAX('MDA3'!J24,'MDA3'!M24)) -> 0 | N24: =IF(AND(COUNTRY_INFO!I24>0,COUNTRY_INFO!I24<4),IF(J24>MAX('MDA1'!M24,MAX('MDA3'!I24,'MDA3'!L24)+MAX('MDA3'!J24,'MDA3'!M24)),MAX('MDA1'!M24,MAX('MDA3'!I24,'MDA3'!L24)+MAX('MDA3'!J24,'MDA3'!M24)),J24),0) -> 0 | O24: =IF(AND(COUNTRY_INFO!I24>0,COUNTRY_INFO!I24<4), IF(M24/J24*100<>0, IF(M24/J24*100>100,100,M24/J24*100), "-"),0) -> 0 | P24: =COUNTRY_INFO!N24 -> 0 | S24: =SUM(MAX('MDA2'!J24, 'T1'!L24, MAX(T3_R1!K24, T3_R2!K24)), MAX('MDA1'!K24, 'MDA2'!K24, 'T1'!M24, MAX(T3_R1!L24, T3_R2!L24)), MAX('MDA1'!L24, 'MDA2'!L24, 'T1'!N24, MAX(T3_R1!M24, T3_R2!M24))) -> 1500 | T24: =IF(AND(COUNTRY_INFO!J24>1,COUNTRY_INFO!J24<4),IF(COUNTRY_INFO!E24>MAX('MDA2'!J24,'T1'!L24,MAX(T3_R1!K24,T3_R2!K24)),MAX('MDA2'!J24,'T1'!L24,MAX(T3_R1!K24,T3_R2!K24)),COUNTRY_INFO!E24),0) -> 0 | U24: =IF(AND(COUNTRY_INFO!J24>1,COUNTRY_INFO!J24<4), IF(T24/COUNTRY_INFO!E24*100<>0, IF(T24/COUNTRY_INFO!E24*100>100,100,T24/COUNTRY_INFO!E24*100), "-"),0) -> 0 | V24: =IF(AND(COUNTRY_INFO!J24>1,COUNTRY_INFO!J24<4),IF(COUNTRY_INFO!F24>MAX('MDA1'!K24,'MDA2'!K24,'T1'!M24,MAX(T3_R1!L24,T3_R2!L24)),MAX('MDA1'!K24,'MDA2'!K24,'T1'!M24,MAX(T3_R1!L24,T3_R2!L24)),COUNTRY_INFO!F24),0) -> 0 | W24: =IF(AND(COUNTRY_INFO!J24>1,COUNTRY_INFO!J24<4), IF(V24/COUNTRY_INFO!F24*100<>0, IF(V24/COUNTRY_INFO!F24*100>100,100,V24/COUNTRY_INFO!F24*100), "-"),0) -> 0 | X24: 0 | Y24: =IF(AND(COUNTRY_INFO!J24>1,COUNTRY_INFO!J24<4), IF(S24/P24*100<>0, IF(X24/P24*100>100,100,X24/P24*100), "-"),0) -> 0 | Z24: =COUNTRY_INFO!O24 -> 1607 | AC24: =MAX('T1'!L24,'T2'!J24)+MAX('T1'!M24,'T2'!K24)+MAX('T1'!N24,'T2'!L24) -> 0 | AD24: =IF(COUNTRY_INFO!K24=1,IF(COUNTRY_INFO!F24*0.33>MAX('T1'!M24,'T2'!K24),MAX('T1'!M24,'T2'!K24),COUNTRY_INFO!F24*0.33),IF(COUNTRY_INFO!K24=2,IF(COUNTRY_INFO!F24*0.5>MAX('T1'!M24,'T2'!K24),MAX('T1'!M24,'T2'!K24),COUNTRY_INFO!F24*0.5),IF(COUNTRY_INFO!K24=3,IF(COUNTRY_INFO!F24>MAX('T1'!M24,'T2'!K24),MAX('T1'!M24,'T2'!K24),COUNTRY_INFO!F24),0))) -> 0 | AE24: =IF(AND(COUNTRY_INFO!K24>0,COUNTRY_INFO!K24<4),IF(Z24>0,IF(COUNTRY_INFO!K24=1, AD24/(COUNTRY_INFO!F24*0.33)*100, IF(COUNTRY_INFO!K24=2, AD24/(COUNTRY_INFO!F24*0.5)*100, IF(COUNTRY_INFO!K24=3, AD24/COUNTRY_INFO!F24*100))),"-"),0) -> 0 | AF24: =IF(COUNTRY_INFO!K24=2,IF(COUNTRY_INFO!G24*0.2>MAX('T1'!N24,'T2'!L24),MAX('T1'!N24,'T2'!L24),COUNTRY_INFO!G24*0.2),IF(COUNTRY_INFO!K24=3,IF(COUNTRY_INFO!G24>MAX('T1'!N24,'T2'!L24),MAX('T1'!N24,'T2'!L24),COUNTRY_INFO!G24),0)) -> 0 | AG24: =IF(AND(COUNTRY_INFO!K24>0,COUNTRY_INFO!K24<4),IF(Z24>0,IF(COUNTRY_INFO!K24=1, 0, IF(COUNTRY_INFO!K24=2, AF24/(COUNTRY_INFO!G24*0.2)*100, IF(COUNTRY_INFO!K24=3, AF24/COUNTRY_INFO!G24*100))),"-"),0) -> 0 | AH24: 0 | AI24: =IF(AND(COUNTRY_INFO!K24>0,COUNTRY_INFO!K24<4), IF(AC24/Z24*100<>0, IF(AH24/Z24*100>100,100,AH24/Z24*100), "-"),0) -> - | AK24: =IF(AND(D24<>0, D24<>"Unknown",D24<>"Stopped",D24<>"Not required"),D24/COUNTRY_INFO!D24, 0) -> 0 | AL24: =IF(AND(J24<>0,J24<>"Unknown",J24<>"Stopped",J24<>"Not required"),J24/COUNTRY_INFO!D24, 0) -> 0 | AM24: =IF(AND(P24<>0,P24<>"Unknown",P24<>"Not required"),P24/(COUNTRY_INFO!E24+COUNTRY_INFO!F24), 0) -> 0 | AN24: =IF(AND(Z24<>0,Z24<>"Unknown",Z24<>"Not required"),IF(COUNTRY_INFO!K24=1,1,IF(COUNTRY_INFO!K24=2,0.5*COUNTRY_INFO!F24/(0.5*COUNTRY_INFO!F24+0.2*COUNTRY_INFO!G24),IF(COUNTRY_INFO!K24=3,COUNTRY_INFO!F24/(COUNTRY_INFO!F24+COUNTRY_INFO!G24)))),0) -> 0.4791537026 | AO24: =IF(AND(Z24<>0,Z24<>"Unknown",Z24<>"Not required"),IF(COUNTRY_INFO!K24=1,0,IF(COUNTRY_INFO!K24=2,0.2*COUNTRY_INFO!G24/(0.5*COUNTRY_INFO!F24+0.2*COUNTRY_INFO!G24),IF(COUNTRY_INFO!K24=3,COUNTRY_INFO!G24/(COUNTRY_INFO!F24+COUNTRY_INFO!G24)))),0) -> 0.5208462974 | AP24: =MAX(COUNTRY_INFO!D24*AK24*PROFILE!$G$7,COUNTRY_INFO!D24*AL24*PROFILE!$G$7) -> 0 | AQ24: =MAX(COUNTRY_INFO!D24*AK24*PROFILE!$G$8,COUNTRY_INFO!D24*AL24*PROFILE!$G$8,COUNTRY_INFO!D24*AM24*PROFILE!$G$8) -> 0 | AR24: =MAX(COUNTRY_INFO!D24*AK24*PROFILE!$G$9,COUNTRY_INFO!D24*AL24*PROFILE!$G$9,COUNTRY_INFO!D24*AM24*PROFILE!$G$9,IF(AND(DISTRICT!Z24<>"Unknown",Z24<>"Not required"),COUNTRY_INFO!O24*DISTRICT!AN24,0)) -> 770 | AS24: =MAX(COUNTRY_INFO!D24*AK24*PROFILE!$G$10,COUNTRY_INFO!D24*AL24*PROFILE!$G$10,IF(AND(DISTRICT!Z24<>"Unknown",Z24<>"Not required"),COUNTRY_INFO!O24*DISTRICT!AO24,0)) -> 837 | AT24: 1607 | AU24: 0 | AV24: =MAX('MDA2'!J24,'T1'!L24,'T2'!J24,T3_R1!K24,T3_R2!K24) -> 0 | AW24: =MAX('MDA1'!K24,'MDA2'!K24,'MDA3'!I24,'MDA3'!L24,'T1'!M24,'T2'!K24,T3_R1!L24,T3_R2!L24) -> 1500 | AX24: =MAX('MDA1'!L24,'MDA2'!L24,'MDA3'!J24,'MDA3'!M24,'T1'!N24,'T2'!L24,T3_R1!M24,T3_R2!M24) -> 0 | AY24: 1500 | AZ24: =MAX('MDA2'!J24,T24) -> 0 | BA24: =MAX('MDA1'!K24,'MDA2'!K24,'MDA3'!I24,'MDA3'!L24,V24,AD24) -> 0 | BB24: =MAX('MDA1'!L24,'MDA2'!L24,'MDA3'!J24,'MDA3'!M24,AF24) -> 0 | BC24: 0 | BD24: 0
A25: =IF(COUNTRY_INFO!A25=0," ",COUNTRY_INFO!A25) -> ESWATINI | B25: =IF(COUNTRY_INFO!B25=0," ",COUNTRY_INFO!B25) -> LUBOMBO | C25: =IF(COUNTRY_INFO!C25=0," ",COUNTRY_INFO!C25) -> Lomahasha | D25: =COUNTRY_INFO!L25 -> 0 | G25: =MAX('MDA1'!M25,'MDA2'!M25) -> 0 | H25: =IF(AND(COUNTRY_INFO!H25>0,COUNTRY_INFO!H25<4),IF(D25>MAX('MDA1'!M25,'MDA2'!M25),MAX('MDA1'!M25,'MDA2'!M25),D25),0) -> 0 | I25: =IF(AND(COUNTRY_INFO!H25>0,COUNTRY_INFO!H25<4), IF(G25/D25*100<>0, IF(G25/D25*100>100,100,G25/D25*100), "-"),0) -> 0 | J25: =COUNTRY_INFO!M25 -> 0 | M25: =MAX('MDA1'!M25,MAX('MDA3'!I25,'MDA3'!L25)+MAX('MDA3'!J25,'MDA3'!M25)) -> 0 | N25: =IF(AND(COUNTRY_INFO!I25>0,COUNTRY_INFO!I25<4),IF(J25>MAX('MDA1'!M25,MAX('MDA3'!I25,'MDA3'!L25)+MAX('MDA3'!J25,'MDA3'!M25)),MAX('MDA1'!M25,MAX('MDA3'!I25,'MDA3'!L25)+MAX('MDA3'!J25,'MDA3'!M25)),J25),0) -> 0 | O25: =IF(AND(COUNTRY_INFO!I25>0,COUNTRY_INFO!I25<4), IF(M25/J25*100<>0, IF(M25/J25*100>100,100,M25/J25*100), "-"),0) -> 0 | P25: =COUNTRY_INFO!N25 -> 0 | S25: =SUM(MAX('MDA2'!J25, 'T1'!L25, MAX(T3_R1!K25, T3_R2!K25)), MAX('MDA1'!K25, 'MDA2'!K25, 'T1'!M25, MAX(T3_R1!L25, T3_R2!L25)), MAX('MDA1'!L25, 'MDA2'!L25, 'T1'!N25, MAX(T3_R1!M25, T3_R2!M25))) -> 0 | T25: =IF(AND(COUNTRY_INFO!J25>1,COUNTRY_INFO!J25<4),IF(COUNTRY_INFO!E25>MAX('MDA2'!J25,'T1'!L25,MAX(T3_R1!K25,T3_R2!K25)),MAX('MDA2'!J25,'T1'!L25,MAX(T3_R1!K25,T3_R2!K25)),COUNTRY_INFO!E25),0) -> 0 | U25: =IF(AND(COUNTRY_INFO!J25>1,COUNTRY_INFO!J25<4), IF(T25/COUNTRY_INFO!E25*100<>0, IF(T25/COUNTRY_INFO!E25*100>100,100,T25/COUNTRY_INFO!E25*100), "-"),0) -> 0 | V25: =IF(AND(COUNTRY_INFO!J25>1,COUNTRY_INFO!J25<4),IF(COUNTRY_INFO!F25>MAX('MDA1'!K25,'MDA2'!K25,'T1'!M25,MAX(T3_R1!L25,T3_R2!L25)),MAX('MDA1'!K25,'MDA2'!K25,'T1'!M25,MAX(T3_R1!L25,T3_R2!L25)),COUNTRY_INFO!F25),0) -> 0 | W25: =IF(AND(COUNTRY_INFO!J25>1,COUNTRY_INFO!J25<4), IF(V25/COUNTRY_INFO!F25*100<>0, IF(V25/COUNTRY_INFO!F25*100>100,100,V25/COUNTRY_INFO!F25*100), "-"),0) -> 0 | X25: 0 | Y25: =IF(AND(COUNTRY_INFO!J25>1,COUNTRY_INFO!J25<4), IF(S25/P25*100<>0, IF(X25/P25*100>100,100,X25/P25*100), "-"),0) -> 0 | Z25: =COUNTRY_INFO!O25 -> 5557.2 | AC25: =MAX('T1'!L25,'T2'!J25)+MAX('T1'!M25,'T2'!K25)+MAX('T1'!N25,'T2'!L25) -> 0 | AD25: =IF(COUNTRY_INFO!K25=1,IF(COUNTRY_INFO!F25*0.33>MAX('T1'!M25,'T2'!K25),MAX('T1'!M25,'T2'!K25),COUNTRY_INFO!F25*0.33),IF(COUNTRY_INFO!K25=2,IF(COUNTRY_INFO!F25*0.5>MAX('T1'!M25,'T2'!K25),MAX('T1'!M25,'T2'!K25),COUNTRY_INFO!F25*0.5),IF(COUNTRY_INFO!K25=3,IF(COUNTRY_INFO!F25>MAX('T1'!M25,'T2'!K25),MAX('T1'!M25,'T2'!K25),COUNTRY_INFO!F25),0))) -> 0 | AE25: =IF(AND(COUNTRY_INFO!K25>0,COUNTRY_INFO!K25<4),IF(Z25>0,IF(COUNTRY_INFO!K25=1, AD25/(COUNTRY_INFO!F25*0.33)*100, IF(COUNTRY_INFO!K25=2, AD25/(COUNTRY_INFO!F25*0.5)*100, IF(COUNTRY_INFO!K25=3, AD25/COUNTRY_INFO!F25*100))),"-"),0) -> 0 | AF25: =IF(COUNTRY_INFO!K25=2,IF(COUNTRY_INFO!G25*0.2>MAX('T1'!N25,'T2'!L25),MAX('T1'!N25,'T2'!L25),COUNTRY_INFO!G25*0.2),IF(COUNTRY_INFO!K25=3,IF(COUNTRY_INFO!G25>MAX('T1'!N25,'T2'!L25),MAX('T1'!N25,'T2'!L25),COUNTRY_INFO!G25),0)) -> 0 | AG25: =IF(AND(COUNTRY_INFO!K25>0,COUNTRY_INFO!K25<4),IF(Z25>0,IF(COUNTRY_INFO!K25=1, 0, IF(COUNTRY_INFO!K25=2, AF25/(COUNTRY_INFO!G25*0.2)*100, IF(COUNTRY_INFO!K25=3, AF25/COUNTRY_INFO!G25*100))),"-"),0) -> 0 | AH25: 0 | AI25: =IF(AND(COUNTRY_INFO!K25>0,COUNTRY_INFO!K25<4), IF(AC25/Z25*100<>0, IF(AH25/Z25*100>100,100,AH25/Z25*100), "-"),0) -> - | AK25: =IF(AND(D25<>0, D25<>"Unknown",D25<>"Stopped",D25<>"Not required"),D25/COUNTRY_INFO!D25, 0) -> 0 | AL25: =IF(AND(J25<>0,J25<>"Unknown",J25<>"Stopped",J25<>"Not required"),J25/COUNTRY_INFO!D25, 0) -> 0 | AM25: =IF(AND(P25<>0,P25<>"Unknown",P25<>"Not required"),P25/(COUNTRY_INFO!E25+COUNTRY_INFO!F25), 0) -> 0 | AN25: =IF(AND(Z25<>0,Z25<>"Unknown",Z25<>"Not required"),IF(COUNTRY_INFO!K25=1,1,IF(COUNTRY_INFO!K25=2,0.5*COUNTRY_INFO!F25/(0.5*COUNTRY_INFO!F25+0.2*COUNTRY_INFO!G25),IF(COUNTRY_INFO!K25=3,COUNTRY_INFO!F25/(COUNTRY_INFO!F25+COUNTRY_INFO!G25)))),0) -> 0.4791981573 | AO25: =IF(AND(Z25<>0,Z25<>"Unknown",Z25<>"Not required"),IF(COUNTRY_INFO!K25=1,0,IF(COUNTRY_INFO!K25=2,0.2*COUNTRY_INFO!G25/(0.5*COUNTRY_INFO!F25+0.2*COUNTRY_INFO!G25),IF(COUNTRY_INFO!K25=3,COUNTRY_INFO!G25/(COUNTRY_INFO!F25+COUNTRY_INFO!G25)))),0) -> 0.5208018427 | AP25: =MAX(COUNTRY_INFO!D25*AK25*PROFILE!$G$7,COUNTRY_INFO!D25*AL25*PROFILE!$G$7) -> 0 | AQ25: =MAX(COUNTRY_INFO!D25*AK25*PROFILE!$G$8,COUNTRY_INFO!D25*AL25*PROFILE!$G$8,COUNTRY_INFO!D25*AM25*PROFILE!$G$8) -> 0 | AR25: =MAX(COUNTRY_INFO!D25*AK25*PROFILE!$G$9,COUNTRY_INFO!D25*AL25*PROFILE!$G$9,COUNTRY_INFO!D25*AM25*PROFILE!$G$9,IF(AND(DISTRICT!Z25<>"Unknown",Z25<>"Not required"),COUNTRY_INFO!O25*DISTRICT!AN25,0)) -> 2663 | AS25: =MAX(COUNTRY_INFO!D25*AK25*PROFILE!$G$10,COUNTRY_INFO!D25*AL25*PROFILE!$G$10,IF(AND(DISTRICT!Z25<>"Unknown",Z25<>"Not required"),COUNTRY_INFO!O25*DISTRICT!AO25,0)) -> 2894.2 | AT25: 5557.2 | AU25: 0 | AV25: =MAX('MDA2'!J25,'T1'!L25,'T2'!J25,T3_R1!K25,T3_R2!K25) -> 0 | AW25: =MAX('MDA1'!K25,'MDA2'!K25,'MDA3'!I25,'MDA3'!L25,'T1'!M25,'T2'!K25,T3_R1!L25,T3_R2!L25) -> 0 | AX25: =MAX('MDA1'!L25,'MDA2'!L25,'MDA3'!J25,'MDA3'!M25,'T1'!N25,'T2'!L25,T3_R1!M25,T3_R2!M25) -> 0 | AY25: 0 | AZ25: =MAX('MDA2'!J25,T25) -> 0 | BA25: =MAX('MDA1'!K25,'MDA2'!K25,'MDA3'!I25,'MDA3'!L25,V25,AD25) -> 0 | BB25: =MAX('MDA1'!L25,'MDA2'!L25,'MDA3'!J25,'MDA3'!M25,AF25) -> 0 | BC25: 0 | BD25: 0
A26: =IF(COUNTRY_INFO!A26=0," ",COUNTRY_INFO!A26) -> ESWATINI | B26: =IF(COUNTRY_INFO!B26=0," ",COUNTRY_INFO!B26) -> LUBOMBO | C26: =IF(COUNTRY_INFO!C26=0," ",COUNTRY_INFO!C26) -> Lubuli | D26: =COUNTRY_INFO!L26 -> 0 | G26: =MAX('MDA1'!M26,'MDA2'!M26) -> 0 | H26: =IF(AND(COUNTRY_INFO!H26>0,COUNTRY_INFO!H26<4),IF(D26>MAX('MDA1'!M26,'MDA2'!M26),MAX('MDA1'!M26,'MDA2'!M26),D26),0) -> 0 | I26: =IF(AND(COUNTRY_INFO!H26>0,COUNTRY_INFO!H26<4), IF(G26/D26*100<>0, IF(G26/D26*100>100,100,G26/D26*100), "-"),0) -> 0 | J26: =COUNTRY_INFO!M26 -> 0 | M26: =MAX('MDA1'!M26,MAX('MDA3'!I26,'MDA3'!L26)+MAX('MDA3'!J26,'MDA3'!M26)) -> 0 | N26: =IF(AND(COUNTRY_INFO!I26>0,COUNTRY_INFO!I26<4),IF(J26>MAX('MDA1'!M26,MAX('MDA3'!I26,'MDA3'!L26)+MAX('MDA3'!J26,'MDA3'!M26)),MAX('MDA1'!M26,MAX('MDA3'!I26,'MDA3'!L26)+MAX('MDA3'!J26,'MDA3'!M26)),J26),0) -> 0 | O26: =IF(AND(COUNTRY_INFO!I26>0,COUNTRY_INFO!I26<4), IF(M26/J26*100<>0, IF(M26/J26*100>100,100,M26/J26*100), "-"),0) -> 0 | P26: =COUNTRY_INFO!N26 -> 0 | S26: =SUM(MAX('MDA2'!J26, 'T1'!L26, MAX(T3_R1!K26, T3_R2!K26)), MAX('MDA1'!K26, 'MDA2'!K26, 'T1'!M26, MAX(T3_R1!L26, T3_R2!L26)), MAX('MDA1'!L26, 'MDA2'!L26, 'T1'!N26, MAX(T3_R1!M26, T3_R2!M26))) -> 3178 | T26: =IF(AND(COUNTRY_INFO!J26>1,COUNTRY_INFO!J26<4),IF(COUNTRY_INFO!E26>MAX('MDA2'!J26,'T1'!L26,MAX(T3_R1!K26,T3_R2!K26)),MAX('MDA2'!J26,'T1'!L26,MAX(T3_R1!K26,T3_R2!K26)),COUNTRY_INFO!E26),0) -> 0 | U26: =IF(AND(COUNTRY_INFO!J26>1,COUNTRY_INFO!J26<4), IF(T26/COUNTRY_INFO!E26*100<>0, IF(T26/COUNTRY_INFO!E26*100>100,100,T26/COUNTRY_INFO!E26*100), "-"),0) -> 0 | V26: =IF(AND(COUNTRY_INFO!J26>1,COUNTRY_INFO!J26<4),IF(COUNTRY_INFO!F26>MAX('MDA1'!K26,'MDA2'!K26,'T1'!M26,MAX(T3_R1!L26,T3_R2!L26)),MAX('MDA1'!K26,'MDA2'!K26,'T1'!M26,MAX(T3_R1!L26,T3_R2!L26)),COUNTRY_INFO!F26),0) -> 0 | W26: =IF(AND(COUNTRY_INFO!J26>1,COUNTRY_INFO!J26<4), IF(V26/COUNTRY_INFO!F26*100<>0, IF(V26/COUNTRY_INFO!F26*100>100,100,V26/COUNTRY_INFO!F26*100), "-"),0) -> 0 | X26: 0 | Y26: =IF(AND(COUNTRY_INFO!J26>1,COUNTRY_INFO!J26<4), IF(S26/P26*100<>0, IF(X26/P26*100>100,100,X26/P26*100), "-"),0) -> 0 | Z26: =COUNTRY_INFO!O26 -> 1125.63 | AC26: =MAX('T1'!L26,'T2'!J26)+MAX('T1'!M26,'T2'!K26)+MAX('T1'!N26,'T2'!L26) -> 0 | AD26: =IF(COUNTRY_INFO!K26=1,IF(COUNTRY_INFO!F26*0.33>MAX('T1'!M26,'T2'!K26),MAX('T1'!M26,'T2'!K26),COUNTRY_INFO!F26*0.33),IF(COUNTRY_INFO!K26=2,IF(COUNTRY_INFO!F26*0.5>MAX('T1'!M26,'T2'!K26),MAX('T1'!M26,'T2'!K26),COUNTRY_INFO!F26*0.5),IF(COUNTRY_INFO!K26=3,IF(COUNTRY_INFO!F26>MAX('T1'!M26,'T2'!K26),MAX('T1'!M26,'T2'!K26),COUNTRY_INFO!F26),0))) -> 0 | AE26: =IF(AND(COUNTRY_INFO!K26>0,COUNTRY_INFO!K26<4),IF(Z26>0,IF(COUNTRY_INFO!K26=1, AD26/(COUNTRY_INFO!F26*0.33)*100, IF(COUNTRY_INFO!K26=2, AD26/(COUNTRY_INFO!F26*0.5)*100, IF(COUNTRY_INFO!K26=3, AD26/COUNTRY_INFO!F26*100))),"-"),0) -> 0 | AF26: =IF(COUNTRY_INFO!K26=2,IF(COUNTRY_INFO!G26*0.2>MAX('T1'!N26,'T2'!L26),MAX('T1'!N26,'T2'!L26),COUNTRY_INFO!G26*0.2),IF(COUNTRY_INFO!K26=3,IF(COUNTRY_INFO!G26>MAX('T1'!N26,'T2'!L26),MAX('T1'!N26,'T2'!L26),COUNTRY_INFO!G26),0)) -> 0 | AG26: =IF(AND(COUNTRY_INFO!K26>0,COUNTRY_INFO!K26<4),IF(Z26>0,IF(COUNTRY_INFO!K26=1, 0, IF(COUNTRY_INFO!K26=2, AF26/(COUNTRY_INFO!G26*0.2)*100, IF(COUNTRY_INFO!K26=3, AF26/COUNTRY_INFO!G26*100))),"-"),0) -> 0 | AH26: 0 | AI26: =IF(AND(COUNTRY_INFO!K26>0,COUNTRY_INFO!K26<4), IF(AC26/Z26*100<>0, IF(AH26/Z26*100>100,100,AH26/Z26*100), "-"),0) -> - | AK26: =IF(AND(D26<>0, D26<>"Unknown",D26<>"Stopped",D26<>"Not required"),D26/COUNTRY_INFO!D26, 0) -> 0 | AL26: =IF(AND(J26<>0,J26<>"Unknown",J26<>"Stopped",J26<>"Not required"),J26/COUNTRY_INFO!D26, 0) -> 0 | AM26: =IF(AND(P26<>0,P26<>"Unknown",P26<>"Not required"),P26/(COUNTRY_INFO!E26+COUNTRY_INFO!F26), 0) -> 0 | AN26: =IF(AND(Z26<>0,Z26<>"Unknown",Z26<>"Not required"),IF(COUNTRY_INFO!K26=1,1,IF(COUNTRY_INFO!K26=2,0.5*COUNTRY_INFO!F26/(0.5*COUNTRY_INFO!F26+0.2*COUNTRY_INFO!G26),IF(COUNTRY_INFO!K26=3,COUNTRY_INFO!F26/(COUNTRY_INFO!F26+COUNTRY_INFO!G26)))),0) -> 1 | AO26: =IF(AND(Z26<>0,Z26<>"Unknown",Z26<>"Not required"),IF(COUNTRY_INFO!K26=1,0,IF(COUNTRY_INFO!K26=2,0.2*COUNTRY_INFO!G26/(0.5*COUNTRY_INFO!F26+0.2*COUNTRY_INFO!G26),IF(COUNTRY_INFO!K26=3,COUNTRY_INFO!G26/(COUNTRY_INFO!F26+COUNTRY_INFO!G26)))),0) -> 0 | AP26: =MAX(COUNTRY_INFO!D26*AK26*PROFILE!$G$7,COUNTRY_INFO!D26*AL26*PROFILE!$G$7) -> 0 | AQ26: =MAX(COUNTRY_INFO!D26*AK26*PROFILE!$G$8,COUNTRY_INFO!D26*AL26*PROFILE!$G$8,COUNTRY_INFO!D26*AM26*PROFILE!$G$8) -> 0 | AR26: =MAX(COUNTRY_INFO!D26*AK26*PROFILE!$G$9,COUNTRY_INFO!D26*AL26*PROFILE!$G$9,COUNTRY_INFO!D26*AM26*PROFILE!$G$9,IF(AND(DISTRICT!Z26<>"Unknown",Z26<>"Not required"),COUNTRY_INFO!O26*DISTRICT!AN26,0)) -> 1125.63 | AS26: =MAX(COUNTRY_INFO!D26*AK26*PROFILE!$G$10,COUNTRY_INFO!D26*AL26*PROFILE!$G$10,IF(AND(DISTRICT!Z26<>"Unknown",Z26<>"Not required"),COUNTRY_INFO!O26*DISTRICT!AO26,0)) -> 0 | AT26: 1125.63 | AU26: 0 | AV26: =MAX('MDA2'!J26,'T1'!L26,'T2'!J26,T3_R1!K26,T3_R2!K26) -> 0 | AW26: =MAX('MDA1'!K26,'MDA2'!K26,'MDA3'!I26,'MDA3'!L26,'T1'!M26,'T2'!K26,T3_R1!L26,T3_R2!L26) -> 3178 | AX26: =MAX('MDA1'!L26,'MDA2'!L26,'MDA3'!J26,'MDA3'!M26,'T1'!N26,'T2'!L26,T3_R1!M26,T3_R2!M26) -> 0 | AY26: 3178 | AZ26: =MAX('MDA2'!J26,T26) -> 0 | BA26: =MAX('MDA1'!K26,'MDA2'!K26,'MDA3'!I26,'MDA3'!L26,V26,AD26) -> 0 | BB26: =MAX('MDA1'!L26,'MDA2'!L26,'MDA3'!J26,'MDA3'!M26,AF26) -> 0 | BC26: 0 | BD26: 0
